Workbook

Sheet START

Sheet Instructions
D2: 2020
X4: Yes
X5: No
W7: Type of Entities Range:
X8: Parent Municipality
X9: Consolidated Information
F14: START
F15: Instructions
F16: Template names
F17: Lookup and lists | W17: MTREF Range: | X17: 2013
F18: Org structure | X18: 2014
F19: Contacts | X19: 2015
F20: A1-Sum | X20: 2016
F21: A2-FinPerf SC | X21: 2017
F22: A2A | X22: 2018
F23: A3-FinPerf V | X23: 2019
F24: A3A | X24: 2020
F25: A4-FinPerf RE | X25: 2021
F26: A5-Capex | X26: 2022
F27: A5A | X27: 2023
F28: A6-FinPos | X28: 2024
F29: A7-CFlow | X29: 2025
F30: A8-ResRecon | X30: 2026
F31: A9-Asset | X31: 2027
F32: A10-SerDel
F33: SA1 | W33: MTREF Linked: | X33: 11
F34: SA2 | W34: MTREF: | X34: =INDEX(X17:X31,X33,1) -> 2023
F35: SA3
F36: SA4 | W36: Fin Year: | X36: =MTREF&"/"&RIGHT(MTREF,2)+1 -> 2023/24
F37: SA5
F38: SA6
F39: SA7
F40: SA8
F41: SA9
F42: SA10
F43: SA11
F44: SA12a
F45: SA12b
F46: SA13a
F47: SA13b
F48: SA14
F49: SA15
F50: SA16
F51: SA17
F52: SA18
F53: SA19
F54: SA20
F55: SA21
F56: SA22
F57: SA23
F58: SA24
F59: SA25
F60: SA26
F61: SA27
F62: SA28
F63: SA29
F64: SA30
F65: SA31
F66: SA32
F67: SA33
F68: SA34a
F69: SA34b
F70: SA34c
F71: SA34d
F72: SA34e
F73: SA35
F74: SA36
F75: SA37
F76: SA38
F77: LGDB_EXPORT

Sheet Template names (hidden)
A1: Common sheet headings
A2: Head1 | B2: =HLOOKUP(MTREF,Headings,2) -> 2021/22 | C2: Prior year -1
A3: Head1A | B3: =HLOOKUP(MTREF,Headings,3) -> 2020/21 | C3: Prior year -2
A4: Head1B | B4: =HLOOKUP(MTREF,Headings,4) -> 2019/20 | C4: Prior year -3
A5: Head2 | B5: =HLOOKUP(MTREF,Headings,5) -> Current Year 2022/23 | C5: Year in which budget is being prepared
A6: Head2A | B6: =HLOOKUP(MTREF,Headings,6) -> 2022/23 | C6: Year in which budget is being prepared
A7: Head3 | B7: =HLOOKUP(MTREF,Headings,7) -> 2023/24 Medium Term Revenue & Expenditure Framework | C7: MTREF name
A8: Head4 | B8: LTFS | C8: Long term financial strategy
A9: Head5 | B9: Audited Outcome
A10: Head5A | B10: Outcome
A11: Head5B | B11: Pre-audit outcome
A12: Head6 | B12: Original Budget
A13: Head7 | B13: Adjusted Budget
A14: Head8 | B14: Full Year Forecast
A15: Head9 | B15: =HLOOKUP(MTREF,Headings,8) -> Budget Year 2023/24 | C15: 1st year of MTREF | D15: Year1
A16: Head10 | B16: =HLOOKUP(MTREF,Headings,9) -> Budget Year +1 2024/25 | C16: 2nd year of MTREF | D16: Year2
A17: Head11 | B17: =HLOOKUP(MTREF,Headings,10) -> Budget Year +2 2025/26 | C17: 3rd year of MTREF | D17: Year3
A18: Head12 | B18: =HLOOKUP(MTREF,Headings,11) -> Forecast 2026/27 | C18: 1st yr of long term forecast | D18: Year4
A19: Head13 | B19: =HLOOKUP(MTREF,Headings,12) -> Forecast 2027/28 | C19: Next yr of long term forecast | D19: Year5
A20: Head14 | B20: =HLOOKUP(MTREF,Headings,13) -> Forecast 2028/29 | C20: Next yr of long term forecast | D20: Year6
A21: Head15 | B21: =HLOOKUP(MTREF,Headings,14) -> Forecast 2029/30 | C21: Next yr of long term forecast | D21: Year7
A22: Head16 | B22: =HLOOKUP(MTREF,Headings,15) -> Forecast 2030/31 | C22: Next yr of long term forecast | D22: Year8
A23: Head17 | B23: =HLOOKUP(MTREF,Headings,16) -> Forecast 2031/32 | C23: Next yr of long term forecast | D23: Year9
A24: Head18 | B24: =HLOOKUP(MTREF,Headings,17) -> Forecast 2032/33 | C24: Next yr of long term forecast | D24: Year10
A25: Head19 | B25: =HLOOKUP(MTREF,Headings,18) -> Forecast 2033/34 | C25: Next yr of long term forecast | D25: Year11
A26: Head20 | B26: =HLOOKUP(MTREF,Headings,19) -> Forecast 2034/35 | C26: Next yr of long term forecast | D26: Year12
A27: Head21 | B27: =HLOOKUP(MTREF,Headings,20) -> Forecast 2035/36 | C27: Next yr of long term forecast | D27: Year13
A28: Head22 | B28: =HLOOKUP(MTREF,Headings,21) -> Forecast 2036/37 | C28: Next yr of long term forecast | D28: Year14
A29: Head23 | B29: =HLOOKUP(MTREF,Headings,22) -> Forecast 2037/38 | C29: Next yr of long term forecast | D29: Year15
A30: Head24 | B30: Description
A31: Head25
A32: Head26 | B32: Vote Description
A33: Head27 | B33: Ref
A34: Head27a | B34: References
A35: Head28 | B35: Surplus/(Deficit) for the year | D35: Result
A36: Head29 | B36: =HLOOKUP(MTREF,Headings,23) -> Annual target 2023/24
A37: Head30 | B37: =HLOOKUP(MTREF,Headings,24) -> Revised target 2023/24
A38: Head31 | B38: Quarter ended 30 September
A39: Head32 | B39: Quarter ended 31 December
A40: Head33 | B40: Quarter ended 31 March
A41: Head34 | B41: Quarter ended 30 June
A42: Head35 | B42: Variance explanation
A43: Head36 | B43: YTD Actual 31 Dec
A44: Head37 | B44: YTD Budget 31 Dec
A45: Head38 | B45: Monthly actual
A46: Head39 | B46: YTD actual
A47: Head40 | B47: YTD budget
A48: Head41 | B48: YTD variance
A49: Head42 | B49: Surplus/ (Deficit) for the yr/period
A50: Head43 | B50: =Head3&" Summary" -> 2023/24 Medium Term Revenue & Expenditure Framework Summary
A51: Head44 | B51: 2001 Census
A52: Head45 | B52: 2011 Census
A53: Head46 | B53: - Adjustments Budget - January 2007
A54: Head47 | B54: Previous target year to complete
A55: Head48 | B55: Present value
A56: Head49
A57: Head50 | B57: Other Adjusts.
A58: Head51 | B58: Accum. Funds
A59: Head52 | B59: Multi-year capital
A60: Head53 | B60: Unfore. Unavoid.
A61: Head54 | B61: Prior Adjusted
A62: Head55 | B62: Nat. or Prov. Govt
A63: Head56 | B63: Total Adjusts.
A64: SFPerf1 | B64: Budgeted Financial Performance
A65: SFPerf2 | B65: Forecast Financial Performance
A66: SFPos1 | B66: Budgeted Financial Position
A67: SFPos2 | B67: Forecast Financial Position
A68: Cash1 | B68: Budget Cash Flow
A69: Cash2 | B69: Forecast Cash Flow
A70: RandM | B70: Expenditure includes repairs & maintenance of R'000
A71: Depart1 | B71: Department 1 - | D71: DEP1
A72: Depart2 | B72: Department 2 - | D72: DEP2
A73: Depart3 | B73: Department 3 - | D73: DEP3
A74: Depart4 | B74: Department 4 - | D74: DEP4
A75: Depart5 | B75: Department 5 - | D75: DEP5
A76: Depart6 | B76: Department 6 - | D76: DEP6
A77: Depart7 | B77: Department 7 - | D77: DEP7
A78: Depart8 | B78: Department 8 - | D78: DEP8
A79: Depart9 | B79: Department 9 - | D79: DEP9
A80: Depart10 | B80: Department 10 - | D80: DEP10
A81: Depart11 | B81: Department 11 - | D81: DEP11
A82: Depart12 | B82: Department 12 - | D82: DEP12
A83: Depart13 | B83: Department 13 - | D83: DEP13
A84: Depart14 | B84: Department 14 - | D84: DEP14
A87: Base year of forecast column selection names
A88: Choose | B88: ACT
B89: APP
B90: ADJ
A92: Standard nomenclature
A93: Muni | B93: ='Lookup and lists'!B28 -> NC062 Nama Khoi
A94: Municipal Entities | B94: 2 | C94: Type of report: | D94: 1
A95: =IF((MuniEntities=1)*(MuniType=2),"YES","NO") -> NO | B95: Does this municipality have entities (consolidated budget and entity budgets required)? YES/NO
A96: Entity 1 | B96: (Pty) Ltd Example 1 - Municipal entity - | D96: Ent1
A97: Entity 2 | B97: (Pty) Ltd Example 2 - Municipal entity - | D97: Ent2
A98: Entity 3 | B98: Municipal Entity Example 3 | D98: Ent3
A99: Budget approval tables | C99: Chart x-ref | D99: Sch/Tab/Ch | E99: Alternative for municipalities without entities | F99: Alternative for municipalities without entities
B100: =IF(Consolques="YES",E100,F100) -> Table A1 Budget Summary | D100: Table A1 | E100: =D100&"Consolidated Budget Summary" -> Table A1 Consolidated Budget Summary | F100: =D100&"Budget Summary" -> Table A1 Budget Summary
B101: Table A2 Budgeted Financial Performance (revenue and expenditure by functional classification) | C101: Charts 5, 6 | D101: Table A2 | E101: =D101&"Consolidated Budgeted Financial Performance (revenue and expenditure by functional classification)" -> Table A2 Consolidated Budgeted Financial Performance (revenue and expenditure by functional classification) | F101: =D101&"Budgeted Financial Performance (revenue and expenditure by functional classification)" -> Table A2 Budgeted Financial Performance (revenue and expenditure by functional classification)
B102: Table A3 Budgeted Financial Performance (revenue and expenditure by municipal vote) | D102: Table A3 | E102: =D102&"Consolidated Budgeted Financial Performance (revenue and expenditure by municipal vote)" -> Table A3 Consolidated Budgeted Financial Performance (revenue and expenditure by municipal vote) | F102: =D102&"Budgeted Financial Performance (revenue and expenditure by municipal vote)" -> Table A3 Budgeted Financial Performance (revenue and expenditure by municipal vote)
B103: Table A4 Budgeted Financial Performance (revenue and expenditure) | C103: Charts 1, 2, 3, 4 | D103: Table A4 | E103: =D103&"Consolidated Budgeted Financial Performance (revenue and expenditure)" -> Table A4 Consolidated Budgeted Financial Performance (revenue and expenditure) | F103: =D103&"Budgeted Financial Performance (revenue and expenditure)" -> Table A4 Budgeted Financial Performance (revenue and expenditure)
B104: Table A5 Budgeted Capital Expenditure by vote, functional classification and funding | C104: Charts 7, 8, 9, 10, 20 | D104: Table A5 | E104: =D104&"Consolidated Budgeted Capital Expenditure by vote, functional classification and funding" -> Table A5 Consolidated Budgeted Capital Expenditure by vote, functional classification and funding | F104: =D104&"Budgeted Capital Expenditure by vote, functional classification and funding" -> Table A5 Budgeted Capital Expenditure by vote, functional classification and funding
B105: Table A6 Budgeted Financial Position | D105: Table A6 | E105: =D105&"Consolidated Budgeted Financial Position" -> Table A6 Consolidated Budgeted Financial Position | F105: =D105&"Budgeted Financial Position" -> Table A6 Budgeted Financial Position
B106: Table A7 Budgeted Cash Flows | D106: Table A7 | E106: =D106&"Consolidated Budgeted Cash Flows" -> Table A7 Consolidated Budgeted Cash Flows | F106: =D106&"Budgeted Cash Flows" -> Table A7 Budgeted Cash Flows
B107: Table A8 Cash backed reserves/accumulated surplus reconciliation | D107: Table A8 | E107: =D107&"Consolidated Cash backed reserves/accumulated surplus reconciliation" -> Table A8 Consolidated Cash backed reserves/accumulated surplus reconciliation | F107: =D107&"Cash backed reserves/accumulated surplus reconciliation" -> Table A8 Cash backed reserves/accumulated surplus reconciliation
B108: Table A9 Asset Management | D108: Table A9 | E108: =D108&"Consolidated Asset Management" -> Table A9 Consolidated Asset Management | F108: =D108&"Asset Management" -> Table A9 Asset Management
B109: Table A10 Basic service delivery measurement | D109: Table A10 | E109: =D109&"Consolidated basic service delivery measurement" -> Table A10 Consolidated basic service delivery measurement | F109: =D109&"Basic service delivery measurement" -> Table A10 Basic service delivery measurement
A110: Supportinging Tables to the Budget Approval Tables | C110: =$C$99 -> Chart x-ref | D110: =$D$99 -> Sch/Tab/Ch
A111: Supporting Table SA1 | B111: =A111&" Supportinging detail to 'Budgeted Financial Performance'" -> Supporting Table SA1 Supportinging detail to 'Budgeted Financial Performance'
A112: Supporting Table SA2 | B112: =IF(Consolques="YES",E112,F112) -> Supporting Table SA2 Matrix Financial Performance Budget (revenue source/expenditure type and dept.) | E112: =A112&"Consolidated Matrix Financial Performance Budget (revenue source/expenditure type & dept.)" -> Supporting Table SA2 Consolidated Matrix Financial Performance Budget (revenue source/expenditure type & dept.) | F112: =A112&"Matrix Financial Performance Budget (revenue source/expenditure type and dept.)" -> Supporting Table SA2 Matrix Financial Performance Budget (revenue source/expenditure type and dept.)
A113: Supporting Table SA3 | B113: =A113&"Supportinging detail to 'Budgeted Financial Position'" -> Supporting Table SA3 Supportinging detail to 'Budgeted Financial Position'
A114: Supporting Table SA4 | B114: =A114&"Reconciliation of IDP strategic objectives and budget (revenue)" -> Supporting Table SA4 Reconciliation of IDP strategic objectives and budget (revenue) | C114: Chart 11
A115: Supporting Table SA5 | B115: =A115&"Reconciliation of IDP strategic objectives and budget (operating expenditure)" -> Supporting Table SA5 Reconciliation of IDP strategic objectives and budget (operating expenditure) | C115: Chart 12
A116: Supporting Table SA6 | B116: =A116&"Reconciliation of IDP strategic objectives and budget (capital expenditure)" -> Supporting Table SA6 Reconciliation of IDP strategic objectives and budget (capital expenditure) | C116: Chart 13
A117: Supporting Table SA7 | B117: =A117&" Measureable performance objectives" -> Supporting Table SA7 Measureable performance objectives
A118: Supporting Table SA8 | B118: =A118&" Performance indicators and benchmarks" -> Supporting Table SA8 Performance indicators and benchmarks | C118: Chts 15-19
A119: Supporting Table SA9 | B119: =A119&" Social, economic and demographic statistics and assumptions" -> Supporting Table SA9 Social, economic and demographic statistics and assumptions
A120: Supporting Table SA10 | B120: =A120&" Funding measurement" -> Supporting Table SA10 Funding measurement | C120: Chart 14
A121: Supporting Table SA11 | B121: =A121&" Property rates summary" -> Supporting Table SA11 Property rates summary
A122: Supporting Table SA12a | B122: =A122&" Property rates by category (current year)" -> Supporting Table SA12a Property rates by category (current year)
A123: Supporting Table SA12b | B123: =A123&" Property rates by category (budget year)" -> Supporting Table SA12b Property rates by category (budget year)
A124: Supporting Table SA13a | B124: =A124&" Service Tariffs by category" -> Supporting Table SA13a Service Tariffs by category
A125: Supporting Table SA13b | B125: =A125&" Service Tariffs by category - explanatory" -> Supporting Table SA13b Service Tariffs by category - explanatory
A126: Supporting Table SA14 | B126: =A126&" Household bills" -> Supporting Table SA14 Household bills
A127: Supporting Table SA15 | B127: =A127&" Investment particulars by type" -> Supporting Table SA15 Investment particulars by type
A128: Supporting Table SA16 | B128: =A128&" Investment particulars by maturity" -> Supporting Table SA16 Investment particulars by maturity
A129: Supporting Table SA17 | B129: =A129&" Borrowing" -> Supporting Table SA17 Borrowing
A130: Supporting Table SA18 | B130: =A130&" Transfers and grant receipts" -> Supporting Table SA18 Transfers and grant receipts
A131: Supporting Table SA19 | B131: =A131&" Expenditure on transfers and grant programme" -> Supporting Table SA19 Expenditure on transfers and grant programme
A132: Supporting Table SA20 | B132: =A132&" Reconciliation of transfers, grant receipts and unspent funds" -> Supporting Table SA20 Reconciliation of transfers, grant receipts and unspent funds
A133: Supporting Table SA21 | B133: =A133&" Transfers and grants made by the municipality" -> Supporting Table SA21 Transfers and grants made by the municipality
A134: Supporting Table SA22 | B134: =A134&" Summary councillor and staff benefits" -> Supporting Table SA22 Summary councillor and staff benefits
A135: Supporting Table SA23 | B135: =A135&" Salaries, allowances & benefits (political office bearers/councillors/senior managers)" -> Supporting Table SA23 Salaries, allowances & benefits (political office bearers/councillors/senior managers)
A136: Supporting Table SA24 | B136: =A136&" Summary of personnel numbers" -> Supporting Table SA24 Summary of personnel numbers
A137: Supporting Table SA25 | B137: =IF(Consolques="YES",E137,F137) -> Supporting Table SA25 Budgeted monthly revenue and expenditure | E137: =A137&" Consolidated budgeted monthly revenue and expenditure" -> Supporting Table SA25 Consolidated budgeted monthly revenue and expenditure | F137: =A137&" Budgeted monthly revenue and expenditure" -> Supporting Table SA25 Budgeted monthly revenue and expenditure
A138: Supporting Table SA26 | B138: Supporting Table SA26 Budgeted monthly revenue and expenditure (municipal vote) | E138: =A138&" Consolidated budgeted monthly revenue and expenditure (municipal vote)" -> Supporting Table SA26 Consolidated budgeted monthly revenue and expenditure (municipal vote) | F138: =A138&" Budgeted monthly revenue and expenditure (municipal vote)" -> Supporting Table SA26 Budgeted monthly revenue and expenditure (municipal vote)
A139: Supporting Table SA27 | B139: Supporting Table SA27 Budgeted monthly revenue and expenditure (functional classification) | E139: =A139&" Consolidated budgeted monthly revenue and expenditure (functional classification)" -> Supporting Table SA27 Consolidated budgeted monthly revenue and expenditure (functional classification) | F139: =A139&" Budgeted monthly revenue and expenditure (functional classification)" -> Supporting Table SA27 Budgeted monthly revenue and expenditure (functional classification)
A140: Supporting Table SA28 | B140: Supporting Table SA28 Budgeted monthly capital expenditure (municipal vote) | E140: =A140&" Consolidated budgeted monthly capital expenditure (municipal vote)" -> Supporting Table SA28 Consolidated budgeted monthly capital expenditure (municipal vote) | F140: =A140&" Budgeted monthly capital expenditure (municipal vote)" -> Supporting Table SA28 Budgeted monthly capital expenditure (municipal vote)
A141: Supporting Table SA29 | B141: Supporting Table SA29 Budgeted monthly capital expenditure (functional classification) | E141: =A141&" Consolidated budgeted monthly capital expenditure (functional classification)" -> Supporting Table SA29 Consolidated budgeted monthly capital expenditure (functional classification) | F141: =A141&" Budgeted monthly capital expenditure (functional classification)" -> Supporting Table SA29 Budgeted monthly capital expenditure (functional classification)
A142: Supporting Table SA30 | B142: Supporting Table SA30 Budgeted monthly cash flow | E142: =A142&" Consolidated budgeted monthly cash flow" -> Supporting Table SA30 Consolidated budgeted monthly cash flow | F142: =A142&" Budgeted monthly cash flow" -> Supporting Table SA30 Budgeted monthly cash flow
A143: Supporting Table SA31 | B143: NOT REQUIRED - municipality does not have entities | E143: =A143&" Aggregated entity budget" -> Supporting Table SA31 Aggregated entity budget | F143: NOT REQUIRED - municipality does not have entities
A144: Supporting Table SA32 | B144: =A144&" List of external mechanisms" -> Supporting Table SA32 List of external mechanisms
A145: Supporting Table SA33 | B145: =A145&" Contracts having future budgetary implications" -> Supporting Table SA33 Contracts having future budgetary implications
A146: Supporting Table SA34a | B146: =IF(Consolques="YES",E146,F146) -> Supporting Table SA34a Capital expenditure on new assets by asset class | E146: =A146&" Consolidated capital expenditure on new assets by asset class" -> Supporting Table SA34a Consolidated capital expenditure on new assets by asset class | F146: =A146&" Capital expenditure on new assets by asset class" -> Supporting Table SA34a Capital expenditure on new assets by asset class
A147: Supporting Table SA34b | B147: Supporting Table SA34b Capital expenditure on the renewal of existing assets by asset class | E147: =A147&" Consolidated capital expenditure on the renewal of existing assets by asset class" -> Supporting Table SA34b Consolidated capital expenditure on the renewal of existing assets by asset class | F147: =A147&" Capital expenditure on the renewal of existing assets by asset class" -> Supporting Table SA34b Capital expenditure on the renewal of existing assets by asset class
A148: Supporting Table SA34c | B148: Supporting Table SA34c Repairs and maintenance expenditure by asset class | E148: =A148&" Consolidated repairs and maintenance by asset class" -> Supporting Table SA34c Consolidated repairs and maintenance by asset class | F148: =A148&" Repairs and maintenance expenditure by asset class" -> Supporting Table SA34c Repairs and maintenance expenditure by asset class
A149: Supporting Table SA34d | B149: =IF(Consolques="YES",E149,F149) -> Supporting Table SA34d Depreciation by asset class | E149: =A149&" Consolidated Depreciation by asset class" -> Supporting Table SA34d Consolidated Depreciation by asset class | F149: =A149&" Depreciation by asset class" -> Supporting Table SA34d Depreciation by asset class
A150: Supporting Table SA34e | B150: =IF(Consolques="YES",E150,F150) -> Supporting Table SA34e Capital expenditure on the upgrading of existing assets by asset class | E150: =A150&" Consolidated capital expenditure on the upgrading of existing assets by asset class" -> Supporting Table SA34e Consolidated capital expenditure on the upgrading of existing assets by asset class | F150: =A150&" Capital expenditure on the upgrading of existing assets by asset class" -> Supporting Table SA34e Capital expenditure on the upgrading of existing assets by asset class
A151: Supporting Table SA35 | B151: Supporting Table SA35 Future financial implications of the capital budget | E151: =A151&" Consolidated future financial implications of the capital budget" -> Supporting Table SA35 Consolidated future financial implications of the capital budget | F151: =A151& " Future financial implications of the capital budget" -> Supporting Table SA35 Future financial implications of the capital budget
A152: Supporting Table SA36 | B152: Supporting Table SA36 Detailed capital budget | E152: =A152&" Consolidated detailed capital budget" -> Supporting Table SA36 Consolidated detailed capital budget | F152: =A152& " Detailed capital budget" -> Supporting Table SA36 Detailed capital budget
A153: Supporting Table SA37 | B153: Supporting Table SA37 Projects delayed from previous financial year/s | E153: =A153&" Consolidated projects delayed from previous financial year/s" -> Supporting Table SA37 Consolidated projects delayed from previous financial year/s | F153: =A153& " Projects delayed from previous financial year/s" -> Supporting Table SA37 Projects delayed from previous financial year/s
A154: Supporting Table SA38 | B154: =IF(Consolques="YES",E154,F154) -> Supporting Table SA38 Detailed operational projects | E154: =A154&" Consolidated detailed operational projects" -> Supporting Table SA38 Consolidated detailed operational projects | F154: =A154& " Detailed operational projects" -> Supporting Table SA38 Detailed operational projects
A156: Budget Charts | B156: Charts | C156: Cross reference
A157: Chart A1 | B157: =A157&"Revenue by Municipal Vote" -> Chart A1 Revenue by Municipal Vote
A158: Chart A2 | B158: =A158&"Expenditure by Municipal Vote" -> Chart A2 Expenditure by Municipal Vote
A159: Chart A3 | B159: =A159&"Revenue by Standard Classification" -> Chart A3 Revenue by Standard Classification | C159: A2
A160: Chart A4 | B160: =A160&"Expenditure by Standard Classification" -> Chart A4 Expenditure by Standard Classification | C160: A2
A161: Chart A5 | B161: =A161&"Revenue by Major Source (refer 'Minor' source for 'Other Revenue' allocation" -> Chart A5 Revenue by Major Source (refer 'Minor' source for 'Other Revenue' allocation | C161: A3
A162: Chart A6 | B162: =A162&"Revenue by Minor Source (Other)" -> Chart A6 Revenue by Minor Source (Other) | C162: A3
A163: Chart A7 | B163: =A163&"Expenditure by Major Type" -> Chart A7 Expenditure by Major Type | C163: A3
A164: Chart A8 | B164: =A164&"Expenditure by Minor Type (Other)" -> Chart A8 Expenditure by Minor Type (Other) | C164: A3
A165: Chart A9 | B165: =A165&"Capital Expenditure by Municipal Vote/Appropriation (Major)" -> Chart A9 Capital Expenditure by Municipal Vote/Appropriation (Major) | C165: A5
A166: Chart A10 | B166: =A166&"Capital Expenditure by Municipal Vote/Appropriation (Minor)" -> Chart A10 Capital Expenditure by Municipal Vote/Appropriation (Minor) | C166: A5
A167: Chart A11 | B167: =A166&"Capital Expenditure by Standard Classification" -> Chart A10 Capital Expenditure by Standard Classification | C167: A5
A168: Chart A12 | B168: =A168&"Capital expenditure performance trend" -> Chart A12 Capital expenditure performance trend | C168: A5
A169: Chart A13 | B169: =A169&"Capital funding by Source" -> Chart A13 Capital funding by Source | C169: A5
A170: Chart A14 | B170: =A170&"Cash flow trend" -> Chart A14 Cash flow trend | C170: A7
A171: Chart A15 | B171: =A171&"IDP Strategic Objective - Revenue" -> Chart A15 IDP Strategic Objective - Revenue | C171: Table A4
A172: Chart A16 | B172: =A172&"IDP Strategic Objective - Expenditure" -> Chart A16 IDP Strategic Objective - Expenditure | C172: Table A5
A173: Chart A17 | B173: =A173&"IDP Strategic Objective - Capital Expenditure" -> Chart A17 IDP Strategic Objective - Capital Expenditure | C173: Table A6
A174: Chart A18 | B174: =A174&"Debt (borrowing to Total Revenue)" -> Chart A18 Debt (borrowing to Total Revenue) | C174: Table A8
A175: Chart A19 | B175: =A175&"Debtors' trend analysis" -> Chart A19 Debtors' trend analysis | C175: Table A8
A176: Chart A20 | B176: =A176&"Distribution losses" -> Chart A20 Distribution losses | C176: Table A8
A177: Chart A21 | B177: =A177&"Borrowed funding of capital expenditure" -> Chart A21 Borrowed funding of capital expenditure | C177: Table A8
A178: Chart A22 | B178: =A178&"Expenditure analysis (% of Revenue)" -> Chart A22 Expenditure analysis (% of Revenue) | C178: Table A8
A179: Chart A23 | B179: =A179&"Increases in service charges" -> Chart A23 Increases in service charges | C179: Table A10

Sheet Lookup and lists (hidden)
A1: Description | B1: 2013 | C1: 2014 | D1: 2015 | E1: 2016 | F1: 2017 | G1: 2018 | H1: 2019 | I1: 2020 | J1: 2021 | K1: 2022 | L1: 2023 | M1: 2024 | N1: 2025 | O1: 2026 | Q1: Lists | Y1: Grants: | Z1: National - opex | AA1: Provincial - opex | AB1: National - capex | AC1: Provincial - capex
A2: ='Template names'!C2 -> Prior year -1 | B2: =B1-2&"/"&RIGHT(B1,2)-1 -> 2011/12 | C2: 2012/13 | D2: 2013/14 | E2: 2014/15 | F2: 2015/16 | G2: 2016/17 | H2: 2017/18 | I2: 2018/19 | J2: =J1-2&"/"&RIGHT(J1,2)-1 -> 2019/20 | K2: 2020/21 | L2: 2021/22 | M2: 2022/23 | N2: 2023/24 | O2: 2024/25 | Q2: Yes | R2: <1 | S2: <4 | T2: Market | U2: Land & impr. | V2: Yes | W2: Uniform | X2: Yrs | Z2: Local Government Equitable Share | AA2: Health subsidy | AB2: Municipal Infrastructure Grant (MIG) | AC2: Agriculture
A3: ='Template names'!C3 -> Prior year -2 | B3: =B1-3&"/"&RIGHT(B1,2)-2 -> 2010/11 | C3: 2011/12 | D3: 2012/13 | E3: 2013/14 | F3: 2014/15 | G3: 2015/16 | H3: 2016/17 | I3: 2017/18 | J3: =J1-3&"/"&RIGHT(J1,2)-2 -> 2018/19 | K3: 2019/20 | L3: 2020/21 | M3: 2021/22 | N3: 2022/23 | O3: 2023/24 | Q3: No | R3: 1 | S3: 4 | T3: Dep.Replace | U3: Land only | V3: No | W3: Variable | X3: Mths | Z3: RSC Levy Replacement | AA3: Ambulance subsidy | AB3: Public Transport and Systems | AC3: Education
A4: ='Template names'!C4 -> Prior year -3 | B4: =B1-4&"/"&RIGHT(B1,2)-3 -> 2009/10 | C4: 2010/11 | D4: 2011/12 | E4: 2012/13 | F4: 2013/14 | G4: 2014/15 | H4: 2015/16 | I4: 2016/17 | J4: =J1-4&"/"&RIGHT(J1,2)-3 -> 2017/18 | K4: 2018/19 | L4: 2019/20 | M4: 2020/21 | N4: 2021/22 | O4: 2022/23 | R4: 2 | S4: 5 | T4: Other | U4: Other | Z4: Finance Management | AA4: Housing | AB4: Rural Transport Services and Infrastructure | AC4: Health
A5: ='Template names'!C5 -> Year in which budget is being prepared | B5: ="Current Year "& B1-1&"/"&RIGHT(B1,2) -> Current Year 2012/13 | C5: Current Year 2013/14 | D5: Current Year 2014/15 | E5: Current Year 2015/16 | F5: Current Year 2016/17 | G5: Current Year 2017/18 | H5: Current Year 2018/19 | I5: Current Year 2019/20 | J5: ="Current Year "& J1-1&"/"&RIGHT(J1,2) -> Current Year 2020/21 | K5: Current Year 2021/22 | L5: Current Year 2022/23 | M5: Current Year 2023/24 | N5: Current Year 2024/25 | O5: Current Year 2025/26 | R5: 3 | S5: 6 | Z5: Municipal Systems Improvement | AA5: Sport and Recreation | AB5: Regional Bulk Infrastructure | AC5: Housing and Local Government
A6: ='Template names'!C6 -> Year in which budget is being prepared | B6: =B1-1&"/"&RIGHT(B1,2) -> 2012/13 | C6: 2013/14 | D6: 2014/15 | E6: 2015/16 | F6: 2016/17 | G6: 2017/18 | H6: 2018/19 | I6: 2019/20 | J6: =J1-1&"/"&RIGHT(J1,2) -> 2020/21 | K6: 2021/22 | L6: 2022/23 | M6: 2023/24 | N6: 2024/25 | O6: 2025/26 | R6: 4 | S6: 6-10 | Z6: Water Services Operating Subsidy | AB6: Rural Households Infrastructure | AC6: Other Departments
A7: ='Template names'!C7 -> MTREF name | B7: =B1&"/"&RIGHT(B1,2)+1&" Medium Term Revenue & Expenditure Framework" -> 2013/14 Medium Term Revenue & Expenditure Framework | C7: 2014/15 Medium Term Revenue & Expenditure Framework | D7: 2015/16 Medium Term Revenue & Expenditure Framework | E7: 2016/17 Medium Term Revenue & Expenditure Framework | F7: 2017/18 Medium Term Revenue & Expenditure Framework | G7: 2018/19 Medium Term Revenue & Expenditure Framework | H7: 2019/20 Medium Term Revenue & Expenditure Framework | I7: 2020/21 Medium Term Revenue & Expenditure Framework | J7: =J1&"/"&RIGHT(J1,2)+1&" Medium Term Revenue & Expenditure Framework" -> 2021/22 Medium Term Revenue & Expenditure Framework | K7: 2022/23 Medium Term Revenue & Expenditure Framework | L7: 2023/24 Medium Term Revenue & Expenditure Framework | M7: 2024/25 Medium Term Revenue & Expenditure Framework | N7: 2025/26 Medium Term Revenue & Expenditure Framework | O7: 2026/27 Medium Term Revenue & Expenditure Framework | R7: 5 | S7: >10 | Z7: Energy Efficiency and Demand Management | AB7: Neighbourhood Development Partnership | AC7: Public Works, Roads, Transport
A8: ='Template names'!C15 -> 1st year of MTREF | B8: ="Budget Year "&B1&"/"&RIGHT(B1,2)+1 -> Budget Year 2013/14 | C8: Budget Year 2014/15 | D8: Budget Year 2015/16 | E8: Budget Year 2016/17 | F8: Budget Year 2017/18 | G8: Budget Year 2018/19 | H8: Budget Year 2019/20 | I8: Budget Year 2020/21 | J8: ="Budget Year "&J1&"/"&RIGHT(J1,2)+1 -> Budget Year 2021/22 | K8: Budget Year 2022/23 | L8: Budget Year 2023/24 | M8: Budget Year 2024/25 | N8: Budget Year 2025/26 | O8: Budget Year 2026/27 | R8: >5 | Z8: Integrated National Electrification Programme | AB8: 2010 FIFA World Cup Stadiums Development | AC8: Sport and Recreation
A9: ='Template names'!C16 -> 2nd year of MTREF | B9: ="Budget Year +1 "&B1+1&"/"&RIGHT(B1,2)+2 -> Budget Year +1 2014/15 | C9: Budget Year +1 2015/16 | D9: Budget Year +1 2016/17 | E9: Budget Year +1 2017/18 | F9: Budget Year +1 2018/19 | G9: Budget Year +1 2019/20 | H9: Budget Year +1 2020/21 | I9: Budget Year +1 2021/22 | J9: ="Budget Year +1 "&J1+1&"/"&RIGHT(J1,2)+2 -> Budget Year +1 2022/23 | K9: Budget Year +1 2023/24 | L9: Budget Year +1 2024/25 | M9: Budget Year +1 2025/26 | N9: Budget Year +1 2026/27 | O9: Budget Year +1 2027/28 | Z9: Municipal Drought Relief
A10: ='Template names'!C17 -> 3rd year of MTREF | B10: ="Budget Year +2 "&B1+2&"/"&RIGHT(B1,2)+3 -> Budget Year +2 2015/16 | C10: Budget Year +2 2016/17 | D10: Budget Year +2 2017/18 | E10: Budget Year +2 2018/19 | F10: Budget Year +2 2019/20 | G10: Budget Year +2 2020/21 | H10: Budget Year +2 2021/22 | I10: Budget Year +2 2022/23 | J10: ="Budget Year +2 "&J1+2&"/"&RIGHT(J1,2)+3 -> Budget Year +2 2023/24 | K10: Budget Year +2 2024/25 | L10: Budget Year +2 2025/26 | M10: Budget Year +2 2026/27 | N10: Budget Year +2 2027/28 | O10: Budget Year +2 2028/29 | Z10: 2010 FIFA World Cup Operating
A11: ='Template names'!C18 -> 1st yr of long term forecast | B11: ="Forecast "&B1+3&"/"&RIGHT(B1,2)+4 -> Forecast 2016/17 | C11: Forecast 2017/18 | D11: Forecast 2018/19 | E11: Forecast 2019/20 | F11: Forecast 2020/21 | G11: Forecast 2021/22 | H11: Forecast 2022/23 | I11: Forecast 2023/24 | J11: ="Forecast "&J1+3&"/"&RIGHT(J1,2)+4 -> Forecast 2024/25 | K11: Forecast 2025/26 | L11: Forecast 2026/27 | M11: Forecast 2027/28 | N11: Forecast 2028/29 | O11: Forecast 2029/30 | Z11: Electricity Demand Side Management
A12: ='Template names'!C19 -> Next yr of long term forecast | B12: ="Forecast "&B1+4&"/"&RIGHT(B1,2)+5 -> Forecast 2017/18 | C12: Forecast 2018/19 | D12: Forecast 2019/20 | E12: Forecast 2020/21 | F12: Forecast 2021/22 | G12: Forecast 2022/23 | H12: Forecast 2023/24 | I12: Forecast 2024/25 | J12: ="Forecast "&J1+4&"/"&RIGHT(J1,2)+5 -> Forecast 2025/26 | K12: Forecast 2026/27 | L12: Forecast 2027/28 | M12: Forecast 2028/29 | N12: Forecast 2029/30 | O12: Forecast 2030/31 | Z12: EPWP Incentive
A13: ='Template names'!C20 -> Next yr of long term forecast | B13: ="Forecast "&B1+5&"/"&RIGHT(B1,2)+6 -> Forecast 2018/19 | C13: Forecast 2019/20 | D13: Forecast 2020/21 | E13: Forecast 2021/22 | F13: Forecast 2022/23 | G13: Forecast 2023/24 | H13: Forecast 2024/25 | I13: Forecast 2025/26 | J13: ="Forecast "&J1+5&"/"&RIGHT(J1,2)+6 -> Forecast 2026/27 | K13: Forecast 2027/28 | L13: Forecast 2028/29 | M13: Forecast 2029/30 | N13: Forecast 2030/31 | O13: Forecast 2031/32
A14: ='Template names'!C21 -> Next yr of long term forecast | B14: ="Forecast "&B1+6&"/"&RIGHT(B1,2)+7 -> Forecast 2019/20 | C14: Forecast 2020/21 | D14: Forecast 2021/22 | E14: Forecast 2022/23 | F14: Forecast 2023/24 | G14: Forecast 2024/25 | H14: Forecast 2025/26 | I14: Forecast 2026/27 | J14: ="Forecast "&J1+6&"/"&RIGHT(J1,2)+7 -> Forecast 2027/28 | K14: Forecast 2028/29 | L14: Forecast 2029/30 | M14: Forecast 2030/31 | N14: Forecast 2031/32 | O14: Forecast 2032/33 | Z14: Asset Class | AA14: Asset sub-class old | AB14: Asset sub-class | AC14: IUDF | AD14: MTSF
A15: ='Template names'!C22 -> Next yr of long term forecast | B15: ="Forecast "&B1+7&"/"&RIGHT(B1,2)+8 -> Forecast 2020/21 | C15: Forecast 2021/22 | D15: Forecast 2022/23 | E15: Forecast 2023/24 | F15: Forecast 2024/25 | G15: Forecast 2025/26 | H15: Forecast 2026/27 | I15: Forecast 2027/28 | J15: ="Forecast "&J1+7&"/"&RIGHT(J1,2)+8 -> Forecast 2028/29 | K15: Forecast 2029/30 | L15: Forecast 2030/31 | M15: Forecast 2031/32 | N15: Forecast 2032/33 | O15: Forecast 2033/34
A16: ='Template names'!C23 -> Next yr of long term forecast | B16: ="Forecast "&B1+8&"/"&RIGHT(B1,2)+9 -> Forecast 2021/22 | C16: Forecast 2022/23 | D16: Forecast 2023/24 | E16: Forecast 2024/25 | F16: Forecast 2025/26 | G16: Forecast 2026/27 | H16: Forecast 2027/28 | I16: Forecast 2028/29 | J16: ="Forecast "&J1+8&"/"&RIGHT(J1,2)+9 -> Forecast 2029/30 | K16: Forecast 2030/31 | L16: Forecast 2031/32 | M16: Forecast 2032/33 | N16: Forecast 2033/34 | O16: Forecast 2034/35 | Z16: Roads Infrastructure | AA16: Roads, Pavements & Bridges | AB16: Roads | AC16: Spatial integration | AD16: Quality basic education
A17: ='Template names'!C24 -> Next yr of long term forecast | B17: ="Forecast "&B1+9&"/"&RIGHT(B1,2)+10 -> Forecast 2022/23 | C17: Forecast 2023/24 | D17: Forecast 2024/25 | E17: Forecast 2025/26 | F17: Forecast 2026/27 | G17: Forecast 2027/28 | H17: Forecast 2028/29 | I17: Forecast 2029/30 | J17: ="Forecast "&J1+9&"/"&RIGHT(J1,2)+10 -> Forecast 2030/31 | K17: Forecast 2031/32 | L17: Forecast 2032/33 | M17: Forecast 2033/34 | N17: Forecast 2034/35 | O17: Forecast 2035/36 | Z17: Storm water Infrastructure | AA17: Storm water | AB17: Road Structures | AC17: Inclusion and access | AD17: A long and healthy life for all South Africans
A18: ='Template names'!C25 -> Next yr of long term forecast | B18: ="Forecast "&B1+10&"/"&RIGHT(B1,2)+11 -> Forecast 2023/24 | C18: Forecast 2024/25 | D18: Forecast 2025/26 | E18: Forecast 2026/27 | F18: Forecast 2027/28 | G18: Forecast 2028/29 | H18: Forecast 2029/30 | I18: Forecast 2030/31 | J18: ="Forecast "&J1+10&"/"&RIGHT(J1,2)+11 -> Forecast 2031/32 | K18: Forecast 2032/33 | L18: Forecast 2033/34 | M18: Forecast 2034/35 | N18: Forecast 2035/36 | O18: Forecast 2036/37 | Z18: Electrical Infrastructure | AA18: Generation | AB18: Road Furniture | AC18: Growth | AD18: All people in South Africa are and feel safe
A19: ='Template names'!C26 -> Next yr of long term forecast | B19: ="Forecast "&B1+11&"/"&RIGHT(B1,2)+12 -> Forecast 2024/25 | C19: Forecast 2025/26 | D19: Forecast 2026/27 | E19: Forecast 2027/28 | F19: Forecast 2028/29 | G19: Forecast 2029/30 | H19: Forecast 2030/31 | I19: Forecast 2031/32 | J19: ="Forecast "&J1+11&"/"&RIGHT(J1,2)+12 -> Forecast 2032/33 | K19: Forecast 2033/34 | L19: Forecast 2034/35 | M19: Forecast 2035/36 | N19: Forecast 2036/37 | O19: Forecast 2037/38 | Z19: Water Supply Infrastructure | AA19: Transmission & Reticulation | AB19: Capital Spares | AC19: Governance | AD19: Decent employment through inclusive growth
A20: ='Template names'!C27 -> Next yr of long term forecast | B20: ="Forecast "&B1+12&"/"&RIGHT(B1,2)+13 -> Forecast 2025/26 | C20: Forecast 2026/27 | D20: Forecast 2027/28 | E20: Forecast 2028/29 | F20: Forecast 2029/30 | G20: Forecast 2030/31 | H20: Forecast 2031/32 | I20: Forecast 2032/33 | J20: ="Forecast "&J1+12&"/"&RIGHT(J1,2)+13 -> Forecast 2033/34 | K20: Forecast 2034/35 | L20: Forecast 2035/36 | M20: Forecast 2036/37 | N20: Forecast 2037/38 | O20: Forecast 2038/39 | Z20: Sanitation Infrastructure | AA20: Street Lighting | AB20: Drainage Collection | AD20: A skilled and capable workforce to support an inclusive growth path
A21: ='Template names'!C28 -> Next yr of long term forecast | B21: ="Forecast "&B1+13&"/"&RIGHT(B1,2)+14 -> Forecast 2026/27 | C21: Forecast 2027/28 | D21: Forecast 2028/29 | E21: Forecast 2029/30 | F21: Forecast 2030/31 | G21: Forecast 2031/32 | H21: Forecast 2032/33 | I21: Forecast 2033/34 | J21: ="Forecast "&J1+13&"/"&RIGHT(J1,2)+14 -> Forecast 2034/35 | K21: Forecast 2035/36 | L21: Forecast 2036/37 | M21: Forecast 2037/38 | N21: Forecast 2038/39 | O21: Forecast 2039/40 | Z21: Solid Waste Infrastructure | AA21: Dams & Reservoirs | AB21: Storm water Conveyance | AD21: An efficient, competitive and responsive economic infrastructure network
A22: ='Template names'!C29 -> Next yr of long term forecast | B22: ="Forecast "&B1+14&"/"&RIGHT(B1,2)+15 -> Forecast 2027/28 | C22: Forecast 2028/29 | D22: Forecast 2029/30 | E22: Forecast 2030/31 | F22: Forecast 2031/32 | G22: Forecast 2032/33 | H22: Forecast 2033/34 | I22: Forecast 2034/35 | J22: ="Forecast "&J1+14&"/"&RIGHT(J1,2)+15 -> Forecast 2035/36 | K22: Forecast 2036/37 | L22: Forecast 2037/38 | M22: Forecast 2038/39 | N22: Forecast 2039/40 | O22: Forecast 2040/41 | Z22: Rail Infrastructure | AA22: Water purification | AB22: Attenuation | AD22: Vibrant, equitable, sustainable rural communities contributing towards food security for all
A23: Adjustments Budget | B23: ="Annual target " & B1&"/"&RIGHT(B1,2)+1 -> Annual target 2013/14 | C23: Annual target 2014/15 | D23: Annual target 2015/16 | E23: Annual target 2016/17 | F23: Annual target 2017/18 | G23: Annual target 2018/19 | H23: Annual target 2019/20 | I23: Annual target 2020/21 | J23: ="Annual target " & J1&"/"&RIGHT(J1,2)+1 -> Annual target 2021/22 | K23: Annual target 2022/23 | L23: Annual target 2023/24 | M23: Annual target 2024/25 | N23: Annual target 2025/26 | O23: Annual target 2026/27 | Z23: Coastal Infrastructure | AA23: Reticulation | AB23: Power Plants | AD23: Sustainable human settlements and improved quality of household life
A24: =A23 -> Adjustments Budget | B24: ="Revised target "& B1&"/"&RIGHT(B1,2)+1 -> Revised target 2013/14 | C24: Revised target 2014/15 | D24: Revised target 2015/16 | E24: Revised target 2016/17 | F24: Revised target 2017/18 | G24: Revised target 2018/19 | H24: Revised target 2019/20 | I24: Revised target 2020/21 | J24: ="Revised target "& J1&"/"&RIGHT(J1,2)+1 -> Revised target 2021/22 | K24: Revised target 2022/23 | L24: Revised target 2023/24 | M24: Revised target 2024/25 | N24: Revised target 2025/26 | O24: Revised target 2026/27 | Z24: Information and Communication Infrastructure | AA24: Sewerage purification | AB24: HV Substations | AD24: Responsive, accountable, effective and efficient local government
A25: NOTE: This sheet should not be directly amended - select headings from sheet 'S' | Z25: Community Facilities | AA25: Waste Management | AB25: HV Switching Station | AD25: Protect and enhance our environmental assets and natural resources
Z26: Sport and Recreation Facilities | AA26: Transportation | AB26: HV Transmission Conductors | AD26: Create a better South Africa and contribute to a better Africa and a better world
A27: Name link | B27: 181 | Z27: Heritage assets | AA27: Gas | AB27: MV Substations | AD27: An efficient, effective and development-oriented public service
A28: Name of Muni | B28: =INDEX(B29:B307,B27,1) -> NC062 Nama Khoi | Z28: Revenue Generating | AA28: Parks & gardens | AB28: MV Switching Stations | AD28: A comprehensive, responsive and sustainable social protection system
B29: Choose name from list | C29: Set name on 'Instructions' sheet | Z29: Non-revenue Generating | AA29: Sportsfields & stadia | AB29: MV Networks | AD29: A diverse, socially cohesive society with a common national identity
B30: BUF Buffalo City | C30: EC EASTERN CAPE | Z30: Operational Buildings | AA30: Swimming pools | AB30: LV Networks
B31: NMA Nelson Mandela Bay | C31: EC EASTERN CAPE | Z31: Housing | AA31: Community halls | AB31: Capital Spares
B32: EC101 Dr Beyers Naude | C32: EC EASTERN CAPE | Z32: Biological or Cultivated Assets | AA32: Libraries | AB32: Dams and Weirs
B33: EC102 Blue Crane Route | C33: EC EASTERN CAPE | Z33: Servitudes | AA33: Recreational facilities | AB33: Boreholes
B34: EC104 Makana | C34: EC EASTERN CAPE | Z34: Licences and Rights | AA34: Fire, safety & emergency | AB34: Reservoirs
B35: EC105 Ndlambe | C35: EC EASTERN CAPE | Z35: Computer Equipment | AA35: Security and policing | AB35: Pump Stations
B36: EC106 Sundays River Valley | C36: EC EASTERN CAPE | Z36: Furniture and Office Equipment | AA36: Buses | AB36: Water Treatment Works
B37: EC108 Kouga | C37: EC EASTERN CAPE | Z37: Machinery and Equipment | AA37: Clinics | AB37: Bulk Mains
B38: EC109 Kou-Kamma | C38: EC EASTERN CAPE | Z38: Transport Assets | AA38: Museums & Art Galleries | AB38: Distribution
B39: DC10 Sarah Baartman | C39: EC EASTERN CAPE | Z39: Land | AA39: Cemeteries | AB39: Distribution Points
B40: EC121 Mbhashe | C40: EC EASTERN CAPE | Z40: Zoo's, Marine and Non-biological Animals | AA40: Social rental housing | AB40: PRV Stations
B41: EC122 Mnquma | C41: EC EASTERN CAPE | AA41: Buildings | AB41: Capital Spares
B42: EC123 Great Kei | C42: EC EASTERN CAPE | AA42: Housing development | AB42: Pump Station
B43: EC124 Amahlathi | C43: EC EASTERN CAPE | AA43: General vehicles | AB43: Reticulation
B44: EC126 Ngqushwa | C44: EC EASTERN CAPE | AA44: Specialised vehicles - Refuse | AB44: Waste Water Treatment Works
B45: EC129 Raymond Mhlaba | C45: EC EASTERN CAPE | AA45: Specialised vehicles - Fire | AB45: Outfall Sewers
B46: DC12 Amathole | C46: EC EASTERN CAPE | AA46: Specialised vehicles - Conservancy | AB46: Toilet Facilities
B47: EC131 Inxuba Yethemba | C47: EC EASTERN CAPE | AA47: Specialised vehicles - Ambulances | AB47: Capital Spares
B48: EC135 Intsika Yethu | C48: EC EASTERN CAPE | AA48: Plant & equipment | AB48: Landfill Sites
B49: EC136 Emalahleni (Ec) | C49: EC EASTERN CAPE | AA49: Computers - hardware/equipment | AB49: Waste Transfer Stations
B50: EC137 Engcobo | C50: EC EASTERN CAPE | AA50: Furniture and other office equipment | AB50: Waste Processing Facilities
B51: EC138 Sakhisizwe | C51: EC EASTERN CAPE | AA51: Abattoirs | AB51: Waste Drop-off Points
B52: EC139 Enoch Mgijima | C52: EC EASTERN CAPE | AA52: Markets | AB52: Waste Separation Facilities
B53: DC13 Chris Hani | C53: EC EASTERN CAPE | AA53: Civic Land and Buildings | AB53: Electricity Generation Facilities
B54: EC141 Elundini | C54: EC EASTERN CAPE | AA54: Other Buildings | AB54: Capital Spares
B55: EC142 Senqu | C55: EC EASTERN CAPE | AA55: Other Land | AB55: Rail Lines
B56: EC145 Walter Sisulu | C56: EC EASTERN CAPE | AA56: Surplus Assets - (Investment or Inventory) | AB56: Rail Structures
B57: DC14 Joe Gqabi | C57: EC EASTERN CAPE | AA57: Computers - software & programming | AB57: Rail Furniture
B58: EC153 Ngquza Hills | C58: EC EASTERN CAPE | AA58: Other | AB58: Drainage Collection
B59: EC154 Port St Johns | C59: EC EASTERN CAPE | AB59: Storm water Conveyance
B60: EC155 Nyandeni | C60: EC EASTERN CAPE | Z60: SA16 - Investments | AB60: Attenuation
B61: EC156 Mhlontlo | C61: EC EASTERN CAPE | Z61: Security | AA61: Interest rate | AB61: MV Substations
B62: EC157 King Sabata Dalindyebo | C62: EC EASTERN CAPE | Z62: Yes | AA62: Fixed | AB62: LV Networks
B63: DC15 O .R. Tambo | C63: EC EASTERN CAPE | Z63: No | AA63: Variable | AB63: Capital Spares
B64: EC441 Matatiele | C64: EC EASTERN CAPE | AB64: Sand Pumps
B65: EC442 Umzimvubu | C65: EC EASTERN CAPE | AB65: Piers
B66: EC443 Winnie Madikizela Mandela | C66: EC EASTERN CAPE | Z66: SA36, SA37 - Capital projects | AB66: Revetments
B67: EC444 Ntabankulu | C67: EC EASTERN CAPE | Z67: Yes | AB67: Promenades
B68: DC44 Alfred Nzo | C68: EC EASTERN CAPE | Z68: No | AB68: Capital Spares
B69: MAN Mangaung | C69: FS FREE STATE | AB69: Data Centres
B70: FS161 Letsemeng | C70: FS FREE STATE | AB70: Core Layers
B71: FS162 Kopanong | C71: FS FREE STATE | AB71: Distribution Layers
B72: FS163 Mohokare | C72: FS FREE STATE | AB72: Capital Spares
B73: DC16 Xhariep | C73: FS FREE STATE | AB73: Halls
B74: FS181 Masilonyana | C74: FS FREE STATE | AB74: Centres
B75: FS182 Tokologo | C75: FS FREE STATE | AB75: Crèches
B76: FS183 Tswelopele | C76: FS FREE STATE | AB76: Clinics/Care Centres
B77: FS184 Matjhabeng | C77: FS FREE STATE | AB77: Fire/Ambulance Stations
B78: FS185 Nala | C78: FS FREE STATE | AB78: Testing Stations
B79: DC18 Lejweleputswa | C79: FS FREE STATE | AB79: Museums
B80: FS191 Setsoto | C80: FS FREE STATE | AB80: Galleries
B81: FS192 Dihlabeng | C81: FS FREE STATE | AB81: Theatres
B82: FS193 Nketoana | C82: FS FREE STATE | AB82: Libraries
B83: FS194 Maluti-a-Phofung | C83: FS FREE STATE | AB83: Cemeteries/Crematoria
B84: FS195 Phumelela | C84: FS FREE STATE | AB84: Police
B85: FS196 Mantsopa | C85: FS FREE STATE | AB85: Purls
B86: DC19 Thabo Mofutsanyana | C86: FS FREE STATE | AB86: Public Open Space
B87: FS201 Moqhaka | C87: FS FREE STATE | AB87: Nature Reserves
B88: FS203 Ngwathe | C88: FS FREE STATE | AB88: Public Ablution Facilities
B89: FS204 Metsimaholo | C89: FS FREE STATE | AB89: Markets
B90: FS205 Mafube | C90: FS FREE STATE | AB90: Stalls
B91: DC20 Fezile Dabi | C91: FS FREE STATE | AB91: Abattoirs
B92: EKU City of Ekurhuleni | C92: GT GAUTENG | AB92: Airports
B93: JHB City Of Johannesburg | C93: GT GAUTENG | AB93: Taxi Ranks/Bus Terminals
B94: TSH City Of Tshwane | C94: GT GAUTENG | AB94: Capital Spares
B95: GT421 Emfuleni | C95: GT GAUTENG | AB95: Indoor Facilities
B96: GT422 Midvaal | C96: GT GAUTENG | AB96: Outdoor Facilities
B97: GT423 Lesedi | C97: GT GAUTENG | AB97: Capital Spares
B98: DC42 Sedibeng | C98: GT GAUTENG | AB98: Monuments
B99: GT481 Mogale City | C99: GT GAUTENG | AB99: Historic Buildings
B100: GT484 Merafong City | C100: GT GAUTENG | AB100: Works of Art
B101: GT485 Rand West City | C101: GT GAUTENG | AB101: Conservation Areas
B102: DC48 West Rand | C102: GT GAUTENG | AB102: Other Heritage
B103: ETH eThekwini | C103: KZN KWAZULU-NATAL | AB103: Improved Property
B104: KZN212 Umdoni | C104: KZN KWAZULU-NATAL | AB104: Unimproved Property
B105: KZN213 Umzumbe | C105: KZN KWAZULU-NATAL | AB105: Municipal Offices
B106: KZN214 uMuziwabantu | C106: KZN KWAZULU-NATAL | AB106: Pay/Enquiry Points
B107: KZN216 Ray Nkonyeni | C107: KZN KWAZULU-NATAL | AB107: Building Plan Offices
B108: DC21 Ugu | C108: KZN KWAZULU-NATAL | AB108: Workshops
B109: KZN221 uMshwathi | C109: KZN KWAZULU-NATAL | AB109: Yards
B110: KZN222 uMngeni | C110: KZN KWAZULU-NATAL | AB110: Stores
B111: KZN223 Mpofana | C111: KZN KWAZULU-NATAL | AB111: Laboratories
B112: KZN224 Impendle | C112: KZN KWAZULU-NATAL | AB112: Training Centres
B113: KZN225 Msunduzi | C113: KZN KWAZULU-NATAL | AB113: Manufacturing Plant
B114: KZN226 Mkhambathini | C114: KZN KWAZULU-NATAL | AB114: Depots
B115: KZN227 Richmond | C115: KZN KWAZULU-NATAL | AB115: Capital Spares
B116: DC22 uMgungundlovu | C116: KZN KWAZULU-NATAL | AB116: Staff Housing
B117: KZN235 Okhahlamba | C117: KZN KWAZULU-NATAL | AB117: Social Housing
B118: KZN237 Inkosi Langalibalele | C118: KZN KWAZULU-NATAL | AB118: Capital Spares
B119: KZN238 Alfred Duma | C119: KZN KWAZULU-NATAL | AB119: Water Rights
B120: DC23 Uthukela | C120: KZN KWAZULU-NATAL | AB120: Effluent Licenses
B121: KZN241 Endumeni | C121: KZN KWAZULU-NATAL | AB121: Solid Waste Licenses
B122: KZN242 Nquthu | C122: KZN KWAZULU-NATAL | AB122: Computer Software and Applications
B123: KZN244 Msinga | C123: KZN KWAZULU-NATAL | AB123: Load Settlement Software Applications
B124: KZN245 Umvoti | C124: KZN KWAZULU-NATAL | AB124: Unspecified
B125: DC24 Umzinyathi | C125: KZN KWAZULU-NATAL
B126: KZN252 Newcastle | C126: KZN KWAZULU-NATAL
B127: KZN253 Emadlangeni | C127: KZN KWAZULU-NATAL
B128: KZN254 Dannhauser | C128: KZN KWAZULU-NATAL
B129: DC25 Amajuba | C129: KZN KWAZULU-NATAL
B130: KZN261 eDumbe | C130: KZN KWAZULU-NATAL
B131: KZN262 uPhongolo | C131: KZN KWAZULU-NATAL
B132: KZN263 Abaqulusi | C132: KZN KWAZULU-NATAL
B133: KZN265 Nongoma | C133: KZN KWAZULU-NATAL
B134: KZN266 Ulundi | C134: KZN KWAZULU-NATAL
B135: DC26 Zululand | C135: KZN KWAZULU-NATAL
B136: KZN271 Umhlabuyalingana | C136: KZN KWAZULU-NATAL
B137: KZN272 Jozini | C137: KZN KWAZULU-NATAL
B138: KZN275 Mtubatuba | C138: KZN KWAZULU-NATAL
B139: KZN276 Hlabisa Big Five | C139: KZN KWAZULU-NATAL
B140: DC27 Umkhanyakude | C140: KZN KWAZULU-NATAL
B141: KZN281 Mfolozi | C141: KZN KWAZULU-NATAL
B142: KZN282 uMhlathuze | C142: KZN KWAZULU-NATAL
B143: KZN284 uMlalazi | C143: KZN KWAZULU-NATAL
B144: KZN285 Mthonjaneni | C144: KZN KWAZULU-NATAL
B145: KZN286 Nkandla | C145: KZN KWAZULU-NATAL
B146: DC28 King Cetshwayo | C146: KZN KWAZULU-NATAL
B147: KZN291 Mandeni | C147: KZN KWAZULU-NATAL
B148: KZN292 KwaDukuza | C148: KZN KWAZULU-NATAL
B149: KZN293 Ndwedwe | C149: KZN KWAZULU-NATAL
B150: KZN294 Maphumulo | C150: KZN KWAZULU-NATAL
B151: DC29 iLembe | C151: KZN KWAZULU-NATAL
B152: KZN433 Greater Kokstad | C152: KZN KWAZULU-NATAL
B153: KZN434 Ubuhlebezwe | C153: KZN KWAZULU-NATAL
B154: KZN435 Umzimkhulu | C154: KZN KWAZULU-NATAL
B155: KZN436 Dr Nkosazana Dlamini Zuma | C155: KZN KWAZULU-NATAL
B156: DC43 Harry Gwala | C156: KZN KWAZULU-NATAL
B157: LIM331 Greater Giyani | C157: LIM LIMPOPO
B158: LIM332 Greater Letaba | C158: LIM LIMPOPO
B159: LIM333 Greater Tzaneen | C159: LIM LIMPOPO
B160: LIM334 Ba-Phalaborwa | C160: LIM LIMPOPO
B161: LIM335 Maruleng | C161: LIM LIMPOPO
B162: DC33 Mopani | C162: LIM LIMPOPO
B163: LIM341 Musina | C163: LIM LIMPOPO
B164: LIM343 Thulamela | C164: LIM LIMPOPO
B165: LIM344 Makhado | C165: LIM LIMPOPO
B166: LIM345 Collins Chabane | C166: LIM LIMPOPO
B167: DC34 Vhembe | C167: LIM LIMPOPO
B168: LIM351 Blouberg | C168: LIM LIMPOPO
B169: LIM353 Molemole | C169: LIM LIMPOPO
B170: LIM354 Polokwane | C170: LIM LIMPOPO
B171: LIM355 Lepelle-Nkumpi | C171: LIM LIMPOPO
B172: DC35 Capricorn | C172: LIM LIMPOPO
B173: LIM361 Thabazimbi | C173: LIM LIMPOPO
B174: LIM362 Lephalale | C174: LIM LIMPOPO
B175: LIM366 Bela Bela | C175: LIM LIMPOPO
B176: LIM367 Mogalakwena | C176: LIM LIMPOPO
B177: LIM368 Modimolle-Mookgopong | C177: LIM LIMPOPO
B178: DC36 Waterberg | C178: LIM LIMPOPO
B179: LIM471 Ephraim Mogale | C179: LIM LIMPOPO
B180: LIM472 Elias Motsoaledi | C180: LIM LIMPOPO
B181: LIM473 Makhuduthamaga | C181: LIM LIMPOPO
B182: LIM476 Tubatse Fetakgomo | C182: LIM LIMPOPO
B183: DC47 Sekhukhune | C183: LIM LIMPOPO
B184: MP301 Albert Luthuli | C184: MP MPUMALANGA
B185: MP302 Msukaligwa | C185: MP MPUMALANGA
B186: MP303 Mkhondo | C186: MP MPUMALANGA
B187: MP304 Pixley Ka Seme (MP) | C187: MP MPUMALANGA
B188: MP305 Lekwa | C188: MP MPUMALANGA
B189: MP306 Dipaleseng | C189: MP MPUMALANGA
B190: MP307 Govan Mbeki | C190: MP MPUMALANGA
B191: DC30 Gert Sibande | C191: MP MPUMALANGA
B192: MP311 Victor Khanye | C192: MP MPUMALANGA
B193: MP312 Emalahleni (Mp) | C193: MP MPUMALANGA
B194: MP313 Steve Tshwete | C194: MP MPUMALANGA
B195: MP314 Emakhazeni | C195: MP MPUMALANGA
B196: MP315 Thembisile Hani | C196: MP MPUMALANGA
B197: MP316 Dr J.S. Moroka | C197: MP MPUMALANGA
B198: DC31 Nkangala | C198: MP MPUMALANGA
B199: MP321 Thaba Chweu | C199: MP MPUMALANGA
B200: MP324 Nkomazi | C200: MP MPUMALANGA
... 87 more rows

Sheet Org structure
A1: Organisational Structure Votes | C1: Organisational Structure Sub-Votes | E1: Display Sub-Votes
A2: =B2&" - "&C2 -> Vote 1 - EXECUTIVE MAYOR AND COUNCIL (10: IE) | B2: Vote 1 | C2: EXECUTIVE MAYOR AND COUNCIL (10: IE)
A3: =B13&" - "& C13 -> Vote 2 - MUNICIPAL MANAGER (11: IE) | B3: 1.1 | C3: OFFICE OF THE MAYOR (201) | D3: =CONCATENATE(B3& " - " & C3) -> 1.1 - OFFICE OF THE MAYOR (201) | E3: 1.1 - OFFICE OF THE MAYOR (201)
A4: =B24&" - "&C24 -> Vote 3 - CORPORATE SERVICES (13: IE) | B4: 1.2 | C4: OFFICE OF THE SPEAKER (202) | D4: =CONCATENATE(B4& " - " & C4) -> 1.2 - OFFICE OF THE SPEAKER (202) | E4: 1.2 - OFFICE OF THE SPEAKER (202)
A5: =B35&" - "&C35 -> Vote 4 - FINANCIAL SERVICES (15: IE) | B5: 1.3 | C5: MAYORAL,WARD AND CNCL COMMITTEES (203) | D5: =CONCATENATE(B5& " - " & C5) -> 1.3 - MAYORAL,WARD AND CNCL COMMITTEES (203) | E5: 1.3 - MAYORAL,WARD AND CNCL COMMITTEES (203)
A6: =B46&" - "&C46 -> Vote 5 - COMMUNITY SERVICES: COMM DEV (16: IE) | B6: 1.4 | C6: COUNCIL GENERAL ADMIN (204) | D6: =CONCATENATE(B6& " - " & C6) -> 1.4 - COUNCIL GENERAL ADMIN (204) | E6: 1.4 - COUNCIL GENERAL ADMIN (204)
A7: =B63&" - "&C63 -> Vote 6 - COMMUNITY SERVICES: PUBLSAFETY (17: IE) | B7: 1.5 | C7: COUNCIL SALARIES AND ALLOWANCES (205) | D7: =CONCATENATE(B7& " - " & C7) -> 1.5 - COUNCIL SALARIES AND ALLOWANCES (205) | E7: 1.5 - COUNCIL SALARIES AND ALLOWANCES (205)
A8: =B74&" - "&C74 -> Vote 7 - INFRASTRUCTURE,ENG AND TECHNICAL (18: IE) | B8: 1.6 | C8: 0 | D8: =CONCATENATE(B8, " - ", C8) -> 1.6 - 0
A9: =B86&" - "&C86 -> Vote 8 - EXECUTIVE MAYOR AND COUNCIL (20: CS) | B9: 1.7 | C9: 0 | D9: 1.7 - 0
A10: =B97&" - "&C97 -> Vote 9 - MUNICIPAL MANAGER (21: CS) | B10: 1.8 | C10: 0 | D10: 1.8 - 0
A11: =B108&" - "&C108 -> Vote 10 - CORPORATE SERVICES (23: CS) | B11: 1.9 | C11: 0 | D11: 1.9 - 0
A12: =B119&" - "&C119 -> Vote 11 - COMMUNITY SERVICES: COMM DEV (26: CS) | B12: 1.10 | C12: 0 | D12: 1.10 - 0
A13: =B130&" - "&C130 -> Vote 12 - INFRASTRUCTURE,ENG AND TECHNICAL (28: CS) | B13: Vote 2 | C13: MUNICIPAL MANAGER (11: IE)
A14: =B141&" - "&C141 -> Vote 13 - 0 | B14: 2.1 | C14: OFFICE OFTHE MUNICIPAL MANAGER (220) | D14: =CONCATENATE(B14& " - " & C14) -> 2.1 - OFFICE OFTHE MUNICIPAL MANAGER (220) | E14: 2.1 - OFFICE OFTHE MUNICIPAL MANAGER (220)
A15: =B152&" - "&C152 -> Vote 14 - 0 | B15: 2.2 | C15: INTERNAL AUDITING (221) | D15: 2.2 - INTERNAL AUDITING (221) | E15: 2.2 - INTERNAL AUDITING (221)
A16: =B163&" - "&C163 -> Vote 15 - 0 | B16: 2.3 | C16: INTEGRATED DEVELOPMENT PLAN (223) | D16: 2.3 - INTEGRATED DEVELOPMENT PLAN (223) | E16: 2.3 - INTEGRATED DEVELOPMENT PLAN (223)
B17: 2.4 | C17: LOCAL ECONOMIC DEVELOPMT AND IGR (224) | D17: 2.4 - LOCAL ECONOMIC DEVELOPMT AND IGR (224) | E17: 2.4 - LOCAL ECONOMIC DEVELOPMT AND IGR (224)
B18: 2.5 | C18: MUSEUM (229) | D18: 2.5 - MUSEUM (229) | E18: 2.5 - MUSEUM (229)
B19: 2.6 | C19: DISASTER AND RISK MANAGEMENT (231) | D19: 2.6 - DISASTER AND RISK MANAGEMENT (231) | E19: 2.6 - DISASTER AND RISK MANAGEMENT (231)
B20: 2.7 | C20: PERFORMANCE MANAGEMENT (232) | D20: 2.7 - PERFORMANCE MANAGEMENT (232) | E20: 2.7 - PERFORMANCE MANAGEMENT (232)
B21: 2.8 | C21: PLANNING AND DEVELOPMENT (234) | D21: 2.8 - PLANNING AND DEVELOPMENT (234) | E21: 2.8 - PLANNING AND DEVELOPMENT (234)
B22: 2.9 | C22: WATER SERVICE (368) | D22: 2.9 - WATER SERVICE (368) | E22: 2.9 - WATER SERVICE (368)
B23: 2.10 | C23: 0 | D23: =CONCATENATE(B23, " - ", C23) -> 2.10 - 0
B24: Vote 3 | C24: CORPORATE SERVICES (13: IE)
B25: 3.1 | C25: MANAGER: CORPORATE SERVICES (261) | D25: =CONCATENATE(B25& " - " & C25) -> 3.1 - MANAGER: CORPORATE SERVICES (261) | E25: 3.1 - MANAGER: CORPORATE SERVICES (261)
B26: 3.2 | C26: ADMINISTRVE SUPPORT: COMMITEES (262) | D26: 3.2 - ADMINISTRVE SUPPORT: COMMITEES (262) | E26: 3.2 - ADMINISTRVE SUPPORT: COMMITEES (262)
B27: 3.3 | C27: HUMAN RESOURCE MANAGEMENT (HR) (263) | D27: 3.3 - HUMAN RESOURCE MANAGEMENT (HR) (263) | E27: 3.3 - HUMAN RESOURCE MANAGEMENT (HR) (263)
B28: 3.4 | C28: MUNICIPAL PROPERTY MANAGEMENT (266) | D28: 3.4 - MUNICIPAL PROPERTY MANAGEMENT (266) | E28: 3.4 - MUNICIPAL PROPERTY MANAGEMENT (266)
B29: 3.5 | C29: CLEANING SERVICE MUN OFFICES (267) | D29: 3.5 - CLEANING SERVICE MUN OFFICES (267) | E29: 3.5 - CLEANING SERVICE MUN OFFICES (267)
B30: 3.6 | C30: INFORMATION AND COMMUNICATION TECHNOLOGY (268) | D30: 3.6 - INFORMATION AND COMMUNICATION TECHNOLOGY (268) | E30: 3.6 - INFORMATION AND COMMUNICATION TECHNOLOGY (268)
B31: 3.7 | C31: 0 | D31: =CONCATENATE(B31, " - ", C31) -> 3.7 - 0
B32: 3.8 | C32: 0 | D32: 3.8 - 0
B33: 3.9 | C33: 0 | D33: 3.9 - 0
B34: 3.10 | C34: 0 | D34: 3.10 - 0
B35: Vote 4 | C35: FINANCIAL SERVICES (15: IE)
B36: 4.1 | C36: MANAGER: FINANCIAL SERVICES (301) | D36: =CONCATENATE(B36& " - " & C36) -> 4.1 - MANAGER: FINANCIAL SERVICES (301) | E36: 4.1 - MANAGER: FINANCIAL SERVICES (301)
B37: 4.2 | C37: ACCOUNTING, BUDGET AND FIN MANAG (302) | D37: 4.2 - ACCOUNTING, BUDGET AND FIN MANAG (302) | E37: 4.2 - ACCOUNTING, BUDGET AND FIN MANAG (302)
B38: 4.3 | C38: INCOME AND DEBTORS SERVICES (303) | D38: 4.3 - INCOME AND DEBTORS SERVICES (303) | E38: 4.3 - INCOME AND DEBTORS SERVICES (303)
B39: 4.4 | C39: EXPENDITURE AND SUPPLY CHAIN MAN (304) | D39: 4.4 - EXPENDITURE AND SUPPLY CHAIN MAN (304) | E39: 4.4 - EXPENDITURE AND SUPPLY CHAIN MAN (304)
B40: 4.5 | C40: PROP RATES AND VALUATION SERVICE (305) | D40: 4.5 - PROP RATES AND VALUATION SERVICE (305) | E40: 4.5 - PROP RATES AND VALUATION SERVICE (305)
B41: 4.6 | C41: EXPENDITURE (306) | D41: 4.6 - EXPENDITURE (306) | E41: 4.6 - EXPENDITURE (306)
B42: 4.7 | C42: MANAGER: FINANCIAL SERVICES (501) | D42: 4.7 - MANAGER: FINANCIAL SERVICES (501) | E42: 4.7 - MANAGER: FINANCIAL SERVICES (501)
B43: 4.8 | C43: 0 | D43: =CONCATENATE(B43, " - ", C43) -> 4.8 - 0
B44: 4.9 | C44: 0 | D44: 4.9 - 0
B45: 4.10 | C45: 0 | D45: 4.10 - 0
B46: Vote 5 | C46: COMMUNITY SERVICES: COMM DEV (16: IE)
B47: 5.1 | C47: MANAGER: COMMUNITY DEVELOPMENT (318) | D47: =CONCATENATE(B47& " - " & C47) -> 5.1 - MANAGER: COMMUNITY DEVELOPMENT (318) | E47: 5.1 - MANAGER: COMMUNITY DEVELOPMENT (318)
B48: 5.2 | C48: ENVIRONMENTAL HEALTH SERVICES (321) | D48: 5.2 - ENVIRONMENTAL HEALTH SERVICES (321) | E48: 5.2 - ENVIRONMENTAL HEALTH SERVICES (321)
B49: 5.3 | C49: LIBRARIES AND INFORMATION SERV (323) | D49: 5.3 - LIBRARIES AND INFORMATION SERV (323) | E49: 5.3 - LIBRARIES AND INFORMATION SERV (323)
B50: 5.4 | C50: CEMETERIES (324) | D50: 5.4 - CEMETERIES (324) | E50: 5.4 - CEMETERIES (324)
B51: 5.5 | C51: COMMUNITY HALLS (325) | D51: 5.5 - COMMUNITY HALLS (325) | E51: 5.5 - COMMUNITY HALLS (325)
B52: 5.6 | C52: PARKS AND OPEN AREAS (326) | D52: 5.6 - PARKS AND OPEN AREAS (326) | E52: 5.6 - PARKS AND OPEN AREAS (326)
B53: 5.7 | C53: SPORTS FACILITIES (327) | D53: 5.7 - SPORTS FACILITIES (327) | E53: 5.7 - SPORTS FACILITIES (327)
B54: 5.8 | C54: REFUSE REM AND WASTE MANAGEMENT (328) | D54: 5.8 - REFUSE REM AND WASTE MANAGEMENT (328) | E54: 5.8 - REFUSE REM AND WASTE MANAGEMENT (328)
B55: 5.9 | C55: COMMONAGE OFFICER (329) | D55: 5.9 - COMMONAGE OFFICER (329) | E55: 5.9 - COMMONAGE OFFICER (329)
B56: 5.10 | C56: COMMONAGE FARMS - CONCORDIA (330) | D56: 5.10 - COMMONAGE FARMS - CONCORDIA (330) | E56: 5.10 - COMMONAGE FARMS - CONCORDIA (330)
B57: 5.11 | C57: COMMONAGE FARMS - STEINKOPF (331) | D57: 5.11 - COMMONAGE FARMS - STEINKOPF (331) | E57: 5.11 - COMMONAGE FARMS - STEINKOPF (331)
B58: 5.12 | C58: COMMONAGE FARMS - KOMAGGAS (332) | D58: 5.12 - COMMONAGE FARMS - KOMAGGAS (332) | E58: 5.12 - COMMONAGE FARMS - KOMAGGAS (332)
B59: 5.13 | C59: COMMONAGE FARMS - SPRINGBOK (333) | D59: 5.13 - COMMONAGE FARMS - SPRINGBOK (333) | E59: 5.13 - COMMONAGE FARMS - SPRINGBOK (333)
B60: 5.14 | C60: COMMONAGE FARMS - OCC (334) | D60: 5.14 - COMMONAGE FARMS - OCC (334) | E60: 5.14 - COMMONAGE FARMS - OCC (334)
B61: 5.15 | C61: MUNICIPAL AIRPORT (335) | D61: 5.15 - MUNICIPAL AIRPORT (335) | E61: 5.15 - MUNICIPAL AIRPORT (335)
B62: 5.16 | C62: SPORTS FACILITIES (527) | D62: 5.16 - SPORTS FACILITIES (527) | E62: 5.16 - SPORTS FACILITIES (527)
B63: Vote 6 | C63: COMMUNITY SERVICES: PUBLSAFETY (17: IE)
B64: 6.1 | C64: DISASTER AND RISK MANAGEMENT (231) | D64: =CONCATENATE(B64& " - " & C64) -> 6.1 - DISASTER AND RISK MANAGEMENT (231) | E64: 6.1 - DISASTER AND RISK MANAGEMENT (231)
B65: 6.2 | C65: EMERGENCY, FIRE AND DISASTER MAN (341) | D65: =CONCATENATE(B65& " - " & C65) -> 6.2 - EMERGENCY, FIRE AND DISASTER MAN (341) | E65: 6.2 - EMERGENCY, FIRE AND DISASTER MAN (341)
B66: 6.3 | C66: LAW ENFORCEMENT SERVICES (342) | D66: =CONCATENATE(B66& " - " & C66) -> 6.3 - LAW ENFORCEMENT SERVICES (342) | E66: 6.3 - LAW ENFORCEMENT SERVICES (342)
B67: 6.4 | C67: MUNICIPAL POUND (343) | D67: =CONCATENATE(B67& " - " & C67) -> 6.4 - MUNICIPAL POUND (343) | E67: 6.4 - MUNICIPAL POUND (343)
B68: 6.5 | C68: TRAFFIC SERVICES (344) | D68: =CONCATENATE(B68& " - " & C68) -> 6.5 - TRAFFIC SERVICES (344) | E68: 6.5 - TRAFFIC SERVICES (344)
B69: 6.6 | C69: 0 | D69: =CONCATENATE(B69, " - ", C69) -> 6.6 - 0
B70: 6.7 | C70: 0 | D70: 6.7 - 0
B71: 6.8 | C71: 0 | D71: 6.8 - 0
B72: 6.9 | C72: 0 | D72: 6.9 - 0
B73: 6.10 | C73: 0 | D73: 6.10 - 0
B74: Vote 7 | C74: INFRASTRUCTURE,ENG AND TECHNICAL (18: IE)
B75: 7.1 | C75: HOUSING PROVISION: HUMAN SETTL (225) | D75: =CONCATENATE(B75& " - " & C75) -> 7.1 - HOUSING PROVISION: HUMAN SETTL (225) | E75: 7.1 - HOUSING PROVISION: HUMAN SETTL (225)
B76: 7.2 | C76: MANAGER:INFRASTRUCT,ENG ANDTECH (361) | D76: 7.2 - MANAGER:INFRASTRUCT,ENG ANDTECH (361) | E76: 7.2 - MANAGER:INFRASTRUCT,ENG ANDTECH (361)
B77: 7.3 | C77: PROJECT MANAGEMT UNIT: CIV FAC (362) | D77: 7.3 - PROJECT MANAGEMT UNIT: CIV FAC (362) | E77: 7.3 - PROJECT MANAGEMT UNIT: CIV FAC (362)
B78: 7.4 | C78: ELECTRICAL ENGINEERING SERVICE (363) | D78: 7.4 - ELECTRICAL ENGINEERING SERVICE (363) | E78: 7.4 - ELECTRICAL ENGINEERING SERVICE (363)
B79: 7.5 | C79: MECHANICAL ENG SERV: WORKSHOPS (365) | D79: 7.5 - MECHANICAL ENG SERV: WORKSHOPS (365) | E79: 7.5 - MECHANICAL ENG SERV: WORKSHOPS (365)
B80: 7.6 | C80: ROADS (366) | D80: 7.6 - ROADS (366) | E80: 7.6 - ROADS (366)
B81: 7.7 | C81: STORMWATER (367) | D81: 7.7 - STORMWATER (367) | E81: 7.7 - STORMWATER (367)
B82: 7.8 | C82: WATER SERVICE (368) | D82: 7.8 - WATER SERVICE (368) | E82: 7.8 - WATER SERVICE (368)
B83: 7.9 | C83: SEWERAGE AND SANITATION SERVICES (369) | D83: 7.9 - SEWERAGE AND SANITATION SERVICES (369) | E83: 7.9 - SEWERAGE AND SANITATION SERVICES (369)
B84: 7.10 | C84: MANAGER:INFRASTRUCT,ENG ANDTECH (561) | D84: 7.10 - MANAGER:INFRASTRUCT,ENG ANDTECH (561) | E84: 7.10 - MANAGER:INFRASTRUCT,ENG ANDTECH (561)
B85: 7.11 | C85: ELECTRICAL ENGINEERING SERVICE (563) | D85: 7.11 - ELECTRICAL ENGINEERING SERVICE (563) | E85: 7.11 - ELECTRICAL ENGINEERING SERVICE (563)
B86: Vote 8 | C86: EXECUTIVE MAYOR AND COUNCIL (20: CS)
B87: 8.1 | C87: OFFICE OF THE MAYOR (701) | D87: =CONCATENATE(B87& " - " & C87) -> 8.1 - OFFICE OF THE MAYOR (701) | E87: 8.1 - OFFICE OF THE MAYOR (701)
B88: 8.2 | C88: COUNCIL GENERAL ADMIN (704) | D88: =CONCATENATE(B88& " - " & C88) -> 8.2 - COUNCIL GENERAL ADMIN (704) | E88: 8.2 - COUNCIL GENERAL ADMIN (704)
B89: 8.3 | C89: 0 | D89: =CONCATENATE(B89, " - ", C89) -> 8.3 - 0
B90: 8.4 | C90: 0 | D90: 8.4 - 0
B91: 8.5 | C91: 0 | D91: 8.5 - 0
B92: 8.6 | C92: 0 | D92: 8.6 - 0
B93: 8.7 | C93: 0 | D93: 8.7 - 0
B94: 8.8 | C94: 0 | D94: 8.8 - 0
B95: 8.9 | C95: 0 | D95: 8.9 - 0
B96: 8.10 | C96: 0 | D96: 8.10 - 0
B97: Vote 9 | C97: MUNICIPAL MANAGER (21: CS)
B98: 9.1 | C98: LOCAL ECONOMIC DEVELOPMT AND IGR (724) | D98: =CONCATENATE(B98& " - " & C98) -> 9.1 - LOCAL ECONOMIC DEVELOPMT AND IGR (724) | E98: 9.1 - LOCAL ECONOMIC DEVELOPMT AND IGR (724)
B99: 9.2 | C99: PLANNING AND DEVELOPMENT (731) | D99: =CONCATENATE(B99& " - " & C99) -> 9.2 - PLANNING AND DEVELOPMENT (731) | E99: 9.2 - PLANNING AND DEVELOPMENT (731)
B100: 9.3 | C100: 0 | D100: =CONCATENATE(B100, " - ", C100) -> 9.3 - 0
B101: 9.4 | C101: 0 | D101: 9.4 - 0
B102: 9.5 | C102: 0 | D102: 9.5 - 0
B103: 9.6 | C103: 0 | D103: 9.6 - 0
B104: 9.7 | C104: 0 | D104: 9.7 - 0
B105: 9.8 | C105: 0 | D105: 9.8 - 0
B106: 9.9 | C106: 0 | D106: 9.9 - 0
B107: 9.10 | C107: 0 | D107: 9.10 - 0
B108: Vote 10 | C108: CORPORATE SERVICES (23: CS)
B109: 10.1 | C109: INFORMATION TECHNOLOGY (727) | D109: =CONCATENATE(B109& " - " & C109) -> 10.1 - INFORMATION TECHNOLOGY (727) | E109: 10.1 - INFORMATION TECHNOLOGY (727)
B110: 10.2 | C110: MANAGER: CORPORATE SERVICES (761) | D110: =CONCATENATE(B110& " - " & C110) -> 10.2 - MANAGER: CORPORATE SERVICES (761) | E110: 10.2 - MANAGER: CORPORATE SERVICES (761)
B111: 10.3 | C111: MUNICIPAL PROPERTY MANAGEMENT (766) | D111: =CONCATENATE(B111& " - " & C111) -> 10.3 - MUNICIPAL PROPERTY MANAGEMENT (766) | E111: 10.3 - MUNICIPAL PROPERTY MANAGEMENT (766)
B112: 10.4 | C112: INFORMATION AND COMMUNICATION TECHNOLOGY (768) | D112: =CONCATENATE(B112& " - " & C112) -> 10.4 - INFORMATION AND COMMUNICATION TECHNOLOGY (768) | E112: 10.4 - INFORMATION AND COMMUNICATION TECHNOLOGY (768)
B113: 10.5 | C113: 0 | D113: =CONCATENATE(B113, " - ", C113) -> 10.5 - 0
B114: 10.6 | C114: 0 | D114: 10.6 - 0
B115: 10.7 | C115: 0 | D115: 10.7 - 0
B116: 10.8 | C116: 0 | D116: 10.8 - 0
B117: 10.9 | C117: 0 | D117: 10.9 - 0
B118: 10.10 | C118: 0 | D118: 10.10 - 0
B119: Vote 11 | C119: COMMUNITY SERVICES: COMM DEV (26: CS)
B120: 11.1 | C120: MANAGER: COMMUNITY DEVELOPMENT (818) | D120: =CONCATENATE(B120& " - " & C120) -> 11.1 - MANAGER: COMMUNITY DEVELOPMENT (818) | E120: 11.1 - MANAGER: COMMUNITY DEVELOPMENT (818)
B121: 11.2 | C121: CEMETERIES (824) | D121: =CONCATENATE(B121& " - " & C121) -> 11.2 - CEMETERIES (824) | E121: 11.2 - CEMETERIES (824)
B122: 11.3 | C122: SPORTS FACILITIES (827) | D122: =CONCATENATE(B122& " - " & C122) -> 11.3 - SPORTS FACILITIES (827) | E122: 11.3 - SPORTS FACILITIES (827)
B123: 11.4 | C123: REFUSE REM AND WASTE MANAGEMENT (828) | D123: =CONCATENATE(B123& " - " & C123) -> 11.4 - REFUSE REM AND WASTE MANAGEMENT (828) | E123: 11.4 - REFUSE REM AND WASTE MANAGEMENT (828)
B124: 11.5 | C124: 0 | D124: =CONCATENATE(B124, " - ", C124) -> 11.5 - 0
B125: 11.6 | C125: 0 | D125: 11.6 - 0
B126: 11.7 | C126: 0 | D126: 11.7 - 0
B127: 11.8 | C127: 0 | D127: 11.8 - 0
B128: 11.9 | C128: 0 | D128: 11.9 - 0
B129: 11.10 | C129: 0 | D129: 11.10 - 0
B130: Vote 12 | C130: INFRASTRUCTURE,ENG AND TECHNICAL (28: CS)
B131: 12.1 | C131: ELECTRICAL ENGINEERING SERVICE (863) | D131: =CONCATENATE(B131& " - " & C131) -> 12.1 - ELECTRICAL ENGINEERING SERVICE (863) | E131: 12.1 - ELECTRICAL ENGINEERING SERVICE (863)
B132: 12.2 | C132: MECHANICAL ENG SERV: WORKSHOPS (865) | D132: 12.2 - MECHANICAL ENG SERV: WORKSHOPS (865) | E132: 12.2 - MECHANICAL ENG SERV: WORKSHOPS (865)
B133: 12.3 | C133: ROADS (866) | D133: 12.3 - ROADS (866) | E133: 12.3 - ROADS (866)
B134: 12.4 | C134: STORMWATER (867) | D134: 12.4 - STORMWATER (867) | E134: 12.4 - STORMWATER (867)
B135: 12.5 | C135: WATER SERVICE (868) | D135: 12.5 - WATER SERVICE (868) | E135: 12.5 - WATER SERVICE (868)
B136: 12.6 | C136: SEWERAGE AND SANITATION SERVICES (869) | D136: 12.6 - SEWERAGE AND SANITATION SERVICES (869) | E136: 12.6 - SEWERAGE AND SANITATION SERVICES (869)
B137: 12.7 | C137: 0 | D137: =CONCATENATE(B137, " - ", C137) -> 12.7 - 0
B138: 12.8 | C138: 0 | D138: 12.8 - 0
B139: 12.9 | C139: 0 | D139: 12.9 - 0
B140: 12.10 | C140: 0 | D140: 12.10 - 0
B141: Vote 13 | C141: 0
B142: 13.1 | C142: 0 | D142: =CONCATENATE(B142, " - ", C142) -> 13.1 - 0 | E142: 13.1 - [Name of sub-vote]
B143: 13.2 | C143: 0 | D143: 13.2 - 0
B144: 13.3 | C144: 0 | D144: 13.3 - 0
B145: 13.4 | C145: 0 | D145: 13.4 - 0
B146: 13.5 | C146: 0 | D146: 13.5 - 0
B147: 13.6 | C147: 0 | D147: 13.6 - 0
B148: 13.7 | C148: 0 | D148: 13.7 - 0
B149: 13.8 | C149: 0 | D149: 13.8 - 0
B150: 13.9 | C150: 0 | D150: 13.9 - 0
B151: 13.10 | C151: 0 | D151: 13.10 - 0
B152: Vote 14 | C152: 0
B153: 14.1 | C153: 0 | D153: =CONCATENATE(B153, " - ", C153) -> 14.1 - 0 | E153: 14.1 - [Name of sub-vote]
B154: 14.2 | C154: 0 | D154: 14.2 - 0
B155: 14.3 | C155: 0 | D155: 14.3 - 0
B156: 14.4 | C156: 0 | D156: 14.4 - 0
B157: 14.5 | C157: 0 | D157: 14.5 - 0
B158: 14.6 | C158: 0 | D158: 14.6 - 0
B159: 14.7 | C159: 0 | D159: 14.7 - 0
B160: 14.8 | C160: 0 | D160: 14.8 - 0
B161: 14.9 | C161: 0 | D161: 14.9 - 0
B162: 14.10 | C162: 0 | D162: 14.10 - 0
B163: Vote 15 | C163: 0
B164: 15.1 | C164: 0 | D164: =CONCATENATE(B164, " - ", C164) -> 15.1 - 0 | E164: 15.1 - [Name of sub-vote]
B165: 15.2 | C165: 0 | D165: 15.2 - 0
B166: 15.3 | C166: 0 | D166: 15.3 - 0
B167: 15.4 | C167: 0 | D167: 15.4 - 0
B168: 15.5 | C168: 0 | D168: 15.5 - 0
B169: 15.6 | C169: 0 | D169: 15.6 - 0
B170: 15.7 | C170: 0 | D170: 15.7 - 0
B171: 15.8 | C171: 0 | D171: 15.8 - 0
B172: 15.9 | C172: 0 | D172: 15.9 - 0
B173: 15.10 | C173: 0 | D173: 15.10 - 0

Sheet Contacts
A1: =muni&" - "&" Contact Information" -> NC062 Nama Khoi - Contact Information
A3: A. GENERAL INFORMATION
A4: Municipality | B4: =muni -> NC062 Nama Khoi | C4: =IF(B4="Choose name from List","Set name on 'Instructions' sheet", "") -> 
A6: Grade | B6: 2 | C6: 1 Grade in terms of the Remuneration of Public Office Bearers Act.
A8: Province | B8: =IF(B4>" ",VLOOKUP(B4,'Lookup and lists'!B29:C307,2, FALSE)," ") -> NC NORTHERN CAPE
A10: Web Address | B10: www.namakhoi.gov.za
A12: e-mail Address | B12: heinri.cloete@namakhoi.gov.za
A14: B. CONTACT INFORMATION
A15: Postal address:
A16: P.O. Box | B16: PO Box 17
A17: City / Town | B17: Springbok
A18: Postal Code | B18: 8240
A20: Street address
A21: Building | B21: Civic Centre
A22: Street No. & Name | B22: 4 Namakwa street
A23: City / Town | B23: Springbok
A24: Postal Code | B24: 8240
A26: General Contacts
A27: Telephone number | B27: +277188100
A28: Fax number | B28: +277121635
A30: C. POLITICAL LEADERSHIP
A31: Speaker: | C31: Secretary/PA to the Speaker:
A32: ID Number | C32: ID Number
A33: Title | B33: Mr | C33: Title
A34: Name | B34: Rodney Kritzinger | C34: Name
A35: Telephone number | B35: +277188100 | C35: Telephone number
A36: Cell number | C36: Cell number
A37: Fax number | B37: +277121635 | C37: Fax number
A38: E-mail address | C38: E-mail address
A40: Mayor/Executive Mayor: | C40: Secretary/PA to the Mayor/Executive Mayor:
A41: ID Number | C41: ID Number
A42: Title | B42: Mr | C42: Title
A43: Name | B43: G Bock | C43: Name
A44: Telephone number | B44: +277188100 | C44: Telephone number
A45: Cell number | C45: Cell number
A46: Fax number | B46: +277121635 | C46: Fax number
A47: E-mail address | C47: E-mail address
A49: Deputy Mayor/Executive Mayor: | C49: Secretary/PA to the Deputy Mayor/Executive Mayor:
A50: ID Number | C50: ID Number
A51: Title | C51: Title
A52: Name | C52: Name
A53: Telephone number | C53: Telephone number
A54: Cell number | C54: Cell number
A55: Fax number | C55: Fax number
A56: E-mail address | C56: E-mail address
A58: D. MANAGEMENT LEADERSHIP
A59: Municipal Manager: | C59: Secretary/PA to the Municipal Manager:
A60: ID Number | B60: 6003155060088 | C60: ID Number | D60: 9805290028086
A61: Title | B61: Mr | C61: Title | D61: Ms
A62: Name | B62: JI Swartz | C62: Name | D62: MA Kleinbooi
A63: Telephone number | B63: 277188100 | C63: Telephone number | D63: 277188100
A64: Cell number | C64: Cell number
A65: Fax number | B65: 0277121635 | C65: Fax number | D65: 0277121635
A66: E-mail address | C66: E-mail address | D66: Monique.Kleinbooi@namakhoi.gov.za
A68: Chief Financial Officer | C68: Secretary/PA to the Chief Financial Officer
A69: ID Number | B69: 8609295071088 | C69: ID Number
A70: Title | B70: Mr | C70: Title | D70: Mr
A71: Name | B71: Heinri Cloete | C71: Name | D71: M Wilson
A72: Telephone number | B72: 0277188126 | C72: Telephone number | D72: 277188145
A73: Cell number | B73: 0738253631 | C73: Cell number
A74: Fax number | B74: 0277121635 | C74: Fax number | D74: 0277121635
A75: E-mail address | B75: heinri.cloete@namakhoi.gov.za | C75: E-mail address | D75: Michael.Wilson@namakhoi.gov.za
A77: Official responsible for submitting financial information | C77: Official responsible for submitting financial information
A78: ID Number | B78: 8610135120085 | C78: ID Number
A79: Title | B79: Mr | C79: Title
A80: Name | B80: Terence Van Wyk | C80: Name
A81: Telephone number | B81: 0277188113 | C81: Telephone number
A82: Cell number | B82: 0737225685 | C82: Cell number
A83: Fax number | B83: 0277121635 | C83: Fax number
A84: E-mail address | B84: terence.vanwyk@namakhoi.gov.za | C84: E-mail address
A85: Official responsible for submitting financial information | C85: Official responsible for submitting financial information
A86: ID Number | C86: ID Number
A87: Title | C87: Title
A88: Name | C88: Name
A89: Telephone number | C89: Telephone number
A90: Cell number | C90: Cell number
A91: Fax number | C91: Fax number
A92: E-mail address | C92: E-mail address
A93: Official responsible for submitting financial information | C93: Official responsible for submitting financial information
A94: ID Number | C94: ID Number
A95: Title | C95: Title
A96: Name | C96: Name
A97: Telephone number | C97: Telephone number
A98: Cell number | C98: Cell number
A99: Fax number | C99: Fax number
A100: E-mail address | C100: E-mail address
A101: Official responsible for submitting financial information | C101: Official responsible for submitting financial information
A102: ID Number | C102: ID Number
A103: Title | C103: Title
A104: Name | C104: Name
A105: Telephone number | C105: Telephone number
A106: Cell number | C106: Cell number
A107: Fax number | C107: Fax number
A108: E-mail address | C108: E-mail address
A109: Official responsible for submitting financial information | C109: Official responsible for submitting financial information
A110: ID Number | C110: ID Number
A111: Title | C111: Title
A112: Name | C112: Name
A113: Telephone number | C113: Telephone number
A114: Cell number | C114: Cell number
A115: Fax number | C115: Fax number
A116: E-mail address | C116: E-mail address
A117: Official responsible for submitting financial information | C117: Official responsible for submitting financial information
A118: ID Number | C118: ID Number
A119: Title | C119: Title
A120: Name | C120: Name
A121: Telephone number | C121: Telephone number
A122: Cell number | C122: Cell number
A123: Fax number | C123: Fax number
A124: E-mail address | C124: E-mail address
A125: Official responsible for submitting financial information | C125: Official responsible for submitting financial information
A126: ID Number | C126: ID Number
A127: Title | C127: Title
A128: Name | C128: Name
A129: Telephone number | C129: Telephone number
A130: Cell number | C130: Cell number
A131: Fax number | C131: Fax number
A132: E-mail address | C132: E-mail address
A133: Official responsible for submitting financial information
A134: ID Number
A135: Title
A136: Name
A137: Telephone number
A138: Cell number
A139: Fax number
A140: E-mail address

Sheet A1-Sum
A1: =muni&" - "&Approve1 -> NC062 Nama Khoi - Table A1 Budget Summary
A2: =desc -> Description | B2: =head1b -> 2019/20 | C2: =head1A -> 2020/21 | D2: =Head1 -> 2021/22 | E2: =Head2 -> Current Year 2022/23 | I2: =Head3 -> 2023/24 Medium Term Revenue & Expenditure Framework
A3: R thousands | B3: =Head5 -> Audited Outcome | C3: =Head5 -> Audited Outcome | D3: =Head5 -> Audited Outcome | E3: =Head6 -> Original Budget | F3: =Head7 -> Adjusted Budget | G3: =Head8 -> Full Year Forecast | H3: =Head5b -> Pre-audit outcome | I3: =Head9 -> Budget Year 2023/24 | J3: =Head10 -> Budget Year +1 2024/25 | K3: =Head11 -> Budget Year +2 2025/26
A4: Financial Performance
A5: Property rates | B5: ='A4-FinPerf RE'!C21 -> 51321994 | C5: ='A4-FinPerf RE'!D21 -> 49646671 | D5: ='A4-FinPerf RE'!E21 -> 51698617 | E5: ='A4-FinPerf RE'!F21 -> 55529192 | F5: ='A4-FinPerf RE'!G21 -> 55048611 | G5: ='A4-FinPerf RE'!H21 -> 55048611 | H5: ='A4-FinPerf RE'!I21 -> 55048611 | I5: ='A4-FinPerf RE'!J21 -> 57427711 | J5: ='A4-FinPerf RE'!K21 -> 60241670 | K5: ='A4-FinPerf RE'!L21 -> 63073031
A6: Service charges | B6: =SUM('A4-FinPerf RE'!C6:C9) -> 141363728 | C6: =SUM('A4-FinPerf RE'!D6:D9) -> 148522185 | D6: =SUM('A4-FinPerf RE'!E6:E9) -> 168251228 | E6: =SUM('A4-FinPerf RE'!F6:F9) -> 225383781 | F6: =SUM('A4-FinPerf RE'!G6:G9) -> 225501282 | G6: =SUM('A4-FinPerf RE'!H6:H9) -> 225501282 | H6: =SUM('A4-FinPerf RE'!I6:I9) -> 271914580 | I6: =SUM('A4-FinPerf RE'!J6:J9) -> 255290457 | J6: =SUM('A4-FinPerf RE'!K6:K9) -> 267985266 | K6: =SUM('A4-FinPerf RE'!L6:L9) -> 281075759
A7: Investment revenue | B7: ='A4-FinPerf RE'!C14 -> 2007585 | C7: ='A4-FinPerf RE'!D14 -> 1601701 | D7: ='A4-FinPerf RE'!E14 -> 1330026 | E7: ='A4-FinPerf RE'!F14 -> 1362992 | F7: ='A4-FinPerf RE'!G14 -> 1979767 | G7: ='A4-FinPerf RE'!H14 -> 1979767 | H7: ='A4-FinPerf RE'!I14 -> 1979767 | I7: ='A4-FinPerf RE'!J14 -> 2084695 | J7: ='A4-FinPerf RE'!K14 -> 2186845 | K7: ='A4-FinPerf RE'!L14 -> 2289627
A8: Transfer and subsidies - Operational | B8: ='A4-FinPerf RE'!C25 -> 52662581 | C8: ='A4-FinPerf RE'!D25 -> 63982000 | D8: ='A4-FinPerf RE'!E25 -> 58433520 | E8: ='A4-FinPerf RE'!F25 -> 64422000 | F8: ='A4-FinPerf RE'!G25 -> 64422000 | G8: ='A4-FinPerf RE'!H25 -> 64422000 | H8: ='A4-FinPerf RE'!I25 -> 64422000 | I8: ='A4-FinPerf RE'!J25 -> 69179000 | J8: ='A4-FinPerf RE'!K25 -> 71270000 | K8: ='A4-FinPerf RE'!L25 -> 75052000
A9: Other own revenue | B9: ='A4-FinPerf RE'!C32-SUM(B5:B8) -> 16722607 | C9: ='A4-FinPerf RE'!D32-SUM(C5:C8) -> 17433230 | D9: ='A4-FinPerf RE'!E32-SUM(D5:D8) -> 21367361 | E9: ='A4-FinPerf RE'!F32-SUM(E5:E8) -> 18778685 | F9: ='A4-FinPerf RE'!G32-SUM(F5:F8) -> 26247983 | G9: ='A4-FinPerf RE'!H32-SUM(G5:G8) -> 26247983 | H9: ='A4-FinPerf RE'!I32-SUM(H5:H8) -> 26247983 | I9: ='A4-FinPerf RE'!J32-SUM(I5:I8) -> 27656391 | J9: ='A4-FinPerf RE'!K32-SUM(J5:J8) -> 29010373 | K9: ='A4-FinPerf RE'!L32-SUM(K5:K8) -> 30373861
A10: ='A4-FinPerf RE'!A32 -> Total Revenue (excluding capital transfers and contributions) | B10: =SUM(B5:B9) -> 264078495 | C10: =SUM(C5:C9) -> 281185787 | D10: 301080752 | E10: 365476650 | F10: 373199643 | G10: 373199643 | H10: 419612941 | I10: 411638254 | J10: 430694154 | K10: 451864278
A11: Employee costs | B11: ='A4-FinPerf RE'!C34 -> 96450893 | C11: ='A4-FinPerf RE'!D34 -> 98930228 | D11: ='A4-FinPerf RE'!E34 -> 101157705 | E11: ='A4-FinPerf RE'!F34 -> 110696742 | F11: ='A4-FinPerf RE'!G34 -> 100808695 | G11: ='A4-FinPerf RE'!H34 -> 100808695 | H11: ='A4-FinPerf RE'!I34 -> 100808695 | I11: ='A4-FinPerf RE'!J34 -> 102966854 | J11: ='A4-FinPerf RE'!K34 -> 108527063 | K11: ='A4-FinPerf RE'!L34 -> 113826464
A12: Remuneration of councillors | B12: ='A4-FinPerf RE'!C35 -> 6209299 | C12: ='A4-FinPerf RE'!D35 -> 6144634 | D12: ='A4-FinPerf RE'!E35 -> 6708123 | E12: ='A4-FinPerf RE'!F35 -> 6758975 | F12: ='A4-FinPerf RE'!G35 -> 7945598 | G12: ='A4-FinPerf RE'!H35 -> 7945598 | H12: ='A4-FinPerf RE'!I35 -> 7945598 | I12: ='A4-FinPerf RE'!J35 -> 6758975 | J12: ='A4-FinPerf RE'!K35 -> 7123960 | K12: ='A4-FinPerf RE'!L35 -> 7508653
A13: Depreciation and amortisation | B13: ='A4-FinPerf RE'!C39 -> 56749242 | C13: ='A4-FinPerf RE'!D39 -> 65968627 | D13: ='A4-FinPerf RE'!E39 -> 77774686 | E13: ='A4-FinPerf RE'!F39 -> 41400782 | F13: ='A4-FinPerf RE'!G39 -> 77774686 | G13: ='A4-FinPerf RE'!H39 -> 77774686 | H13: ='A4-FinPerf RE'!I39 -> 77774686 | I13: ='A4-FinPerf RE'!J39 -> 81663419 | J13: ='A4-FinPerf RE'!K39 -> 85664926 | K13: ='A4-FinPerf RE'!L39 -> 89691177
A14: Finance charges | B14: ='A4-FinPerf RE'!C40 -> 16572523 | C14: ='A4-FinPerf RE'!D40 -> 12759556 | D14: ='A4-FinPerf RE'!E40 -> 16726351 | E14: ='A4-FinPerf RE'!F40 -> 1964233 | F14: ='A4-FinPerf RE'!G40 -> 81000 | G14: ='A4-FinPerf RE'!H40 -> 81000 | H14: ='A4-FinPerf RE'!I40 -> 81000 | I14: ='A4-FinPerf RE'!J40 -> 2702525 | J14: ='A4-FinPerf RE'!K40 -> 2185000 | K14: ='A4-FinPerf RE'!L40 -> 1655000
A15: Inventory consumed and bulk purchases | B15: ='A4-FinPerf RE'!C36+'A4-FinPerf RE'!C37 -> 131393455 | C15: ='A4-FinPerf RE'!D36+'A4-FinPerf RE'!D37 -> 134928856 | D15: ='A4-FinPerf RE'!E36+'A4-FinPerf RE'!E37 -> 144320694 | E15: ='A4-FinPerf RE'!F36+'A4-FinPerf RE'!F37 -> 148199558 | F15: ='A4-FinPerf RE'!G36+'A4-FinPerf RE'!G37 -> 149632762 | G15: ='A4-FinPerf RE'!H36+'A4-FinPerf RE'!H37 -> 149632762 | H15: ='A4-FinPerf RE'!I36+'A4-FinPerf RE'!I37 -> 149632762 | I15: ='A4-FinPerf RE'!J36+'A4-FinPerf RE'!J37 -> 203596037 | J15: ='A4-FinPerf RE'!K36+'A4-FinPerf RE'!K37 -> 213572243 | K15: ='A4-FinPerf RE'!L36+'A4-FinPerf RE'!L37 -> 223610139
A16: Transfers and subsidies | B16: ='A4-FinPerf RE'!C42 -> 0 | C16: ='A4-FinPerf RE'!D42 -> 0 | D16: ='A4-FinPerf RE'!E42 -> 0 | E16: ='A4-FinPerf RE'!F42 -> 0 | F16: ='A4-FinPerf RE'!G42 -> 0 | G16: ='A4-FinPerf RE'!H42 -> 0 | H16: ='A4-FinPerf RE'!I42 -> 0 | I16: ='A4-FinPerf RE'!J42 -> 0 | J16: ='A4-FinPerf RE'!K42 -> 0 | K16: ='A4-FinPerf RE'!L42 -> 0
A17: Other expenditure | B17: ='A4-FinPerf RE'!C47-SUM(B11:B16) -> 77847815 | C17: ='A4-FinPerf RE'!D47-SUM(C11:C16) -> 74472136 | D17: ='A4-FinPerf RE'!E47-SUM(D11:D16) -> 43648388 | E17: ='A4-FinPerf RE'!F47-SUM(E11:E16) -> 107117977 | F17: ='A4-FinPerf RE'!G47-SUM(F11:F16) -> 111612133 | G17: ='A4-FinPerf RE'!H47-SUM(G11:G16) -> 111612133 | H17: ='A4-FinPerf RE'!I47-SUM(H11:H16) -> 111612133 | I17: ='A4-FinPerf RE'!J47-SUM(I11:I16) -> 106435551 | J17: ='A4-FinPerf RE'!K47-SUM(J11:J16) -> 108669228 | K17: ='A4-FinPerf RE'!L47-SUM(K11:K16) -> 112967882
A18: ='A4-FinPerf RE'!A47 -> Total Expenditure | B18: =SUM(B11:B17) -> 385223227 | C18: =SUM(C11:C17) -> 393204037 | D18: 390335947 | E18: 416138267 | F18: 447854874 | G18: 447854874 | H18: 447854874 | I18: 504123361 | J18: 525742420 | K18: 549259315
A19: ='A4-FinPerf RE'!A48 -> Surplus/(Deficit) | B19: =B10-B18 -> -121144732 | C19: =C10-C18 -> -112018250 | D19: -89255195 | E19: -50661617 | F19: -74655231 | G19: -74655231 | H19: -28241933 | I19: -92485107 | J19: -95048266 | K19: -97395037
A20: ='A4-FinPerf RE'!A49 -> Transfers and subsidies - capital (monetary allocations) | B20: ='A4-FinPerf RE'!C49 -> 14424736 | C20: ='A4-FinPerf RE'!D49 -> 29034221 | D20: ='A4-FinPerf RE'!E49 -> 14745481 | E20: ='A4-FinPerf RE'!F49 -> 41070000 | F20: ='A4-FinPerf RE'!G49 -> 41070000 | G20: ='A4-FinPerf RE'!H49 -> 41070000 | H20: ='A4-FinPerf RE'!I49 -> 41070000 | I20: ='A4-FinPerf RE'!J49 -> 36599000 | J20: ='A4-FinPerf RE'!K49 -> 20461000 | K20: ='A4-FinPerf RE'!L49 -> 19947000
A21: ='A4-FinPerf RE'!A50 -> Transfers and subsidies - capital (in-kind) | B21: ='A4-FinPerf RE'!C50 -> 0 | C21: ='A4-FinPerf RE'!D50 -> 0 | D21: ='A4-FinPerf RE'!E50 -> 0 | E21: ='A4-FinPerf RE'!F50 -> 0 | F21: ='A4-FinPerf RE'!G50 -> 0 | G21: ='A4-FinPerf RE'!H50 -> 0 | H21: ='A4-FinPerf RE'!I50 -> 0 | I21: ='A4-FinPerf RE'!J50 -> 0 | J21: ='A4-FinPerf RE'!K50 -> 0 | K21: ='A4-FinPerf RE'!L50 -> 0
A22: ='A4-FinPerf RE'!A51 -> Surplus/(Deficit) after capital transfers & contributions | B22: =B19+SUM(B20:B21) -> -106719996 | C22: =C19+SUM(C20:C21) -> -82984029 | D22: -74509714 | E22: -9591617 | F22: -33585231 | G22: -33585231 | H22: 12828067 | I22: -55886107 | J22: -74587266 | K22: -77448037
A23: ='A4-FinPerf RE'!A57 -> Share of Surplus/Deficit attributable to Associate | B23: ='A4-FinPerf RE'!C57 -> 0 | C23: ='A4-FinPerf RE'!D57 -> 0 | D23: ='A4-FinPerf RE'!E57 -> 0 | E23: ='A4-FinPerf RE'!F57 -> 0 | F23: ='A4-FinPerf RE'!G57 -> 0 | G23: ='A4-FinPerf RE'!H57 -> 0 | H23: ='A4-FinPerf RE'!I57 -> 0 | I23: ='A4-FinPerf RE'!J57 -> 0 | J23: ='A4-FinPerf RE'!K57 -> 0 | K23: ='A4-FinPerf RE'!L57 -> 0
A24: ='A4-FinPerf RE'!A59 -> Surplus/(Deficit) for the year | B24: =B22+B23 -> -106719996 | C24: =C22+C23 -> -82984029 | D24: -74509714 | E24: -9591617 | F24: -33585231 | G24: -33585231 | H24: 12828067 | I24: -55886107 | J24: -74587266 | K24: -77448037
A25: Capital expenditure & funds sources
A26: Capital expenditure | B26: ='A5-Capex'!C111 -> 10479385 | C26: ='A5-Capex'!D111 -> 0 | D26: ='A5-Capex'!E111 -> 0 | E26: ='A5-Capex'!F111 -> 71420000 | F26: ='A5-Capex'!G111 -> 71811625 | G26: ='A5-Capex'!H111 -> 71811625 | H26: ='A5-Capex'!I111 -> 71811625 | I26: ='A5-Capex'!J111 -> 55899000 | J26: ='A5-Capex'!K111 -> 20461000 | K26: ='A5-Capex'!L111 -> 19947000
A27: Transfers recognised - capital | B27: ='A5-Capex'!C118 -> 10385714 | C27: ='A5-Capex'!D118 -> 0 | D27: ='A5-Capex'!E118 -> 0 | E27: ='A5-Capex'!F118 -> 41070000 | F27: ='A5-Capex'!G118 -> 41070000 | G27: ='A5-Capex'!H118 -> 41070000 | H27: ='A5-Capex'!I118 -> 41070000 | I27: ='A5-Capex'!J118 -> 36599000 | J27: ='A5-Capex'!K118 -> 20461000 | K27: ='A5-Capex'!L118 -> 19947000
A29: ='A5-Capex'!A120 -> Borrowing | B29: ='A5-Capex'!C120 -> 0 | C29: ='A5-Capex'!D120 -> 0 | D29: ='A5-Capex'!E120 -> 0 | E29: ='A5-Capex'!F120 -> 25000000 | F29: ='A5-Capex'!G120 -> 25000000 | G29: ='A5-Capex'!H120 -> 25000000 | H29: ='A5-Capex'!I120 -> 25000000 | I29: ='A5-Capex'!J120 -> 0 | J29: ='A5-Capex'!K120 -> 0 | K29: ='A5-Capex'!L120 -> 0
A30: ='A5-Capex'!A121 -> Internally generated funds | B30: ='A5-Capex'!C121 -> 155652 | C30: ='A5-Capex'!D121 -> 0 | D30: ='A5-Capex'!E121 -> 0 | E30: ='A5-Capex'!F121 -> 5350000 | F30: ='A5-Capex'!G121 -> 5741625 | G30: ='A5-Capex'!H121 -> 5741625 | H30: ='A5-Capex'!I121 -> 5741625 | I30: ='A5-Capex'!J121 -> 19300000 | J30: ='A5-Capex'!K121 -> 0 | K30: ='A5-Capex'!L121 -> 0
A31: Total sources of capital funds | B31: =+B27+B29+B30 -> 10541366 | C31: =+C27+C29+C30 -> 0 | D31: 0 | E31: 71420000 | F31: 71811625 | G31: 71811625 | H31: 71811625 | I31: 55899000 | J31: 20461000 | K31: 19947000
A32: Financial position
A33: ='A6-FinPos'!A13 -> Total current assets | B33: ='A6-FinPos'!C13 -> 98476775 | C33: ='A6-FinPos'!D13 -> 93381054 | D33: ='A6-FinPos'!E13 -> 122801603 | E33: ='A6-FinPos'!F13 -> 66217695 | F33: ='A6-FinPos'!G13 -> 85605690 | G33: ='A6-FinPos'!H13 -> 85605690 | H33: ='A6-FinPos'!I13 -> 85605690 | I33: ='A6-FinPos'!J13 -> 119198614 | J33: ='A6-FinPos'!K13 -> 109815274 | K33: ='A6-FinPos'!L13 -> 102111414
A34: ='A6-FinPos'!A25 -> Total non current assets | B34: ='A6-FinPos'!C25 -> 1070715431 | C34: ='A6-FinPos'!D25 -> 1015696323 | D34: ='A6-FinPos'!E25 -> 837741263 | E34: ='A6-FinPos'!F25 -> 1044286162 | F34: ='A6-FinPos'!G25 -> 831412363 | G34: ='A6-FinPos'!H25 -> 831412363 | H34: ='A6-FinPos'!I25 -> 831412363 | I34: ='A6-FinPos'!J25 -> 811611005 | J34: ='A6-FinPos'!K25 -> 746407079 | K34: ='A6-FinPos'!L25 -> 676662902
A35: ='A6-FinPos'!A37 -> Total current liabilities | B35: ='A6-FinPos'!C37 -> 394558815 | C35: ='A6-FinPos'!D37 -> 418812183 | D35: ='A6-FinPos'!E37 -> 454099361 | E35: ='A6-FinPos'!F37 -> 418879921 | F35: ='A6-FinPos'!G37 -> 455161906 | G35: ='A6-FinPos'!H37 -> 455161906 | H35: ='A6-FinPos'!I37 -> 455161906 | I35: ='A6-FinPos'!J37 -> 455161906 | J35: ='A6-FinPos'!K37 -> 455161906 | K35: ='A6-FinPos'!L37 -> 455161906
A36: ='A6-FinPos'!A43 -> Total non current liabilities | B36: ='A6-FinPos'!C43 -> 146391081 | C36: ='A6-FinPos'!D43 -> 141712964 | D36: ='A6-FinPos'!E43 -> 163253378 | E36: ='A6-FinPos'!F43 -> 162982615 | F36: ='A6-FinPos'!G43 -> 162190834 | G36: ='A6-FinPos'!H43 -> 162190834 | H36: ='A6-FinPos'!I43 -> 162190834 | I36: ='A6-FinPos'!J43 -> 162190834 | J36: ='A6-FinPos'!K43 -> 162190834 | K36: ='A6-FinPos'!L43 -> 162190834
A37: Community wealth/Equity | B37: ='A6-FinPos'!C50 -> 739742125 | C37: ='A6-FinPos'!D50 -> 635795352 | D37: ='A6-FinPos'!E50 -> 444566766 | E37: ='A6-FinPos'!F50 -> 543326005 | F37: ='A6-FinPos'!G50 -> 335757755 | G37: ='A6-FinPos'!H50 -> 335757755 | H37: ='A6-FinPos'!I50 -> 335757755 | I37: ='A6-FinPos'!J50 -> 313456879 | J37: ='A6-FinPos'!K50 -> 238869613 | K37: ='A6-FinPos'!L50 -> 161421576
A38: Cash flows
A39: Net cash from (used) operating | B39: ='A7-CFlow'!C17 -> 350480369 | C39: ='A7-CFlow'!D17 -> 598287883 | D39: ='A7-CFlow'!E17 -> 159473877 | E39: ='A7-CFlow'!F17 -> 17200785 | F39: ='A7-CFlow'!G17 -> 22467830 | G39: ='A7-CFlow'!H17 -> 22503359 | H39: ='A7-CFlow'!I17 -> 22503359 | I39: ='A7-CFlow'!J17 -> 36654433 | J39: ='A7-CFlow'!K17 -> 22487759 | K39: ='A7-CFlow'!L17 -> 24189514
A40: Net cash from (used) investing | B40: ='A7-CFlow'!C26 -> 0 | C40: ='A7-CFlow'!D26 -> 0 | D40: ='A7-CFlow'!E26 -> 0 | E40: ='A7-CFlow'!F26 -> 0 | F40: ='A7-CFlow'!G26 -> 0 | G40: ='A7-CFlow'!H26 -> 0 | H40: ='A7-CFlow'!I26 -> 0 | I40: ='A7-CFlow'!J26 -> -55899000 | J40: ='A7-CFlow'!K26 -> -20461000 | K40: ='A7-CFlow'!L26 -> -19947000
A41: Net cash from (used) financing | B41: ='A7-CFlow'!C35 -> 0 | C41: ='A7-CFlow'!D35 -> 0 | D41: ='A7-CFlow'!E35 -> 0 | E41: ='A7-CFlow'!F35 -> 0 | F41: ='A7-CFlow'!G35 -> 0 | G41: ='A7-CFlow'!H35 -> 0 | H41: ='A7-CFlow'!I35 -> 0 | I41: ='A7-CFlow'!J35 -> 0 | J41: ='A7-CFlow'!K35 -> 0 | K41: ='A7-CFlow'!L35 -> 0
A42: =LEFT('A7-CFlow'!A39,37) -> Cash/cash equivalents at the year end | B42: ='A7-CFlow'!C39 -> 380378671 | C42: ='A7-CFlow'!D39 -> 630977558 | D42: ='A7-CFlow'!E39 -> 191944522 | E42: ='A7-CFlow'!F39 -> 49681007 | F42: ='A7-CFlow'!G39 -> 46984566 | G42: ='A7-CFlow'!H39 -> 47020095 | H42: ='A7-CFlow'!I39 -> 47020095 | I42: ='A7-CFlow'!J39 -> 5272169 | J42: ='A7-CFlow'!K39 -> 7298928 | K42: ='A7-CFlow'!L39 -> 11541442
A44: Cash backing/surplus reconciliation
A45: ='A8-ResRecon'!A4 -> Cash and investments available | B45: ='A8-ResRecon'!C8 -> 844166535 | C45: ='A8-ResRecon'!D8 -> 891361755 | D45: ='A8-ResRecon'!E8 -> 799731595 | E45: ='A8-ResRecon'!F8 -> 893228050 | F45: ='A8-ResRecon'!G8 -> 757127994 | G45: ='A8-ResRecon'!H8 -> 757127994 | H45: ='A8-ResRecon'!I8 -> 757127994 | I45: ='A8-ResRecon'!J8 -> 748499384 | J45: ='A8-ResRecon'!K8 -> 678353352 | K45: ='A8-ResRecon'!L8 -> 605555287
A46: ='A8-ResRecon'!A10 -> Application of cash and investments | B46: ='A8-ResRecon'!C18 -> 128736094 | C46: ='A8-ResRecon'!D18 -> 143197656 | D46: ='A8-ResRecon'!E18 -> 356187888 | E46: ='A8-ResRecon'!F18 -> 277126654 | F46: ='A8-ResRecon'!G18 -> 328854890 | G46: ='A8-ResRecon'!H18 -> 343851890 | H46: ='A8-ResRecon'!I18 -> 348904890 | I46: ='A8-ResRecon'!J18 -> 319381890 | J46: ='A8-ResRecon'!K18 -> 321977890 | K46: ='A8-ResRecon'!L18 -> 324731890
A47: Balance - surplus (shortfall) | B47: =B45-B46 -> 715430441 | C47: =C45-C46 -> 748164099 | D47: 443543707 | E47: 616101396 | F47: 428273104 | G47: 413276104 | H47: 408223104 | I47: 429117494 | J47: 356375462 | K47: 280823397
A48: Asset management
A49: Asset register summary (WDV) | B49: ='A9-Asset'!C180 -> 1074925499 | C49: ='A9-Asset'!D180 -> 1013640311 | D49: ='A9-Asset'!E180 -> 845665730 | E49: ='A9-Asset'!F180 -> 1036287144 | F49: ='A9-Asset'!G180 -> 837710172 | G49: ='A9-Asset'!H180 -> 837710172 | H49: ='A9-Asset'!I180 -> 817908814 | I49: ='A9-Asset'!J180 -> 752704888 | J49: ='A9-Asset'!K180 -> 682960711 | K49: ='A9-Asset'!L180 -> 0
A50: ='A9-Asset'!A183 -> Depreciation | B50: ='A9-Asset'!C183 -> 56749242 | C50: ='A9-Asset'!D183 -> 65968627 | D50: ='A9-Asset'!E183 -> 77774686 | E50: ='A9-Asset'!F183 -> 41400782 | F50: ='A9-Asset'!G183 -> 77774686 | G50: ='A9-Asset'!H183 -> 77774686 | H50: ='A9-Asset'!I183 -> 81663419 | I50: ='A9-Asset'!J183 -> 85664926 | J50: ='A9-Asset'!K183 -> 89691177 | K50: ='A9-Asset'!L183 -> 0
A51: Renewal and Upgrading of Existing Assets | B51: ='A9-Asset'!C40+'A9-Asset'!C75 -> 4280497 | C51: ='A9-Asset'!D40+'A9-Asset'!D75 -> 0 | D51: ='A9-Asset'!E40+'A9-Asset'!E75 -> 0 | E51: ='A9-Asset'!F40+'A9-Asset'!F75 -> 25000000 | F51: ='A9-Asset'!G40+'A9-Asset'!G75 -> 25000000 | G51: ='A9-Asset'!H40+'A9-Asset'!H75 -> 25000000 | H51: ='A9-Asset'!I40+'A9-Asset'!I75 -> 20000000 | I51: ='A9-Asset'!J40+'A9-Asset'!J75 -> 3300000 | J51: ='A9-Asset'!K40+'A9-Asset'!K75 -> 2200000 | K51: ='A9-Asset'!L40+'A9-Asset'!L75 -> 0
A52: Repairs and Maintenance | B52: ='A9-Asset'!C184 -> 9399191 | C52: ='A9-Asset'!D184 -> 7749695 | D52: ='A9-Asset'!E184 -> 9061034 | E52: ='A9-Asset'!F184 -> 32898812 | F52: ='A9-Asset'!G184 -> 33461078 | G52: ='A9-Asset'!H184 -> 33461078 | H52: ='A9-Asset'!I184 -> 35647511 | I52: ='A9-Asset'!J184 -> 37394240 | J52: ='A9-Asset'!K184 -> 39151771 | K52: ='A9-Asset'!L184 -> 0
A54: Free services
A55: Cost of Free Basic Services provided | B55: ='A10-SerDel'!C60 -> 19426405 | C55: ='A10-SerDel'!D60 -> 21911938 | D55: ='A10-SerDel'!E60 -> 24311816 | E55: ='A10-SerDel'!F60 -> 46413299 | F55: ='A10-SerDel'!G60 -> 46413298 | G55: ='A10-SerDel'!H60 -> 46413298 | H55: ='A10-SerDel'!I60 -> 51100511 | I55: ='A10-SerDel'!J60 -> 53418858 | J55: ='A10-SerDel'!K60 -> 55434359 | K55: ='A10-SerDel'!L60 -> 0
A56: Revenue cost of free services provided | B56: ='A10-SerDel'!C79 -> 0 | C56: ='A10-SerDel'!D79 -> 0 | D56: ='A10-SerDel'!E79 -> 0 | E56: ='A10-SerDel'!F79 -> 0 | F56: ='A10-SerDel'!G79 -> 0 | G56: ='A10-SerDel'!H79 -> 0 | H56: ='A10-SerDel'!I79 -> 4049513 | I56: ='A10-SerDel'!J79 -> 4247939 | J56: ='A10-SerDel'!K79 -> 4447591 | K56: ='A10-SerDel'!L79 -> 0
A57: Households below minimum service level
A58: ='A10-SerDel'!A5 -> Water: | B58: ='A10-SerDel'!C14 -> 0 | C58: ='A10-SerDel'!D14 -> 0 | D58: ='A10-SerDel'!E14 -> 0 | E58: ='A10-SerDel'!F14 -> 0 | F58: ='A10-SerDel'!G14 -> 0 | G58: ='A10-SerDel'!H14 -> 0 | H58: ='A10-SerDel'!I14 -> 0 | I58: ='A10-SerDel'!J14 -> 0 | J58: ='A10-SerDel'!K14 -> 0 | K58: ='A10-SerDel'!L14 -> 0
A59: ='A10-SerDel'!A16 -> Sanitation/sewerage: | B59: ='A10-SerDel'!C26 -> 0 | C59: ='A10-SerDel'!D26 -> 0 | D59: ='A10-SerDel'!E26 -> 0 | E59: ='A10-SerDel'!F26 -> 0 | F59: ='A10-SerDel'!G26 -> 0 | G59: ='A10-SerDel'!H26 -> 0 | H59: ='A10-SerDel'!I26 -> 0 | I59: ='A10-SerDel'!J26 -> 0 | J59: ='A10-SerDel'!K26 -> 0 | K59: ='A10-SerDel'!L26 -> 0
A60: ='A10-SerDel'!A28 -> Energy: | B60: ='A10-SerDel'!C35 -> 0 | C60: ='A10-SerDel'!D35 -> 0 | D60: ='A10-SerDel'!E35 -> 0 | E60: ='A10-SerDel'!F35 -> 0 | F60: ='A10-SerDel'!G35 -> 0 | G60: ='A10-SerDel'!H35 -> 0 | H60: ='A10-SerDel'!I35 -> 0 | I60: ='A10-SerDel'!J35 -> 0 | J60: ='A10-SerDel'!K35 -> 0 | K60: ='A10-SerDel'!L35 -> 0
A61: ='A10-SerDel'!A37 -> Refuse: | B61: ='A10-SerDel'!C45 -> 0 | C61: ='A10-SerDel'!D45 -> 0 | D61: ='A10-SerDel'!E45 -> 0 | E61: ='A10-SerDel'!F45 -> 0 | F61: ='A10-SerDel'!G45 -> 0 | G61: ='A10-SerDel'!H45 -> 0 | H61: ='A10-SerDel'!I45 -> 0 | I61: ='A10-SerDel'!J45 -> 0 | J61: ='A10-SerDel'!K45 -> 0 | K61: ='A10-SerDel'!L45 -> 0

Sheet A2-FinPerf SC
A1: =muni&" - "&Approve3 -> NC062 Nama Khoi - Table A2 Budgeted Financial Performance (revenue and expenditure by functional classification)
A2: ="Functional Classification "&desc -> Functional Classification Description | B2: =head27 -> Ref | C2: =head1b -> 2019/20 | D2: =head1A -> 2020/21 | E2: =Head1 -> 2021/22 | F2: =Head2 -> Current Year 2022/23 | I2: =Head3 -> 2023/24 Medium Term Revenue & Expenditure Framework
A3: R thousand | B3: 1 | C3: =Head5 -> Audited Outcome | D3: =Head5 -> Audited Outcome | E3: =Head5 -> Audited Outcome | F3: =Head6 -> Original Budget | G3: =Head7 -> Adjusted Budget | H3: =Head8 -> Full Year Forecast | I3: =Head9 -> Budget Year 2023/24 | J3: =Head10 -> Budget Year +1 2024/25 | K3: =Head11 -> Budget Year +2 2025/26
A4: Revenue - Functional
A5: Governance and administration | C5: =SUM(C6:C8) -> 118474073 | D5: =SUM(D6:D8) -> 127023519 | E5: 125973201 | F5: 135654881 | G5: 142243982 | H5: 142243982 | I5: 150601571 | J5: 158322782 | K5: 166196265
A6: Executive and council | C6: =A2A!C6 -> 1590327 | D6: =A2A!D6 -> 1636632 | E6: =A2A!E6 -> 1825893 | F6: =A2A!F6 -> 1879564 | G6: =A2A!G6 -> 1879564 | H6: =A2A!H6 -> 1879564 | I6: =A2A!I6 -> 1805944 | J6: =A2A!J6 -> 737388 | K6: =A2A!K6 -> 772045
A7: Finance and administration | C7: =A2A!C9 -> 116883746 | D7: =A2A!D9 -> 125386887 | E7: =A2A!E9 -> 124147308 | F7: =A2A!F9 -> 133775317 | G7: =A2A!G9 -> 140364418 | H7: =A2A!H9 -> 140364418 | I7: =A2A!I9 -> 148795627 | J7: =A2A!J9 -> 157585394 | K7: =A2A!K9 -> 165424220
A8: Internal audit | C8: =A2A!C23 -> 0 | D8: =A2A!D23 -> 0 | E8: =A2A!E23 -> 0 | F8: =A2A!F23 -> 0 | G8: =A2A!G23 -> 0 | H8: =A2A!H23 -> 0 | I8: =A2A!I23 -> 0 | J8: =A2A!J23 -> 0 | K8: =A2A!K23 -> 0
A9: Community and public safety | C9: =SUM(C10:C14) -> 2509201 | D9: =SUM(D10:D14) -> 3077233 | E9: 2518795 | F9: 3011524 | G9: 3239515 | H9: 3239515 | I9: 3396709 | J9: 1921463 | K9: 2011772
A10: Community and social services | C10: =A2A!C26 -> 2439959 | D10: =A2A!D26 -> 2269037 | E10: =A2A!E26 -> 2519345 | F10: =A2A!F26 -> 2949237 | G10: =A2A!G26 -> 3122228 | H10: =A2A!H26 -> 3122228 | I10: =A2A!I26 -> 3273205 | J10: =A2A!J26 -> 1791907 | K10: =A2A!K26 -> 1876127
A11: Sport and recreation | C11: =A2A!C48 -> 69242 | D11: =A2A!D48 -> 7944 | E11: =A2A!E48 -> -550 | F11: =A2A!F48 -> 62287 | G11: =A2A!G48 -> 117287 | H11: =A2A!H48 -> 117287 | I11: =A2A!I48 -> 123504 | J11: =A2A!J48 -> 129556 | K11: =A2A!K48 -> 135645
A12: Public safety | C12: =A2A!C54 -> 0 | D12: =A2A!D54 -> 0 | E12: =A2A!E54 -> 0 | F12: =A2A!F54 -> 0 | G12: =A2A!G54 -> 0 | H12: =A2A!H54 -> 0 | I12: =A2A!I54 -> 0 | J12: =A2A!J54 -> 0 | K12: =A2A!K54 -> 0
A13: Housing | C13: =A2A!C63 -> 0 | D13: =A2A!D63 -> 800252 | E13: =A2A!E63 -> 0 | F13: =A2A!F63 -> 0 | G13: =A2A!G63 -> 0 | H13: =A2A!H63 -> 0 | I13: =A2A!I63 -> 0 | J13: =A2A!J63 -> 0 | K13: =A2A!K63 -> 0
A14: Health | C14: =A2A!C66 -> 0 | D14: =A2A!D66 -> 0 | E14: =A2A!E66 -> 0 | F14: =A2A!F66 -> 0 | G14: =A2A!G66 -> 0 | H14: =A2A!H66 -> 0 | I14: =A2A!I66 -> 0 | J14: =A2A!J66 -> 0 | K14: =A2A!K66 -> 0
A15: Economic and environmental services | C15: =SUM(C16:C18) -> 1538972 | D15: =SUM(D16:D18) -> 1888271 | E15: 2093107 | F15: 1088328 | G15: 1806728 | H15: 1806728 | I15: 1902485 | J15: 1995706 | K15: 2089505
A16: Planning and development | C16: =A2A!C75 -> 0 | D16: =A2A!D75 -> 0 | E16: =A2A!E75 -> 0 | F16: =A2A!F75 -> 0 | G16: =A2A!G75 -> 0 | H16: =A2A!H75 -> 0 | I16: =A2A!I75 -> 0 | J16: =A2A!J75 -> 0 | K16: =A2A!K75 -> 0
A17: Road transport | C17: =A2A!C86 -> 1538972 | D17: =A2A!D86 -> 1888271 | E17: =A2A!E86 -> 2093107 | F17: =A2A!F86 -> 1088328 | G17: =A2A!G86 -> 1806728 | H17: =A2A!H86 -> 1806728 | I17: =A2A!I86 -> 1902485 | J17: =A2A!J86 -> 1995706 | K17: =A2A!K86 -> 2089505
A18: Environmental protection | C18: =A2A!C91 -> 0 | D18: =A2A!D91 -> 0 | E18: =A2A!E91 -> 0 | F18: =A2A!F91 -> 0 | G18: =A2A!G91 -> 0 | H18: =A2A!H91 -> 0 | I18: =A2A!I91 -> 0 | J18: =A2A!J91 -> 0 | K18: =A2A!K91 -> 0
A19: Trading services | C19: =SUM(C20:C23) -> 155870133 | D19: =SUM(D20:D23) -> 178166997 | E19: 185095797 | F19: 266629946 | G19: 266747447 | H19: 266747447 | I19: 292092223 | J19: =SUM(J20:J23) -> 288658968 | K19: 301245458
A20: Energy sources | C20: =A2A!C99 -> 84962968 | D20: =A2A!D99 -> 91228707 | E20: =A2A!E99 -> 105038914 | F20: =A2A!F99 -> 134681149 | G20: =A2A!G99 -> 134681149 | H20: =A2A!H99 -> 134681149 | I20: =A2A!I99 -> 149263003 | J20: =A2A!J99 -> 160062467 | K20: =A2A!K99 -> 166825488
A21: Water management | C21: =A2A!C103 -> 36631629 | D21: =A2A!D103 -> 47412150 | E21: =A2A!E103 -> 48151159 | F21: =A2A!F103 -> 49718036 | G21: =A2A!G103 -> 49706036 | H21: =A2A!H103 -> 49706036 | I21: =A2A!I103 -> 57162542 | J21: =A2A!J103 -> 59963507 | K21: =A2A!K103 -> 62781792
A22: Waste water management | C22: =A2A!C107 -> 20743078 | D22: =A2A!D107 -> 26078098 | E22: =A2A!E107 -> 17772356 | F22: =A2A!F107 -> 57168479 | G22: =A2A!G107 -> 57228480 | H22: =A2A!H107 -> 57228480 | I22: =A2A!I107 -> 59026989 | J22: =A2A!J107 -> 40687961 | K22: =A2A!K107 -> 42379728
A23: Waste management | C23: =A2A!C112 -> 13532458 | D23: =A2A!D112 -> 13448042 | E23: =A2A!E112 -> 14133368 | F23: =A2A!F112 -> 25062282 | G23: =A2A!G112 -> 25131782 | H23: =A2A!H112 -> 25131782 | I23: =A2A!I112 -> 26639689 | J23: =A2A!J112 -> 27945033 | K23: =A2A!K112 -> 29258450
A24: Other | B24: 4 | C24: =A2A!C117 -> 110852 | D24: =A2A!D117 -> 63988 | E24: =A2A!E117 -> 145333 | F24: =A2A!F117 -> 161971 | G24: =A2A!G117 -> 231971 | H24: =A2A!H117 -> 231971 | I24: =A2A!I117 -> 244266 | J24: =A2A!J117 -> 256235 | K24: =A2A!K117 -> 268278
A25: ="Total "&A4 -> Total Revenue - Functional | B25: 2 | C25: =C5+C9+C15+C19+C24 -> 278503231 | D25: =D5+D9+D15+D19+D24 -> 310220008 | E25: =E5+E9+E15+E19+E24 -> 315826233 | F25: 406546650 | G25: 414269643 | H25: 414269643 | I25: =I5+I9+I15+I19+I24 -> 448237254 | J25: 451155154 | K25: 471811278
A27: Expenditure - Functional
A28: Governance and administration | C28: =SUM(C29:C31) -> 153621608 | D28: =SUM(D29:D31) -> 136688183 | E28: 108971825 | F28: 114245871 | G28: 121685280 | H28: 121685280 | I28: 116629502 | J28: 120629910 | K28: 125264526
A29: Executive and council | C29: =A2A!C128 -> 20183718 | D29: =A2A!D128 -> 19701172 | E29: =A2A!E128 -> 19322711 | F29: =A2A!F128 -> 20944393 | G29: =A2A!G128 -> 23991439 | H29: =A2A!H128 -> 23991439 | I29: =A2A!I128 -> 22535895 | J29: =A2A!J128 -> 22574272 | K29: =A2A!K128 -> 23769782
A30: Finance and administration | C30: =A2A!C131 -> 132258461 | D30: =A2A!D131 -> 115901926 | E30: =A2A!E131 -> 88555695 | F30: =A2A!F131 -> 91271272 | G30: =A2A!G131 -> 96415867 | H30: =A2A!H131 -> 96415867 | I30: =A2A!I131 -> 92747063 | J30: =A2A!J131 -> 96636577 | K30: =A2A!K131 -> 99999341
A31: Internal audit | C31: =A2A!C145 -> 1179429 | D31: =A2A!D145 -> 1085085 | E31: =A2A!E145 -> 1093419 | F31: =A2A!F145 -> 2030206 | G31: =A2A!G145 -> 1277974 | H31: =A2A!H145 -> 1277974 | I31: =A2A!I145 -> 1346544 | J31: =A2A!J145 -> 1419061 | K31: =A2A!K145 -> 1495403
A32: Community and public safety | C32: =SUM(C33:C37) -> 12373179 | D32: =SUM(D33:D37) -> 14379163 | E32: 22258977 | F32: 18018652 | G32: 23560177 | H32: 23560177 | I32: 24667913 | J32: 24281587 | K32: 25491635
A33: Community and social services | C33: =A2A!C148 -> 5348156 | D33: =A2A!D148 -> 4942709 | E33: =A2A!E148 -> 5693900 | F33: =A2A!F148 -> 8611351 | G33: =A2A!G148 -> 6556508 | H33: =A2A!H148 -> 6556508 | I33: =A2A!I148 -> 7246802 | J33: =A2A!J148 -> 5978899 | K33: =A2A!K148 -> 6287484
A34: Sport and recreation | C34: =A2A!C170 -> 4039534 | D34: =A2A!D170 -> 6537266 | E34: =A2A!E170 -> 12240680 | F34: =A2A!F170 -> 6013469 | G34: =A2A!G170 -> 13645407 | H34: =A2A!H170 -> 13645407 | I34: =A2A!I170 -> 14097928 | J34: =A2A!J170 -> 14806921 | K34: =A2A!K170 -> 15529698
A35: Public safety | C35: =A2A!C176 -> 2985489 | D35: =A2A!D176 -> 2899188 | E35: =A2A!E176 -> 3199304 | F35: =A2A!F176 -> 3393832 | G35: =A2A!G176 -> 3358262 | H35: =A2A!H176 -> 3358262 | I35: =A2A!I176 -> 3323183 | J35: =A2A!J176 -> 3495767 | K35: =A2A!K176 -> 3674453
A36: Housing | C36: =A2A!C185 -> 0 | D36: =A2A!D185 -> 0 | E36: =A2A!E185 -> 1125093 | F36: =A2A!F185 -> 0 | G36: =A2A!G185 -> 0 | H36: =A2A!H185 -> 0 | I36: =A2A!I185 -> 0 | J36: =A2A!J185 -> 0 | K36: =A2A!K185 -> 0
A37: Health | C37: =A2A!C188 -> 0 | D37: =A2A!D188 -> 0 | E37: =A2A!E188 -> 0 | F37: =A2A!F188 -> 0 | G37: =A2A!G188 -> 0 | H37: =A2A!H188 -> 0 | I37: =A2A!I188 -> 0 | J37: =A2A!J188 -> 0 | K37: =A2A!K188 -> 0
A38: Economic and environmental services | C38: =SUM(C39:C41) -> 22643191 | D38: =SUM(D39:D41) -> 30888153 | E38: 22634272 | F38: 26331729 | G38: 21478448 | H38: 21478448 | I38: 23396019 | J38: 24619990 | K38: 25891585
A39: Planning and development | C39: =A2A!C197 -> 2018020 | D39: =A2A!D197 -> 10434121 | E39: =A2A!E197 -> 4394791 | F39: =A2A!F197 -> 2044633 | G39: =A2A!G197 -> 1574077 | H39: =A2A!H197 -> 1574077 | I39: =A2A!I197 -> 1629126 | J39: =A2A!J197 -> 1716352 | K39: =A2A!K197 -> 1807938
A40: Road transport | C40: =A2A!C208 -> 20625171 | D40: =A2A!D208 -> 20454032 | E40: =A2A!E208 -> 18239481 | F40: =A2A!F208 -> 24287096 | G40: =A2A!G208 -> 19904371 | H40: =A2A!H208 -> 19904371 | I40: =A2A!I208 -> 21766893 | J40: =A2A!J208 -> 22903638 | K40: =A2A!K208 -> 24083647
A41: Environmental protection | C41: =A2A!C213 -> 0 | D41: =A2A!D213 -> 0 | E41: =A2A!E213 -> 0 | F41: =A2A!F213 -> 0 | G41: =A2A!G213 -> 0 | H41: =A2A!H213 -> 0 | I41: =A2A!I213 -> 0 | J41: =A2A!J213 -> 0 | K41: =A2A!K213 -> 0
A42: Trading services | C42: =SUM(C43:C46) -> 200387805 | D42: =SUM(D43:D46) -> 209675420 | E42: 236470873 | F42: =SUM(F43:F46) -> 257542015 | G42: 281130969 | H42: 281130969 | I42: 339429927 | J42: 356210933 | K42: =SUM(K43:K46) -> 372611569
A43: Energy sources | C43: =A2A!C221 -> 100520823 | D43: =A2A!D221 -> 107883587 | E43: =A2A!E221 -> 125765247 | F43: =A2A!F221 -> 131465958 | G43: =A2A!G221 -> 131188019 | H43: =A2A!H221 -> 131188019 | I43: =A2A!I221 -> 180888231 | J43: =A2A!J221 -> 189786055 | K43: =A2A!K221 -> 198756618
A44: Water management | C44: =A2A!C225 -> 58845401 | D44: =A2A!D225 -> 57720457 | E44: =A2A!E225 -> 60073091 | F44: =A2A!F225 -> 79997619 | G44: =A2A!G225 -> 82700441 | H44: =A2A!H225 -> 82700441 | I44: =A2A!I225 -> 89021880 | J44: =A2A!J225 -> 93421931 | K44: =A2A!K225 -> 97307744
A45: Waste water management | C45: =A2A!C229 -> 15249600 | D45: =A2A!D229 -> 16129115 | E45: =A2A!E229 -> 16424933 | F45: =A2A!F229 -> 27344377 | G45: =A2A!G229 -> 26119968 | H45: =A2A!H229 -> 26119968 | I45: =A2A!I229 -> 27218678 | J45: =A2A!J229 -> 28590503 | K45: =A2A!K229 -> 29990494
A46: Waste management | C46: =A2A!C234 -> 25771981 | D46: =A2A!D234 -> 27942261 | E46: =A2A!E234 -> 34207602 | F46: =A2A!F234 -> 18734061 | G46: =A2A!G234 -> 41122541 | H46: =A2A!H234 -> 41122541 | I46: =A2A!I234 -> 42301138 | J46: =A2A!J234 -> 44412444 | K46: =A2A!K234 -> 46556713
A47: Other | B47: 4 | C47: =A2A!C239 -> 0 | D47: =A2A!D239 -> 0 | E47: =A2A!E239 -> 0 | F47: =A2A!F239 -> 0 | G47: =A2A!G239 -> 0 | H47: =A2A!H239 -> 0 | I47: =A2A!I239 -> 0 | J47: =A2A!J239 -> 0 | K47: =A2A!K239 -> 0
A48: ="Total "&A27 -> Total Expenditure - Functional | B48: 3 | C48: =C28+C32+C38+C42+C47 -> 389025783 | D48: =D28+D32+D38+D42+D47 -> 391630919 | E48: =E28+E32+E38+E42+E47 -> 390335947 | F48: =F28+F32+F38+F42+F47 -> 416138267 | G48: 447854874 | H48: 447854874 | I48: 504123361 | J48: 525742420 | K48: 549259315
A49: =result -> Surplus/(Deficit) for the year | C49: =C25-C48 -> -110522552 | D49: =D25-D48 -> -81410911 | E49: -74509714 | F49: -9591617 | G49: -33585231 | H49: -33585231 | I49: -55886107 | J49: -74587266 | K49: -77448037
A50: =head27a -> References
A51: 1. Government Finance Statistics Functions and Sub-functions are standardised to assist the compilation of national and international accounts for comparison purposes
A52: 2. Total Revenue by functional classification must reconcile to Total Operating Revenue shown in Budgeted Financial Performance (revenue and expenditure)
A53: 3. Total Expenditure by Functional Classification must reconcile to Total Operating Expenditure shown in Budgeted Financial Performance (revenue and expenditure)
A54: 4. All amounts must be classified under a functional classification . The GFS function 'Other' is only for Abbatoirs, Air Transport, Forestry, Licensing and Regulation, Markets and Tourism - and if used must be supported by footnotes. Nothing else may be placed under 'Other'. Assign associate share to relevant classification.
A57: check oprev balance | C57: =C25-'A4-FinPerf RE'!C32 -> 14424736 | D57: =D25-'A4-FinPerf RE'!D32 -> 29034221 | E57: =E25-'A4-FinPerf RE'!E32 -> 14745481 | F57: =F25-'A4-FinPerf RE'!F32 -> 41070000 | G57: =G25-'A4-FinPerf RE'!G32 -> 41070000 | H57: =H25-'A4-FinPerf RE'!H32 -> 41070000 | I57: =I25-'A4-FinPerf RE'!I32 -> 28624313 | J57: =J25-'A4-FinPerf RE'!J32 -> 39516900 | K57: =K25-'A4-FinPerf RE'!K32 -> 41117124
A58: check opexp balance | C58: =C48-'A4-FinPerf RE'!C47 -> 3802556 | D58: =D48-'A4-FinPerf RE'!D47 -> -1573118 | E58: =E48-'A4-FinPerf RE'!E47 -> 0 | F58: =F48-'A4-FinPerf RE'!F47 -> 0 | G58: =G48-'A4-FinPerf RE'!G47 -> 0 | H58: =H48-'A4-FinPerf RE'!H47 -> 0 | I58: =I48-'A4-FinPerf RE'!J47 -> 0 | J58: =J48-'A4-FinPerf RE'!K47 -> 0 | K58: =K48-'A4-FinPerf RE'!L47 -> 0

Sheet A2A
A1: =muni&" - "&Approve3 -> NC062 Nama Khoi - Table A2 Budgeted Financial Performance (revenue and expenditure by functional classification)
A2: ="Functional Classification "&desc -> Functional Classification Description | B2: =head27 -> Ref | C2: =head1b -> 2019/20 | D2: =head1A -> 2020/21 | E2: =Head1 -> 2021/22 | F2: =Head2 -> Current Year 2022/23 | I2: =Head3 -> 2023/24 Medium Term Revenue & Expenditure Framework
A3: R thousand | B3: 1 | C3: =Head5 -> Audited Outcome | D3: =Head5 -> Audited Outcome | E3: =Head5 -> Audited Outcome | F3: =Head6 -> Original Budget | G3: =Head7 -> Adjusted Budget | H3: =Head8 -> Full Year Forecast | I3: =Head9 -> Budget Year 2023/24 | J3: =Head10 -> Budget Year +1 2024/25 | K3: =Head11 -> Budget Year +2 2025/26
A4: Revenue - Functional
A5: Municipal governance and administration | C5: =C6+C9+C23 -> 118474073 | D5: 127023519 | E5: 125973201 | F5: 135654881 | G5: 142243982 | H5: 142243982 | I5: 150601571 | J5: 158322782 | K5: 166196265
A6: Executive and council | C6: =SUM(C7:C8) -> 1590327 | D6: =SUM(D7:D8) -> 1636632 | E6: 1825893 | F6: 1879564 | G6: 1879564 | H6: 1879564 | I6: 1805944 | J6: 737388 | K6: 772045
A7: Mayor and Council | C7: 204875 | D7: 234644 | E7: 277242 | F7: 301838 | G7: 301838 | H7: 301838 | I7: 317835 | J7: 333409 | K7: 349079
A8: Municipal Manager, Town Secretary and Chief Executive | C8: 1385452 | D8: 1401988 | E8: 1548651 | F8: 1577726 | G8: 1577726 | H8: 1577726 | I8: 1488109 | J8: 403979 | K8: 422966
A9: Finance and administration | C9: =SUM(C10:C22) -> 116883746 | D9: 125386887 | E9: 124147308 | F9: 133775317 | G9: 140364418 | H9: 140364418 | I9: 148795627 | J9: 157585394 | K9: 165424220
A10: Administrative and Corporate Support | C10: 136126 | D10: -924635 | E10: -1563257 | F10: 36656 | G10: 64156 | H10: 64156 | I10: 67556 | J10: 69685 | K10: 72960
A11: Asset Management | C11: 0 | D11: 0 | E11: 0 | F11: 0 | G11: 0 | H11: 0 | I11: 0 | J11: 0 | K11: 0
A12: Finance | C12: 63778105 | D12: 74035387 | E12: 71551564 | F12: 75206387 | G12: 82329662 | H12: 82329662 | I12: 145651216 | J12: 154288088 | K12: 161971940
A13: Fleet Management | C13: 0 | D13: -5487 | E13: -8462 | F13: 0 | G13: 0 | H13: 0 | I13: 0 | J13: 0 | K13: 0
A14: Human Resources | C14: 17276 | D14: 18721 | E14: 19317 | F14: 0 | G14: 10000 | H14: 10000 | I14: 10530 | J14: 11046 | K14: 11565
A15: Information Technology | C15: 11824 | D15: 3085 | E15: 4386 | F15: 4240 | G15: 8198 | H15: 8198 | I15: 8632 | J15: 9055 | K15: 9481
A16: Legal Services | C16: 0 | D16: 0 | E16: 0 | F16: 0 | G16: 0 | H16: 0 | I16: 0 | J16: 0 | K16: 0
A17: Marketing, Customer Relations, Publicity and Media Co-ordination | C17: 0 | D17: 0 | E17: 0 | F17: 0 | G17: 0 | H17: 0 | I17: 0 | J17: 0 | K17: 0
A18: Property Services | C18: 1606972 | D18: 2600196 | E18: 2440643 | F18: 2995667 | G18: 2898719 | H18: 2898719 | I18: 3052352 | J18: 3201918 | K18: 3352409
A19: Risk Management | C19: 680 | D19: 1936 | E19: 2392 | F19: 842 | G19: 2739 | H19: 2739 | I19: 2884 | J19: 3025 | K19: 3167
A20: Security Services | C20: 0 | D20: 0 | E20: 0 | F20: 0 | G20: 0 | H20: 0 | I20: 0 | J20: 0 | K20: 0
A21: Supply Chain Management | C21: 10769 | D21: 11013 | E21: 2108 | F21: 2333 | G21: 2333 | H21: 2333 | I21: 2457 | J21: 2577 | K21: 2698
A22: Valuation Service | C22: 51321994 | D22: 49646671 | E22: 51698617 | F22: 55529192 | G22: 55048611 | H22: 55048611 | I22: 0 | J22: 0 | K22: 0
A23: Internal audit | C23: =SUM(C24:C24) -> 0 | D23: 0 | E23: 0 | F23: 0 | G23: 0 | H23: 0 | I23: 0 | J23: 0 | K23: 0
A24: Governance Function | C24: 0 | D24: 0 | E24: 0 | F24: 0 | G24: 0 | H24: 0 | I24: 0 | J24: 0 | K24: 0
A25: Community and public safety | C25: =C26+C48+C54+C63+C66 -> 2509201 | D25: 3077233 | E25: 2518795 | F25: 3011524 | G25: 3239515 | H25: 3239515 | I25: 3396709 | J25: 1921463 | K25: 2011772
A26: Community and social services | C26: =SUM(C27:C47) -> 2439959 | D26: =SUM(D27:D47) -> 2269037 | E26: 2519345 | F26: 2949237 | G26: 3122228 | H26: 3122228 | I26: 3273205 | J26: 1791907 | K26: 1876127
A27: Aged Care | C27: 0 | D27: 0 | E27: 0 | F27: 0 | G27: 0 | H27: 0 | I27: 0 | J27: 0 | K27: 0
A28: Agricultural | C28: 1158027 | D28: 1190525 | E28: 1188298 | F28: 1349634 | G28: 1379625 | H28: 1379625 | I28: 1452744 | J28: 1523929 | K28: 1595554
A29: Animal Care and Diseases | C29: 0 | D29: 0 | E29: 0 | F29: 0 | G29: 0 | H29: 0 | I29: 0 | J29: 0 | K29: 0
A30: Cemeteries, Funeral Parlours and Crematoriums | C30: 44911 | D30: 48669 | E30: 48651 | F30: 41130 | G30: 49130 | H30: 49130 | I30: 51734 | J30: 54269 | K30: 56820
A31: Child Care Facilities | C31: 0 | D31: 0 | E31: 0 | F31: 0 | G31: 0 | H31: 0 | I31: 0 | J31: 0 | K31: 0
A32: Community Halls and Facilities | C32: 126433 | D32: 34674 | E32: 84932 | F32: 53003 | G32: 153003 | H32: 153003 | I32: 161112 | J32: 169006 | K32: 176949
A33: Consumer Protection | C33: 0 | D33: 0 | E33: 0 | F33: 0 | G33: 0 | H33: 0 | I33: 0 | J33: 0 | K33: 0
A34: Cultural Matters | C34: 0 | D34: 0 | E34: 0 | F34: 0 | G34: 0 | H34: 0 | I34: 0 | J34: 0 | K34: 0
A35: Disaster Management | C35: 0 | D35: 0 | E35: 0 | F35: 0 | G35: 0 | H35: 0 | I35: 0 | J35: 0 | K35: 0
A36: Education | C36: 0 | D36: 0 | E36: 0 | F36: 0 | G36: 0 | H36: 0 | I36: 0 | J36: 0 | K36: 0
A37: Indigenous and Customary Law | C37: 0 | D37: 0 | E37: 0 | F37: 0 | G37: 0 | H37: 0 | I37: 0 | J37: 0 | K37: 0
A38: Industrial Promotion | C38: 0 | D38: 0 | E38: 0 | F38: 0 | G38: 0 | H38: 0 | I38: 0 | J38: 0 | K38: 0
A39: Language Policy | C39: 0 | D39: 0 | E39: 0 | F39: 0 | G39: 0 | H39: 0 | I39: 0 | J39: 0 | K39: 0
A40: Libraries and Archives | C40: 1110588 | D40: 995169 | E40: 1197464 | F40: 1505470 | G40: 1540470 | H40: 1540470 | I40: 1607615 | J40: 44703 | K40: 46804
A41: Literacy Programmes | C41: 0 | D41: 0 | E41: 0 | F41: 0 | G41: 0 | H41: 0 | I41: 0 | J41: 0 | K41: 0
A42: Media Services | C42: 0 | D42: 0 | E42: 0 | F42: 0 | G42: 0 | H42: 0 | I42: 0 | J42: 0 | K42: 0
A43: Museums and Art Galleries | C43: 0 | D43: 0 | E43: 0 | F43: 0 | G43: 0 | H43: 0 | I43: 0 | J43: 0 | K43: 0
A44: Population Development | C44: 0 | D44: 0 | E44: 0 | F44: 0 | G44: 0 | H44: 0 | I44: 0 | J44: 0 | K44: 0
A45: Provincial Cultural Matters | C45: 0 | D45: 0 | E45: 0 | F45: 0 | G45: 0 | H45: 0 | I45: 0 | J45: 0 | K45: 0
A46: Theatres | C46: 0 | D46: 0 | E46: 0 | F46: 0 | G46: 0 | H46: 0 | I46: 0 | J46: 0 | K46: 0
A47: Zoo's | C47: 0 | D47: 0 | E47: 0 | F47: 0 | G47: 0 | H47: 0 | I47: 0 | J47: 0 | K47: 0
A48: Sport and recreation | C48: =SUM(C49:C53) -> 69242 | D48: =SUM(D49:D53) -> 7944 | E48: -550 | F48: 62287 | G48: 117287 | H48: 117287 | I48: 123504 | J48: 129556 | K48: 135645
A49: Beaches and Jetties | C49: 0 | D49: 0 | E49: 0 | F49: 0 | G49: 0 | H49: 0 | I49: 0 | J49: 0 | K49: 0
A50: Casinos, Racing, Gambling, Wagering | C50: 0 | D50: 0 | E50: 0 | F50: 0 | G50: 0 | H50: 0 | I50: 0 | J50: 0 | K50: 0
A51: Community Parks (including Nurseries) | C51: 43883 | D51: 26899 | E51: 2328 | F51: 41086 | G51: 41086 | H51: 41086 | I51: 43264 | J51: 45384 | K51: 47517
A52: Recreational Facilities | C52: 0 | D52: 0 | E52: 0 | F52: 0 | G52: 0 | H52: 0 | I52: 0 | J52: 0 | K52: 0
A53: Sports Grounds and Stadiums | C53: 25359 | D53: -18955 | E53: -2878 | F53: 21201 | G53: 76201 | H53: 76201 | I53: 80240 | J53: 84172 | K53: 88128
A54: Public safety | C54: =SUM(C55:C62) -> 0 | D54: 0 | E54: 0 | F54: 0 | G54: 0 | H54: 0 | I54: 0 | J54: 0 | K54: 0
A55: Civil Defence | C55: 0 | D55: 0 | E55: 0 | F55: 0 | G55: 0 | H55: 0 | I55: 0 | J55: 0 | K55: 0
A56: Cleansing | C56: 0 | D56: 0 | E56: 0 | F56: 0 | G56: 0 | H56: 0 | I56: 0 | J56: 0 | K56: 0
A57: Control of Public Nuisances | C57: 0 | D57: 0 | E57: 0 | F57: 0 | G57: 0 | H57: 0 | I57: 0 | J57: 0 | K57: 0
A58: Fencing and Fences | C58: 0 | D58: 0 | E58: 0 | F58: 0 | G58: 0 | H58: 0 | I58: 0 | J58: 0 | K58: 0
A59: Fire Fighting and Protection | C59: 0 | D59: 0 | E59: 0 | F59: 0 | G59: 0 | H59: 0 | I59: 0 | J59: 0 | K59: 0
A60: Licensing and Control of Animals | C60: 0 | D60: 0 | E60: 0 | F60: 0 | G60: 0 | H60: 0 | I60: 0 | J60: 0 | K60: 0
A61: Police Forces, Traffic and Street Parking Control | C61: 0 | D61: 0 | E61: 0 | F61: 0 | G61: 0 | H61: 0 | I61: 0 | J61: 0 | K61: 0
A62: Pounds | C62: 0 | D62: 0 | E62: 0 | F62: 0 | G62: 0 | H62: 0 | I62: 0 | J62: 0 | K62: 0
A63: Housing | C63: =SUM(C64:C65) -> 0 | D63: =SUM(D64:D65) -> 800252 | E63: 0 | F63: 0 | G63: 0 | H63: 0 | I63: 0 | J63: 0 | K63: 0
A64: Housing | C64: 0 | D64: 0 | E64: 0 | F64: 0 | G64: 0 | H64: 0 | I64: 0 | J64: 0 | K64: 0
A65: Informal Settlements | C65: 0 | D65: 800252 | E65: 0 | F65: 0 | G65: 0 | H65: 0 | I65: 0 | J65: 0 | K65: 0
A66: Health | C66: =SUM(C67:C73) -> 0 | D66: =SUM(D67:D73) -> 0 | E66: 0 | F66: 0 | G66: 0 | H66: 0 | I66: 0 | J66: 0 | K66: 0
A67: Ambulance | C67: 0 | D67: 0 | E67: 0 | F67: 0 | G67: 0 | H67: 0 | I67: 0 | J67: 0 | K67: 0
A68: Health Services | C68: 0 | D68: 0 | E68: 0 | F68: 0 | G68: 0 | H68: 0 | I68: 0 | J68: 0 | K68: 0
A69: Laboratory Services | C69: 0 | D69: 0 | E69: 0 | F69: 0 | G69: 0 | H69: 0 | I69: 0 | J69: 0 | K69: 0
A70: Food Control | C70: 0 | D70: 0 | E70: 0 | F70: 0 | G70: 0 | H70: 0 | I70: 0 | J70: 0 | K70: 0
A71: Health Surveillance and Prevention of Communicable Diseases including immunizations | C71: 0 | D71: 0 | E71: 0 | F71: 0 | G71: 0 | H71: 0 | I71: 0 | J71: 0 | K71: 0
A72: Vector Control | C72: 0 | D72: 0 | E72: 0 | F72: 0 | G72: 0 | H72: 0 | I72: 0 | J72: 0 | K72: 0
A73: Chemical Safety | C73: 0 | D73: 0 | E73: 0 | F73: 0 | G73: 0 | H73: 0 | I73: 0 | J73: 0 | K73: 0
A74: Economic and environmental services | C74: =C75+C86+C91 -> 1538972 | D74: 1888271 | E74: 2093107 | F74: 1088328 | G74: 1806728 | H74: 1806728 | I74: 1902485 | J74: 1995706 | K74: 2089505
A75: Planning and development | C75: =SUM(C76:C85) -> 0 | D75: =SUM(D76:D85) -> 0 | E75: 0 | F75: 0 | G75: 0 | H75: 0 | I75: 0 | J75: 0 | K75: 0
A76: Billboards | C76: 0 | D76: 0 | E76: 0 | F76: 0 | G76: 0 | H76: 0 | I76: 0 | J76: 0 | K76: 0
A77: Corporate Wide Strategic Planning (IDPs, LEDs) | C77: 0 | D77: 0 | E77: 0 | F77: 0 | G77: 0 | H77: 0 | I77: 0 | J77: 0 | K77: 0
A78: Central City Improvement District | C78: 0 | D78: 0 | E78: 0 | F78: 0 | G78: 0 | H78: 0 | I78: 0 | J78: 0 | K78: 0
A79: Development Facilitation | C79: 0 | D79: 0 | E79: 0 | F79: 0 | G79: 0 | H79: 0 | I79: 0 | J79: 0 | K79: 0
A80: Economic Development/Planning | C80: 0 | D80: 0 | E80: 0 | F80: 0 | G80: 0 | H80: 0 | I80: 0 | J80: 0 | K80: 0
A81: Regional Planning and Development | C81: 0 | D81: 0 | E81: 0 | F81: 0 | G81: 0 | H81: 0 | I81: 0 | J81: 0 | K81: 0
A82: Town Planning, Building Regulations and Enforcement, and City Engineer | C82: 0 | D82: 0 | E82: 0 | F82: 0 | G82: 0 | H82: 0 | I82: 0 | J82: 0 | K82: 0
A83: Project Management Unit | C83: 0 | D83: 0 | E83: 0 | F83: 0 | G83: 0 | H83: 0 | I83: 0 | J83: 0 | K83: 0
A84: Provincial Planning | C84: 0 | D84: 0 | E84: 0 | F84: 0 | G84: 0 | H84: 0 | I84: 0 | J84: 0 | K84: 0
A85: Support to Local Municipalities | C85: 0 | D85: 0 | E85: 0 | F85: 0 | G85: 0 | H85: 0 | I85: 0 | J85: 0 | K85: 0
A86: Road transport | C86: =SUM(C87:C90) -> 1538972 | D86: 1888271 | E86: 2093107 | F86: 1088328 | G86: 1806728 | H86: 1806728 | I86: 1902485 | J86: 1995706 | K86: 2089505
A87: Public Transport | C87: 0 | D87: 0 | E87: 0 | F87: 0 | G87: 0 | H87: 0 | I87: 0 | J87: 0 | K87: 0
A88: Road and Traffic Regulation | C88: 1538972 | D88: 1887620 | E88: 2089050 | F88: 1084088 | G88: 1802488 | H88: 1802488 | I88: 1898020 | J88: 1991022 | K88: 2084601
A89: Roads | C89: 0 | D89: 651 | E89: 4057 | F89: 4240 | G89: 4240 | H89: 4240 | I89: 4465 | J89: 4684 | K89: 4904
A90: Taxi Ranks | C90: 0 | D90: 0 | E90: 0 | F90: 0 | G90: 0 | H90: 0 | I90: 0 | J90: 0 | K90: 0
A91: Environmental protection | C91: =SUM(C92:C97) -> 0 | D91: =SUM(D92:D97) -> 0 | E91: 0 | F91: 0 | G91: 0 | H91: 0 | I91: 0 | J91: 0 | K91: 0
A92: Biodiversity and Landscape | C92: 0 | D92: 0 | E92: 0 | F92: 0 | G92: 0 | H92: 0 | I92: 0 | J92: 0 | K92: 0
A93: Coastal Protection | C93: 0 | D93: 0 | E93: 0 | F93: 0 | G93: 0 | H93: 0 | I93: 0 | J93: 0 | K93: 0
A94: Indigenous Forests | C94: 0 | D94: 0 | E94: 0 | F94: 0 | G94: 0 | H94: 0 | I94: 0 | J94: 0 | K94: 0
A95: Nature Conservation | C95: 0 | D95: 0 | E95: 0 | F95: 0 | G95: 0 | H95: 0 | I95: 0 | J95: 0 | K95: 0
A96: Pollution Control | C96: 0 | D96: 0 | E96: 0 | F96: 0 | G96: 0 | H96: 0 | I96: 0 | J96: 0 | K96: 0
A97: Soil Conservation | C97: 0 | D97: 0 | E97: 0 | F97: 0 | G97: 0 | H97: 0 | I97: 0 | J97: 0 | K97: 0
A98: Trading services | C98: =C99+C103+C107+C112 -> 155870133 | D98: =D99+D103+D107+D112 -> 178166997 | E98: 185095797 | F98: 266629946 | G98: 266747447 | H98: 266747447 | I98: 292092223 | J98: 288658968 | K98: =K99+K103+K107+K112 -> 301245458
A99: Energy sources | C99: =SUM(C100:C102) -> 84962968 | D99: =SUM(D100:D102) -> 91228707 | E99: 105038914 | F99: 134681149 | G99: 134681149 | H99: 134681149 | I99: 149263003 | J99: 160062467 | K99: 166825488
A100: Electricity | C100: 84962968 | D100: 91228707 | E100: 105038914 | F100: 134681149 | G100: 134681149 | H100: 134681149 | I100: 149263003 | J100: 160062467 | K100: 166825488
A101: Street Lighting and Signal Systems | C101: 0 | D101: 0 | E101: 0 | F101: 0 | G101: 0 | H101: 0 | I101: 0 | J101: 0 | K101: 0
A102: Nonelectric Energy | C102: 0 | D102: 0 | E102: 0 | F102: 0 | G102: 0 | H102: 0 | I102: 0 | J102: 0 | K102: 0
A103: Water management | C103: =SUM(C104:C106) -> 36631629 | D103: =SUM(D104:D106) -> 47412150 | E103: 48151159 | F103: 49718036 | G103: 49706036 | H103: 49706036 | I103: 57162542 | J103: 59963507 | K103: 62781792
A104: Water Treatment | C104: 0 | D104: 0 | E104: 0 | F104: 0 | G104: 0 | H104: 0 | I104: 0 | J104: 0 | K104: 0
A105: Water Distribution | C105: 36631629 | D105: 47412150 | E105: 48151159 | F105: 49718036 | G105: 49706036 | H105: 49706036 | I105: 57162542 | J105: 59963507 | K105: 62781792
A106: Water Storage | C106: 0 | D106: 0 | E106: 0 | F106: 0 | G106: 0 | H106: 0 | I106: 0 | J106: 0 | K106: 0
A107: Waste water management | C107: =SUM(C108:C111) -> 20743078 | D107: =SUM(D108:D111) -> 26078098 | E107: 17772356 | F107: 57168479 | G107: 57228480 | H107: 57228480 | I107: 59026989 | J107: 40687961 | K107: 42379728
A108: Public Toilets | C108: 0 | D108: 0 | E108: 0 | F108: 0 | G108: 0 | H108: 0 | I108: 0 | J108: 0 | K108: 0
A109: Sewerage | C109: 20743078 | D109: 26078098 | E109: 17772356 | F109: 57168479 | G109: 57228480 | H109: 57228480 | I109: 59026989 | J109: 40687961 | K109: 42379728
A110: Storm Water Management | C110: 0 | D110: 0 | E110: 0 | F110: 0 | G110: 0 | H110: 0 | I110: 0 | J110: 0 | K110: 0
A111: Waste Water Treatment | C111: 0 | D111: 0 | E111: 0 | F111: 0 | G111: 0 | H111: 0 | I111: 0 | J111: 0 | K111: 0
A112: Waste management | C112: =SUM(C113:C116) -> 13532458 | D112: =SUM(D113:D116) -> 13448042 | E112: 14133368 | F112: 25062282 | G112: 25131782 | H112: 25131782 | I112: 26639689 | J112: 27945033 | K112: 29258450
A113: Recycling | C113: 0 | D113: 0 | E113: 0 | F113: 0 | G113: 0 | H113: 0 | I113: 0 | J113: 0 | K113: 0
A114: Solid Waste Disposal (Landfill Sites) | C114: 0 | D114: 0 | E114: 0 | F114: 0 | G114: 0 | H114: 0 | I114: 0 | J114: 0 | K114: 0
A115: Solid Waste Removal | C115: 13532458 | D115: 13448042 | E115: 14133368 | F115: 25062282 | G115: 25131782 | H115: 25131782 | I115: 26639689 | J115: 27945033 | K115: 29258450
A116: Street Cleaning | C116: 0 | D116: 0 | E116: 0 | F116: 0 | G116: 0 | H116: 0 | I116: 0 | J116: 0 | K116: 0
A117: Other | C117: =SUM(C118:C123) -> 110852 | D117: =SUM(D118:D123) -> 63988 | E117: 145333 | F117: 161971 | G117: 231971 | H117: 231971 | I117: 244266 | J117: 256235 | K117: 268278
A118: Abattoirs | C118: 0 | D118: 0 | E118: 0 | F118: 0 | G118: 0 | H118: 0 | I118: 0 | J118: 0 | K118: 0
A119: Air Transport | C119: 59112 | D119: -1370 | E119: 16176 | F119: 71867 | G119: 71867 | H119: 71867 | I119: 75676 | J119: 79384 | K119: 83115
A120: Forestry | C120: 0 | D120: 0 | E120: 0 | F120: 0 | G120: 0 | H120: 0 | I120: 0 | J120: 0 | K120: 0
A121: Licensing and Regulation | C121: 51740 | D121: 65358 | E121: 129157 | F121: 90104 | G121: 160104 | H121: 160104 | I121: 168590 | J121: 176851 | K121: 185163
A122: Markets | C122: 0 | D122: 0 | E122: 0 | F122: 0 | G122: 0 | H122: 0 | I122: 0 | J122: 0 | K122: 0
A123: Tourism | C123: 0 | D123: 0 | E123: 0 | F123: 0 | G123: 0 | H123: 0 | I123: 0 | J123: 0 | K123: 0
A124: ="Total "&A4 -> Total Revenue - Functional | B124: 2 | C124: =C5+C25+C74+C98+C117 -> 278503231 | D124: 310220008 | E124: 315826233 | F124: 406546650 | G124: 414269643 | H124: 414269643 | I124: 448237254 | J124: 451155154 | K124: 471811278
A126: Expenditure - Functional
A127: =A5 -> Municipal governance and administration | C127: =C128+C131+C145 -> 153621608 | D127: 136688183 | E127: 108971825 | F127: 114245871 | G127: 121685280 | H127: 121685280 | I127: 116629502 | J127: 120629910 | K127: 125264526
A128: Executive and council | C128: =SUM(C129:C130) -> 20183718 | D128: 19701172 | E128: 19322711 | F128: 20944393 | G128: 23991439 | H128: 23991439 | I128: 22535895 | J128: 22574272 | K128: 23769782
A129: Mayor and Council | C129: 9123761 | D129: 8452623 | E129: 9123551 | F129: 9081129 | G129: 11728640 | H129: 11728640 | I129: 10100816 | J129: 10633237 | K129: 11188303
A130: Municipal Manager, Town Secretary and Chief Executive | C130: 11059957 | D130: 11248549 | E130: 10199160 | F130: 11863264 | G130: 12262799 | H130: 12262799 | I130: 12435079 | J130: 11941035 | K130: 12581479
A131: Finance and administration | C131: =SUM(C132:C144) -> 132258461 | D131: 115901926 | E131: 88555695 | F131: 91271272 | G131: 96415867 | H131: 96415867 | I131: 92747063 | J131: 96636577 | K131: 99999341
A132: Administrative and Corporate Support | C132: 18629477 | D132: 21774833 | E132: 21782853 | F132: 23969415 | G132: 29386295 | H132: 29386295 | I132: 21196562 | J132: 22287291 | K132: 23411666
A133: Asset Management | C133: 0 | D133: 0 | E133: 0 | F133: 0 | G133: 0 | H133: 0 | I133: 0 | J133: 0 | K133: 0
A134: Finance | C134: 68785657 | D134: 60226073 | E134: 24542924 | F134: 31894498 | G134: 28072143 | H134: 28072143 | I134: 32983228 | J134: 33865854 | K134: 34162622
A135: Fleet Management | C135: 16039573 | D135: 15364444 | E135: 16782459 | F135: 18676996 | G135: 19244679 | H135: 19244679 | I135: 19791532 | J135: 20780473 | K135: 21785422
A136: Human Resources | C136: 5419500 | D136: -737366 | E136: 2228465 | F136: 1762295 | G136: 1962295 | H136: 1962295 | I136: 2076062 | J136: 2177790 | K136: 2280146
A137: Information Technology | C137: 4201279 | D137: 4011011 | E137: 3436190 | F137: 7683513 | G137: 8787513 | H137: 8787513 | I137: 9253251 | J137: 9706660 | K137: 10162873
A138: Legal Services | C138: 0 | D138: 0 | E138: 0 | F138: 0 | G138: 0 | H138: 0 | I138: 0 | J138: 0 | K138: 0
A139: Marketing, Customer Relations, Publicity and Media Co-ordination | C139: 0 | D139: 0 | E139: 0 | F139: 0 | G139: 0 | H139: 0 | I139: 0 | J139: 0 | K139: 0
A140: Property Services | C140: 824180 | D140: 425242 | E140: 398796 | F140: 1449039 | G140: 969039 | H140: 969039 | I140: 1060847 | J140: 1112828 | K140: 1165131
A141: Risk Management | C141: 1197265 | D141: 1603167 | E141: 1275183 | F141: 1904987 | G141: 1863374 | H141: 1863374 | I141: 1930834 | J141: 2032651 | K141: 2138818
A142: Security Services | C142: 0 | D142: 0 | E142: 0 | F142: 0 | G142: 0 | H142: 0 | I142: 0 | J142: 0 | K142: 0
A143: Supply Chain Management | C143: 17161530 | D143: 13234522 | E143: 18108825 | F143: 2030529 | G143: 4230529 | H143: 4230529 | I143: 4454747 | J143: 4673030 | K143: 4892663
A144: Valuation Service | C144: 0 | D144: 0 | E144: 0 | F144: 1900000 | G144: 1900000 | H144: 1900000 | I144: 0 | J144: 0 | K144: 0
A145: Internal audit | C145: =SUM(C146:C146) -> 1179429 | D145: 1085085 | E145: 1093419 | F145: 2030206 | G145: 1277974 | H145: 1277974 | I145: 1346544 | J145: 1419061 | K145: 1495403
A146: Governance Function | C146: 1179429 | D146: 1085085 | E146: 1093419 | F146: 2030206 | G146: 1277974 | H146: 1277974 | I146: 1346544 | J146: 1419061 | K146: 1495403
A147: Community and public safety | C147: =C148+C170+C176+C185+C188 -> 12373179 | D147: 14379163 | E147: 22258977 | F147: 18018652 | G147: 23560177 | H147: 23560177 | I147: 24667913 | J147: 24281587 | K147: 25491635
A148: Community and social services | C148: =SUM(C149:C169) -> 5348156 | D148: =SUM(D149:D169) -> 4942709 | E148: 5693900 | F148: 8611351 | G148: 6556508 | H148: 6556508 | I148: 7246802 | J148: 5978899 | K148: 6287484
A149: Aged Care | C149: 0 | D149: 0 | E149: 0 | F149: 0 | G149: 0 | H149: 0 | I149: 0 | J149: 0 | K149: 0
A150: Agricultural | C150: 642017 | D150: 629778 | E150: 848189 | F150: 1202862 | G150: 1108018 | H150: 1108018 | I150: 1166743 | J150: 1223914 | K150: 1281438
A151: Animal Care and Diseases | C151: 0 | D151: 0 | E151: 0 | F151: 0 | G151: 0 | H151: 0 | I151: 0 | J151: 0 | K151: 0
A152: Cemeteries, Funeral Parlours and Crematoriums | C152: 676674 | D152: 492938 | E152: 1036644 | F152: 1143423 | G152: 1213883 | H152: 1213883 | I152: 282232 | J152: 296072 | K152: 310005
A153: Child Care Facilities | C153: 0 | D153: 0 | E153: 0 | F153: 0 | G153: 0 | H153: 0 | I153: 0 | J153: 0 | K153: 0
A154: Community Halls and Facilities | C154: 480376 | D154: 293089 | E154: 70544 | F154: 886346 | G154: 498590 | H154: 498590 | I154: 1505209 | J154: 1584146 | K154: 1666245
A155: Consumer Protection | C155: 0 | D155: 0 | E155: 0 | F155: 0 | G155: 0 | H155: 0 | I155: 0 | J155: 0 | K155: 0
A156: Cultural Matters | C156: 0 | D156: 0 | E156: 0 | F156: 0 | G156: 0 | H156: 0 | I156: 0 | J156: 0 | K156: 0
A157: Disaster Management | C157: 0 | D157: 0 | E157: 0 | F157: 0 | G157: 0 | H157: 0 | I157: 0 | J157: 0 | K157: 0
A158: Education | C158: 0 | D158: 0 | E158: 0 | F158: 0 | G158: 0 | H158: 0 | I158: 0 | J158: 0 | K158: 0
A159: =A37 -> Indigenous and Customary Law | C159: 0 | D159: 0 | E159: 0 | F159: 0 | G159: 0 | H159: 0 | I159: 0 | J159: 0 | K159: 0
A160: Industrial Promotion | C160: 0 | D160: 0 | E160: 0 | F160: 0 | G160: 0 | H160: 0 | I160: 0 | J160: 0 | K160: 0
A161: Language Policy | C161: 0 | D161: 0 | E161: 0 | F161: 0 | G161: 0 | H161: 0 | I161: 0 | J161: 0 | K161: 0
A162: Libraries and Archives | C162: 3241910 | D162: 3196463 | E162: 3392126 | F162: 5019381 | G162: 3443877 | H162: 3443877 | I162: 3984702 | J162: 2550224 | K162: 2687728
A163: Literacy Programmes | C163: 0 | D163: 0 | E163: 0 | F163: 0 | G163: 0 | H163: 0 | I163: 0 | J163: 0 | K163: 0
A164: Media Services | C164: 0 | D164: 0 | E164: 0 | F164: 0 | G164: 0 | H164: 0 | I164: 0 | J164: 0 | K164: 0
A165: Museums and Art Galleries | C165: 307179 | D165: 330441 | E165: 346397 | F165: 359339 | G165: 292140 | H165: 292140 | I165: 307916 | J165: 324543 | K165: 342068
A166: Population Development | C166: 0 | D166: 0 | E166: 0 | F166: 0 | G166: 0 | H166: 0 | I166: 0 | J166: 0 | K166: 0
A167: Provincial Cultural Matters | C167: 0 | D167: 0 | E167: 0 | F167: 0 | G167: 0 | H167: 0 | I167: 0 | J167: 0 | K167: 0
A168: Theatres | C168: 0 | D168: 0 | E168: 0 | F168: 0 | G168: 0 | H168: 0 | I168: 0 | J168: 0 | K168: 0
A169: Zoo's | C169: 0 | D169: 0 | E169: 0 | F169: 0 | G169: 0 | H169: 0 | I169: 0 | J169: 0 | K169: 0
A170: Sport and recreation | C170: =SUM(C171:C175) -> 4039534 | D170: 6537266 | E170: 12240680 | F170: 6013469 | G170: 13645407 | H170: 13645407 | I170: 14097928 | J170: 14806921 | K170: 15529698
A171: Beaches and Jetties | C171: 0 | D171: 0 | E171: 0 | F171: 0 | G171: 0 | H171: 0 | I171: 0 | J171: 0 | K171: 0
A172: Casinos, Racing, Gambling, Wagering | C172: 0 | D172: 0 | E172: 0 | F172: 0 | G172: 0 | H172: 0 | I172: 0 | J172: 0 | K172: 0
A173: Community Parks (including Nurseries) | C173: 1987373 | D173: 2073797 | E173: 2992543 | F173: 3536965 | G173: 4055693 | H173: 4055693 | I173: 4010524 | J173: 4225235 | K173: 4450673
A174: Recreational Facilities | C174: 0 | D174: 0 | E174: 0 | F174: 0 | G174: 0 | H174: 0 | I174: 0 | J174: 0 | K174: 0
A175: Sports Grounds and Stadiums | C175: 2052161 | D175: 4463469 | E175: 9248137 | F175: 2476504 | G175: 9589714 | H175: 9589714 | I175: 10087404 | J175: 10581686 | K175: 11079025
A176: Public safety | C176: =SUM(C177:C184) -> 2985489 | D176: 2899188 | E176: 3199304 | F176: 3393832 | G176: 3358262 | H176: 3358262 | I176: 3323183 | J176: 3495767 | K176: 3674453
A177: Civil Defence | C177: 2580902 | D177: 2201093 | E177: 2665672 | F177: 2991237 | G177: 2955521 | H177: 2955521 | I177: 2897132 | J177: 3046796 | K177: 3201365
A178: Cleansing | C178: 0 | D178: 0 | E178: 0 | F178: 0 | G178: 0 | H178: 0 | I178: 0 | J178: 0 | K178: 0
A179: =A57 -> Control of Public Nuisances | C179: 0 | D179: 0 | E179: 0 | F179: 0 | G179: 0 | H179: 0 | I179: 0 | J179: 0 | K179: 0
A180: Fencing and Fences | C180: 0 | D180: 0 | E180: 0 | F180: 0 | G180: 0 | H180: 0 | I180: 0 | J180: 0 | K180: 0
A181: Fire Fighting and Protection | C181: 0 | D181: 0 | E181: 0 | F181: 0 | G181: 0 | H181: 0 | I181: 0 | J181: 0 | K181: 0
A182: Licensing and Control of Animals | C182: 404587 | D182: 698095 | E182: 533632 | F182: 402595 | G182: 402741 | H182: 402741 | I182: 426051 | J182: 448971 | K182: 473088
A183: Police Forces, Traffic and Street Parking Control | C183: 0 | D183: 0 | E183: 0 | F183: 0 | G183: 0 | H183: 0 | I183: 0 | J183: 0 | K183: 0
A184: Pounds | C184: 0 | D184: 0 | E184: 0 | F184: 0 | G184: 0 | H184: 0 | I184: 0 | J184: 0 | K184: 0
A185: =A63 -> Housing | C185: =SUM(C186:C187) -> 0 | D185: 0 | E185: 1125093 | F185: 0 | G185: 0 | H185: 0 | I185: 0 | J185: 0 | K185: 0
A186: Housing | C186: 0 | D186: 0 | E186: 0 | F186: 0 | G186: 0 | H186: 0 | I186: 0 | J186: 0 | K186: 0
A187: Informal Settlements | C187: 0 | D187: 0 | E187: 1125093 | F187: 0 | G187: 0 | H187: 0 | I187: 0 | J187: 0 | K187: 0
A188: Health | C188: =SUM(C189:C195) -> 0 | D188: =SUM(D189:D195) -> 0 | E188: 0 | F188: 0 | G188: 0 | H188: 0 | I188: 0 | J188: 0 | K188: 0
A189: Ambulance | C189: 0 | D189: 0 | E189: 0 | F189: 0 | G189: 0 | H189: 0 | I189: 0 | J189: 0 | K189: 0
A190: Health Services | C190: 0 | D190: 0 | E190: 0 | F190: 0 | G190: 0 | H190: 0 | I190: 0 | J190: 0 | K190: 0
A191: Laboratory Services | C191: 0 | D191: 0 | E191: 0 | F191: 0 | G191: 0 | H191: 0 | I191: 0 | J191: 0 | K191: 0
A192: Food Control | C192: 0 | D192: 0 | E192: 0 | F192: 0 | G192: 0 | H192: 0 | I192: 0 | J192: 0 | K192: 0
A193: Health Surveillance and Prevention of Communicable Diseases including immunizations | C193: 0 | D193: 0 | E193: 0 | F193: 0 | G193: 0 | H193: 0 | I193: 0 | J193: 0 | K193: 0
A194: Vector Control | C194: 0 | D194: 0 | E194: 0 | F194: 0 | G194: 0 | H194: 0 | I194: 0 | J194: 0 | K194: 0
A195: Chemical Safety | C195: 0 | D195: 0 | E195: 0 | F195: 0 | G195: 0 | H195: 0 | I195: 0 | J195: 0 | K195: 0
A196: Economic and environmental services | C196: =C197+C208+C213 -> 22643191 | D196: 30888153 | E196: 22634272 | F196: 26331729 | G196: 21478448 | H196: 21478448 | I196: 23396019 | J196: 24619990 | K196: 25891585
A197: Planning and development | C197: =SUM(C198:C207) -> 2018020 | D197: =SUM(D198:D207) -> 10434121 | E197: 4394791 | F197: 2044633 | G197: 1574077 | H197: 1574077 | I197: 1629126 | J197: 1716352 | K197: 1807938
A198: Billboards | C198: 0 | D198: 0 | E198: 0 | F198: 0 | G198: 0 | H198: 0 | I198: 0 | J198: 0 | K198: 0
A199: Corporate Wide Strategic Planning (IDPs, LEDs) | C199: 722598 | D199: 9214862 | E199: 3090849 | F199: 782544 | G199: 393104 | H199: 393104 | I199: 416072 | J199: 437794 | K199: 460338
A200: Central City Improvement District | C200: 0 | D200: 0 | E200: 0 | F200: 0 | G200: 0 | H200: 0 | I200: 0 | J200: 0 | K200: 0
A201: Development Facilitation | C201: 0 | D201: 0 | E201: 0 | F201: 0 | G201: 0 | H201: 0 | I201: 0 | J201: 0 | K201: 0
... 53 more rows

Sheet A3-FinPerf V
A1: =muni&" - "&Approve2 -> NC062 Nama Khoi - Table A3 Budgeted Financial Performance (revenue and expenditure by municipal vote)
A2: =Vdesc -> Vote Description | B2: =head27 -> Ref | C2: =head1b -> 2019/20 | D2: =head1A -> 2020/21 | E2: =Head1 -> 2021/22 | F2: =Head2 -> Current Year 2022/23 | I2: =Head3 -> 2023/24 Medium Term Revenue & Expenditure Framework | L2: =Head4 -> LTFS
A3: R thousand | C3: =Head5 -> Audited Outcome | D3: =Head5 -> Audited Outcome | E3: =Head5 -> Audited Outcome | F3: =Head6 -> Original Budget | G3: =Head7 -> Adjusted Budget | H3: =Head8 -> Full Year Forecast | I3: =Head9 -> Budget Year 2023/24 | J3: =Head10 -> Budget Year +1 2024/25 | K3: =Head11 -> Budget Year +2 2025/26 | L3: =Head12 -> Forecast 2026/27 | M3: =Head13 -> Forecast 2027/28 | N3: =Head14 -> Forecast 2028/29 | O3: =Head15 -> Forecast 2029/30 | P3: =Head16 -> Forecast 2030/31 | Q3: =Head17 -> Forecast 2031/32 | R3: =Head18 -> Forecast 2032/33 | S3: =Head19 -> Forecast 2033/34 | T3: =Head20 -> Forecast 2034/35 | U3: =Head21 -> Forecast 2035/36 | V3: =Head22 -> Forecast 2036/37 | W3: =Head23 -> Forecast 2037/38
A4: Revenue by Vote | B4: 1
A5: =A3A!A5 -> Vote 1 - EXECUTIVE MAYOR AND COUNCIL (10: IE) | C5: =A3A!C5 -> 204875 | D5: =A3A!D5 -> 234644 | E5: =A3A!E5 -> 277242 | F5: =A3A!F5 -> 301838 | G5: =A3A!G5 -> 301838 | H5: =A3A!H5 -> 301838 | I5: =A3A!I5 -> 317835 | J5: =A3A!J5 -> 333409 | K5: =A3A!K5 -> 349079
A6: =A3A!A16 -> Vote 2 - MUNICIPAL MANAGER (11: IE) | C6: =A3A!C16 -> 1386132 | D6: =A3A!D16 -> 1403924 | E6: =A3A!E16 -> 1551043 | F6: =A3A!F16 -> 1578568 | G6: =A3A!G16 -> 1580465 | H6: =A3A!H16 -> 1580465 | I6: =A3A!I16 -> 1490993 | J6: =A3A!J16 -> 407004 | K6: =A3A!K16 -> 426133
A7: =A3A!A27 -> Vote 3 - CORPORATE SERVICES (13: IE) | C7: =A3A!C27 -> 1631874 | D7: =A3A!D27 -> 1656714 | E7: =A3A!E27 -> 866398 | F7: =A3A!F27 -> 3002027 | G7: =A3A!G27 -> 2919037 | H7: =A3A!H27 -> 2919037 | I7: =A3A!I27 -> 3073746 | J7: =A3A!J27 -> 3224360 | K7: =A3A!K27 -> 3375906
A8: =A3A!A38 -> Vote 4 - FINANCIAL SERVICES (15: IE) | C8: =A3A!C38 -> 115241942 | D8: =A3A!D38 -> 123720221 | E8: =A3A!E38 -> 123282452 | F8: =A3A!F38 -> 130768208 | G8: =A3A!G38 -> 137421402 | H8: =A3A!H38 -> 137421402 | I8: =A3A!I38 -> 145696631 | J8: =A3A!J38 -> 154335728 | K8: =A3A!K38 -> 162021819
A9: =A3A!A49 -> Vote 5 - COMMUNITY SERVICES: COMM DEV (16: IE) | C9: =A3A!C49 -> 16110021 | D9: =A3A!D49 -> 16537408 | E9: =A3A!E49 -> 16672867 | F9: =A3A!F49 -> 28149913 | G9: =A3A!G49 -> 28464404 | H9: =A3A!H49 -> 28464404 | I9: =A3A!I49 -> 30134440 | J9: =A3A!J49 -> 29968161 | K9: =A3A!K49 -> 31376665
A10: =A3A!A66 -> Vote 6 - COMMUNITY SERVICES: PUBLSAFETY (17: IE) | C10: =A3A!C66 -> 1590712 | D10: =A3A!D66 -> 1952978 | E10: =A3A!E66 -> 2218207 | F10: =A3A!F66 -> 1174192 | G10: =A3A!G66 -> 1962592 | H10: =A3A!H66 -> 1962592 | I10: =A3A!I66 -> 2066610 | J10: =A3A!J66 -> 2167873 | K10: =A3A!K66 -> 2269764
A11: =A3A!A77 -> Vote 7 - INFRASTRUCTURE,ENG AND TECHNICAL (18: IE) | C11: =A3A!C77 -> 142337675 | D11: =A3A!D77 -> 164714119 | E11: =A3A!E77 -> 170958024 | F11: =A3A!F77 -> 241571904 | G11: =A3A!G77 -> 241619905 | H11: =A3A!H77 -> 241619905 | I11: =A3A!I77 -> 265456999 | J11: =A3A!J77 -> 260718619 | K11: =A3A!K77 -> 271991912
A12: =A3A!A89 -> Vote 8 - EXECUTIVE MAYOR AND COUNCIL (20: CS) | C12: =A3A!C89 -> 0 | D12: =A3A!D89 -> 0 | E12: =A3A!E89 -> 0 | F12: =A3A!F89 -> 0 | G12: =A3A!G89 -> 0 | H12: =A3A!H89 -> 0 | I12: =A3A!I89 -> 0 | J12: =A3A!J89 -> 0 | K12: =A3A!K89 -> 0
A13: =A3A!A100 -> Vote 9 - MUNICIPAL MANAGER (21: CS) | C13: =A3A!C100 -> 0 | D13: =A3A!D100 -> 0 | E13: =A3A!E100 -> 0 | F13: =A3A!F100 -> 0 | G13: =A3A!G100 -> 0 | H13: =A3A!H100 -> 0 | I13: =A3A!I100 -> 0 | J13: =A3A!J100 -> 0 | K13: =A3A!K100 -> 0
A14: =A3A!A111 -> Vote 10 - CORPORATE SERVICES (23: CS) | C14: =A3A!C111 -> 0 | D14: =A3A!D111 -> 0 | E14: =A3A!E111 -> 0 | F14: =A3A!F111 -> 0 | G14: =A3A!G111 -> 0 | H14: =A3A!H111 -> 0 | I14: =A3A!I111 -> 0 | J14: =A3A!J111 -> 0 | K14: =A3A!K111 -> 0
A15: =A3A!A122 -> Vote 11 - COMMUNITY SERVICES: COMM DEV (26: CS) | C15: =A3A!C122 -> 0 | D15: =A3A!D122 -> 0 | E15: =A3A!E122 -> 0 | F15: =A3A!F122 -> 0 | G15: =A3A!G122 -> 0 | H15: =A3A!H122 -> 0 | I15: =A3A!I122 -> 0 | J15: =A3A!J122 -> 0 | K15: =A3A!K122 -> 0 | L15: =A5A!L115 -> 0
A16: =A3A!A133 -> Vote 12 - INFRASTRUCTURE,ENG AND TECHNICAL (28: CS) | C16: =A3A!C133 -> 0 | D16: =A3A!D133 -> 0 | E16: =A3A!E133 -> 0 | F16: =A3A!F133 -> 0 | G16: =A3A!G133 -> 0 | H16: =A3A!H133 -> 0 | I16: =A3A!I133 -> 0 | J16: =A3A!J133 -> 0 | K16: =A3A!K133 -> 0 | L16: =A5A!L126 -> 0
A17: =A3A!A144 -> Vote 13 - 0 | C17: =A3A!C144 -> 0 | D17: =A3A!D144 -> 0 | E17: =A3A!E144 -> 0 | F17: =A3A!F144 -> 0 | G17: =A3A!G144 -> 0 | H17: =A3A!H144 -> 0 | I17: =A3A!I144 -> 0 | J17: =A3A!J144 -> 0 | K17: =A3A!K144 -> 0 | L17: =A5A!L137 -> 0
A18: =A3A!A155 -> Vote 14 - 0 | C18: =A3A!C155 -> 0 | D18: =A3A!D155 -> 0 | E18: =A3A!E155 -> 0 | F18: =A3A!F155 -> 0 | G18: =A3A!G155 -> 0 | H18: =A3A!H155 -> 0 | I18: =A3A!I155 -> 0 | J18: =A3A!J155 -> 0 | K18: =A3A!K155 -> 0 | L18: =A5A!L148 -> 0
A19: =A3A!A166 -> Vote 15 - 0 | C19: =A3A!C166 -> 0 | D19: =A3A!D166 -> 0 | E19: =A3A!E166 -> 0 | F19: =A3A!F166 -> 0 | G19: =A3A!G166 -> 0 | H19: =A3A!H166 -> 0 | I19: =A3A!I166 -> 0 | J19: =A3A!J166 -> 0 | K19: =A3A!K166 -> 0
A20: =A3A!A177 -> 0 | C20: =A3A!C177 -> 0 | D20: =A3A!D177 -> 0 | E20: =A3A!E177 -> 0 | F20: =A3A!F177 -> 0 | G20: =A3A!G177 -> 0 | H20: =A3A!H177 -> 0 | I20: =A3A!I177 -> 0 | J20: =A3A!J177 -> 0 | K20: =A3A!K177 -> 0
A21: =A3A!A188 -> 0 | C21: =A3A!C188 -> 0 | D21: =A3A!D188 -> 0 | E21: =A3A!E188 -> 0 | F21: =A3A!F188 -> 0 | G21: =A3A!G188 -> 0 | H21: =A3A!H188 -> 0 | I21: =A3A!I188 -> 0 | J21: =A3A!J188 -> 0 | K21: =A3A!K188 -> 0
A22: =A3A!A199 -> 0 | C22: =A3A!C199 -> 0 | D22: =A3A!D199 -> 0 | E22: =A3A!E199 -> 0 | F22: =A3A!F199 -> 0 | G22: =A3A!G199 -> 0 | H22: =A3A!H199 -> 0 | I22: =A3A!I199 -> 0 | J22: =A3A!J199 -> 0 | K22: =A3A!K199 -> 0
A23: =A3A!A210 -> 0 | C23: =A3A!C210 -> 0 | D23: =A3A!D210 -> 0 | E23: =A3A!E210 -> 0 | F23: =A3A!F210 -> 0 | G23: =A3A!G210 -> 0 | H23: =A3A!H210 -> 0 | I23: =A3A!I210 -> 0 | J23: =A3A!J210 -> 0 | K23: =A3A!K210 -> 0
A24: =A3A!A221 -> 0 | C24: =A3A!C221 -> 0 | D24: =A3A!D221 -> 0 | E24: =A3A!E221 -> 0 | F24: =A3A!F221 -> 0 | G24: =A3A!G221 -> 0 | H24: =A3A!H221 -> 0 | I24: =A3A!I221 -> 0 | J24: =A3A!J221 -> 0 | K24: =A3A!K221 -> 0
A25: =A3A!A232 -> 0 | C25: =A3A!C232 -> 0 | D25: =A3A!D232 -> 0 | E25: =A3A!E232 -> 0 | F25: =A3A!F232 -> 0 | G25: =A3A!G232 -> 0 | H25: =A3A!H232 -> 0 | I25: =A3A!I232 -> 0 | J25: =A3A!J232 -> 0 | K25: =A3A!K232 -> 0
A26: =A3A!A243 -> 0 | C26: =A3A!C243 -> 0 | D26: =A3A!D243 -> 0 | E26: =A3A!E243 -> 0 | F26: =A3A!F243 -> 0 | G26: =A3A!G243 -> 0 | H26: =A3A!H243 -> 0 | I26: =A3A!I243 -> 0 | J26: =A3A!J243 -> 0 | K26: =A3A!K243 -> 0
A27: =A3A!A254 -> 0 | C27: =A3A!C254 -> 0 | D27: =A3A!D254 -> 0 | E27: =A3A!E254 -> 0 | F27: =A3A!F254 -> 0 | G27: =A3A!G254 -> 0 | H27: =A3A!H254 -> 0 | I27: =A3A!I254 -> 0 | J27: =A3A!J254 -> 0 | K27: =A3A!K254 -> 0
A28: =A3A!A265 -> 0 | C28: =A3A!C265 -> 0 | D28: =A3A!D265 -> 0 | E28: =A3A!E265 -> 0 | F28: =A3A!F265 -> 0 | G28: =A3A!G265 -> 0 | H28: =A3A!H265 -> 0 | I28: =A3A!I265 -> 0 | J28: =A3A!J265 -> 0 | K28: =A3A!K265 -> 0
A29: =A3A!A276 -> 0 | C29: =A3A!C276 -> 0 | D29: =A3A!D276 -> 0 | E29: =A3A!E276 -> 0 | F29: =A3A!F276 -> 0 | G29: =A3A!G276 -> 0 | H29: =A3A!H276 -> 0 | I29: =A3A!I276 -> 0 | J29: =A3A!J276 -> 0 | K29: =A3A!K276 -> 0
A30: =A3A!A287 -> 0 | C30: =A3A!C287 -> 0 | D30: =A3A!D287 -> 0 | E30: =A3A!E287 -> 0 | F30: =A3A!F287 -> 0 | G30: =A3A!G287 -> 0 | H30: =A3A!H287 -> 0 | I30: =A3A!I287 -> 0 | J30: =A3A!J287 -> 0 | K30: =A3A!K287 -> 0
A31: =A3A!A298 -> 0 | C31: =A3A!C298 -> 0 | D31: =A3A!D298 -> 0 | E31: =A3A!E298 -> 0 | F31: =A3A!F298 -> 0 | G31: =A3A!G298 -> 0 | H31: =A3A!H298 -> 0 | I31: =A3A!I298 -> 0 | J31: =A3A!J298 -> 0 | K31: =A3A!K298 -> 0
A32: =A3A!A309 -> 0 | C32: =A3A!C309 -> 0 | D32: =A3A!D309 -> 0 | E32: =A3A!E309 -> 0 | F32: =A3A!F309 -> 0 | G32: =A3A!G309 -> 0 | H32: =A3A!H309 -> 0 | I32: =A3A!I309 -> 0 | J32: =A3A!J309 -> 0 | K32: =A3A!K309 -> 0
A33: =A3A!A320 -> 0 | C33: =A3A!C320 -> 0 | D33: =A3A!D320 -> 0 | E33: =A3A!E320 -> 0 | F33: =A3A!F320 -> 0 | G33: =A3A!G320 -> 0 | H33: =A3A!H320 -> 0 | I33: =A3A!I320 -> 0 | J33: =A3A!J320 -> 0 | K33: =A3A!K320 -> 0
A34: =A3A!A331 -> 0 | C34: =A3A!C331 -> 0 | D34: =A3A!D331 -> 0 | E34: =A3A!E331 -> 0 | F34: =A3A!F331 -> 0 | G34: =A3A!G331 -> 0 | H34: =A3A!H331 -> 0 | I34: =A3A!I331 -> 0 | J34: =A3A!J331 -> 0 | K34: =A3A!K331 -> 0
A35: =A3A!A342 -> 0 | C35: =A3A!C342 -> 0 | D35: =A3A!D342 -> 0 | E35: =A3A!E342 -> 0 | F35: =A3A!F342 -> 0 | G35: =A3A!G342 -> 0 | H35: =A3A!H342 -> 0 | I35: =A3A!I342 -> 0 | J35: =A3A!J342 -> 0 | K35: =A3A!K342 -> 0
A36: =A3A!A353 -> 0 | C36: =A3A!C353 -> 0 | D36: =A3A!D353 -> 0 | E36: =A3A!E353 -> 0 | F36: =A3A!F353 -> 0 | G36: =A3A!G353 -> 0 | H36: =A3A!H353 -> 0 | I36: =A3A!I353 -> 0 | J36: =A3A!J353 -> 0 | K36: =A3A!K353 -> 0
A37: =A3A!A364 -> 0 | C37: =A3A!C364 -> 0 | D37: =A3A!D364 -> 0 | E37: =A3A!E364 -> 0 | F37: =A3A!F364 -> 0 | G37: =A3A!G364 -> 0 | H37: =A3A!H364 -> 0 | I37: =A3A!I364 -> 0 | J37: =A3A!J364 -> 0 | K37: =A3A!K364 -> 0
A38: =A3A!A375 -> 0 | C38: =A3A!C375 -> 0 | D38: =A3A!D375 -> 0 | E38: =A3A!E375 -> 0 | F38: =A3A!F375 -> 0 | G38: =A3A!G375 -> 0 | H38: =A3A!H375 -> 0 | I38: =A3A!I375 -> 0 | J38: =A3A!J375 -> 0 | K38: =A3A!K375 -> 0
A39: =A3A!A386 -> 0 | C39: =A3A!C386 -> 0 | D39: =A3A!D386 -> 0 | E39: =A3A!E386 -> 0 | F39: =A3A!F386 -> 0 | G39: =A3A!G386 -> 0 | H39: =A3A!H386 -> 0 | I39: =A3A!I386 -> 0 | J39: =A3A!J386 -> 0 | K39: =A3A!K386 -> 0
A40: =A3A!A397 -> 0 | C40: =A3A!C397 -> 0 | D40: =A3A!D397 -> 0 | E40: =A3A!E397 -> 0 | F40: =A3A!F397 -> 0 | G40: =A3A!G397 -> 0 | H40: =A3A!H397 -> 0 | I40: =A3A!I397 -> 0 | J40: =A3A!J397 -> 0 | K40: =A3A!K397 -> 0
A41: =A3A!A408 -> 0 | C41: =A3A!C408 -> 0 | D41: =A3A!D408 -> 0 | E41: =A3A!E408 -> 0 | F41: =A3A!F408 -> 0 | G41: =A3A!G408 -> 0 | H41: =A3A!H408 -> 0 | I41: =A3A!I408 -> 0 | J41: =A3A!J408 -> 0 | K41: =A3A!K408 -> 0
A42: =A3A!A419 -> 0 | C42: =A3A!C419 -> 0 | D42: =A3A!D419 -> 0 | E42: =A3A!E419 -> 0 | F42: =A3A!F419 -> 0 | G42: =A3A!G419 -> 0 | H42: =A3A!H419 -> 0 | I42: =A3A!I419 -> 0 | J42: =A3A!J419 -> 0 | K42: =A3A!K419 -> 0
A43: =A3A!A430 -> 0 | C43: =A3A!C430 -> 0 | D43: =A3A!D430 -> 0 | E43: =A3A!E430 -> 0 | F43: =A3A!F430 -> 0 | G43: =A3A!G430 -> 0 | H43: =A3A!H430 -> 0 | I43: =A3A!I430 -> 0 | J43: =A3A!J430 -> 0 | K43: =A3A!K430 -> 0 | L43: =A5A!L159 -> 0
A44: Total Revenue by Vote | B44: 2 | C44: =SUM(C5:C43) -> 278503231 | D44: 310220008 | E44: 315826233 | F44: 406546650 | G44: 414269643 | H44: 414269643 | I44: 448237254 | J44: 451155154 | K44: 471811278
A46: Expenditure by Vote to be appropriated | B46: 1
A47: =A5 -> Vote 1 - EXECUTIVE MAYOR AND COUNCIL (10: IE) | C47: =A3A!C444 -> 9123761 | D47: =A3A!D444 -> 8452623 | E47: =A3A!E444 -> 9123551 | F47: =A3A!F444 -> 9081129 | G47: =A3A!G444 -> 11728640 | H47: =A3A!H444 -> 11728640 | I47: =A3A!I444 -> 10100816 | J47: =A3A!J444 -> 10633237 | K47: =A3A!K444 -> 11188303
A48: Vote 2 - MUNICIPAL MANAGER (11: IE) | C48: =A3A!C455 -> 13227894 | D48: =A3A!D455 -> 21830420 | E48: =A3A!E455 -> 14527550 | F48: =A3A!F455 -> 15194923 | G48: =A3A!G455 -> 14438004 | H48: =A3A!H455 -> 14438004 | I48: =A3A!I455 -> 14728580 | J48: =A3A!J455 -> 14354993 | K48: =A3A!K455 -> 15120810
A49: Vote 3 - CORPORATE SERVICES (13: IE) | C49: =A3A!C466 -> 27647650 | D49: =A3A!D466 -> 29816799 | E49: =A3A!E466 -> 31052964 | F49: =A3A!F466 -> 35783096 | G49: =A3A!G466 -> 41358246 | H49: =A3A!H466 -> 41358246 | I49: =A3A!I466 -> 33853494 | J49: =A3A!J466 -> 35565747 | K49: =A3A!K466 -> 37316178
A50: Vote 4 - FINANCIAL SERVICES (15: IE) | C50: =A3A!C477 -> 87531137 | D50: =A3A!D477 -> 69292477 | E50: =A3A!E477 -> 39729749 | F50: =A3A!F477 -> 35211714 | G50: =A3A!G477 -> 34202672 | H50: =A3A!H477 -> 34202672 | I50: =A3A!I477 -> 37437975 | J50: =A3A!J477 -> 38538884 | K50: =A3A!K477 -> 39055285
A51: Vote 5 - COMMUNITY SERVICES: COMM DEV (16: IE) | C51: =A3A!C488 -> 35255754 | D51: =A3A!D488 -> 39789390 | E51: =A3A!E488 -> 53454510 | F51: =A3A!F488 -> 33386075 | G51: =A3A!G488 -> 61418995 | H51: =A3A!H488 -> 61418995 | I51: =A3A!I488 -> 63746744 | J51: =A3A!J488 -> 65304587 | K51: =A3A!K488 -> 68485959
A52: Vote 6 - COMMUNITY SERVICES: PUBLSAFETY (17: IE) | C52: =A3A!C505 -> 9265559 | D52: =A3A!D505 -> 9849589 | E52: =A3A!E505 -> 10014385 | F52: =A3A!F505 -> 11153935 | G52: =A3A!G505 -> 11116734 | H52: =A3A!H505 -> 11116734 | I52: =A3A!I505 -> 11667561 | J52: =A3A!J505 -> 12289018 | K52: =A3A!K505 -> 12940003
A53: Vote 7 - INFRASTRUCTURE,ENG AND TECHNICAL (18: IE) | C53: =A3A!C516 -> 206974028 | D53: =A3A!D516 -> 212599621 | E53: =A3A!E516 -> 232433238 | F53: =A3A!F516 -> 276327395 | G53: =A3A!G516 -> 273591583 | H53: =A3A!H516 -> 273591583 | I53: =A3A!I516 -> 332588191 | J53: =A3A!J516 -> 349055954 | K53: =A3A!K516 -> 365152777
A54: Vote 8 - EXECUTIVE MAYOR AND COUNCIL (20: CS) | C54: =A3A!C528 -> 0 | D54: =A3A!D528 -> 0 | E54: =A3A!E528 -> 0 | F54: =A3A!F528 -> 0 | G54: =A3A!G528 -> 0 | H54: =A3A!H528 -> 0 | I54: =A3A!I528 -> 0 | J54: =A3A!J528 -> 0 | K54: =A3A!K528 -> 0
A55: Vote 9 - MUNICIPAL MANAGER (21: CS) | C55: =A3A!C539 -> 0 | D55: =A3A!D539 -> 0 | E55: =A3A!E539 -> 0 | F55: =A3A!F539 -> 0 | G55: =A3A!G539 -> 0 | H55: =A3A!H539 -> 0 | I55: =A3A!I539 -> 0 | J55: =A3A!J539 -> 0 | K55: =A3A!K539 -> 0
A56: Vote 10 - CORPORATE SERVICES (23: CS) | C56: =A3A!C550 -> 0 | D56: =A3A!D550 -> 0 | E56: =A3A!E550 -> 0 | F56: =A3A!F550 -> 0 | G56: =A3A!G550 -> 0 | H56: =A3A!H550 -> 0 | I56: =A3A!I550 -> 0 | J56: =A3A!J550 -> 0 | K56: =A3A!K550 -> 0
A57: Vote 11 - COMMUNITY SERVICES: COMM DEV (26: CS) | C57: =A3A!C561 -> 0 | D57: =A3A!D561 -> 0 | E57: =A3A!E561 -> 0 | F57: =A3A!F561 -> 0 | G57: =A3A!G561 -> 0 | H57: =A3A!H561 -> 0 | I57: =A3A!I561 -> 0 | J57: =A3A!J561 -> 0 | K57: =A3A!K561 -> 0 | L57: =A3A!L562 -> 0
A58: Vote 12 - INFRASTRUCTURE,ENG AND TECHNICAL (28: CS) | C58: =A3A!C572 -> 0 | D58: =A3A!D572 -> 0 | E58: =A3A!E572 -> 0 | F58: =A3A!F572 -> 0 | G58: =A3A!G572 -> 0 | H58: =A3A!H572 -> 0 | I58: =A3A!I572 -> 0 | J58: =A3A!J572 -> 0 | K58: =A3A!K572 -> 0 | L58: =A3A!L573 -> 0
A59: Vote 13 - 0 | C59: =A3A!C583 -> 0 | D59: =A3A!D583 -> 0 | E59: =A3A!E583 -> 0 | F59: =A3A!F583 -> 0 | G59: =A3A!G583 -> 0 | H59: =A3A!H583 -> 0 | I59: =A3A!I583 -> 0 | J59: =A3A!J583 -> 0 | K59: =A3A!K583 -> 0 | L59: =A3A!L584 -> 0
A60: Vote 14 - 0 | C60: =A3A!C594 -> 0 | D60: =A3A!D594 -> 0 | E60: =A3A!E594 -> 0 | F60: =A3A!F594 -> 0 | G60: =A3A!G594 -> 0 | H60: =A3A!H594 -> 0 | I60: =A3A!I594 -> 0 | J60: =A3A!J594 -> 0 | K60: =A3A!K594 -> 0 | L60: =A3A!L595 -> 0
A61: Vote 15 - 0 | C61: =A3A!C605 -> 0 | D61: =A3A!D605 -> 0 | E61: =A3A!E605 -> 0 | F61: =A3A!F605 -> 0 | G61: =A3A!G605 -> 0 | H61: =A3A!H605 -> 0 | I61: =A3A!I605 -> 0 | J61: =A3A!J605 -> 0 | K61: =A3A!K605 -> 0
A62: 0 | C62: =A3A!C616 -> 0 | D62: =A3A!D616 -> 0 | E62: =A3A!E616 -> 0 | F62: =A3A!F616 -> 0 | G62: =A3A!G616 -> 0 | H62: =A3A!H616 -> 0 | I62: =A3A!I616 -> 0 | J62: =A3A!J616 -> 0 | K62: =A3A!K616 -> 0
A63: 0 | C63: =A3A!C627 -> 0 | D63: =A3A!D627 -> 0 | E63: =A3A!E627 -> 0 | F63: =A3A!F627 -> 0 | G63: =A3A!G627 -> 0 | H63: =A3A!H627 -> 0 | I63: =A3A!I627 -> 0 | J63: =A3A!J627 -> 0 | K63: =A3A!K627 -> 0
A64: 0 | C64: =A3A!C638 -> 0 | D64: =A3A!D638 -> 0 | E64: =A3A!E638 -> 0 | F64: =A3A!F638 -> 0 | G64: =A3A!G638 -> 0 | H64: =A3A!H638 -> 0 | I64: =A3A!I638 -> 0 | J64: =A3A!J638 -> 0 | K64: =A3A!K638 -> 0
A65: 0 | C65: =A3A!C649 -> 0 | D65: =A3A!D649 -> 0 | E65: =A3A!E649 -> 0 | F65: =A3A!F649 -> 0 | G65: =A3A!G649 -> 0 | H65: =A3A!H649 -> 0 | I65: =A3A!I649 -> 0 | J65: =A3A!J649 -> 0 | K65: =A3A!K649 -> 0
A66: 0 | C66: =A3A!C660 -> 0 | D66: =A3A!D660 -> 0 | E66: =A3A!E660 -> 0 | F66: =A3A!F660 -> 0 | G66: =A3A!G660 -> 0 | H66: =A3A!H660 -> 0 | I66: =A3A!I660 -> 0 | J66: =A3A!J660 -> 0 | K66: =A3A!K660 -> 0
A67: 0 | C67: =A3A!C671 -> 0 | D67: =A3A!D671 -> 0 | E67: =A3A!E671 -> 0 | F67: =A3A!F671 -> 0 | G67: =A3A!G671 -> 0 | H67: =A3A!H671 -> 0 | I67: =A3A!I671 -> 0 | J67: =A3A!J671 -> 0 | K67: =A3A!K671 -> 0
A68: 0 | C68: =A3A!C682 -> 0 | D68: =A3A!D682 -> 0 | E68: =A3A!E682 -> 0 | F68: =A3A!F682 -> 0 | G68: =A3A!G682 -> 0 | H68: =A3A!H682 -> 0 | I68: =A3A!I682 -> 0 | J68: =A3A!J682 -> 0 | K68: =A3A!K682 -> 0
A69: 0 | C69: =A3A!C693 -> 0 | D69: =A3A!D693 -> 0 | E69: =A3A!E693 -> 0 | F69: =A3A!F693 -> 0 | G69: =A3A!G693 -> 0 | H69: =A3A!H693 -> 0 | I69: =A3A!I693 -> 0 | J69: =A3A!J693 -> 0 | K69: =A3A!K693 -> 0
A70: 0 | C70: =A3A!C704 -> 0 | D70: =A3A!D704 -> 0 | E70: =A3A!E704 -> 0 | F70: =A3A!F704 -> 0 | G70: =A3A!G704 -> 0 | H70: =A3A!H704 -> 0 | I70: =A3A!I704 -> 0 | J70: =A3A!J704 -> 0 | K70: =A3A!K704 -> 0
A71: 0 | C71: =A3A!C715 -> 0 | D71: =A3A!D715 -> 0 | E71: =A3A!E715 -> 0 | F71: =A3A!F715 -> 0 | G71: =A3A!G715 -> 0 | H71: =A3A!H715 -> 0 | I71: =A3A!I715 -> 0 | J71: =A3A!J715 -> 0 | K71: =A3A!K715 -> 0
A72: 0 | C72: =A3A!C726 -> 0 | D72: =A3A!D726 -> 0 | E72: =A3A!E726 -> 0 | F72: =A3A!F726 -> 0 | G72: =A3A!G726 -> 0 | H72: =A3A!H726 -> 0 | I72: =A3A!I726 -> 0 | J72: =A3A!J726 -> 0 | K72: =A3A!K726 -> 0
A73: 0 | C73: =A3A!C737 -> 0 | D73: =A3A!D737 -> 0 | E73: =A3A!E737 -> 0 | F73: =A3A!F737 -> 0 | G73: =A3A!G737 -> 0 | H73: =A3A!H737 -> 0 | I73: =A3A!I737 -> 0 | J73: =A3A!J737 -> 0 | K73: =A3A!K737 -> 0
A74: 0 | C74: =A3A!C748 -> 0 | D74: =A3A!D748 -> 0 | E74: =A3A!E748 -> 0 | F74: =A3A!F748 -> 0 | G74: =A3A!G748 -> 0 | H74: =A3A!H748 -> 0 | I74: =A3A!I748 -> 0 | J74: =A3A!J748 -> 0 | K74: =A3A!K748 -> 0
A75: 0 | C75: =A3A!C759 -> 0 | D75: =A3A!D759 -> 0 | E75: =A3A!E759 -> 0 | F75: =A3A!F759 -> 0 | G75: =A3A!G759 -> 0 | H75: =A3A!H759 -> 0 | I75: =A3A!I759 -> 0 | J75: =A3A!J759 -> 0 | K75: =A3A!K759 -> 0
A76: 0 | C76: =A3A!C770 -> 0 | D76: =A3A!D770 -> 0 | E76: =A3A!E770 -> 0 | F76: =A3A!F770 -> 0 | G76: =A3A!G770 -> 0 | H76: =A3A!H770 -> 0 | I76: =A3A!I770 -> 0 | J76: =A3A!J770 -> 0 | K76: =A3A!K770 -> 0
A77: 0 | C77: =A3A!C781 -> 0 | D77: =A3A!D781 -> 0 | E77: =A3A!E781 -> 0 | F77: =A3A!F781 -> 0 | G77: =A3A!G781 -> 0 | H77: =A3A!H781 -> 0 | I77: =A3A!I781 -> 0 | J77: =A3A!J781 -> 0 | K77: =A3A!K781 -> 0
A78: 0 | C78: =A3A!C792 -> 0 | D78: =A3A!D792 -> 0 | E78: =A3A!E792 -> 0 | F78: =A3A!F792 -> 0 | G78: =A3A!G792 -> 0 | H78: =A3A!H792 -> 0 | I78: =A3A!I792 -> 0 | J78: =A3A!J792 -> 0 | K78: =A3A!K792 -> 0
A79: 0 | C79: =A3A!C803 -> 0 | D79: =A3A!D803 -> 0 | E79: =A3A!E803 -> 0 | F79: =A3A!F803 -> 0 | G79: =A3A!G803 -> 0 | H79: =A3A!H803 -> 0 | I79: =A3A!I803 -> 0 | J79: =A3A!J803 -> 0 | K79: =A3A!K803 -> 0
A80: 0 | C80: =A3A!C814 -> 0 | D80: =A3A!D814 -> 0 | E80: =A3A!E814 -> 0 | F80: =A3A!F814 -> 0 | G80: =A3A!G814 -> 0 | H80: =A3A!H814 -> 0 | I80: =A3A!I814 -> 0 | J80: =A3A!J814 -> 0 | K80: =A3A!K814 -> 0
A81: 0 | C81: =A3A!C825 -> 0 | D81: =A3A!D825 -> 0 | E81: =A3A!E825 -> 0 | F81: =A3A!F825 -> 0 | G81: =A3A!G825 -> 0 | H81: =A3A!H825 -> 0 | I81: =A3A!I825 -> 0 | J81: =A3A!J825 -> 0 | K81: =A3A!K825 -> 0
A82: 0 | C82: =A3A!C836 -> 0 | D82: =A3A!D836 -> 0 | E82: =A3A!E836 -> 0 | F82: =A3A!F836 -> 0 | G82: =A3A!G836 -> 0 | H82: =A3A!H836 -> 0 | I82: =A3A!I836 -> 0 | J82: =A3A!J836 -> 0 | K82: =A3A!K836 -> 0
A83: 0 | C83: =A3A!C847 -> 0 | D83: =A3A!D847 -> 0 | E83: =A3A!E847 -> 0 | F83: =A3A!F847 -> 0 | G83: =A3A!G847 -> 0 | H83: =A3A!H847 -> 0 | I83: =A3A!I847 -> 0 | J83: =A3A!J847 -> 0 | K83: =A3A!K847 -> 0
A84: 0 | C84: =A3A!C858 -> 0 | D84: =A3A!D858 -> 0 | E84: =A3A!E858 -> 0 | F84: =A3A!F858 -> 0 | G84: =A3A!G858 -> 0 | H84: =A3A!H858 -> 0 | I84: =A3A!I858 -> 0 | J84: =A3A!J858 -> 0 | K84: =A3A!K858 -> 0
A85: 0 | C85: =A3A!C869 -> 0 | D85: =A3A!D869 -> 0 | E85: =A3A!E869 -> 0 | F85: =A3A!F869 -> 0 | G85: =A3A!G869 -> 0 | H85: =A3A!H869 -> 0 | I85: =A3A!I869 -> 0 | J85: =A3A!J869 -> 0 | K85: =A3A!K869 -> 0
A86: Total Expenditure by Vote | B86: 2 | C86: =SUM(C47:C85) -> 389025783 | D86: =SUM(D47:D85) -> 391630919 | E86: 390335947 | F86: 416138267 | G86: 447854874 | H86: 447854874 | I86: 504123361 | J86: 525742420 | K86: 549259315 | L86: =SUM(L47:L53) -> 0 | M86: 0 | N86: 0 | O86: 0 | P86: 0 | Q86: 0 | R86: 0 | S86: 0 | T86: 0 | U86: 0 | V86: 0 | W86: 0
A87: =result -> Surplus/(Deficit) for the year | B87: 2 | C87: =C44-C86 -> -110522552 | D87: -81410911 | E87: -74509714 | F87: -9591617 | G87: -33585231 | H87: -33585231 | I87: -55886107 | J87: -74587266 | K87: -77448037 | L87: =L44-L86 -> 0 | M87: 0 | N87: 0 | O87: 0 | P87: 0 | Q87: 0 | R87: 0 | S87: 0 | T87: 0 | U87: 0 | V87: 0 | W87: 0
A88: =head27a -> References
A89: 1. Insert 'Vote'; e.g. department, if different to functional classification structure
A90: 2. Must reconcile to Budgeted Financial Performance (revenue and expenditure)
A91: 3. Assign share in 'associate' to relevant Vote
A93: ="check "&A87 -> check Surplus/(Deficit) for the year | C93: =C87-A3A!C882 -> 0 | D93: =D87-A3A!D882 -> 0 | E93: =E87-A3A!E882 -> 0 | F93: =F87-A3A!F882 -> 0 | G93: =G87-A3A!G882 -> 0 | H93: =H87-A3A!H882 -> 0 | I93: =I87-A3A!I882 -> 0 | J93: =J87-A3A!J882 -> 0 | K93: =K87-A3A!K882 -> 0

Sheet A3A
A1: =muni&" - "&Approve2&"A" -> NC062 Nama Khoi - Table A3 Budgeted Financial Performance (revenue and expenditure by municipal vote)A
A2: =Vdesc -> Vote Description | B2: =head27 -> Ref | C2: =head1b -> 2019/20 | D2: =head1A -> 2020/21 | E2: =Head1 -> 2021/22 | F2: =Head2 -> Current Year 2022/23 | I2: =Head3 -> 2023/24 Medium Term Revenue & Expenditure Framework | L2: =Head4 -> LTFS
A3: R thousand | C3: =Head5 -> Audited Outcome | D3: =Head5 -> Audited Outcome | E3: =Head5 -> Audited Outcome | F3: =Head6 -> Original Budget | G3: =Head7 -> Adjusted Budget | H3: =Head8 -> Full Year Forecast | I3: =Head9 -> Budget Year 2023/24 | J3: =Head10 -> Budget Year +1 2024/25 | K3: =Head11 -> Budget Year +2 2025/26 | L3: =Head12 -> Forecast 2026/27 | M3: =Head13 -> Forecast 2027/28 | N3: =Head14 -> Forecast 2028/29 | O3: =Head15 -> Forecast 2029/30 | P3: =Head16 -> Forecast 2030/31 | Q3: =Head17 -> Forecast 2031/32 | R3: =Head18 -> Forecast 2032/33 | S3: =Head19 -> Forecast 2033/34 | T3: =Head20 -> Forecast 2034/35 | U3: =Head21 -> Forecast 2035/36 | V3: =Head22 -> Forecast 2036/37 | W3: =Head23 -> Forecast 2037/38
A4: Revenue by Vote | B4: 1
A5: ='Org structure'!A2 -> Vote 1 - EXECUTIVE MAYOR AND COUNCIL (10: IE) | C5: =SUM(C6:C15) -> 204875 | D5: =SUM(D6:D15) -> 234644 | E5: 277242 | F5: 301838 | G5: 301838 | H5: 301838 | I5: 317835 | J5: 333409 | K5: 349079
A6: ='Org structure'!E3 -> 1.1 - OFFICE OF THE MAYOR (201) | C6: 0 | D6: 0 | E6: 0 | F6: 0 | G6: 0 | H6: 0 | I6: 0 | J6: 0 | K6: 0
A7: ='Org structure'!E4 -> 1.2 - OFFICE OF THE SPEAKER (202) | C7: 0 | D7: 0 | E7: 0 | F7: 0 | G7: 0 | H7: 0 | I7: 0 | J7: 0 | K7: 0
A8: ='Org structure'!E5 -> 1.3 - MAYORAL,WARD AND CNCL COMMITTEES (203) | C8: 0 | D8: 0 | E8: 0 | F8: 0 | G8: 0 | H8: 0 | I8: 0 | J8: 0 | K8: 0
A9: ='Org structure'!E6 -> 1.4 - COUNCIL GENERAL ADMIN (204) | C9: 204875 | D9: 234644 | E9: 277242 | F9: 301838 | G9: 301838 | H9: 301838 | I9: 317835 | J9: 333409 | K9: 349079
A10: ='Org structure'!E7 -> 1.5 - COUNCIL SALARIES AND ALLOWANCES (205) | C10: 0 | D10: 0 | E10: 0 | F10: 0 | G10: 0 | H10: 0 | I10: 0 | J10: 0 | K10: 0
A11: ='Org structure'!E8 -> 0 | C11: 0 | D11: 0 | E11: 0 | F11: 0 | G11: 0 | H11: 0 | I11: 0 | J11: 0 | K11: 0
A12: ='Org structure'!E9 -> 0 | C12: 0 | D12: 0 | E12: 0 | F12: 0 | G12: 0 | H12: 0 | I12: 0 | J12: 0 | K12: 0
A13: ='Org structure'!E10 -> 0 | C13: 0 | D13: 0 | E13: 0 | F13: 0 | G13: 0 | H13: 0 | I13: 0 | J13: 0 | K13: 0
A14: ='Org structure'!E11 -> 0 | C14: 0 | D14: 0 | E14: 0 | F14: 0 | G14: 0 | H14: 0 | I14: 0 | J14: 0 | K14: 0
A15: ='Org structure'!E12 -> 0 | C15: 0 | D15: 0 | E15: 0 | F15: 0 | G15: 0 | H15: 0 | I15: 0 | J15: 0 | K15: 0
A16: ='Org structure'!A3 -> Vote 2 - MUNICIPAL MANAGER (11: IE) | C16: =SUM(C17:C26) -> 1386132 | D16: =SUM(D17:D26) -> 1403924 | E16: 1551043 | F16: 1578568 | G16: 1580465 | H16: 1580465 | I16: 1490993 | J16: 407004 | K16: 426133
A17: ='Org structure'!E14 -> 2.1 - OFFICE OFTHE MUNICIPAL MANAGER (220) | C17: 0 | D17: 0 | E17: 0 | F17: 0 | G17: 0 | H17: 0 | I17: 0 | J17: 0 | K17: 0
A18: ='Org structure'!E15 -> 2.2 - INTERNAL AUDITING (221) | C18: 0 | D18: 0 | E18: 0 | F18: 0 | G18: 0 | H18: 0 | I18: 0 | J18: 0 | K18: 0
A19: ='Org structure'!E16 -> 2.3 - INTEGRATED DEVELOPMENT PLAN (223) | C19: 0 | D19: 0 | E19: 0 | F19: 0 | G19: 0 | H19: 0 | I19: 0 | J19: 0 | K19: 0
A20: ='Org structure'!E17 -> 2.4 - LOCAL ECONOMIC DEVELOPMT AND IGR (224) | C20: 0 | D20: 0 | E20: 0 | F20: 0 | G20: 0 | H20: 0 | I20: 0 | J20: 0 | K20: 0
A21: ='Org structure'!E18 -> 2.5 - MUSEUM (229) | C21: 0 | D21: 0 | E21: 0 | F21: 0 | G21: 0 | H21: 0 | I21: 0 | J21: 0 | K21: 0
A22: ='Org structure'!E19 -> 2.6 - DISASTER AND RISK MANAGEMENT (231) | C22: 680 | D22: 1936 | E22: 2392 | F22: 842 | G22: 2739 | H22: 2739 | I22: 2884 | J22: 3025 | K22: 3167
A23: ='Org structure'!E20 -> 2.7 - PERFORMANCE MANAGEMENT (232) | C23: 0 | D23: 0 | E23: 0 | F23: 0 | G23: 0 | H23: 0 | I23: 0 | J23: 0 | K23: 0
A24: ='Org structure'!E21 -> 2.8 - PLANNING AND DEVELOPMENT (234) | C24: 1385452 | D24: 1401988 | E24: 1548651 | F24: 1577726 | G24: 1577726 | H24: 1577726 | I24: 1488109 | J24: 403979 | K24: 422966
A25: ='Org structure'!E22 -> 2.9 - WATER SERVICE (368) | C25: 0 | D25: 0 | E25: 0 | F25: 0 | G25: 0 | H25: 0 | I25: 0 | J25: 0 | K25: 0
A26: ='Org structure'!E23 -> 0 | C26: 0 | D26: 0 | E26: 0 | F26: 0 | G26: 0 | H26: 0 | I26: 0 | J26: 0 | K26: 0
A27: ='Org structure'!A4 -> Vote 3 - CORPORATE SERVICES (13: IE) | C27: =SUM(C28:C37) -> 1631874 | D27: 1656714 | E27: 866398 | F27: 3002027 | G27: 2919037 | H27: 2919037 | I27: 3073746 | J27: 3224360 | K27: 3375906
A28: ='Org structure'!E25 -> 3.1 - MANAGER: CORPORATE SERVICES (261) | C28: 585 | D28: 113 | E28: 1880 | F28: 2120 | G28: 2120 | H28: 2120 | I28: 2232 | J28: 2341 | K28: 2451
A29: ='Org structure'!E26 -> 3.2 - ADMINISTRVE SUPPORT: COMMITEES (262) | C29: 0 | D29: 0 | E29: 0 | F29: 0 | G29: 0 | H29: 0 | I29: 0 | J29: 0 | K29: 0
A30: ='Org structure'!E27 -> 3.3 - HUMAN RESOURCE MANAGEMENT (HR) (263) | C30: 17276 | D30: 18721 | E30: 19317 | F30: 0 | G30: 10000 | H30: 10000 | I30: 10530 | J30: 11046 | K30: 11565
A31: ='Org structure'!E28 -> 3.4 - MUNICIPAL PROPERTY MANAGEMENT (266) | C31: 1606972 | D31: 2600196 | E31: 2440643 | F31: 2995667 | G31: 2898719 | H31: 2898719 | I31: 3052352 | J31: 3201918 | K31: 3352409
A32: ='Org structure'!E29 -> 3.5 - CLEANING SERVICE MUN OFFICES (267) | C32: -4783 | D32: -965401 | E32: -1599828 | F32: 0 | G32: 0 | H32: 0 | I32: 0 | J32: 0 | K32: 0
A33: ='Org structure'!E30 -> 3.6 - INFORMATION AND COMMUNICATION TECHNOLOGY (268) | C33: 11824 | D33: 3085 | E33: 4386 | F33: 4240 | G33: 8198 | H33: 8198 | I33: 8632 | J33: 9055 | K33: 9481
A34: ='Org structure'!E31 -> 0 | C34: 0 | D34: 0 | E34: 0 | F34: 0 | G34: 0 | H34: 0 | I34: 0 | J34: 0 | K34: 0
A35: ='Org structure'!E32 -> 0 | C35: 0 | D35: 0 | E35: 0 | F35: 0 | G35: 0 | H35: 0 | I35: 0 | J35: 0 | K35: 0
A36: ='Org structure'!E33 -> 0 | C36: 0 | D36: 0 | E36: 0 | F36: 0 | G36: 0 | H36: 0 | I36: 0 | J36: 0 | K36: 0
A37: ='Org structure'!E34 -> 0 | C37: 0 | D37: 0 | E37: 0 | F37: 0 | G37: 0 | H37: 0 | I37: 0 | J37: 0 | K37: 0
A38: ='Org structure'!A5 -> Vote 4 - FINANCIAL SERVICES (15: IE) | C38: =SUM(C39:C48) -> 115241942 | D38: 123720221 | E38: 123282452 | F38: 130768208 | G38: 137421402 | H38: 137421402 | I38: 145696631 | J38: 154335728 | K38: 162021819
A39: ='Org structure'!E36 -> 4.1 - MANAGER: FINANCIAL SERVICES (301) | C39: 56746238 | D39: 67190723 | E39: 64621401 | F39: 68175622 | G39: 73192622 | H39: 73192622 | I39: 78766501 | J39: 84277921 | K39: 88816993
A40: ='Org structure'!E37 -> 4.2 - ACCOUNTING, BUDGET AND FIN MANAG (302) | C40: 4092752 | D40: 4252494 | E40: 4063773 | F40: 4144976 | G40: 4461751 | H40: 4461751 | I40: 4533924 | J40: 4604186 | K40: 4674883
A41: ='Org structure'!E38 -> 4.3 - INCOME AND DEBTORS SERVICES (303) | C41: 3070189 | D41: 2619320 | E41: 2896553 | F41: 2916085 | G41: 4716085 | H41: 4716085 | I41: 4966038 | J41: 5209374 | K41: 5454214
A42: ='Org structure'!E39 -> 4.4 - EXPENDITURE AND SUPPLY CHAIN MAN (304) | C42: 10769 | D42: 11013 | E42: 2108 | F42: 2333 | G42: 2333 | H42: 2333 | I42: 2457 | J42: 2577 | K42: 2698
A43: ='Org structure'!E40 -> 4.5 - PROP RATES AND VALUATION SERVICE (305) | C43: 51321994 | D43: 49646671 | E43: 51698617 | F43: 55529192 | G43: 55048611 | H43: 55048611 | I43: 57427711 | J43: 60241670 | K43: 63073031
A44: ='Org structure'!E41 -> 4.6 - EXPENDITURE (306) | C44: 0 | D44: 0 | E44: 0 | F44: 0 | G44: 0 | H44: 0 | I44: 0 | J44: 0 | K44: 0
A45: ='Org structure'!E42 -> 4.7 - MANAGER: FINANCIAL SERVICES (501) | C45: 0 | D45: 0 | E45: 0 | F45: 0 | G45: 0 | H45: 0 | I45: 0 | J45: 0 | K45: 0
A46: ='Org structure'!E43 -> 0 | C46: 0 | D46: 0 | E46: 0 | F46: 0 | G46: 0 | H46: 0 | I46: 0 | J46: 0 | K46: 0
A47: ='Org structure'!E44 -> 0 | C47: 0 | D47: 0 | E47: 0 | F47: 0 | G47: 0 | H47: 0 | I47: 0 | J47: 0 | K47: 0
A48: ='Org structure'!E45 -> 0 | C48: 0 | D48: 0 | E48: 0 | F48: 0 | G48: 0 | H48: 0 | I48: 0 | J48: 0 | K48: 0
A49: ='Org structure'!A6 -> Vote 5 - COMMUNITY SERVICES: COMM DEV (16: IE) | C49: =SUM(C50:C65) -> 16110021 | D49: 16537408 | E49: 16672867 | F49: 28149913 | G49: 28464404 | H49: 28464404 | I49: 30134440 | J49: 29968161 | K49: 31376665
A50: ='Org structure'!E47 -> 5.1 - MANAGER: COMMUNITY DEVELOPMENT (318) | C50: 9250 | D50: 813755 | E50: 4528 | F50: 4240 | G50: 21240 | H50: 21240 | I50: 22366 | J50: 22281 | K50: 23328
A51: ='Org structure'!E48 -> 5.2 - ENVIRONMENTAL HEALTH SERVICES (321) | C51: 0 | D51: 0 | E51: 0 | F51: 0 | G51: 0 | H51: 0 | I51: 0 | J51: 0 | K51: 0
A52: ='Org structure'!E49 -> 5.3 - LIBRARIES AND INFORMATION SERV (323) | C52: 1110588 | D52: 995169 | E52: 1197464 | F52: 1505470 | G52: 1540470 | H52: 1540470 | I52: 1607615 | J52: 44703 | K52: 46804
A53: ='Org structure'!E50 -> 5.4 - CEMETERIES (324) | C53: 44911 | D53: 48669 | E53: 48651 | F53: 41130 | G53: 49130 | H53: 49130 | I53: 51734 | J53: 54269 | K53: 56820
A54: ='Org structure'!E51 -> 5.5 - COMMUNITY HALLS (325) | C54: 126433 | D54: 34674 | E54: 84932 | F54: 53003 | G54: 153003 | H54: 153003 | I54: 161112 | J54: 169006 | K54: 176949
A55: ='Org structure'!E52 -> 5.6 - PARKS AND OPEN AREAS (326) | C55: 43883 | D55: 26899 | E55: 2328 | F55: 41086 | G55: 41086 | H55: 41086 | I55: 43264 | J55: 45384 | K55: 47517
A56: ='Org structure'!E53 -> 5.7 - SPORTS FACILITIES (327) | C56: 25359 | D56: -18955 | E56: -2878 | F56: 21201 | G56: 76201 | H56: 76201 | I56: 80240 | J56: 84172 | K56: 88128
A57: ='Org structure'!E54 -> 5.8 - REFUSE REM AND WASTE MANAGEMENT (328) | C57: 13532458 | D57: 13448042 | E57: 14133368 | F57: 25062282 | G57: 25131782 | H57: 25131782 | I57: 26639689 | J57: 27945033 | K57: 29258450
A58: ='Org structure'!E55 -> 5.9 - COMMONAGE OFFICER (329) | C58: 0 | D58: 0 | E58: 0 | F58: 0 | G58: 0 | H58: 0 | I58: 0 | J58: 0 | K58: 0
A59: ='Org structure'!E56 -> 5.10 - COMMONAGE FARMS - CONCORDIA (330) | C59: 67663 | D59: 310523 | E59: 316054 | F59: 350285 | G59: 351276 | H59: 351276 | I59: 369894 | J59: 388019 | K59: 406256
A60: ='Org structure'!E57 -> 5.11 - COMMONAGE FARMS - STEINKOPF (331) | C60: 114210 | D60: 540017 | E60: 528648 | F60: 603794 | G60: 632794 | H60: 632794 | I60: 666332 | J60: 698983 | K60: 731835
A61: ='Org structure'!E58 -> 5.12 - COMMONAGE FARMS - KOMAGGAS (332) | C61: 0 | D61: 179210 | E61: 183173 | F61: 199366 | G61: 199366 | H61: 199366 | I61: 209932 | J61: 220219 | K61: 230569
A62: ='Org structure'!E59 -> 5.13 - COMMONAGE FARMS - SPRINGBOK (333) | C62: 976154 | D62: 45939 | E62: 42343 | F62: 54389 | G62: 54389 | H62: 54389 | I62: 57271 | J62: 60077 | K62: 62901
A63: ='Org structure'!E60 -> 5.14 - COMMONAGE FARMS - OCC (334) | C63: 0 | D63: 114836 | E63: 118080 | F63: 141800 | G63: 141800 | H63: 141800 | I63: 149315 | J63: 156631 | K63: 163993
A64: ='Org structure'!E61 -> 5.15 - MUNICIPAL AIRPORT (335) | C64: 59112 | D64: -1370 | E64: 16176 | F64: 71867 | G64: 71867 | H64: 71867 | I64: 75676 | J64: 79384 | K64: 83115
A65: ='Org structure'!E62 -> 5.16 - SPORTS FACILITIES (527) | C65: 0 | D65: 0 | E65: 0 | F65: 0 | G65: 0 | H65: 0 | I65: 0 | J65: 0 | K65: 0
A66: ='Org structure'!A7 -> Vote 6 - COMMUNITY SERVICES: PUBLSAFETY (17: IE) | C66: =SUM(C67:C76) -> 1590712 | D66: =SUM(D67:D76) -> 1952978 | E66: 2218207 | F66: 1174192 | G66: 1962592 | H66: 1962592 | I66: 2066610 | J66: 2167873 | K66: 2269764
A67: ='Org structure'!E64 -> 6.1 - DISASTER AND RISK MANAGEMENT (231) | C67: 0 | D67: 0 | E67: 0 | F67: 0 | G67: 0 | H67: 0 | I67: 0 | J67: 0 | K67: 0
A68: ='Org structure'!E65 -> 6.2 - EMERGENCY, FIRE AND DISASTER MAN (341) | C68: 0 | D68: 0 | E68: 0 | F68: 0 | G68: 0 | H68: 0 | I68: 0 | J68: 0 | K68: 0
A69: ='Org structure'!E66 -> 6.3 - LAW ENFORCEMENT SERVICES (342) | C69: 51740 | D69: 65358 | E69: 129157 | F69: 90104 | G69: 160104 | H69: 160104 | I69: 168590 | J69: 176851 | K69: 185163
A70: ='Org structure'!E67 -> 6.4 - MUNICIPAL POUND (343) | C70: 0 | D70: 0 | E70: 0 | F70: 0 | G70: 0 | H70: 0 | I70: 0 | J70: 0 | K70: 0
A71: ='Org structure'!E68 -> 6.5 - TRAFFIC SERVICES (344) | C71: 1538972 | D71: 1887620 | E71: 2089050 | F71: 1084088 | G71: 1802488 | H71: 1802488 | I71: 1898020 | J71: 1991022 | K71: 2084601
A72: ='Org structure'!E69 -> 0 | C72: 0 | D72: 0 | E72: 0 | F72: 0 | G72: 0 | H72: 0 | I72: 0 | J72: 0 | K72: 0
A73: ='Org structure'!E70 -> 0 | C73: 0 | D73: 0 | E73: 0 | F73: 0 | G73: 0 | H73: 0 | I73: 0 | J73: 0 | K73: 0
A74: ='Org structure'!E71 -> 0 | C74: 0 | D74: 0 | E74: 0 | F74: 0 | G74: 0 | H74: 0 | I74: 0 | J74: 0 | K74: 0
A75: ='Org structure'!E72 -> 0 | C75: 0 | D75: 0 | E75: 0 | F75: 0 | G75: 0 | H75: 0 | I75: 0 | J75: 0 | K75: 0
A76: ='Org structure'!E73 -> 0 | C76: 0 | D76: 0 | E76: 0 | F76: 0 | G76: 0 | H76: 0 | I76: 0 | J76: 0 | K76: 0
A77: ='Org structure'!A8 -> Vote 7 - INFRASTRUCTURE,ENG AND TECHNICAL (18: IE) | C77: =SUM(C78:C88) -> 142337675 | D77: 164714119 | E77: 170958024 | F77: 241571904 | G77: 241619905 | H77: 241619905 | I77: 265456999 | J77: 260718619 | K77: 271991912
A78: ='Org structure'!E75 -> 7.1 - HOUSING PROVISION: HUMAN SETTL (225) | C78: 0 | D78: 0 | E78: 0 | F78: 0 | G78: 0 | H78: 0 | I78: 0 | J78: 0 | K78: 0
A79: ='Org structure'!E76 -> 7.2 - MANAGER:INFRASTRUCT,ENG ANDTECH (361) | C79: 0 | D79: 0 | E79: 0 | F79: 0 | G79: 0 | H79: 0 | I79: 0 | J79: 0 | K79: 0
A80: ='Org structure'!E77 -> 7.3 - PROJECT MANAGEMT UNIT: CIV FAC (362) | C80: 0 | D80: 0 | E80: 0 | F80: 0 | G80: 0 | H80: 0 | I80: 0 | J80: 0 | K80: 0
A81: ='Org structure'!E78 -> 7.4 - ELECTRICAL ENGINEERING SERVICE (363) | C81: 84962968 | D81: 91228707 | E81: 105038914 | F81: 134681149 | G81: 134681149 | H81: 134681149 | I81: 149263003 | J81: 160062467 | K81: 166825488
A82: ='Org structure'!E79 -> 7.5 - MECHANICAL ENG SERV: WORKSHOPS (365) | C82: 0 | D82: -5487 | E82: -8462 | F82: 0 | G82: 0 | H82: 0 | I82: 0 | J82: 0 | K82: 0
A83: ='Org structure'!E80 -> 7.6 - ROADS (366) | C83: 0 | D83: 651 | E83: 4057 | F83: 4240 | G83: 4240 | H83: 4240 | I83: 4465 | J83: 4684 | K83: 4904
A84: ='Org structure'!E81 -> 7.7 - STORMWATER (367) | C84: 0 | D84: 0 | E84: 0 | F84: 0 | G84: 0 | H84: 0 | I84: 0 | J84: 0 | K84: 0
A85: ='Org structure'!E82 -> 7.8 - WATER SERVICE (368) | C85: 36631629 | D85: 47412150 | E85: 48151159 | F85: 49718036 | G85: 49706036 | H85: 49706036 | I85: 57162542 | J85: 59963507 | K85: 62781792
A86: ='Org structure'!E83 -> 7.9 - SEWERAGE AND SANITATION SERVICES (369) | C86: 20743078 | D86: 26078098 | E86: 17772356 | F86: 57168479 | G86: 57228480 | H86: 57228480 | I86: 59026989 | J86: 40687961 | K86: 42379728
A87: ='Org structure'!E84 -> 7.10 - MANAGER:INFRASTRUCT,ENG ANDTECH (561) | C87: 0 | D87: 0 | E87: 0 | F87: 0 | G87: 0 | H87: 0 | I87: 0 | J87: 0 | K87: 0
A88: ='Org structure'!E85 -> 7.11 - ELECTRICAL ENGINEERING SERVICE (563) | C88: 0 | D88: 0 | E88: 0 | F88: 0 | G88: 0 | H88: 0 | I88: 0 | J88: 0 | K88: 0
A89: ='Org structure'!A9 -> Vote 8 - EXECUTIVE MAYOR AND COUNCIL (20: CS) | C89: =SUM(C90:C99) -> 0 | D89: =SUM(D90:D99) -> 0 | E89: 0 | F89: 0 | G89: 0 | H89: 0 | I89: 0 | J89: 0 | K89: 0
A90: ='Org structure'!E87 -> 8.1 - OFFICE OF THE MAYOR (701) | C90: 0 | D90: 0 | E90: 0 | F90: 0 | G90: 0 | H90: 0 | I90: 0 | J90: 0 | K90: 0
A91: ='Org structure'!E88 -> 8.2 - COUNCIL GENERAL ADMIN (704) | C91: 0 | D91: 0 | E91: 0 | F91: 0 | G91: 0 | H91: 0 | I91: 0 | J91: 0 | K91: 0
A92: ='Org structure'!E89 -> 0 | C92: 0 | D92: 0 | E92: 0 | F92: 0 | G92: 0 | H92: 0 | I92: 0 | J92: 0 | K92: 0
A93: ='Org structure'!E90 -> 0 | C93: 0 | D93: 0 | E93: 0 | F93: 0 | G93: 0 | H93: 0 | I93: 0 | J93: 0 | K93: 0
A94: ='Org structure'!E91 -> 0 | C94: 0 | D94: 0 | E94: 0 | F94: 0 | G94: 0 | H94: 0 | I94: 0 | J94: 0 | K94: 0
A95: ='Org structure'!E92 -> 0 | C95: 0 | D95: 0 | E95: 0 | F95: 0 | G95: 0 | H95: 0 | I95: 0 | J95: 0 | K95: 0
A96: ='Org structure'!E93 -> 0 | C96: 0 | D96: 0 | E96: 0 | F96: 0 | G96: 0 | H96: 0 | I96: 0 | J96: 0 | K96: 0
A97: ='Org structure'!E94 -> 0 | C97: 0 | D97: 0 | E97: 0 | F97: 0 | G97: 0 | H97: 0 | I97: 0 | J97: 0 | K97: 0
A98: ='Org structure'!E95 -> 0 | C98: 0 | D98: 0 | E98: 0 | F98: 0 | G98: 0 | H98: 0 | I98: 0 | J98: 0 | K98: 0
A99: ='Org structure'!E96 -> 0 | C99: 0 | D99: 0 | E99: 0 | F99: 0 | G99: 0 | H99: 0 | I99: 0 | J99: 0 | K99: 0
A100: ='Org structure'!A10 -> Vote 9 - MUNICIPAL MANAGER (21: CS) | C100: =SUM(C101:C110) -> 0 | D100: =SUM(D101:D110) -> 0 | E100: 0 | F100: 0 | G100: 0 | H100: 0 | I100: 0 | J100: 0 | K100: 0
A101: ='Org structure'!E98 -> 9.1 - LOCAL ECONOMIC DEVELOPMT AND IGR (724) | C101: 0 | D101: 0 | E101: 0 | F101: 0 | G101: 0 | H101: 0 | I101: 0 | J101: 0 | K101: 0
A102: ='Org structure'!E99 -> 9.2 - PLANNING AND DEVELOPMENT (731) | C102: 0 | D102: 0 | E102: 0 | F102: 0 | G102: 0 | H102: 0 | I102: 0 | J102: 0 | K102: 0
A103: ='Org structure'!E100 -> 0 | C103: 0 | D103: 0 | E103: 0 | F103: 0 | G103: 0 | H103: 0 | I103: 0 | J103: 0 | K103: 0
A104: ='Org structure'!E101 -> 0 | C104: 0 | D104: 0 | E104: 0 | F104: 0 | G104: 0 | H104: 0 | I104: 0 | J104: 0 | K104: 0
A105: ='Org structure'!E102 -> 0 | C105: 0 | D105: 0 | E105: 0 | F105: 0 | G105: 0 | H105: 0 | I105: 0 | J105: 0 | K105: 0
A106: ='Org structure'!E103 -> 0 | C106: 0 | D106: 0 | E106: 0 | F106: 0 | G106: 0 | H106: 0 | I106: 0 | J106: 0 | K106: 0
A107: ='Org structure'!E104 -> 0 | C107: 0 | D107: 0 | E107: 0 | F107: 0 | G107: 0 | H107: 0 | I107: 0 | J107: 0 | K107: 0
A108: ='Org structure'!E105 -> 0 | C108: 0 | D108: 0 | E108: 0 | F108: 0 | G108: 0 | H108: 0 | I108: 0 | J108: 0 | K108: 0
A109: ='Org structure'!E106 -> 0 | C109: 0 | D109: 0 | E109: 0 | F109: 0 | G109: 0 | H109: 0 | I109: 0 | J109: 0 | K109: 0
A110: ='Org structure'!E107 -> 0 | C110: 0 | D110: 0 | E110: 0 | F110: 0 | G110: 0 | H110: 0 | I110: 0 | J110: 0 | K110: 0
A111: ='Org structure'!A11 -> Vote 10 - CORPORATE SERVICES (23: CS) | C111: =SUM(C112:C121) -> 0 | D111: =SUM(D112:D121) -> 0 | E111: 0 | F111: 0 | G111: 0 | H111: 0 | I111: 0 | J111: 0 | K111: 0
A112: ='Org structure'!E109 -> 10.1 - INFORMATION TECHNOLOGY (727) | C112: 0 | D112: 0 | E112: 0 | F112: 0 | G112: 0 | H112: 0 | I112: 0 | J112: 0 | K112: 0
A113: ='Org structure'!E110 -> 10.2 - MANAGER: CORPORATE SERVICES (761) | C113: 0 | D113: 0 | E113: 0 | F113: 0 | G113: 0 | H113: 0 | I113: 0 | J113: 0 | K113: 0
A114: ='Org structure'!E111 -> 10.3 - MUNICIPAL PROPERTY MANAGEMENT (766) | C114: 0 | D114: 0 | E114: 0 | F114: 0 | G114: 0 | H114: 0 | I114: 0 | J114: 0 | K114: 0
A115: ='Org structure'!E112 -> 10.4 - INFORMATION AND COMMUNICATION TECHNOLOGY (768) | C115: 0 | D115: 0 | E115: 0 | F115: 0 | G115: 0 | H115: 0 | I115: 0 | J115: 0 | K115: 0
A116: ='Org structure'!E113 -> 0 | C116: 0 | D116: 0 | E116: 0 | F116: 0 | G116: 0 | H116: 0 | I116: 0 | J116: 0 | K116: 0
A117: ='Org structure'!E114 -> 0 | C117: 0 | D117: 0 | E117: 0 | F117: 0 | G117: 0 | H117: 0 | I117: 0 | J117: 0 | K117: 0
A118: ='Org structure'!E115 -> 0 | C118: 0 | D118: 0 | E118: 0 | F118: 0 | G118: 0 | H118: 0 | I118: 0 | J118: 0 | K118: 0
A119: ='Org structure'!E116 -> 0 | C119: 0 | D119: 0 | E119: 0 | F119: 0 | G119: 0 | H119: 0 | I119: 0 | J119: 0 | K119: 0
A120: ='Org structure'!E117 -> 0 | C120: 0 | D120: 0 | E120: 0 | F120: 0 | G120: 0 | H120: 0 | I120: 0 | J120: 0 | K120: 0
A121: ='Org structure'!E118 -> 0 | C121: 0 | D121: 0 | E121: 0 | F121: 0 | G121: 0 | H121: 0 | I121: 0 | J121: 0 | K121: 0
A122: ='Org structure'!A12 -> Vote 11 - COMMUNITY SERVICES: COMM DEV (26: CS) | C122: =SUM(C123:C132) -> 0 | D122: =SUM(D123:D132) -> 0 | E122: 0 | F122: 0 | G122: 0 | H122: 0 | I122: 0 | J122: 0 | K122: 0
A123: ='Org structure'!E120 -> 11.1 - MANAGER: COMMUNITY DEVELOPMENT (818) | C123: 0 | D123: 0 | E123: 0 | F123: 0 | G123: 0 | H123: 0 | I123: 0 | J123: 0 | K123: 0
A124: ='Org structure'!E121 -> 11.2 - CEMETERIES (824) | C124: 0 | D124: 0 | E124: 0 | F124: 0 | G124: 0 | H124: 0 | I124: 0 | J124: 0 | K124: 0
A125: ='Org structure'!E122 -> 11.3 - SPORTS FACILITIES (827) | C125: 0 | D125: 0 | E125: 0 | F125: 0 | G125: 0 | H125: 0 | I125: 0 | J125: 0 | K125: 0
A126: ='Org structure'!E123 -> 11.4 - REFUSE REM AND WASTE MANAGEMENT (828) | C126: 0 | D126: 0 | E126: 0 | F126: 0 | G126: 0 | H126: 0 | I126: 0 | J126: 0 | K126: 0
A127: ='Org structure'!E124 -> 0 | C127: 0 | D127: 0 | E127: 0 | F127: 0 | G127: 0 | H127: 0 | I127: 0 | J127: 0 | K127: 0
A128: ='Org structure'!E125 -> 0 | C128: 0 | D128: 0 | E128: 0 | F128: 0 | G128: 0 | H128: 0 | I128: 0 | J128: 0 | K128: 0
A129: ='Org structure'!E126 -> 0 | C129: 0 | D129: 0 | E129: 0 | F129: 0 | G129: 0 | H129: 0 | I129: 0 | J129: 0 | K129: 0
A130: ='Org structure'!E127 -> 0 | C130: 0 | D130: 0 | E130: 0 | F130: 0 | G130: 0 | H130: 0 | I130: 0 | J130: 0 | K130: 0
A131: ='Org structure'!E128 -> 0 | C131: 0 | D131: 0 | E131: 0 | F131: 0 | G131: 0 | H131: 0 | I131: 0 | J131: 0 | K131: 0
A132: ='Org structure'!E129 -> 0 | C132: 0 | D132: 0 | E132: 0 | F132: 0 | G132: 0 | H132: 0 | I132: 0 | J132: 0 | K132: 0
A133: ='Org structure'!A13 -> Vote 12 - INFRASTRUCTURE,ENG AND TECHNICAL (28: CS) | C133: =SUM(C134:C143) -> 0 | D133: =SUM(D134:D143) -> 0 | E133: 0 | F133: 0 | G133: 0 | H133: 0 | I133: 0 | J133: 0 | K133: 0
A134: ='Org structure'!E131 -> 12.1 - ELECTRICAL ENGINEERING SERVICE (863) | C134: 0 | D134: 0 | E134: 0 | F134: 0 | G134: 0 | H134: 0 | I134: 0 | J134: 0 | K134: 0
A135: ='Org structure'!E132 -> 12.2 - MECHANICAL ENG SERV: WORKSHOPS (865) | C135: 0 | D135: 0 | E135: 0 | F135: 0 | G135: 0 | H135: 0 | I135: 0 | J135: 0 | K135: 0
A136: ='Org structure'!E133 -> 12.3 - ROADS (866) | C136: 0 | D136: 0 | E136: 0 | F136: 0 | G136: 0 | H136: 0 | I136: 0 | J136: 0 | K136: 0
A137: ='Org structure'!E134 -> 12.4 - STORMWATER (867) | C137: 0 | D137: 0 | E137: 0 | F137: 0 | G137: 0 | H137: 0 | I137: 0 | J137: 0 | K137: 0
A138: ='Org structure'!E135 -> 12.5 - WATER SERVICE (868) | C138: 0 | D138: 0 | E138: 0 | F138: 0 | G138: 0 | H138: 0 | I138: 0 | J138: 0 | K138: 0
A139: ='Org structure'!E136 -> 12.6 - SEWERAGE AND SANITATION SERVICES (869) | C139: 0 | D139: 0 | E139: 0 | F139: 0 | G139: 0 | H139: 0 | I139: 0 | J139: 0 | K139: 0
A140: ='Org structure'!E137 -> 0 | C140: 0 | D140: 0 | E140: 0 | F140: 0 | G140: 0 | H140: 0 | I140: 0 | J140: 0 | K140: 0
A141: ='Org structure'!E138 -> 0 | C141: 0 | D141: 0 | E141: 0 | F141: 0 | G141: 0 | H141: 0 | I141: 0 | J141: 0 | K141: 0
A142: ='Org structure'!E139 -> 0 | C142: 0 | D142: 0 | E142: 0 | F142: 0 | G142: 0 | H142: 0 | I142: 0 | J142: 0 | K142: 0
A143: ='Org structure'!E140 -> 0 | C143: 0 | D143: 0 | E143: 0 | F143: 0 | G143: 0 | H143: 0 | I143: 0 | J143: 0 | K143: 0
A144: ='Org structure'!A14 -> Vote 13 - 0 | C144: =SUM(C145:C154) -> 0 | D144: =SUM(D145:D154) -> 0 | E144: 0 | F144: 0 | G144: 0 | H144: 0 | I144: 0 | J144: 0 | K144: 0
A145: ='Org structure'!E142 -> 13.1 - [Name of sub-vote] | C145: 0 | D145: 0 | E145: 0 | F145: 0 | G145: 0 | H145: 0 | I145: 0 | J145: 0 | K145: 0
A146: ='Org structure'!E143 -> 0 | C146: 0 | D146: 0 | E146: 0 | F146: 0 | G146: 0 | H146: 0 | I146: 0 | J146: 0 | K146: 0
A147: ='Org structure'!E144 -> 0 | C147: 0 | D147: 0 | E147: 0 | F147: 0 | G147: 0 | H147: 0 | I147: 0 | J147: 0 | K147: 0
A148: ='Org structure'!E145 -> 0 | C148: 0 | D148: 0 | E148: 0 | F148: 0 | G148: 0 | H148: 0 | I148: 0 | J148: 0 | K148: 0
A149: ='Org structure'!E146 -> 0 | C149: 0 | D149: 0 | E149: 0 | F149: 0 | G149: 0 | H149: 0 | I149: 0 | J149: 0 | K149: 0
A150: ='Org structure'!E147 -> 0 | C150: 0 | D150: 0 | E150: 0 | F150: 0 | G150: 0 | H150: 0 | I150: 0 | J150: 0 | K150: 0
A151: ='Org structure'!E148 -> 0 | C151: 0 | D151: 0 | E151: 0 | F151: 0 | G151: 0 | H151: 0 | I151: 0 | J151: 0 | K151: 0
A152: ='Org structure'!E149 -> 0 | C152: 0 | D152: 0 | E152: 0 | F152: 0 | G152: 0 | H152: 0 | I152: 0 | J152: 0 | K152: 0
A153: ='Org structure'!E150 -> 0 | C153: 0 | D153: 0 | E153: 0 | F153: 0 | G153: 0 | H153: 0 | I153: 0 | J153: 0 | K153: 0
A154: ='Org structure'!E151 -> 0 | C154: 0 | D154: 0 | E154: 0 | F154: 0 | G154: 0 | H154: 0 | I154: 0 | J154: 0 | K154: 0
A155: ='Org structure'!A15 -> Vote 14 - 0 | C155: =SUM(C156:C165) -> 0 | D155: =SUM(D156:D165) -> 0 | E155: 0 | F155: 0 | G155: 0 | H155: 0 | I155: 0 | J155: 0 | K155: 0
A156: ='Org structure'!E153 -> 14.1 - [Name of sub-vote] | C156: 0 | D156: 0 | E156: 0 | F156: 0 | G156: 0 | H156: 0 | I156: 0 | J156: 0 | K156: 0
A157: ='Org structure'!E154 -> 0 | C157: 0 | D157: 0 | E157: 0 | F157: 0 | G157: 0 | H157: 0 | I157: 0 | J157: 0 | K157: 0
A158: ='Org structure'!E155 -> 0 | C158: 0 | D158: 0 | E158: 0 | F158: 0 | G158: 0 | H158: 0 | I158: 0 | J158: 0 | K158: 0
A159: ='Org structure'!E156 -> 0 | C159: 0 | D159: 0 | E159: 0 | F159: 0 | G159: 0 | H159: 0 | I159: 0 | J159: 0 | K159: 0
A160: ='Org structure'!E157 -> 0 | C160: 0 | D160: 0 | E160: 0 | F160: 0 | G160: 0 | H160: 0 | I160: 0 | J160: 0 | K160: 0
A161: ='Org structure'!E158 -> 0 | C161: 0 | D161: 0 | E161: 0 | F161: 0 | G161: 0 | H161: 0 | I161: 0 | J161: 0 | K161: 0
A162: ='Org structure'!E159 -> 0 | C162: 0 | D162: 0 | E162: 0 | F162: 0 | G162: 0 | H162: 0 | I162: 0 | J162: 0 | K162: 0
A163: ='Org structure'!E160 -> 0 | C163: 0 | D163: 0 | E163: 0 | F163: 0 | G163: 0 | H163: 0 | I163: 0 | J163: 0 | K163: 0
A164: ='Org structure'!E161 -> 0 | C164: 0 | D164: 0 | E164: 0 | F164: 0 | G164: 0 | H164: 0 | I164: 0 | J164: 0 | K164: 0
A165: ='Org structure'!E162 -> 0 | C165: 0 | D165: 0 | E165: 0 | F165: 0 | G165: 0 | H165: 0 | I165: 0 | J165: 0 | K165: 0
A166: ='Org structure'!A16 -> Vote 15 - 0 | C166: =SUM(C167:C176) -> 0 | D166: =SUM(D167:D176) -> 0 | E166: 0 | F166: 0 | G166: 0 | H166: 0 | I166: 0 | J166: 0 | K166: 0
A167: ='Org structure'!E164 -> 15.1 - [Name of sub-vote] | C167: 0 | D167: 0 | E167: 0 | F167: 0 | G167: 0 | H167: 0 | I167: 0 | J167: 0 | K167: 0
A168: ='Org structure'!E165 -> 0 | C168: 0 | D168: 0 | E168: 0 | F168: 0 | G168: 0 | H168: 0 | I168: 0 | J168: 0 | K168: 0
A169: ='Org structure'!E166 -> 0 | C169: 0 | D169: 0 | E169: 0 | F169: 0 | G169: 0 | H169: 0 | I169: 0 | J169: 0 | K169: 0
A170: ='Org structure'!E167 -> 0 | C170: 0 | D170: 0 | E170: 0 | F170: 0 | G170: 0 | H170: 0 | I170: 0 | J170: 0 | K170: 0
A171: ='Org structure'!E168 -> 0 | C171: 0 | D171: 0 | E171: 0 | F171: 0 | G171: 0 | H171: 0 | I171: 0 | J171: 0 | K171: 0
A172: ='Org structure'!E169 -> 0 | C172: 0 | D172: 0 | E172: 0 | F172: 0 | G172: 0 | H172: 0 | I172: 0 | J172: 0 | K172: 0
A173: ='Org structure'!E170 -> 0 | C173: 0 | D173: 0 | E173: 0 | F173: 0 | G173: 0 | H173: 0 | I173: 0 | J173: 0 | K173: 0
A174: ='Org structure'!E171 -> 0 | C174: 0 | D174: 0 | E174: 0 | F174: 0 | G174: 0 | H174: 0 | I174: 0 | J174: 0 | K174: 0
A175: ='Org structure'!E172 -> 0 | C175: 0 | D175: 0 | E175: 0 | F175: 0 | G175: 0 | H175: 0 | I175: 0 | J175: 0 | K175: 0
A176: ='Org structure'!E173 -> 0 | C176: 0 | D176: 0 | E176: 0 | F176: 0 | G176: 0 | H176: 0 | I176: 0 | J176: 0 | K176: 0
C177: =SUM(C178:C187) -> 0 | D177: =SUM(D178:D187) -> 0 | E177: 0 | F177: 0 | G177: 0 | H177: 0 | I177: 0 | J177: 0 | K177: 0
C178: 0 | D178: 0 | E178: 0 | F178: 0 | G178: 0 | H178: 0 | I178: 0 | J178: 0 | K178: 0
C179: 0 | D179: 0 | E179: 0 | F179: 0 | G179: 0 | H179: 0 | I179: 0 | J179: 0 | K179: 0
C180: 0 | D180: 0 | E180: 0 | F180: 0 | G180: 0 | H180: 0 | I180: 0 | J180: 0 | K180: 0
C181: 0 | D181: 0 | E181: 0 | F181: 0 | G181: 0 | H181: 0 | I181: 0 | J181: 0 | K181: 0
C182: 0 | D182: 0 | E182: 0 | F182: 0 | G182: 0 | H182: 0 | I182: 0 | J182: 0 | K182: 0
C183: 0 | D183: 0 | E183: 0 | F183: 0 | G183: 0 | H183: 0 | I183: 0 | J183: 0 | K183: 0
C184: 0 | D184: 0 | E184: 0 | F184: 0 | G184: 0 | H184: 0 | I184: 0 | J184: 0 | K184: 0
C185: 0 | D185: 0 | E185: 0 | F185: 0 | G185: 0 | H185: 0 | I185: 0 | J185: 0 | K185: 0
C186: 0 | D186: 0 | E186: 0 | F186: 0 | G186: 0 | H186: 0 | I186: 0 | J186: 0 | K186: 0
C187: 0 | D187: 0 | E187: 0 | F187: 0 | G187: 0 | H187: 0 | I187: 0 | J187: 0 | K187: 0
C188: =SUM(C189:C198) -> 0 | D188: =SUM(D189:D198) -> 0 | E188: 0 | F188: 0 | G188: 0 | H188: 0 | I188: 0 | J188: 0 | K188: 0
C189: 0 | D189: 0 | E189: 0 | F189: 0 | G189: 0 | H189: 0 | I189: 0 | J189: 0 | K189: 0
C190: 0 | D190: 0 | E190: 0 | F190: 0 | G190: 0 | H190: 0 | I190: 0 | J190: 0 | K190: 0
C191: 0 | D191: 0 | E191: 0 | F191: 0 | G191: 0 | H191: 0 | I191: 0 | J191: 0 | K191: 0
C192: 0 | D192: 0 | E192: 0 | F192: 0 | G192: 0 | H192: 0 | I192: 0 | J192: 0 | K192: 0
C193: 0 | D193: 0 | E193: 0 | F193: 0 | G193: 0 | H193: 0 | I193: 0 | J193: 0 | K193: 0
C194: 0 | D194: 0 | E194: 0 | F194: 0 | G194: 0 | H194: 0 | I194: 0 | J194: 0 | K194: 0
C195: 0 | D195: 0 | E195: 0 | F195: 0 | G195: 0 | H195: 0 | I195: 0 | J195: 0 | K195: 0
C196: 0 | D196: 0 | E196: 0 | F196: 0 | G196: 0 | H196: 0 | I196: 0 | J196: 0 | K196: 0
C197: 0 | D197: 0 | E197: 0 | F197: 0 | G197: 0 | H197: 0 | I197: 0 | J197: 0 | K197: 0
C198: 0 | D198: 0 | E198: 0 | F198: 0 | G198: 0 | H198: 0 | I198: 0 | J198: 0 | K198: 0
C199: =SUM(C200:C209) -> 0 | D199: =SUM(D200:D209) -> 0 | E199: 0 | F199: 0 | G199: 0 | H199: 0 | I199: 0 | J199: 0 | K199: 0
C200: 0 | D200: 0 | E200: 0 | F200: 0 | G200: 0 | H200: 0 | I200: 0 | J200: 0 | K200: 0
... 686 more rows

Sheet A4-FinPerf RE
A1: =muni&" - "&Approve4 -> NC062 Nama Khoi - Table A4 Budgeted Financial Performance (revenue and expenditure)
A2: =desc -> Description | B2: =head27 -> Ref | C2: =head1b -> 2019/20 | D2: =head1A -> 2020/21 | E2: =Head1 -> 2021/22 | F2: =Head2 -> Current Year 2022/23 | J2: =Head3 -> 2023/24 Medium Term Revenue & Expenditure Framework | M2: =Head4 -> LTFS
A3: R thousand | B3: 1 | C3: =Head5 -> Audited Outcome | D3: =Head5 -> Audited Outcome | E3: =Head5 -> Audited Outcome | F3: =Head6 -> Original Budget | G3: =Head7 -> Adjusted Budget | H3: =Head8 -> Full Year Forecast | I3: =Head5b -> Pre-audit outcome | J3: =Head9 -> Budget Year 2023/24 | K3: =Head10 -> Budget Year +1 2024/25 | L3: =Head11 -> Budget Year +2 2025/26 | M3: =Head12 -> Forecast 2026/27 | N3: =Head13 -> Forecast 2027/28 | O3: =Head14 -> Forecast 2028/29 | P3: =Head15 -> Forecast 2029/30 | Q3: =Head16 -> Forecast 2030/31 | R3: =Head17 -> Forecast 2031/32 | S3: =Head18 -> Forecast 2032/33 | T3: =Head19 -> Forecast 2033/34 | U3: =Head20 -> Forecast 2034/35 | V3: =Head21 -> Forecast 2035/36 | W3: =Head22 -> Forecast 2036/37 | X3: =Head23 -> Forecast 2037/38
A4: Revenue
A5: Exchange Revenue
A6: Service charges - Electricity | B6: 2 | C6: ='SA1'!C17 -> 84892647 | D6: ='SA1'!D17 -> 90752990 | E6: ='SA1'!E17 -> 103761209 | F6: ='SA1'!F17 -> 129504984 | G6: ='SA1'!G17 -> 129492984 | H6: ='SA1'!H17 -> 129492984 | I6: ='SA1'!I17 -> 138372763 | J6: ='SA1'!J17 -> 149047037 | K6: ='SA1'!K17 -> 156535918 | L6: ='SA1'!L17 -> 164388291
A7: Service charges - Water | B7: 2 | C7: ='SA1'!C23 -> 31408078 | D7: ='SA1'!D23 -> 32532734 | E7: ='SA1'!E23 -> 37838547 | F7: ='SA1'!F23 -> 49718036 | G7: ='SA1'!G23 -> 49718036 | H7: ='SA1'!H23 -> 49718036 | I7: ='SA1'!I23 -> 61877539 | J7: ='SA1'!J23 -> 57175742 | K7: ='SA1'!K23 -> 59977354 | L7: ='SA1'!L23 -> 62796290
A8: Service charges - Waste Water Management | B8: 2 | C8: ='SA1'!C29 -> 11530545 | D8: ='SA1'!D29 -> 11796729 | E8: ='SA1'!E29 -> 12526911 | F8: ='SA1'!F29 -> 21098479 | G8: ='SA1'!G29 -> 21158480 | H8: ='SA1'!H29 -> 21158480 | I8: ='SA1'!I29 -> 32370506 | J8: ='SA1'!J29 -> 22427989 | K8: ='SA1'!K29 -> 23526961 | L8: ='SA1'!L29 -> 24632728
A9: Service charges - Waste Management | B9: 2 | C9: ='SA1'!C36 -> 13532458 | D9: ='SA1'!D36 -> 13439732 | E9: ='SA1'!E36 -> 14124561 | F9: ='SA1'!F36 -> 25062282 | G9: ='SA1'!G36 -> 25131782 | H9: ='SA1'!H36 -> 25131782 | I9: ='SA1'!I36 -> 39293772 | J9: ='SA1'!J36 -> 26639689 | K9: ='SA1'!K36 -> 27945033 | L9: ='SA1'!L36 -> 29258450
A10: Sale of Goods and Rendering of Services | C10: 652425 | D10: 609870 | E10: 658070 | F10: 642453 | G10: 751808 | H10: 751808 | I10: 751808 | J10: 791655 | K10: 830445 | L10: 869477
A11: Agency services | C11: 226101 | D11: 398436 | E11: 379203 | F11: 174003 | G11: 379703 | H11: 379703 | I11: 379703 | J11: 399827 | K11: 419418 | L11: 439131
A12: Interest | C12: 0 | D12: 0 | E12: 0 | F12: 0 | G12: 0 | H12: 0 | I12: 0 | J12: 0 | K12: 0 | L12: 0
A13: Interest earned from Receivables | C13: 9474063 | D13: 8866806 | E13: 10680956 | F13: 9565092 | G13: 14570092 | H13: 14570092 | I13: 14570092 | J13: 15342307 | K13: 16094080 | L13: 16850501
A14: Interest earned from Current and Non Current Assets | C14: 2007585 | D14: 1601701 | E14: 1330026 | F14: 1362992 | G14: 1979767 | H14: 1979767 | I14: 1979767 | J14: 2084695 | K14: 2186845 | L14: 2289627
A15: Dividends | C15: 0 | D15: 0 | E15: 0 | F15: 0 | G15: 0 | H15: 0 | I15: 0 | J15: 0 | K15: 0 | L15: 0
A16: Rent on Land | C16: 975586 | D16: 999592 | E16: 986997 | F16: 1134331 | G16: 1134331 | H16: 1134331 | I16: 1134331 | J16: 1194450 | K16: 1252978 | L16: 1311868
A17: Rental from Fixed Assets | C17: 3299984 | D17: 2802674 | E17: 2545993 | F17: 3013982 | G17: 3077172 | H17: 3077172 | I17: 3077172 | J17: 3240262 | K17: 3399035 | L17: 3558788
A18: Licence and permits | C18: 1125402 | D18: 1275795 | E18: 1334269 | F18: 1135020 | G18: 1506520 | H18: 1506520 | I18: 1506520 | J18: 1586366 | K18: 1662918 | L18: 1741076
A19: Operational Revenue | C19: 227192 | D19: 241263 | E19: 1527537 | F19: 303889 | G19: 322789 | H19: 322789 | I19: 322789 | J19: 339897 | K19: 356552 | L19: 373310
A20: Non-Exchange Revenue
A21: Property rates | B21: 2 | C21: ='SA1'!C10 -> 51321994 | D21: ='SA1'!D10 -> 49646671 | E21: ='SA1'!E10 -> 51698617 | F21: ='SA1'!F10 -> 55529192 | G21: ='SA1'!G10 -> 55048611 | H21: ='SA1'!H10 -> 55048611 | I21: ='SA1'!I10 -> 55048611 | J21: ='SA1'!J10 -> 57427711 | K21: ='SA1'!K10 -> 60241670 | L21: ='SA1'!L10 -> 63073031
A22: Surcharges and Taxes | C22: 0 | D22: 0 | E22: 0 | F22: 0 | G22: 0 | H22: 0 | I22: 0 | J22: 0 | K22: 0 | L22: 0
A23: Fines, penalties and forfeits | C23: 434533 | D23: 528287 | E23: 770273 | F23: 333872 | G23: 529525 | H23: 529525 | I23: 529525 | J23: 574854 | K23: 603022 | L23: 631365
A24: Licences or permits | C24: 0 | D24: 0 | E24: 0 | F24: 0 | G24: 0 | H24: 0 | I24: 0 | J24: 0 | K24: 0 | L24: 0
A25: Transfer and subsidies - Operational | C25: 52662581 | D25: 63982000 | E25: 58433520 | F25: 64422000 | G25: 64422000 | H25: 64422000 | I25: 64422000 | J25: 69179000 | K25: 71270000 | L25: 75052000
A26: Interest | C26: 2379801 | D26: 2148893 | E26: 2523455 | F26: 2476043 | G26: 3976043 | H26: 3976043 | I26: 3976043 | J26: 4186773 | K26: 4391925 | L26: 4598345
A27: Fuel Levy | C27: 0 | D27: 0 | E27: 0 | F27: 0 | G27: 0 | H27: 0 | I27: 0 | J27: 0 | K27: 0 | L27: 0
A28: Operational Revenue | C28: 0 | D28: 0 | E28: 0 | F28: 0 | G28: 0 | H28: 0 | I28: 0 | J28: 0 | K28: 0 | L28: 0
A29: Gains on disposal of Assets | C29: -1512252 | D29: 0 | E29: 0 | F29: 0 | G29: 0 | H29: 0 | I29: 0 | J29: 0 | K29: 0 | L29: 0
A30: Other Gains | C30: -560228 | D30: -438386 | E30: -39392 | F30: 0 | G30: 0 | H30: 0 | I30: 0 | J30: 0 | K30: 0 | L30: 0
A31: Discontinued Operations | C31: 0 | D31: 0 | E31: 0 | F31: 0 | G31: 0 | H31: 0 | I31: 0 | J31: 0 | K31: 0 | L31: 0
A32: Total Revenue (excluding capital transfers and contributions) | C32: =SUM(C6:C19)+SUM(C21:C31) -> 264078495 | D32: =SUM(D6:D19)+SUM(D21:D31) -> 281185787 | E32: 301080752 | F32: 365476650 | G32: 373199643 | H32: 373199643 | I32: 419612941 | J32: 411638254 | K32: 430694154 | L32: 451864278
A33: Expenditure
A34: Employee related costs | B34: 2 | C34: ='SA1'!C71 -> 96450893 | D34: ='SA1'!D71 -> 98930228 | E34: ='SA1'!E71 -> 101157705 | F34: ='SA1'!F71 -> 110696742 | G34: ='SA1'!G71 -> 100808695 | H34: ='SA1'!H71 -> 100808695 | I34: ='SA1'!I71 -> 100808695 | J34: ='SA1'!J71 -> 102966854 | K34: ='SA1'!K71 -> 108527063 | L34: ='SA1'!L71 -> 113826464 | M34: ='SA1'!M71 -> 0 | N34: ='SA1'!N71 -> 0 | O34: ='SA1'!O71 -> 0 | P34: ='SA1'!P71 -> 0 | Q34: ='SA1'!Q71 -> 0 | R34: ='SA1'!R71 -> 0 | S34: ='SA1'!S71 -> 0 | T34: ='SA1'!T71 -> 0
A35: Remuneration of councillors | C35: 6209299 | D35: 6144634 | E35: 6708123 | F35: 6758975 | G35: 7945598 | H35: 7945598 | I35: 7945598 | J35: 6758975 | K35: 7123960 | L35: 7508653
A36: Bulk purchases - electricity | B36: 2 | C36: ='SA1'!C88 -> 80068941 | D36: ='SA1'!D88 -> 85867667 | E36: ='SA1'!E88 -> 104477113 | F36: ='SA1'!F88 -> 90000000 | G36: ='SA1'!G88 -> 90000000 | H36: ='SA1'!H88 -> 90000000 | I36: ='SA1'!I88 -> 90000000 | J36: ='SA1'!J88 -> 138000000 | K36: ='SA1'!K88 -> 144762000 | L36: ='SA1'!L88 -> 151565814
A37: Inventory consumed | B37: 8 | C37: ='SA1'!C169 -> 51324514 | D37: ='SA1'!D169 -> 49061189 | E37: ='SA1'!E169 -> 39843581 | F37: ='SA1'!F169 -> 58199558 | G37: ='SA1'!G169 -> 59632762 | H37: ='SA1'!H169 -> 59632762 | I37: ='SA1'!I169 -> 59632762 | J37: ='SA1'!J169 -> 65596037 | K37: ='SA1'!K169 -> 68810243 | L37: ='SA1'!L169 -> 72044325
A38: Debt impairment | B38: 3 | C38: 41429662 | D38: 31979034 | E38: -6935560 | F38: 0 | G38: 0 | H38: 0 | I38: 0 | J38: 0 | K38: 0 | L38: 0
A39: Depreciation and amortisation | C39: ='SA1'!C83 -> 56749242 | D39: ='SA1'!D83 -> 65968627 | E39: ='SA1'!E83 -> 77774686 | F39: ='SA1'!F83 -> 41400782 | G39: ='SA1'!G83 -> 77774686 | H39: ='SA1'!H83 -> 77774686 | I39: ='SA1'!I83 -> 77774686 | J39: ='SA1'!J83 -> 81663419 | K39: ='SA1'!K83 -> 85664926 | L39: ='SA1'!L83 -> 89691177
A40: Interest | C40: 16572523 | D40: 12759556 | E40: 16726351 | F40: 1964233 | G40: 81000 | H40: 81000 | I40: 81000 | J40: 2702525 | K40: 2185000 | L40: 1655000
A41: Contracted services | C41: ='SA1'!C127 -> 14781194 | D41: ='SA1'!D127 -> 14056891 | E41: ='SA1'!E127 -> 18141967 | F41: ='SA1'!F127 -> 42297557 | G41: ='SA1'!G127 -> 42861265 | H41: ='SA1'!H127 -> 42861265 | I41: ='SA1'!I127 -> 42861265 | J41: ='SA1'!J127 -> 42469709 | K41: ='SA1'!K127 -> 43210746 | L41: ='SA1'!L127 -> 44432851
A42: Transfers and subsidies | C42: ='SA1'!C93 -> 0 | D42: ='SA1'!D93 -> 0 | E42: ='SA1'!E93 -> 0 | F42: ='SA1'!F93 -> 0 | G42: ='SA1'!G93 -> 0 | H42: ='SA1'!H93 -> 0 | I42: ='SA1'!I93 -> 0 | J42: ='SA1'!J93 -> 0 | K42: ='SA1'!K93 -> 0 | L42: ='SA1'!L93 -> 0
A43: Irrecoverable debts written off | C43: 0 | D43: 0 | E43: 0 | F43: 20879058 | G43: 20879058 | H43: 20879058 | I43: 20879058 | J43: 21985649 | K43: 23062945 | L43: 24146903
A44: Operational costs | C44: ='SA1'!C157 -> 21069640 | D44: ='SA1'!D157 -> 19396310 | E44: ='SA1'!E157 -> 21339563 | F44: ='SA1'!F157 -> 31144555 | G44: ='SA1'!G157 -> 40075003 | H44: ='SA1'!H157 -> 40075003 | I44: ='SA1'!I157 -> 40075003 | J44: ='SA1'!J157 -> 33559641 | K44: ='SA1'!K157 -> 33562378 | L44: ='SA1'!L157 -> 35139811
A45: Losses on disposal of Assets | C45: 565434 | D45: 9039901 | E45: 2806189 | F45: 0 | G45: 0 | H45: 0 | I45: 0 | J45: 0 | K45: 0 | L45: 0
A46: Other Losses | C46: 1885 | D46: 0 | E46: 8296229 | F46: 12796807 | G46: 7796807 | H46: 7796807 | I46: 7796807 | J46: 8420552 | K46: 8833159 | L46: 9248317
A47: Total Expenditure | C47: =SUM(C34:C46) -> 385223227 | D47: =SUM(D34:D46) -> 393204037 | E47: 390335947 | F47: 416138267 | G47: 447854874 | H47: 447854874 | I47: 447854874 | J47: 504123361 | K47: 525742420 | L47: 549259315 | M47: =SUM(M34:M46) -> 0 | N47: 0 | O47: 0 | P47: 0 | Q47: 0 | R47: 0 | S47: 0 | T47: 0 | U47: 0 | V47: 0 | W47: 0 | X47: 0
A48: Surplus/(Deficit) | C48: =C32-C47 -> -121144732 | D48: -112018250 | E48: -89255195 | F48: -50661617 | G48: -74655231 | H48: -74655231 | I48: -28241933 | J48: -92485107 | K48: -95048266 | L48: -97395037 | M48: =M32+M47 -> 0 | N48: 0 | O48: 0 | P48: 0 | Q48: 0 | R48: 0 | S48: 0 | T48: 0 | U48: 0 | V48: 0 | W48: 0 | X48: 0
A49: Transfers and subsidies - capital (monetary allocations) | B49: 6 | C49: 14424736 | D49: 29034221 | E49: 14745481 | F49: 41070000 | G49: 41070000 | H49: 41070000 | I49: 41070000 | J49: 36599000 | K49: 20461000 | L49: 19947000
A50: Transfers and subsidies - capital (in-kind) | B50: 6 | C50: 0 | D50: 0 | E50: 0 | F50: 0 | G50: 0 | H50: 0 | I50: 0 | J50: 0 | K50: 0 | L50: 0 | M50: 0
A51: Surplus/(Deficit) after capital transfers & contributions | C51: =SUM(C48:C50) -> -106719996 | D51: -82984029 | E51: -74509714 | F51: -9591617 | G51: -33585231 | H51: -33585231 | I51: 12828067 | J51: -55886107 | K51: -74587266 | L51: -77448037
A52: Income Tax | C52: 0 | D52: 0 | E52: 0 | F52: 0 | G52: 0 | H52: 0 | I52: 0 | J52: 0 | K52: 0 | L52: 0
A53: Surplus/(Deficit) after income tax | C53: =+C51-C52 -> -106719996 | D53: =+D51-D52 -> -82984029 | E53: -74509714 | F53: -9591617 | G53: -33585231 | H53: -33585231 | I53: 12828067 | J53: -55886107 | K53: -74587266 | L53: -77448037 | M53: 0 | N53: 0 | O53: 0 | P53: 0 | Q53: 0
A54: Share of Surplus/Deficit attributable to Joint Venture | C54: 0 | D54: 0 | E54: 0 | F54: 0 | G54: 0 | H54: 0 | I54: 0 | J54: 0 | K54: 0 | L54: 0
A55: Share of Surplus/Deficit attributable to Minorities | C55: 0 | D55: 0 | E55: 0 | F55: 0 | G55: 0 | H55: 0 | I55: 0 | J55: 0 | K55: 0 | L55: 0
A56: Surplus/(Deficit) attributable to municipality | C56: =SUM(C53:C55) -> -106719996 | D56: =SUM(D53:D55) -> -82984029 | E56: -74509714 | F56: -9591617 | G56: -33585231 | H56: -33585231 | I56: 12828067 | J56: -55886107 | K56: -74587266 | L56: -77448037 | M56: 0 | N56: 0 | O56: 0 | P56: 0 | Q56: 0
A57: Share of Surplus/Deficit attributable to Associate | B57: 7 | C57: 0 | D57: 0 | E57: 0 | F57: 0 | G57: 0 | H57: 0 | I57: 0 | J57: 0 | K57: 0 | L57: 0
A58: Intercompany/Parent subsidiary transactions | C58: 0 | D58: 0 | E58: 0 | F58: 0 | G58: 0 | H58: 0 | I58: 0 | J58: 0 | K58: 0 | L58: 0
A59: =result -> Surplus/(Deficit) for the year | B59: 1 | C59: =SUM(C56:C58) -> -106719996 | D59: =SUM(D56:D58) -> -82984029 | E59: -74509714 | F59: -9591617 | G59: -33585231 | H59: -33585231 | I59: 12828067 | J59: -55886107 | K59: -74587266 | L59: -77448037 | M59: 0 | N59: 0 | O59: 0 | P59: 0 | Q59: 0 | R59: =R35+R58 -> 0 | S59: 0 | T59: 0 | U59: 0 | V59: 0 | W59: 0 | X59: 0
A60: References
A61: 1. Classifications are revenue sources and expenditure type
A62: 2. Detail to be provided in Table SA1 | O62: =O59-'A4-FinPerf RE'!J59 -> 55886107 | P62: =P59-'A4-FinPerf RE'!K59 -> 74587266 | Q62: =Q59-'A4-FinPerf RE'!L59 -> 77448037
A63: 3. Debt impairment includes Impairment and Reversal of Impairment Losses
A64: 4. Expenditure type components previously shown under repairs and maintenance should be allocated back to the originating expenditure group/item; e.g. employee costs
A65: 5. Repairs & maintenance detailed in Table A9 and Table SA34c
A66: 6. Contributions are funds provided by external organisations to assist with infrastructure development; e.g. developer contributions (detail to be provided in Table SA1)
A67: 7. Equity method ( Includes Joint Ventures)
A68: 8. All materials consumed including water consumed and materials used in operations.

Sheet A5-Capex
A2: =Vdesc -> Vote Description | B2: =head27 -> Ref | C2: =head1b -> 2019/20 | D2: =head1A -> 2020/21 | E2: =Head1 -> 2021/22 | F2: =Head2 -> Current Year 2022/23 | J2: =Head3 -> 2023/24 Medium Term Revenue & Expenditure Framework
A3: R thousand | B3: 1 | C3: =Head5 -> Audited Outcome | D3: =Head5 -> Audited Outcome | E3: =Head5 -> Audited Outcome | F3: =Head6 -> Original Budget | G3: =Head7 -> Adjusted Budget | H3: =Head8 -> Full Year Forecast | I3: =Head5b -> Pre-audit outcome | J3: =Head9 -> Budget Year 2023/24 | K3: =Head10 -> Budget Year +1 2024/25 | L3: =Head11 -> Budget Year +2 2025/26
A4: Capital expenditure - Vote
A5: Multi-year expenditure to be appropriated | B5: 2
A6: =A5A!A6 -> Vote 8 - EXECUTIVE MAYOR AND COUNCIL (20: CS) | C6: =A5A!C6 -> 0 | D6: =A5A!D6 -> 0 | E6: =A5A!E6 -> 0 | F6: =A5A!F6 -> 0 | G6: =A5A!G6 -> 0 | H6: =A5A!H6 -> 0 | I6: =A5A!I6 -> 0 | J6: =A5A!J6 -> 0 | K6: =A5A!K6 -> 0 | L6: =A5A!L6 -> 0
A7: =A5A!A17 -> Vote 9 - MUNICIPAL MANAGER (21: CS) | C7: =A5A!C17 -> 0 | D7: =A5A!D17 -> 0 | E7: =A5A!E17 -> 0 | F7: =A5A!F17 -> 0 | G7: =A5A!G17 -> 0 | H7: =A5A!H17 -> 0 | I7: =A5A!I17 -> 0 | J7: =A5A!J17 -> 0 | K7: =A5A!K17 -> 0 | L7: =A5A!L17 -> 0
A8: =A5A!A28 -> Vote 10 - CORPORATE SERVICES (23: CS) | C8: =A5A!C28 -> 0 | D8: =A5A!D28 -> 0 | E8: =A5A!E28 -> 0 | F8: =A5A!F28 -> 0 | G8: =A5A!G28 -> 0 | H8: =A5A!H28 -> 0 | I8: =A5A!I28 -> 0 | J8: =A5A!J28 -> 0 | K8: =A5A!K28 -> 0 | L8: =A5A!L28 -> 0
A9: =A5A!A39 -> Vote 11 - COMMUNITY SERVICES: COMM DEV (26: CS) | C9: =A5A!C39 -> 0 | D9: =A5A!D39 -> 0 | E9: =A5A!E39 -> 0 | F9: =A5A!F39 -> 0 | G9: =A5A!G39 -> 0 | H9: =A5A!H39 -> 0 | I9: =A5A!I39 -> 0 | J9: =A5A!J39 -> 0 | K9: =A5A!K39 -> 0 | L9: =A5A!L39 -> 0
A10: =A5A!A50 -> Vote 12 - INFRASTRUCTURE,ENG AND TECHNICAL (28: CS) | C10: =A5A!C50 -> 0 | D10: =A5A!D50 -> 0 | E10: =A5A!E50 -> 0 | F10: =A5A!F50 -> 0 | G10: =A5A!G50 -> 0 | H10: =A5A!H50 -> 0 | I10: =A5A!I50 -> 0 | J10: =A5A!J50 -> 0 | K10: =A5A!K50 -> 0 | L10: =A5A!L50 -> 0
A11: =A5A!A61 -> Vote 6 - COMMUNITY SERVICES: PUBLSAFETY (17: IE) | C11: =A5A!C61 -> 0 | D11: =A5A!D61 -> 0 | E11: =A5A!E61 -> 0 | F11: =A5A!F61 -> 0 | G11: =A5A!G61 -> 0 | H11: =A5A!H61 -> 0 | I11: =A5A!I61 -> 0 | J11: =A5A!J61 -> 0 | K11: =A5A!K61 -> 0 | L11: =A5A!L61 -> 0
A12: =A5A!A72 -> Vote 7 - INFRASTRUCTURE,ENG AND TECHNICAL (18: IE) | C12: =A5A!C72 -> 0 | D12: =A5A!D72 -> 0 | E12: =A5A!E72 -> 0 | F12: =A5A!F72 -> 0 | G12: =A5A!G72 -> 0 | H12: =A5A!H72 -> 0 | I12: =A5A!I72 -> 0 | J12: =A5A!J72 -> 0 | K12: =A5A!K72 -> 0 | L12: =A5A!L72 -> 0
A13: =A5A!A83 -> Vote 8 - EXECUTIVE MAYOR AND COUNCIL (20: CS) | C13: =A5A!C83 -> 0 | D13: =A5A!D83 -> 0 | E13: =A5A!E83 -> 0 | F13: =A5A!F83 -> 0 | G13: =A5A!G83 -> 0 | H13: =A5A!H83 -> 0 | I13: =A5A!I83 -> 0 | J13: =A5A!J83 -> 0 | K13: =A5A!K83 -> 0 | L13: =A5A!L83 -> 0
A14: =A5A!A94 -> Vote 9 - MUNICIPAL MANAGER (21: CS) | C14: =A5A!C94 -> 0 | D14: =A5A!D94 -> 0 | E14: =A5A!E94 -> 0 | F14: =A5A!F94 -> 0 | G14: =A5A!G94 -> 0 | H14: =A5A!H94 -> 0 | I14: =A5A!I94 -> 0 | J14: =A5A!J94 -> 0 | K14: =A5A!K94 -> 0 | L14: =A5A!L94 -> 0
A15: =A5A!A105 -> Vote 10 - CORPORATE SERVICES (23: CS) | C15: =A5A!C105 -> 0 | D15: =A5A!D105 -> 0 | E15: =A5A!E105 -> 0 | F15: =A5A!F105 -> 0 | G15: =A5A!G105 -> 0 | H15: =A5A!H105 -> 0 | I15: =A5A!I105 -> 0 | J15: =A5A!J105 -> 0 | K15: =A5A!K105 -> 0 | L15: =A5A!L105 -> 0
A16: =A5A!A116 -> Vote 11 - COMMUNITY SERVICES: COMM DEV (26: CS) | C16: =A5A!C116 -> 0 | D16: =A5A!D116 -> 0 | E16: =A5A!E116 -> 0 | F16: =A5A!F116 -> 0 | G16: =A5A!G116 -> 0 | H16: =A5A!H116 -> 0 | I16: =A5A!I116 -> 0 | J16: =A5A!J116 -> 0 | K16: =A5A!K116 -> 0 | L16: =A5A!L116 -> 0
A17: =A5A!A127 -> Vote 12 - INFRASTRUCTURE,ENG AND TECHNICAL (28: CS) | C17: =A5A!C127 -> 0 | D17: =A5A!D127 -> 0 | E17: =A5A!E127 -> 0 | F17: =A5A!F127 -> 0 | G17: =A5A!G127 -> 0 | H17: =A5A!H127 -> 0 | I17: =A5A!I127 -> 0 | J17: =A5A!J127 -> 0 | K17: =A5A!K127 -> 0 | L17: =A5A!L127 -> 0
A18: =A5A!A138 -> Vote 13 - 0 | C18: =A5A!C138 -> 0 | D18: =A5A!D138 -> 0 | E18: =A5A!E138 -> 0 | F18: =A5A!F138 -> 0 | G18: =A5A!G138 -> 0 | H18: =A5A!H138 -> 0 | I18: =A5A!I138 -> 0 | J18: =A5A!J138 -> 0 | K18: =A5A!K138 -> 0 | L18: =A5A!L138 -> 0
A19: =A5A!A149 -> Vote 14 - 0 | C19: =A5A!C149 -> 0 | D19: =A5A!D149 -> 0 | E19: =A5A!E149 -> 0 | F19: =A5A!F149 -> 0 | G19: =A5A!G149 -> 0 | H19: =A5A!H149 -> 0 | I19: =A5A!I149 -> 0 | J19: =A5A!J149 -> 0 | K19: =A5A!K149 -> 0 | L19: =A5A!L149 -> 0
A20: =A5A!A160 -> Vote 15 - 0 | C20: =A5A!C160 -> 0 | D20: =A5A!D160 -> 0 | E20: =A5A!E160 -> 0 | F20: =A5A!F160 -> 0 | G20: =A5A!G160 -> 0 | H20: =A5A!H160 -> 0 | I20: =A5A!I160 -> 0 | J20: =A5A!J160 -> 0 | K20: =A5A!K160 -> 0 | L20: =A5A!L160 -> 0
A21: =A5A!A171 -> 0 | C21: =A5A!C171 -> 0 | D21: =A5A!D171 -> 0 | E21: =A5A!E171 -> 0 | F21: =A5A!F171 -> 0 | G21: =A5A!G171 -> 0 | H21: =A5A!H171 -> 0 | I21: =A5A!I171 -> 0 | J21: =A5A!J171 -> 0 | K21: =A5A!K171 -> 0 | L21: =A5A!L171 -> 0
A22: =A5A!A182 -> 0 | C22: =A5A!C182 -> 0 | D22: =A5A!D182 -> 0 | E22: =A5A!E182 -> 0 | F22: =A5A!F182 -> 0 | G22: =A5A!G182 -> 0 | H22: =A5A!H182 -> 0 | I22: =A5A!I182 -> 0 | J22: =A5A!J182 -> 0 | K22: =A5A!K182 -> 0 | L22: =A5A!L182 -> 0
A23: =A5A!A193 -> 0 | C23: =A5A!C193 -> 0 | D23: =A5A!D193 -> 0 | E23: =A5A!E193 -> 0 | F23: =A5A!F193 -> 0 | G23: =A5A!G193 -> 0 | H23: =A5A!H193 -> 0 | I23: =A5A!I193 -> 0 | J23: =A5A!J193 -> 0 | K23: =A5A!K193 -> 0 | L23: =A5A!L193 -> 0
A24: =A5A!A204 -> 0 | C24: =A5A!C204 -> 0 | D24: =A5A!D204 -> 0 | E24: =A5A!E204 -> 0 | F24: =A5A!F204 -> 0 | G24: =A5A!G204 -> 0 | H24: =A5A!H204 -> 0 | I24: =A5A!I204 -> 0 | J24: =A5A!J204 -> 0 | K24: =A5A!K204 -> 0 | L24: =A5A!L204 -> 0
A25: =A5A!A215 -> 0 | C25: =A5A!C215 -> 0 | D25: =A5A!D215 -> 0 | E25: =A5A!E215 -> 0 | F25: =A5A!F215 -> 0 | G25: =A5A!G215 -> 0 | H25: =A5A!H215 -> 0 | I25: =A5A!I215 -> 0 | J25: =A5A!J215 -> 0 | K25: =A5A!K215 -> 0 | L25: =A5A!L215 -> 0
A26: =A5A!A226 -> 0 | C26: =A5A!C226 -> 0 | D26: =A5A!D226 -> 0 | E26: =A5A!E226 -> 0 | F26: =A5A!F226 -> 0 | G26: =A5A!G226 -> 0 | H26: =A5A!H226 -> 0 | I26: =A5A!I226 -> 0 | J26: =A5A!J226 -> 0 | K26: =A5A!K226 -> 0 | L26: =A5A!L226 -> 0
A27: =A5A!A237 -> 0 | C27: =A5A!C237 -> 0 | D27: =A5A!D237 -> 0 | E27: =A5A!E237 -> 0 | F27: =A5A!F237 -> 0 | G27: =A5A!G237 -> 0 | H27: =A5A!H237 -> 0 | I27: =A5A!I237 -> 0 | J27: =A5A!J237 -> 0 | K27: =A5A!K237 -> 0 | L27: =A5A!L237 -> 0
A28: =A5A!A248 -> 0 | C28: =A5A!C248 -> 0 | D28: =A5A!D248 -> 0 | E28: =A5A!E248 -> 0 | F28: =A5A!F248 -> 0 | G28: =A5A!G248 -> 0 | H28: =A5A!H248 -> 0 | I28: =A5A!I248 -> 0 | J28: =A5A!J248 -> 0 | K28: =A5A!K248 -> 0 | L28: =A5A!L248 -> 0
A29: =A5A!A259 -> 0 | C29: =A5A!C259 -> 0 | D29: =A5A!D259 -> 0 | E29: =A5A!E259 -> 0 | F29: =A5A!F259 -> 0 | G29: =A5A!G259 -> 0 | H29: =A5A!H259 -> 0 | I29: =A5A!I259 -> 0 | J29: =A5A!J259 -> 0 | K29: =A5A!K259 -> 0 | L29: =A5A!L259 -> 0
A30: =A5A!A270 -> 0 | C30: =A5A!C270 -> 0 | D30: =A5A!D270 -> 0 | E30: =A5A!E270 -> 0 | F30: =A5A!F270 -> 0 | G30: =A5A!G270 -> 0 | H30: =A5A!H270 -> 0 | I30: =A5A!I270 -> 0 | J30: =A5A!J270 -> 0 | K30: =A5A!K270 -> 0 | L30: =A5A!L270 -> 0
A31: =A5A!A281 -> 0 | C31: =A5A!C281 -> 0 | D31: =A5A!D281 -> 0 | E31: =A5A!E281 -> 0 | F31: =A5A!F281 -> 0 | G31: =A5A!G281 -> 0 | H31: =A5A!H281 -> 0 | I31: =A5A!I281 -> 0 | J31: =A5A!J281 -> 0 | K31: =A5A!K281 -> 0 | L31: =A5A!L281 -> 0
A32: =A5A!A292 -> 0 | C32: =A5A!C292 -> 0 | D32: =A5A!D292 -> 0 | E32: =A5A!E292 -> 0 | F32: =A5A!F292 -> 0 | G32: =A5A!G292 -> 0 | H32: =A5A!H292 -> 0 | I32: =A5A!I292 -> 0 | J32: =A5A!J292 -> 0 | K32: =A5A!K292 -> 0 | L32: =A5A!L292 -> 0
A33: =A5A!A303 -> 0 | C33: =A5A!C303 -> 0 | D33: =A5A!D303 -> 0 | E33: =A5A!E303 -> 0 | F33: =A5A!F303 -> 0 | G33: =A5A!G303 -> 0 | H33: =A5A!H303 -> 0 | I33: =A5A!I303 -> 0 | J33: =A5A!J303 -> 0 | K33: =A5A!K303 -> 0 | L33: =A5A!L303 -> 0
A34: =A5A!A314 -> 0 | C34: =A5A!C314 -> 0 | D34: =A5A!D314 -> 0 | E34: =A5A!E314 -> 0 | F34: =A5A!F314 -> 0 | G34: =A5A!G314 -> 0 | H34: =A5A!H314 -> 0 | I34: =A5A!I314 -> 0 | J34: =A5A!J314 -> 0 | K34: =A5A!K314 -> 0 | L34: =A5A!L314 -> 0
A35: =A5A!A325 -> 0 | C35: =A5A!C325 -> 0 | D35: =A5A!D325 -> 0 | E35: =A5A!E325 -> 0 | F35: =A5A!F325 -> 0 | G35: =A5A!G325 -> 0 | H35: =A5A!H325 -> 0 | I35: =A5A!I325 -> 0 | J35: =A5A!J325 -> 0 | K35: =A5A!K325 -> 0 | L35: =A5A!L325 -> 0
A36: =A5A!A336 -> 0 | C36: =A5A!C336 -> 0 | D36: =A5A!D336 -> 0 | E36: =A5A!E336 -> 0 | F36: =A5A!F336 -> 0 | G36: =A5A!G336 -> 0 | H36: =A5A!H336 -> 0 | I36: =A5A!I336 -> 0 | J36: =A5A!J336 -> 0 | K36: =A5A!K336 -> 0 | L36: =A5A!L336 -> 0
A37: =A5A!A347 -> 0 | C37: =A5A!C347 -> 0 | D37: =A5A!D347 -> 0 | E37: =A5A!E347 -> 0 | F37: =A5A!F347 -> 0 | G37: =A5A!G347 -> 0 | H37: =A5A!H347 -> 0 | I37: =A5A!I347 -> 0 | J37: =A5A!J347 -> 0 | K37: =A5A!K347 -> 0 | L37: =A5A!L347 -> 0
A38: =A5A!A358 -> 0 | C38: =A5A!C358 -> 0 | D38: =A5A!D358 -> 0 | E38: =A5A!E358 -> 0 | F38: =A5A!F358 -> 0 | G38: =A5A!G358 -> 0 | H38: =A5A!H358 -> 0 | I38: =A5A!I358 -> 0 | J38: =A5A!J358 -> 0 | K38: =A5A!K358 -> 0 | L38: =A5A!L358 -> 0
A39: =A5A!A369 -> 0 | C39: =A5A!C369 -> 0 | D39: =A5A!D369 -> 0 | E39: =A5A!E369 -> 0 | F39: =A5A!F369 -> 0 | G39: =A5A!G369 -> 0 | H39: =A5A!H369 -> 0 | I39: =A5A!I369 -> 0 | J39: =A5A!J369 -> 0 | K39: =A5A!K369 -> 0 | L39: =A5A!L369 -> 0
A40: =A5A!A380 -> 0 | C40: =A5A!C380 -> 0 | D40: =A5A!D380 -> 0 | E40: =A5A!E380 -> 0 | F40: =A5A!F380 -> 0 | G40: =A5A!G380 -> 0 | H40: =A5A!H380 -> 0 | I40: =A5A!I380 -> 0 | J40: =A5A!J380 -> 0 | K40: =A5A!K380 -> 0 | L40: =A5A!L380 -> 0
A41: =A5A!A391 -> 0 | C41: =A5A!C391 -> 0 | D41: =A5A!D391 -> 0 | E41: =A5A!E391 -> 0 | F41: =A5A!F391 -> 0 | G41: =A5A!G391 -> 0 | H41: =A5A!H391 -> 0 | I41: =A5A!I391 -> 0 | J41: =A5A!J391 -> 0 | K41: =A5A!K391 -> 0 | L41: =A5A!L391 -> 0
A42: =A5A!A402 -> 0 | C42: =A5A!C402 -> 0 | D42: =A5A!D402 -> 0 | E42: =A5A!E402 -> 0 | F42: =A5A!F402 -> 0 | G42: =A5A!G402 -> 0 | H42: =A5A!H402 -> 0 | I42: =A5A!I402 -> 0 | J42: =A5A!J402 -> 0 | K42: =A5A!K402 -> 0 | L42: =A5A!L402 -> 0
A43: =A5A!A413 -> 0 | C43: =A5A!C413 -> 0 | D43: =A5A!D413 -> 0 | E43: =A5A!E413 -> 0 | F43: =A5A!F413 -> 0 | G43: =A5A!G413 -> 0 | H43: =A5A!H413 -> 0 | I43: =A5A!I413 -> 0 | J43: =A5A!J413 -> 0 | K43: =A5A!K413 -> 0 | L43: =A5A!L413 -> 0
A44: =A5A!A424 -> 0 | C44: =A5A!C424 -> 0 | D44: =A5A!D424 -> 0 | E44: =A5A!E424 -> 0 | F44: =A5A!F424 -> 0 | G44: =A5A!G424 -> 0 | H44: =A5A!H424 -> 0 | I44: =A5A!I424 -> 0 | J44: =A5A!J424 -> 0 | K44: =A5A!K424 -> 0 | L44: =A5A!L424 -> 0
A45: Capital multi-year expenditure sub-total | B45: 7 | C45: =SUM(C6:C44) -> 0 | D45: 0 | E45: 0 | F45: 0 | G45: 0 | H45: 0 | I45: 0 | J45: 0 | K45: 0 | L45: 0
A47: Single-year expenditure to be appropriated | B47: 2
A48: =A6 -> Vote 8 - EXECUTIVE MAYOR AND COUNCIL (20: CS) | C48: =A5A!C439 -> 0 | D48: =A5A!D439 -> 0 | E48: =A5A!E439 -> 0 | F48: =A5A!F439 -> 25000000 | G48: =A5A!G439 -> 25000000 | H48: =A5A!H439 -> 25000000 | I48: =A5A!I439 -> 25000000 | J48: =A5A!J439 -> 17100000 | K48: =A5A!K439 -> 0 | L48: =A5A!L439 -> 0
A49: Vote 9 - MUNICIPAL MANAGER (21: CS) | C49: =A5A!C450 -> -61981 | D49: =A5A!D450 -> 0 | E49: =A5A!E450 -> 0 | F49: =A5A!F450 -> 270000 | G49: =A5A!G450 -> 1311625 | H49: =A5A!H450 -> 1311625 | I49: =A5A!I450 -> 1311625 | J49: =A5A!J450 -> 0 | K49: =A5A!K450 -> 0 | L49: =A5A!L450 -> 0
A50: Vote 10 - CORPORATE SERVICES (23: CS) | C50: =A5A!C461 -> 140359 | D50: =A5A!D461 -> 0 | E50: =A5A!E461 -> 0 | F50: =A5A!F461 -> 0 | G50: =A5A!G461 -> 0 | H50: =A5A!H461 -> 0 | I50: =A5A!I461 -> 0 | J50: =A5A!J461 -> 0 | K50: =A5A!K461 -> 0 | L50: =A5A!L461 -> 0
A51: Vote 11 - COMMUNITY SERVICES: COMM DEV (26: CS) | C51: =A5A!C472 -> 121845 | D51: =A5A!D472 -> 0 | E51: =A5A!E472 -> 0 | F51: =A5A!F472 -> 1000000 | G51: =A5A!G472 -> 0 | H51: =A5A!H472 -> 0 | I51: =A5A!I472 -> 0 | J51: =A5A!J472 -> 0 | K51: =A5A!K472 -> 0 | L51: =A5A!L472 -> 0
A52: Vote 12 - INFRASTRUCTURE,ENG AND TECHNICAL (28: CS) | C52: =A5A!C483 -> 10481502 | D52: =A5A!D483 -> 0 | E52: =A5A!E483 -> 0 | F52: =A5A!F483 -> 45150000 | G52: =A5A!G483 -> 45500000 | H52: =A5A!H483 -> 45500000 | I52: =A5A!I483 -> 45500000 | J52: =A5A!J483 -> 38799000 | K52: =A5A!K483 -> 20461000 | L52: =A5A!L483 -> 19947000
A53: Vote 6 - COMMUNITY SERVICES: PUBLSAFETY (17: IE) | C53: =A5A!C494 -> 0 | D53: =A5A!D494 -> 0 | E53: =A5A!E494 -> 0 | F53: =A5A!F494 -> 0 | G53: =A5A!G494 -> 0 | H53: =A5A!H494 -> 0 | I53: =A5A!I494 -> 0 | J53: =A5A!J494 -> 0 | K53: =A5A!K494 -> 0 | L53: =A5A!L494 -> 0
A54: Vote 7 - INFRASTRUCTURE,ENG AND TECHNICAL (18: IE) | C54: =A5A!C505 -> 0 | D54: =A5A!D505 -> 0 | E54: =A5A!E505 -> 0 | F54: =A5A!F505 -> 0 | G54: =A5A!G505 -> 0 | H54: =A5A!H505 -> 0 | I54: =A5A!I505 -> 0 | J54: =A5A!J505 -> 0 | K54: =A5A!K505 -> 0 | L54: =A5A!L505 -> 0
A55: Vote 8 - EXECUTIVE MAYOR AND COUNCIL (20: CS) | C55: =A5A!C516 -> 0 | D55: =A5A!D516 -> 0 | E55: =A5A!E516 -> 0 | F55: =A5A!F516 -> 0 | G55: =A5A!G516 -> 0 | H55: =A5A!H516 -> 0 | I55: =A5A!I516 -> 0 | J55: =A5A!J516 -> 0 | K55: =A5A!K516 -> 0 | L55: =A5A!L516 -> 0
A56: Vote 9 - MUNICIPAL MANAGER (21: CS) | C56: =A5A!C527 -> 0 | D56: =A5A!D527 -> 0 | E56: =A5A!E527 -> 0 | F56: =A5A!F527 -> 0 | G56: =A5A!G527 -> 0 | H56: =A5A!H527 -> 0 | I56: =A5A!I527 -> 0 | J56: =A5A!J527 -> 0 | K56: =A5A!K527 -> 0 | L56: =A5A!L527 -> 0
A57: Vote 10 - CORPORATE SERVICES (23: CS) | C57: =A5A!C538 -> 0 | D57: =A5A!D538 -> 0 | E57: =A5A!E538 -> 0 | F57: =A5A!F538 -> 0 | G57: =A5A!G538 -> 0 | H57: =A5A!H538 -> 0 | I57: =A5A!I538 -> 0 | J57: =A5A!J538 -> 0 | K57: =A5A!K538 -> 0 | L57: =A5A!L538 -> 0
A58: Vote 11 - COMMUNITY SERVICES: COMM DEV (26: CS) | C58: =A5A!C549 -> 0 | D58: =A5A!D549 -> 0 | E58: =A5A!E549 -> 0 | F58: =A5A!F549 -> 0 | G58: =A5A!G549 -> 0 | H58: =A5A!H549 -> 0 | I58: =A5A!I549 -> 0 | J58: =A5A!J549 -> 0 | K58: =A5A!K549 -> 0 | L58: =A5A!L549 -> 0
A59: Vote 12 - INFRASTRUCTURE,ENG AND TECHNICAL (28: CS) | C59: =A5A!C560 -> 0 | D59: =A5A!D560 -> 0 | E59: =A5A!E560 -> 0 | F59: =A5A!F560 -> 0 | G59: =A5A!G560 -> 0 | H59: =A5A!H560 -> 0 | I59: =A5A!I560 -> 0 | J59: =A5A!J560 -> 0 | K59: =A5A!K560 -> 0 | L59: =A5A!L560 -> 0
A60: Vote 13 - 0 | C60: =A5A!C571 -> 0 | D60: =A5A!D571 -> 0 | E60: =A5A!E571 -> 0 | F60: =A5A!F571 -> 0 | G60: =A5A!G571 -> 0 | H60: =A5A!H571 -> 0 | I60: =A5A!I571 -> 0 | J60: =A5A!J571 -> 0 | K60: =A5A!K571 -> 0 | L60: =A5A!L571 -> 0
A61: Vote 14 - 0 | C61: =A5A!C582 -> 0 | D61: =A5A!D582 -> 0 | E61: =A5A!E582 -> 0 | F61: =A5A!F582 -> 0 | G61: =A5A!G582 -> 0 | H61: =A5A!H582 -> 0 | I61: =A5A!I582 -> 0 | J61: =A5A!J582 -> 0 | K61: =A5A!K582 -> 0 | L61: =A5A!L582 -> 0
A62: Vote 15 - 0 | C62: =A5A!C593 -> 0 | D62: =A5A!D593 -> 0 | E62: =A5A!E593 -> 0 | F62: =A5A!F593 -> 0 | G62: =A5A!G593 -> 0 | H62: =A5A!H593 -> 0 | I62: =A5A!I593 -> 0 | J62: =A5A!J593 -> 0 | K62: =A5A!K593 -> 0 | L62: =A5A!L593 -> 0
A63: 0 | C63: =A5A!C604 -> 0 | D63: =A5A!D604 -> 0 | E63: =A5A!E604 -> 0 | F63: =A5A!F604 -> 0 | G63: =A5A!G604 -> 0 | H63: =A5A!H604 -> 0 | I63: =A5A!I604 -> 0 | J63: =A5A!J604 -> 0 | K63: =A5A!K604 -> 0 | L63: =A5A!L604 -> 0
A64: 0 | C64: =A5A!C615 -> 0 | D64: =A5A!D615 -> 0 | E64: =A5A!E615 -> 0 | F64: =A5A!F615 -> 0 | G64: =A5A!G615 -> 0 | H64: =A5A!H615 -> 0 | I64: =A5A!I615 -> 0 | J64: =A5A!J615 -> 0 | K64: =A5A!K615 -> 0 | L64: =A5A!L615 -> 0
A65: 0 | C65: =A5A!C626 -> 0 | D65: =A5A!D626 -> 0 | E65: =A5A!E626 -> 0 | F65: =A5A!F626 -> 0 | G65: =A5A!G626 -> 0 | H65: =A5A!H626 -> 0 | I65: =A5A!I626 -> 0 | J65: =A5A!J626 -> 0 | K65: =A5A!K626 -> 0 | L65: =A5A!L626 -> 0
A66: 0 | C66: =A5A!C637 -> 0 | D66: =A5A!D637 -> 0 | E66: =A5A!E637 -> 0 | F66: =A5A!F637 -> 0 | G66: =A5A!G637 -> 0 | H66: =A5A!H637 -> 0 | I66: =A5A!I637 -> 0 | J66: =A5A!J637 -> 0 | K66: =A5A!K637 -> 0 | L66: =A5A!L637 -> 0
A67: 0 | C67: =A5A!C648 -> 0 | D67: =A5A!D648 -> 0 | E67: =A5A!E648 -> 0 | F67: =A5A!F648 -> 0 | G67: =A5A!G648 -> 0 | H67: =A5A!H648 -> 0 | I67: =A5A!I648 -> 0 | J67: =A5A!J648 -> 0 | K67: =A5A!K648 -> 0 | L67: =A5A!L648 -> 0
A68: 0 | C68: =A5A!C659 -> 0 | D68: =A5A!D659 -> 0 | E68: =A5A!E659 -> 0 | F68: =A5A!F659 -> 0 | G68: =A5A!G659 -> 0 | H68: =A5A!H659 -> 0 | I68: =A5A!I659 -> 0 | J68: =A5A!J659 -> 0 | K68: =A5A!K659 -> 0 | L68: =A5A!L659 -> 0
A69: 0 | C69: =A5A!C670 -> 0 | D69: =A5A!D670 -> 0 | E69: =A5A!E670 -> 0 | F69: =A5A!F670 -> 0 | G69: =A5A!G670 -> 0 | H69: =A5A!H670 -> 0 | I69: =A5A!I670 -> 0 | J69: =A5A!J670 -> 0 | K69: =A5A!K670 -> 0 | L69: =A5A!L670 -> 0
A70: 0 | C70: =A5A!C681 -> 0 | D70: =A5A!D681 -> 0 | E70: =A5A!E681 -> 0 | F70: =A5A!F681 -> 0 | G70: =A5A!G681 -> 0 | H70: =A5A!H681 -> 0 | I70: =A5A!I681 -> 0 | J70: =A5A!J681 -> 0 | K70: =A5A!K681 -> 0 | L70: =A5A!L681 -> 0
A71: 0 | C71: =A5A!C692 -> 0 | D71: =A5A!D692 -> 0 | E71: =A5A!E692 -> 0 | F71: =A5A!F692 -> 0 | G71: =A5A!G692 -> 0 | H71: =A5A!H692 -> 0 | I71: =A5A!I692 -> 0 | J71: =A5A!J692 -> 0 | K71: =A5A!K692 -> 0 | L71: =A5A!L692 -> 0
A72: 0 | C72: =A5A!C703 -> 0 | D72: =A5A!D703 -> 0 | E72: =A5A!E703 -> 0 | F72: =A5A!F703 -> 0 | G72: =A5A!G703 -> 0 | H72: =A5A!H703 -> 0 | I72: =A5A!I703 -> 0 | J72: =A5A!J703 -> 0 | K72: =A5A!K703 -> 0 | L72: =A5A!L703 -> 0
A73: 0 | C73: =A5A!C714 -> 0 | D73: =A5A!D714 -> 0 | E73: =A5A!E714 -> 0 | F73: =A5A!F714 -> 0 | G73: =A5A!G714 -> 0 | H73: =A5A!H714 -> 0 | I73: =A5A!I714 -> 0 | J73: =A5A!J714 -> 0 | K73: =A5A!K714 -> 0 | L73: =A5A!L714 -> 0
A74: 0 | C74: =A5A!C725 -> 0 | D74: =A5A!D725 -> 0 | E74: =A5A!E725 -> 0 | F74: =A5A!F725 -> 0 | G74: =A5A!G725 -> 0 | H74: =A5A!H725 -> 0 | I74: =A5A!I725 -> 0 | J74: =A5A!J725 -> 0 | K74: =A5A!K725 -> 0 | L74: =A5A!L725 -> 0
A75: 0 | C75: =A5A!C736 -> 0 | D75: =A5A!D736 -> 0 | E75: =A5A!E736 -> 0 | F75: =A5A!F736 -> 0 | G75: =A5A!G736 -> 0 | H75: =A5A!H736 -> 0 | I75: =A5A!I736 -> 0 | J75: =A5A!J736 -> 0 | K75: =A5A!K736 -> 0 | L75: =A5A!L736 -> 0
A76: 0 | C76: =A5A!C747 -> 0 | D76: =A5A!D747 -> 0 | E76: =A5A!E747 -> 0 | F76: =A5A!F747 -> 0 | G76: =A5A!G747 -> 0 | H76: =A5A!H747 -> 0 | I76: =A5A!I747 -> 0 | J76: =A5A!J747 -> 0 | K76: =A5A!K747 -> 0 | L76: =A5A!L747 -> 0
A77: 0 | C77: =A5A!C758 -> 0 | D77: =A5A!D758 -> 0 | E77: =A5A!E758 -> 0 | F77: =A5A!F758 -> 0 | G77: =A5A!G758 -> 0 | H77: =A5A!H758 -> 0 | I77: =A5A!I758 -> 0 | J77: =A5A!J758 -> 0 | K77: =A5A!K758 -> 0 | L77: =A5A!L758 -> 0
A78: 0 | C78: =A5A!C769 -> 0 | D78: =A5A!D769 -> 0 | E78: =A5A!E769 -> 0 | F78: =A5A!F769 -> 0 | G78: =A5A!G769 -> 0 | H78: =A5A!H769 -> 0 | I78: =A5A!I769 -> 0 | J78: =A5A!J769 -> 0 | K78: =A5A!K769 -> 0 | L78: =A5A!L769 -> 0
A79: 0 | C79: =A5A!C780 -> 0 | D79: =A5A!D780 -> 0 | E79: =A5A!E780 -> 0 | F79: =A5A!F780 -> 0 | G79: =A5A!G780 -> 0 | H79: =A5A!H780 -> 0 | I79: =A5A!I780 -> 0 | J79: =A5A!J780 -> 0 | K79: =A5A!K780 -> 0 | L79: =A5A!L780 -> 0
A80: 0 | C80: =A5A!C791 -> 0 | D80: =A5A!D791 -> 0 | E80: =A5A!E791 -> 0 | F80: =A5A!F791 -> 0 | G80: =A5A!G791 -> 0 | H80: =A5A!H791 -> 0 | I80: =A5A!I791 -> 0 | J80: =A5A!J791 -> 0 | K80: =A5A!K791 -> 0 | L80: =A5A!L791 -> 0
A81: 0 | C81: =A5A!C802 -> 0 | D81: =A5A!D802 -> 0 | E81: =A5A!E802 -> 0 | F81: =A5A!F802 -> 0 | G81: =A5A!G802 -> 0 | H81: =A5A!H802 -> 0 | I81: =A5A!I802 -> 0 | J81: =A5A!J802 -> 0 | K81: =A5A!K802 -> 0 | L81: =A5A!L802 -> 0
A82: 0 | C82: =A5A!C813 -> 0 | D82: =A5A!D813 -> 0 | E82: =A5A!E813 -> 0 | F82: =A5A!F813 -> 0 | G82: =A5A!G813 -> 0 | H82: =A5A!H813 -> 0 | I82: =A5A!I813 -> 0 | J82: =A5A!J813 -> 0 | K82: =A5A!K813 -> 0 | L82: =A5A!L813 -> 0
A83: 0 | C83: =A5A!C824 -> 0 | D83: =A5A!D824 -> 0 | E83: =A5A!E824 -> 0 | F83: =A5A!F824 -> 0 | G83: =A5A!G824 -> 0 | H83: =A5A!H824 -> 0 | I83: =A5A!I824 -> 0 | J83: =A5A!J824 -> 0 | K83: =A5A!K824 -> 0 | L83: =A5A!L824 -> 0
A84: 0 | C84: =A5A!C835 -> 0 | D84: =A5A!D835 -> 0 | E84: =A5A!E835 -> 0 | F84: =A5A!F835 -> 0 | G84: =A5A!G835 -> 0 | H84: =A5A!H835 -> 0 | I84: =A5A!I835 -> 0 | J84: =A5A!J835 -> 0 | K84: =A5A!K835 -> 0 | L84: =A5A!L835 -> 0
A85: 0 | C85: =A5A!C846 -> 0 | D85: =A5A!D846 -> 0 | E85: =A5A!E846 -> 0 | F85: =A5A!F846 -> 0 | G85: =A5A!G846 -> 0 | H85: =A5A!H846 -> 0 | I85: =A5A!I846 -> 0 | J85: =A5A!J846 -> 0 | K85: =A5A!K846 -> 0 | L85: =A5A!L846 -> 0
A86: 0 | C86: =A5A!C857 -> 0 | D86: =A5A!D857 -> 0 | E86: =A5A!E857 -> 0 | F86: =A5A!F857 -> 0 | G86: =A5A!G857 -> 0 | H86: =A5A!H857 -> 0 | I86: =A5A!I857 -> 0 | J86: =A5A!J857 -> 0 | K86: =A5A!K857 -> 0 | L86: =A5A!L857 -> 0
A87: Capital single-year expenditure sub-total | C87: =SUM(C48:C86) -> 10681725 | D87: 0 | E87: 0 | F87: 71420000 | G87: 71811625 | H87: 71811625 | I87: 71811625 | J87: 55899000 | K87: 20461000 | L87: 19947000
A88: Total Capital Expenditure - Vote | C88: =C87+C45 -> 10681725 | D88: 0 | E88: 0 | F88: 71420000 | G88: 71811625 | H88: 71811625 | I88: 71811625 | J88: 55899000 | K88: 20461000 | L88: 19947000
A90: Capital Expenditure - Functional
A91: Governance and administration | C91: =SUM(C92:C94) -> 0 | D91: =SUM(D92:D94) -> 0 | E91: 0 | F91: 25000000 | G91: 25000000 | H91: 25000000 | I91: 25000000 | J91: 17100000 | K91: 0 | L91: 0
A92: Executive and council | C92: 0 | D92: 0 | E92: 0 | F92: 25000000 | G92: 25000000 | H92: 25000000 | I92: 25000000 | J92: 17100000 | K92: 0 | L92: 0
A93: Finance and administration | C93: 0 | D93: 0 | E93: 0 | F93: 0 | G93: 0 | H93: 0 | I93: 0 | J93: 0 | K93: 0 | L93: 0
A94: Internal audit | C94: 0 | D94: 0 | E94: 0 | F94: 0 | G94: 0 | H94: 0 | I94: 0 | J94: 0 | K94: 0 | L94: 0
A95: Community and public safety | C95: =SUM(C96:C100) -> 121845 | D95: =SUM(D96:D100) -> 0 | E95: 0 | F95: 0 | G95: 0 | H95: 0 | I95: 0 | J95: 0 | K95: 0 | L95: 0
A96: Community and social services | C96: 0 | D96: 0 | E96: 0 | F96: 0 | G96: 0 | H96: 0 | I96: 0 | J96: 0 | K96: 0 | L96: 0
A97: Sport and recreation | C97: 0 | D97: 0 | E97: 0 | F97: 0 | G97: 0 | H97: 0 | I97: 0 | J97: 0 | K97: 0 | L97: 0
A98: Public safety | C98: 0 | D98: 0 | E98: 0 | F98: 0 | G98: 0 | H98: 0 | I98: 0 | J98: 0 | K98: 0 | L98: 0
A99: Housing | C99: 121845 | D99: 0 | E99: 0 | F99: 0 | G99: 0 | H99: 0 | I99: 0 | J99: 0 | K99: 0 | L99: 0
A100: Health | C100: 0 | D100: 0 | E100: 0 | F100: 0 | G100: 0 | H100: 0 | I100: 0 | J100: 0 | K100: 0 | L100: 0
A101: Economic and environmental services | C101: =SUM(C102:C104) -> 4308159 | D101: =SUM(D102:D104) -> 0 | E101: 0 | F101: 350000 | G101: 1391625 | H101: 1391625 | I101: 1391625 | J101: 0 | K101: 0 | L101: 0
A102: Planning and development | C102: -61981 | D102: 0 | E102: 0 | F102: 270000 | G102: 1311625 | H102: 1311625 | I102: 1311625 | J102: 0 | K102: 0 | L102: 0
A103: Road transport | C103: 4370140 | D103: 0 | E103: 0 | F103: 80000 | G103: 80000 | H103: 80000 | I103: 80000 | J103: 0 | K103: 0 | L103: 0
A104: Environmental protection | C104: 0 | D104: 0 | E104: 0 | F104: 0 | G104: 0 | H104: 0 | I104: 0 | J104: 0 | K104: 0 | L104: 0
A105: Trading services | C105: =SUM(C106:C109) -> 6049381 | D105: =SUM(D106:D109) -> 0 | E105: 0 | F105: 46070000 | G105: 45420000 | H105: 45420000 | I105: 45420000 | J105: 38799000 | K105: 20461000 | L105: 19947000
A106: Energy sources | C106: 5364501 | D106: 0 | E106: 0 | F106: 7000000 | G106: 7350000 | H106: 7350000 | I106: 7350000 | J106: 1600000 | K106: 3300000 | L106: 2200000
A107: Water management | C107: 7146333 | D107: 0 | E107: 0 | F107: 6070000 | G107: 7160857 | H107: 7160857 | I107: 7160857 | J107: 600000 | K107: 0 | L107: 0
A108: Waste water management | C108: -6461453 | D108: 0 | E108: 0 | F108: 32000000 | G108: 30909143 | H108: 30909143 | I108: 30909143 | J108: 36599000 | K108: 17161000 | L108: 17747000
A109: Waste management | C109: 0 | D109: 0 | E109: 0 | F109: 1000000 | G109: 0 | H109: 0 | I109: 0 | J109: 0 | K109: 0 | L109: 0
A110: Other | C110: 0 | D110: 0 | E110: 0 | F110: 0 | G110: 0 | H110: 0 | I110: 0 | J110: 0 | K110: 0 | L110: 0
A111: Total Capital Expenditure - Functional | B111: 3 | C111: =C91+C95+C101+C105+C110 -> 10479385 | D111: =D91+D95+D101+D105+D110 -> 0 | E111: 0 | F111: 71420000 | G111: 71811625 | H111: 71811625 | I111: 71811625 | J111: 55899000 | K111: 20461000 | L111: =L91+L95+L101+L105+L110 -> 19947000
A113: Funded by:
A114: National Government | C114: 10385714 | D114: 0 | E114: 0 | F114: 41070000 | G114: 41070000 | H114: 41070000 | I114: 41070000 | J114: 36599000 | K114: 20461000 | L114: 19947000
A115: Provincial Government | C115: 0 | D115: 0 | E115: 0 | F115: 0 | G115: 0 | H115: 0 | I115: 0 | J115: 0 | K115: 0 | L115: 0
A116: District Municipality | C116: 0 | D116: 0 | E116: 0 | F116: 0 | G116: 0 | H116: 0 | I116: 0 | J116: 0 | K116: 0 | L116: 0
A117: ='A4-FinPerf RE'!A50 -> Transfers and subsidies - capital (in-kind) | C117: 0 | D117: 0 | E117: 0 | F117: 0 | G117: 0 | H117: 0 | I117: 0 | J117: 0 | K117: 0 | L117: 0
A118: Transfers recognised - capital | B118: 4 | C118: =SUM(C114:C117) -> 10385714 | D118: 0 | E118: 0 | F118: 41070000 | G118: 41070000 | H118: 41070000 | I118: 41070000 | J118: 36599000 | K118: 20461000 | L118: 19947000
A120: Borrowing | B120: 6 | C120: 0 | D120: 0 | E120: 0 | F120: 25000000 | G120: 25000000 | H120: 25000000 | I120: 25000000 | J120: 0 | K120: 0 | L120: 0
A121: Internally generated funds | C121: 155652 | D121: 0 | E121: 0 | F121: 5350000 | G121: 5741625 | H121: 5741625 | I121: 5741625 | J121: 19300000 | K121: 0 | L121: 0
A122: Total Capital Funding | B122: 7 | C122: =+C118+C120+C121 -> 10541366 | D122: =+D118+D120+D121 -> 0 | E122: 0 | F122: 71420000 | G122: 71811625 | H122: 71811625 | I122: 71811625 | J122: 55899000 | K122: 20461000 | L122: 19947000
A123: =head27a -> References
A124: 1. Municipalities may choose to appropriate for capital expenditure for three years or for one year (if one year appropriation projected expenditure required for yr2 and yr3).
A125: 2. Include capital component of PPP unitary payment. Note that capital transfers are only appropriated to municipalities for the budget year
A126: 3. Capital expenditure by functional classification must reconcile to the appropriations by vote
A127: 4. Must reconcile to supporting table SA20 and to Budgeted Financial Performance (revenue and expenditure)
A129: 6. Include finance leases and PPP capital funding component of unitary payment - total borrowing/repayments to reconcile to changes in Table SA17
A130: 7. Total Capital Funding must balance with Total Capital Expenditure
A131: 8. Include any capitalised interest (MFMA section 46) as part of relevant capital budget
A133: check balance | C133: =IF((C111-C122)=0,0,"Unbalanced") -> Unbalanced | D133: =IF((D111-D122)=0,0,"Unbalanced") -> 0 | E133: 0 | F133: 0 | G133: 0 | H133: 0 | I133: 0 | J133: 0 | K133: 0 | L133: 0

Sheet A5A
A1: =muni&" - "&Approve5 -> NC062 Nama Khoi - Table A5 Budgeted Capital Expenditure by vote, functional classification and funding
A2: =Vdesc -> Vote Description | B2: =head27 -> Ref | C2: =head1b -> 2019/20 | D2: =head1A -> 2020/21 | E2: =Head1 -> 2021/22 | F2: =Head2 -> Current Year 2022/23 | J2: =Head3 -> 2023/24 Medium Term Revenue & Expenditure Framework | N2: ="Multi-year appropriation for "&Head9& " in the "&Head2A&" Annual Budget" -> Multi-year appropriation for Budget Year 2023/24 in the 2022/23 Annual Budget | R2: ="Multi-year appropriation for "&RIGHT(Head10,7)& " in the "&Head2A&" Annual Budget" -> Multi-year appropriation for 2024/25 in the 2022/23 Annual Budget | V2: New multi-year appropriations (funds for new and existing projects)
A3: R thousand | B3: 1 | C3: =Head5 -> Audited Outcome | D3: =Head5 -> Audited Outcome | E3: =Head5 -> Audited Outcome | F3: =Head6 -> Original Budget | G3: =Head7 -> Adjusted Budget | H3: =Head8 -> Full Year Forecast | I3: =Head5b -> Pre-audit outcome | J3: =Head9 -> Budget Year 2023/24 | K3: =Head10 -> Budget Year +1 2024/25 | L3: =Head11 -> Budget Year +2 2025/26 | N3: ="Appropriation for "&RIGHT(Head9,7) -> Appropriation for 2023/24 | O3: ="Adjustments in "&Head2A -> Adjustments in 2022/23 | P3: ="Downward adjustments for "&RIGHT(Head9,7) -> Downward adjustments for 2023/24 | Q3: Appropriation carried forward | R3: ="Appropriation for "&RIGHT(Head9,7) -> Appropriation for 2023/24 | S3: ="Adjustments in "&Head2A -> Adjustments in 2022/23 | T3: ="Downward adjustments for "&RIGHT(Head9,7) -> Downward adjustments for 2023/24 | U3: Appropriation carried forward | V3: =Head9 -> Budget Year 2023/24 | W3: =Head10 -> Budget Year +1 2024/25 | X3: =Head11 -> Budget Year +2 2025/26
A4: Capital expenditure - Municipal Vote
A5: Multi-year expenditure appropriation | B5: 2
A6: ='Org structure'!A9 -> Vote 8 - EXECUTIVE MAYOR AND COUNCIL (20: CS) | C6: =SUM(C7:C16) -> 0 | D6: =SUM(D7:D16) -> 0 | E6: 0 | F6: 0 | G6: 0 | H6: 0 | I6: =SUM(I7:I16) -> 0 | J6: 0 | K6: 0 | L6: 0 | N6: =SUM(N7:N16) -> 0 | O6: 0 | P6: 0 | Q6: 0 | R6: 0 | S6: 0 | T6: 0 | U6: 0 | V6: =SUM(V7:V16) -> 0 | W6: =SUM(W7:W16) -> 0 | X6: =SUM(X7:X16) -> 0
A7: ='Org structure'!E87 -> 8.1 - OFFICE OF THE MAYOR (701) | C7: 0 | D7: 0 | E7: 0 | F7: 0 | G7: 0 | H7: 0 | I7: 0 | J7: 0 | K7: 0 | L7: 0 | N7: 0 | O7: 0 | P7: 0 | Q7: =SUM(N7:P7) -> 0 | R7: 0 | S7: 0 | T7: 0 | U7: =SUM(R7:T7) -> 0 | V7: 0 | W7: 0 | X7: 0
A8: ='Org structure'!E88 -> 8.2 - COUNCIL GENERAL ADMIN (704) | C8: 0 | D8: 0 | E8: 0 | F8: 0 | G8: 0 | H8: 0 | I8: 0 | J8: 0 | K8: 0 | L8: 0 | N8: 0 | O8: 0 | P8: 0 | Q8: =SUM(N8:P8) -> 0 | R8: 0 | S8: 0 | T8: 0 | U8: =SUM(R8:T8) -> 0 | V8: 0 | W8: 0 | X8: 0
A9: ='Org structure'!E5 -> 1.3 - MAYORAL,WARD AND CNCL COMMITTEES (203) | C9: 0 | D9: 0 | E9: 0 | F9: 0 | G9: 0 | H9: 0 | I9: 0 | J9: =Q9+V9 -> 0 | K9: =U9+W9 -> 0 | L9: =X9 -> 0 | N9: 0 | O9: 0 | P9: 0 | Q9: 0 | R9: 0 | S9: 0 | T9: 0 | U9: 0 | V9: 0 | W9: 0 | X9: 0
A10: ='Org structure'!E6 -> 1.4 - COUNCIL GENERAL ADMIN (204) | C10: 0 | D10: 0 | E10: 0 | F10: 0 | G10: 0 | H10: 0 | I10: 0 | J10: 0 | K10: 0 | L10: 0 | N10: 0 | O10: 0 | P10: 0 | Q10: 0 | R10: 0 | S10: 0 | T10: 0 | U10: 0 | V10: 0 | W10: 0 | X10: 0
A11: ='Org structure'!E7 -> 1.5 - COUNCIL SALARIES AND ALLOWANCES (205) | C11: 0 | D11: 0 | E11: 0 | F11: 0 | G11: 0 | H11: 0 | I11: 0 | J11: 0 | K11: 0 | L11: =X11 -> 0 | N11: 0 | O11: 0 | P11: 0 | Q11: 0 | R11: 0 | S11: 0 | T11: 0 | U11: 0 | V11: 0 | W11: 0 | X11: 0
A12: ='Org structure'!E8 -> 0 | C12: 0 | D12: 0 | E12: 0 | F12: 0 | G12: 0 | H12: 0 | I12: 0 | J12: 0 | K12: 0 | L12: 0 | N12: 0 | O12: 0 | P12: 0 | Q12: 0 | R12: 0 | S12: 0 | T12: 0 | U12: 0 | V12: 0 | W12: 0 | X12: 0
A13: ='Org structure'!E9 -> 0 | C13: 0 | D13: 0 | E13: 0 | F13: 0 | G13: 0 | H13: 0 | I13: 0 | J13: 0 | K13: 0 | L13: 0 | N13: 0 | O13: 0 | P13: 0 | Q13: 0 | R13: 0 | S13: 0 | T13: 0 | U13: 0 | V13: 0 | W13: 0 | X13: 0
A14: ='Org structure'!E10 -> 0 | C14: 0 | D14: 0 | E14: 0 | F14: 0 | G14: 0 | H14: 0 | I14: 0 | J14: 0 | K14: 0 | L14: 0 | N14: 0 | O14: 0 | P14: 0 | Q14: 0 | R14: 0 | S14: 0 | T14: 0 | U14: 0 | V14: 0 | W14: 0 | X14: 0
A15: ='Org structure'!E11 -> 0 | C15: 0 | D15: 0 | E15: 0 | F15: 0 | G15: 0 | H15: 0 | I15: 0 | J15: 0 | K15: 0 | L15: 0 | N15: 0 | O15: 0 | P15: 0 | Q15: 0 | R15: 0 | S15: 0 | T15: 0 | U15: 0 | V15: 0 | W15: 0 | X15: 0
A16: ='Org structure'!E12 -> 0 | C16: 0 | D16: 0 | E16: 0 | F16: 0 | G16: 0 | H16: 0 | I16: 0 | J16: 0 | K16: 0 | L16: 0 | N16: 0 | O16: 0 | P16: 0 | Q16: 0 | R16: 0 | S16: 0 | T16: 0 | U16: 0 | V16: 0 | W16: 0 | X16: 0
A17: ='Org structure'!A10 -> Vote 9 - MUNICIPAL MANAGER (21: CS) | C17: =SUM(C18:C27) -> 0 | D17: =SUM(D18:D27) -> 0 | E17: 0 | F17: 0 | G17: 0 | H17: 0 | I17: =SUM(I18:I27) -> 0 | J17: 0 | K17: 0 | L17: 0 | N17: =SUM(N18:N27) -> 0 | O17: 0 | P17: 0 | Q17: 0 | R17: 0 | S17: 0 | T17: 0 | U17: 0 | V17: 0 | W17: 0 | X17: 0
A18: ='Org structure'!E98 -> 9.1 - LOCAL ECONOMIC DEVELOPMT AND IGR (724) | C18: 0 | D18: 0 | E18: 0 | F18: 0 | G18: 0 | H18: 0 | I18: 0 | J18: 0 | K18: 0 | L18: 0 | N18: 0 | O18: 0 | P18: 0 | Q18: =SUM(N18:P18) -> 0 | R18: 0 | S18: 0 | T18: 0 | U18: 0 | V18: 0 | W18: 0 | X18: 0
A19: ='Org structure'!E99 -> 9.2 - PLANNING AND DEVELOPMENT (731) | C19: 0 | D19: 0 | E19: 0 | F19: 0 | G19: 0 | H19: 0 | I19: 0 | J19: 0 | K19: 0 | L19: 0 | N19: 0 | O19: 0 | P19: 0 | Q19: 0 | R19: 0 | S19: 0 | T19: 0 | U19: 0 | V19: 0 | W19: 0 | X19: 0
A20: ='Org structure'!E16 -> 2.3 - INTEGRATED DEVELOPMENT PLAN (223) | C20: 0 | D20: 0 | E20: 0 | F20: 0 | G20: 0 | H20: 0 | I20: 0 | J20: =Q20+V20 -> 0 | K20: =U20+W20 -> 0 | L20: =X20 -> 0 | N20: 0 | O20: 0 | P20: 0 | Q20: 0 | R20: 0 | S20: 0 | T20: 0 | U20: 0 | V20: 0 | W20: 0 | X20: 0
A21: ='Org structure'!E17 -> 2.4 - LOCAL ECONOMIC DEVELOPMT AND IGR (224) | C21: 0 | D21: 0 | E21: 0 | F21: 0 | G21: 0 | H21: 0 | I21: 0 | J21: 0 | K21: =U21+W21 -> 0 | L21: 0 | N21: 0 | O21: 0 | P21: 0 | Q21: 0 | R21: 0 | S21: 0 | T21: 0 | U21: 0 | V21: 0 | W21: 0 | X21: 0
A22: ='Org structure'!E18 -> 2.5 - MUSEUM (229) | C22: 0 | D22: 0 | E22: 0 | F22: 0 | G22: 0 | H22: 0 | I22: 0 | J22: 0 | K22: 0 | L22: 0 | N22: 0 | O22: 0 | P22: 0 | Q22: 0 | R22: 0 | S22: 0 | T22: 0 | U22: 0 | V22: 0 | W22: 0 | X22: 0
A23: ='Org structure'!E19 -> 2.6 - DISASTER AND RISK MANAGEMENT (231) | C23: 0 | D23: 0 | E23: 0 | F23: 0 | G23: 0 | H23: 0 | I23: 0 | J23: 0 | K23: 0 | L23: 0 | N23: 0 | O23: 0 | P23: 0 | Q23: 0 | R23: 0 | S23: 0 | T23: 0 | U23: 0 | V23: 0 | W23: 0 | X23: 0
A24: ='Org structure'!E20 -> 2.7 - PERFORMANCE MANAGEMENT (232) | C24: 0 | D24: 0 | E24: 0 | F24: 0 | G24: 0 | H24: 0 | I24: 0 | J24: 0 | K24: 0 | L24: 0 | N24: 0 | O24: 0 | P24: 0 | Q24: 0 | R24: 0 | S24: 0 | T24: 0 | U24: 0 | V24: 0 | W24: 0 | X24: 0
A25: ='Org structure'!E21 -> 2.8 - PLANNING AND DEVELOPMENT (234) | C25: 0 | D25: 0 | E25: 0 | F25: 0 | G25: 0 | H25: 0 | I25: 0 | J25: 0 | K25: 0 | L25: 0 | N25: 0 | O25: 0 | P25: 0 | Q25: 0 | R25: 0 | S25: 0 | T25: 0 | U25: 0 | V25: 0 | W25: 0 | X25: 0
A26: ='Org structure'!E22 -> 2.9 - WATER SERVICE (368) | C26: 0 | D26: 0 | E26: 0 | F26: 0 | G26: 0 | H26: 0 | I26: 0 | J26: 0 | K26: 0 | L26: 0 | N26: 0 | O26: 0 | P26: 0 | Q26: 0 | R26: 0 | S26: 0 | T26: 0 | U26: 0 | V26: 0 | W26: 0 | X26: 0
A27: ='Org structure'!E23 -> 0 | C27: 0 | D27: 0 | E27: 0 | F27: 0 | G27: 0 | H27: 0 | I27: 0 | J27: 0 | K27: 0 | L27: 0 | N27: 0 | O27: 0 | P27: 0 | Q27: 0 | R27: 0 | S27: 0 | T27: 0 | U27: 0 | V27: 0 | W27: 0 | X27: 0
A28: ='Org structure'!A11 -> Vote 10 - CORPORATE SERVICES (23: CS) | C28: =SUM(C29:C38) -> 0 | D28: =SUM(D29:D38) -> 0 | E28: 0 | F28: 0 | G28: 0 | H28: 0 | I28: =SUM(I29:I38) -> 0 | J28: 0 | K28: 0 | L28: 0 | N28: =SUM(N29:N38) -> 0 | O28: 0 | P28: 0 | Q28: 0 | R28: 0 | S28: 0 | T28: 0 | U28: 0 | V28: 0 | W28: 0 | X28: 0
A29: ='Org structure'!E109 -> 10.1 - INFORMATION TECHNOLOGY (727) | C29: 0 | D29: 0 | E29: 0 | F29: 0 | G29: 0 | H29: 0 | I29: 0 | J29: 0 | K29: 0 | L29: 0 | N29: 0 | O29: 0 | P29: 0 | Q29: =SUM(N29:P29) -> 0 | R29: 0 | S29: 0 | T29: 0 | U29: 0 | V29: 0 | W29: 0 | X29: 0
A30: ='Org structure'!E110 -> 10.2 - MANAGER: CORPORATE SERVICES (761) | C30: 0 | D30: 0 | E30: 0 | F30: 0 | G30: 0 | H30: 0 | I30: 0 | J30: 0 | K30: 0 | L30: 0 | N30: 0 | O30: 0 | P30: 0 | Q30: 0 | R30: 0 | S30: 0 | T30: 0 | U30: 0 | V30: 0 | W30: 0 | X30: 0
A31: ='Org structure'!E111 -> 10.3 - MUNICIPAL PROPERTY MANAGEMENT (766) | C31: 0 | D31: 0 | E31: 0 | F31: 0 | G31: 0 | H31: 0 | I31: 0 | J31: 0 | K31: 0 | L31: 0 | N31: 0 | O31: 0 | P31: 0 | Q31: 0 | R31: 0 | S31: 0 | T31: 0 | U31: =SUM(R31:T31) -> 0 | V31: 0 | W31: 0 | X31: 0
A32: ='Org structure'!E112 -> 10.4 - INFORMATION AND COMMUNICATION TECHNOLOGY (768) | C32: 0 | D32: 0 | E32: 0 | F32: 0 | G32: 0 | H32: 0 | I32: 0 | J32: 0 | K32: 0 | L32: 0 | N32: 0 | O32: 0 | P32: 0 | Q32: 0 | R32: 0 | S32: 0 | T32: 0 | U32: 0 | V32: 0 | W32: 0 | X32: 0
A33: ='Org structure'!E29 -> 3.5 - CLEANING SERVICE MUN OFFICES (267) | C33: 0 | D33: 0 | E33: 0 | F33: 0 | G33: 0 | H33: 0 | I33: 0 | J33: =Q33+V33 -> 0 | K33: =U33+W33 -> 0 | L33: =X33 -> 0 | N33: 0 | O33: 0 | P33: 0 | Q33: 0 | R33: 0 | S33: 0 | T33: 0 | U33: 0 | V33: 0 | W33: 0 | X33: 0
A34: ='Org structure'!E30 -> 3.6 - INFORMATION AND COMMUNICATION TECHNOLOGY (268) | C34: 0 | D34: 0 | E34: 0 | F34: 0 | G34: 0 | H34: 0 | I34: 0 | J34: =Q34+V34 -> 0 | K34: 0 | L34: 0 | N34: 0 | O34: 0 | P34: 0 | Q34: 0 | R34: 0 | S34: 0 | T34: 0 | U34: 0 | V34: 0 | W34: 0 | X34: 0
A35: ='Org structure'!E31 -> 0 | C35: 0 | D35: 0 | E35: 0 | F35: 0 | G35: 0 | H35: 0 | I35: 0 | J35: 0 | K35: 0 | L35: 0 | N35: 0 | O35: 0 | P35: 0 | Q35: 0 | R35: 0 | S35: 0 | T35: 0 | U35: 0 | V35: 0 | W35: 0 | X35: 0
A36: ='Org structure'!E32 -> 0 | C36: 0 | D36: 0 | E36: 0 | F36: 0 | G36: 0 | H36: 0 | I36: 0 | J36: 0 | K36: 0 | L36: 0 | N36: 0 | O36: 0 | P36: 0 | Q36: 0 | R36: 0 | S36: 0 | T36: 0 | U36: 0 | V36: 0 | W36: 0 | X36: 0
A37: ='Org structure'!E33 -> 0 | C37: 0 | D37: 0 | E37: 0 | F37: 0 | G37: 0 | H37: 0 | I37: 0 | J37: 0 | K37: 0 | L37: 0 | N37: 0 | O37: 0 | P37: 0 | Q37: 0 | R37: 0 | S37: 0 | T37: 0 | U37: 0 | V37: 0 | W37: 0 | X37: 0
A38: ='Org structure'!E34 -> 0 | C38: 0 | D38: 0 | E38: 0 | F38: 0 | G38: 0 | H38: 0 | I38: 0 | J38: 0 | K38: 0 | L38: 0 | N38: 0 | O38: 0 | P38: 0 | Q38: 0 | R38: 0 | S38: 0 | T38: 0 | U38: 0 | V38: 0 | W38: 0 | X38: 0
A39: ='Org structure'!A12 -> Vote 11 - COMMUNITY SERVICES: COMM DEV (26: CS) | C39: =SUM(C40:C49) -> 0 | D39: =SUM(D40:D49) -> 0 | E39: 0 | F39: 0 | G39: 0 | H39: 0 | I39: =SUM(I40:I49) -> 0 | J39: 0 | K39: 0 | L39: 0 | N39: =SUM(N40:N49) -> 0 | O39: 0 | P39: 0 | Q39: 0 | R39: 0 | S39: 0 | T39: 0 | U39: 0 | V39: 0 | W39: 0 | X39: 0
A40: ='Org structure'!E120 -> 11.1 - MANAGER: COMMUNITY DEVELOPMENT (818) | C40: 0 | D40: 0 | E40: 0 | F40: 0 | G40: 0 | H40: 0 | I40: 0 | J40: 0 | K40: 0 | L40: 0 | N40: 0 | O40: 0 | P40: 0 | Q40: =SUM(N40:P40) -> 0 | R40: 0 | S40: 0 | T40: 0 | U40: 0 | V40: 0 | W40: 0 | X40: 0
A41: ='Org structure'!E121 -> 11.2 - CEMETERIES (824) | C41: 0 | D41: 0 | E41: 0 | F41: 0 | G41: 0 | H41: 0 | I41: 0 | J41: 0 | K41: 0 | L41: 0 | N41: 0 | O41: 0 | P41: 0 | Q41: 0 | R41: 0 | S41: 0 | T41: 0 | U41: 0 | V41: 0 | W41: 0 | X41: 0
A42: ='Org structure'!E122 -> 11.3 - SPORTS FACILITIES (827) | C42: 0 | D42: 0 | E42: 0 | F42: 0 | G42: 0 | H42: 0 | I42: 0 | J42: 0 | K42: 0 | L42: 0 | N42: 0 | O42: 0 | P42: 0 | Q42: 0 | R42: 0 | S42: 0 | T42: 0 | U42: 0 | V42: 0 | W42: 0 | X42: 0
A43: ='Org structure'!E123 -> 11.4 - REFUSE REM AND WASTE MANAGEMENT (828) | C43: 0 | D43: 0 | E43: 0 | F43: 0 | G43: 0 | H43: 0 | I43: 0 | J43: 0 | K43: 0 | L43: 0 | N43: 0 | O43: 0 | P43: 0 | Q43: 0 | R43: 0 | S43: 0 | T43: 0 | U43: 0 | V43: 0 | W43: 0 | X43: 0
A44: ='Org structure'!E40 -> 4.5 - PROP RATES AND VALUATION SERVICE (305) | C44: 0 | D44: 0 | E44: 0 | F44: 0 | G44: 0 | H44: 0 | I44: 0 | J44: =Q44+V44 -> 0 | K44: =U44+W44 -> 0 | L44: =X44 -> 0 | N44: 0 | O44: 0 | P44: 0 | Q44: 0 | R44: 0 | S44: 0 | T44: 0 | U44: 0 | V44: 0 | W44: 0 | X44: 0
A45: ='Org structure'!E41 -> 4.6 - EXPENDITURE (306) | C45: 0 | D45: 0 | E45: 0 | F45: 0 | G45: 0 | H45: 0 | I45: 0 | J45: 0 | K45: 0 | L45: 0 | N45: 0 | O45: 0 | P45: 0 | Q45: 0 | R45: 0 | S45: 0 | T45: 0 | U45: 0 | V45: 0 | W45: 0 | X45: 0
A46: ='Org structure'!E42 -> 4.7 - MANAGER: FINANCIAL SERVICES (501) | C46: 0 | D46: 0 | E46: 0 | F46: 0 | G46: 0 | H46: 0 | I46: 0 | J46: 0 | K46: 0 | L46: 0 | N46: 0 | O46: 0 | P46: 0 | Q46: 0 | R46: 0 | S46: 0 | T46: 0 | U46: 0 | V46: 0 | W46: 0 | X46: 0
A47: ='Org structure'!E43 -> 0 | C47: 0 | D47: 0 | E47: 0 | F47: 0 | G47: 0 | H47: 0 | I47: 0 | J47: 0 | K47: 0 | L47: 0 | N47: 0 | O47: 0 | P47: 0 | Q47: 0 | R47: 0 | S47: 0 | T47: 0 | U47: 0 | V47: 0 | W47: 0 | X47: 0
A48: ='Org structure'!E44 -> 0 | C48: 0 | D48: 0 | E48: 0 | F48: 0 | G48: 0 | H48: 0 | I48: 0 | J48: 0 | K48: 0 | L48: 0 | N48: 0 | O48: 0 | P48: 0 | Q48: 0 | R48: 0 | S48: 0 | T48: 0 | U48: 0 | V48: 0 | W48: 0 | X48: 0
A49: ='Org structure'!E45 -> 0 | C49: 0 | D49: 0 | E49: 0 | F49: 0 | G49: 0 | H49: 0 | I49: 0 | J49: 0 | K49: 0 | L49: 0 | N49: 0 | O49: 0 | P49: 0 | Q49: 0 | R49: 0 | S49: 0 | T49: 0 | U49: 0 | V49: 0 | W49: 0 | X49: 0
A50: ='Org structure'!A13 -> Vote 12 - INFRASTRUCTURE,ENG AND TECHNICAL (28: CS) | C50: =SUM(C51:C60) -> 0 | D50: =SUM(D51:D60) -> 0 | E50: 0 | F50: 0 | G50: 0 | H50: 0 | I50: =SUM(I51:I60) -> 0 | J50: 0 | K50: 0 | L50: 0 | N50: =SUM(N51:N60) -> 0 | O50: 0 | P50: 0 | Q50: 0 | R50: 0 | S50: 0 | T50: 0 | U50: 0 | V50: 0 | W50: 0 | X50: 0
A51: ='Org structure'!E131 -> 12.1 - ELECTRICAL ENGINEERING SERVICE (863) | C51: 0 | D51: 0 | E51: 0 | F51: 0 | G51: 0 | H51: 0 | I51: 0 | J51: 0 | K51: 0 | L51: 0 | N51: 0 | O51: 0 | P51: 0 | Q51: =SUM(N51:P51) -> 0 | R51: 0 | S51: 0 | T51: 0 | U51: 0 | V51: 0 | W51: 0 | X51: 0
A52: ='Org structure'!E132 -> 12.2 - MECHANICAL ENG SERV: WORKSHOPS (865) | C52: 0 | D52: 0 | E52: 0 | F52: 0 | G52: 0 | H52: 0 | I52: 0 | J52: 0 | K52: 0 | L52: 0 | N52: 0 | O52: 0 | P52: 0 | Q52: 0 | R52: 0 | S52: 0 | T52: 0 | U52: 0 | V52: 0 | W52: 0 | X52: 0
A53: ='Org structure'!E133 -> 12.3 - ROADS (866) | C53: 0 | D53: 0 | E53: 0 | F53: 0 | G53: 0 | H53: 0 | I53: 0 | J53: 0 | K53: 0 | L53: 0 | N53: 0 | O53: 0 | P53: 0 | Q53: 0 | R53: 0 | S53: 0 | T53: 0 | U53: 0 | V53: 0 | W53: 0 | X53: 0
A54: ='Org structure'!E134 -> 12.4 - STORMWATER (867) | C54: 0 | D54: 0 | E54: 0 | F54: 0 | G54: 0 | H54: 0 | I54: 0 | J54: 0 | K54: 0 | L54: 0 | N54: 0 | O54: 0 | P54: 0 | Q54: 0 | R54: 0 | S54: 0 | T54: 0 | U54: 0 | V54: 0 | W54: 0 | X54: 0
A55: ='Org structure'!E135 -> 12.5 - WATER SERVICE (868) | C55: 0 | D55: 0 | E55: 0 | F55: 0 | G55: 0 | H55: 0 | I55: 0 | J55: 0 | K55: 0 | L55: 0 | N55: 0 | O55: 0 | P55: 0 | Q55: 0 | R55: 0 | S55: 0 | T55: 0 | U55: 0 | V55: 0 | W55: 0 | X55: 0
A56: ='Org structure'!E136 -> 12.6 - SEWERAGE AND SANITATION SERVICES (869) | C56: 0 | D56: 0 | E56: 0 | F56: 0 | G56: 0 | H56: 0 | I56: 0 | J56: 0 | K56: 0 | L56: 0 | N56: 0 | O56: 0 | P56: 0 | Q56: 0 | R56: 0 | S56: 0 | T56: 0 | U56: 0 | V56: 0 | W56: 0 | X56: 0
A57: ='Org structure'!E53 -> 5.7 - SPORTS FACILITIES (327) | C57: 0 | D57: 0 | E57: 0 | F57: 0 | G57: 0 | H57: 0 | I57: 0 | J57: =Q57+V57 -> 0 | K57: =U57+W57 -> 0 | L57: =X57 -> 0 | N57: 0 | O57: 0 | P57: 0 | Q57: 0 | R57: 0 | S57: 0 | T57: 0 | U57: 0 | V57: 0 | W57: 0 | X57: 0
A58: ='Org structure'!E54 -> 5.8 - REFUSE REM AND WASTE MANAGEMENT (328) | C58: 0 | D58: 0 | E58: 0 | F58: 0 | G58: 0 | H58: 0 | I58: 0 | J58: 0 | K58: 0 | L58: 0 | N58: 0 | O58: 0 | P58: 0 | Q58: 0 | R58: 0 | S58: 0 | T58: 0 | U58: 0 | V58: 0 | W58: 0 | X58: 0
A59: ='Org structure'!E55 -> 5.9 - COMMONAGE OFFICER (329) | C59: 0 | D59: 0 | E59: 0 | F59: 0 | G59: 0 | H59: 0 | I59: 0 | J59: 0 | K59: 0 | L59: 0 | N59: 0 | O59: 0 | P59: 0 | Q59: 0 | R59: 0 | S59: 0 | T59: 0 | U59: 0 | V59: 0 | W59: 0 | X59: 0
A60: ='Org structure'!E56 -> 5.10 - COMMONAGE FARMS - CONCORDIA (330) | C60: 0 | D60: 0 | E60: 0 | F60: 0 | G60: 0 | H60: 0 | I60: 0 | J60: 0 | K60: 0 | L60: 0 | N60: 0 | O60: 0 | P60: 0 | Q60: 0 | R60: 0 | S60: 0 | T60: 0 | U60: 0 | V60: 0 | W60: 0 | X60: 0
A61: ='Org structure'!A7 -> Vote 6 - COMMUNITY SERVICES: PUBLSAFETY (17: IE) | C61: =SUM(C62:C71) -> 0 | D61: =SUM(D62:D71) -> 0 | E61: 0 | F61: 0 | G61: 0 | H61: 0 | I61: =SUM(I62:I71) -> 0 | J61: 0 | K61: 0 | L61: 0 | N61: =SUM(N62:N71) -> 0 | O61: 0 | P61: 0 | Q61: 0 | R61: 0 | S61: 0 | T61: 0 | U61: 0 | V61: 0 | W61: 0 | X61: 0
A62: ='Org structure'!E64 -> 6.1 - DISASTER AND RISK MANAGEMENT (231) | C62: 0 | D62: 0 | E62: 0 | F62: 0 | G62: 0 | H62: 0 | I62: 0 | J62: =Q62+V62 -> 0 | K62: =U62+W62 -> 0 | L62: =X62 -> 0 | N62: 0 | O62: 0 | P62: 0 | Q62: =SUM(N62:P62) -> 0 | R62: 0 | S62: 0 | T62: 0 | U62: 0 | V62: 0 | W62: 0 | X62: 0
A63: ='Org structure'!E65 -> 6.2 - EMERGENCY, FIRE AND DISASTER MAN (341) | C63: 0 | D63: 0 | E63: 0 | F63: 0 | G63: 0 | H63: 0 | I63: 0 | J63: 0 | K63: 0 | L63: 0 | N63: 0 | O63: 0 | P63: 0 | Q63: 0 | R63: 0 | S63: 0 | T63: 0 | U63: 0 | V63: 0 | W63: 0 | X63: 0
A64: ='Org structure'!E66 -> 6.3 - LAW ENFORCEMENT SERVICES (342) | C64: 0 | D64: 0 | E64: 0 | F64: 0 | G64: 0 | H64: 0 | I64: 0 | J64: 0 | K64: 0 | L64: 0 | N64: 0 | O64: 0 | P64: 0 | Q64: 0 | R64: 0 | S64: 0 | T64: 0 | U64: 0 | V64: 0 | W64: 0 | X64: 0
A65: ='Org structure'!E67 -> 6.4 - MUNICIPAL POUND (343) | C65: 0 | D65: 0 | E65: 0 | F65: 0 | G65: 0 | H65: 0 | I65: 0 | J65: 0 | K65: 0 | L65: 0 | N65: 0 | O65: 0 | P65: 0 | Q65: 0 | R65: 0 | S65: 0 | T65: 0 | U65: 0 | V65: 0 | W65: 0 | X65: 0
A66: ='Org structure'!E68 -> 6.5 - TRAFFIC SERVICES (344) | C66: 0 | D66: 0 | E66: 0 | F66: 0 | G66: 0 | H66: 0 | I66: 0 | J66: 0 | K66: 0 | L66: 0 | N66: 0 | O66: 0 | P66: 0 | Q66: 0 | R66: 0 | S66: 0 | T66: 0 | U66: 0 | V66: 0 | W66: 0 | X66: 0
A67: ='Org structure'!E69 -> 0 | C67: 0 | D67: 0 | E67: 0 | F67: 0 | G67: 0 | H67: 0 | I67: 0 | J67: 0 | K67: 0 | L67: 0 | N67: 0 | O67: 0 | P67: 0 | Q67: 0 | R67: 0 | S67: 0 | T67: 0 | U67: 0 | V67: 0 | W67: 0 | X67: 0
A68: ='Org structure'!E70 -> 0 | C68: 0 | D68: 0 | E68: 0 | F68: 0 | G68: 0 | H68: 0 | I68: 0 | J68: 0 | K68: 0 | L68: 0 | N68: 0 | O68: 0 | P68: 0 | Q68: 0 | R68: 0 | S68: 0 | T68: 0 | U68: 0 | V68: 0 | W68: 0 | X68: 0
A69: ='Org structure'!E71 -> 0 | C69: 0 | D69: 0 | E69: 0 | F69: 0 | G69: 0 | H69: 0 | I69: 0 | J69: 0 | K69: 0 | L69: 0 | N69: 0 | O69: 0 | P69: 0 | Q69: 0 | R69: 0 | S69: 0 | T69: 0 | U69: 0 | V69: 0 | W69: 0 | X69: 0
A70: ='Org structure'!E72 -> 0 | C70: 0 | D70: 0 | E70: 0 | F70: 0 | G70: 0 | H70: 0 | I70: 0 | J70: 0 | K70: 0 | L70: 0 | N70: 0 | O70: 0 | P70: 0 | Q70: 0 | R70: 0 | S70: 0 | T70: 0 | U70: 0 | V70: 0 | W70: 0 | X70: 0
A71: ='Org structure'!E73 -> 0 | C71: 0 | D71: 0 | E71: 0 | F71: 0 | G71: 0 | H71: 0 | I71: 0 | J71: 0 | K71: 0 | L71: 0 | N71: 0 | O71: 0 | P71: 0 | Q71: 0 | R71: 0 | S71: 0 | T71: 0 | U71: 0 | V71: 0 | W71: 0 | X71: 0
A72: ='Org structure'!A8 -> Vote 7 - INFRASTRUCTURE,ENG AND TECHNICAL (18: IE) | C72: =SUM(C73:C82) -> 0 | D72: 0 | E72: 0 | F72: 0 | G72: 0 | H72: 0 | I72: 0 | J72: 0 | K72: 0 | L72: 0 | N72: =SUM(N73:N82) -> 0 | O72: 0 | P72: 0 | Q72: 0 | R72: 0 | S72: 0 | T72: 0 | U72: 0 | V72: 0 | W72: 0 | X72: 0
A73: ='Org structure'!E75 -> 7.1 - HOUSING PROVISION: HUMAN SETTL (225) | C73: 0 | D73: 0 | E73: 0 | F73: 0 | G73: 0 | H73: 0 | I73: 0 | J73: =Q73+V73 -> 0 | K73: =U73+W73 -> 0 | L73: =X73 -> 0 | N73: 0 | O73: 0 | P73: 0 | Q73: =SUM(N73:P73) -> 0 | R73: 0 | S73: 0 | T73: 0 | U73: =SUM(R73:T73) -> 0 | V73: 0 | W73: 0 | X73: 0
A74: ='Org structure'!E76 -> 7.2 - MANAGER:INFRASTRUCT,ENG ANDTECH (361) | C74: 0 | D74: 0 | E74: 0 | F74: 0 | G74: 0 | H74: 0 | I74: 0 | J74: 0 | K74: 0 | L74: 0 | N74: 0 | O74: 0 | P74: 0 | Q74: 0 | R74: 0 | S74: 0 | T74: 0 | U74: 0 | V74: 0 | W74: 0 | X74: 0
A75: ='Org structure'!E77 -> 7.3 - PROJECT MANAGEMT UNIT: CIV FAC (362) | C75: 0 | D75: 0 | E75: 0 | F75: 0 | G75: 0 | H75: 0 | I75: 0 | J75: 0 | K75: 0 | L75: 0 | N75: 0 | O75: 0 | P75: 0 | Q75: 0 | R75: 0 | S75: 0 | T75: 0 | U75: 0 | V75: 0 | W75: 0 | X75: 0
A76: ='Org structure'!E78 -> 7.4 - ELECTRICAL ENGINEERING SERVICE (363) | C76: 0 | D76: 0 | E76: 0 | F76: 0 | G76: 0 | H76: 0 | I76: 0 | J76: 0 | K76: 0 | L76: 0 | N76: 0 | O76: 0 | P76: 0 | Q76: 0 | R76: 0 | S76: 0 | T76: 0 | U76: 0 | V76: 0 | W76: 0 | X76: 0
A77: ='Org structure'!E79 -> 7.5 - MECHANICAL ENG SERV: WORKSHOPS (365) | C77: 0 | D77: 0 | E77: 0 | F77: 0 | G77: 0 | H77: 0 | I77: 0 | J77: 0 | K77: 0 | L77: 0 | N77: 0 | O77: 0 | P77: 0 | Q77: 0 | R77: 0 | S77: 0 | T77: 0 | U77: 0 | V77: 0 | W77: 0 | X77: 0
A78: ='Org structure'!E80 -> 7.6 - ROADS (366) | C78: 0 | D78: 0 | E78: 0 | F78: 0 | G78: 0 | H78: 0 | I78: 0 | J78: 0 | K78: 0 | L78: 0 | N78: 0 | O78: 0 | P78: 0 | Q78: 0 | R78: 0 | S78: 0 | T78: 0 | U78: 0 | V78: 0 | W78: 0 | X78: 0
A79: ='Org structure'!E81 -> 7.7 - STORMWATER (367) | C79: 0 | D79: 0 | E79: 0 | F79: 0 | G79: 0 | H79: 0 | I79: 0 | J79: 0 | K79: 0 | L79: 0 | N79: 0 | O79: 0 | P79: 0 | Q79: 0 | R79: 0 | S79: 0 | T79: 0 | U79: 0 | V79: 0 | W79: 0 | X79: 0
A80: ='Org structure'!E82 -> 7.8 - WATER SERVICE (368) | C80: 0 | D80: 0 | E80: 0 | F80: 0 | G80: 0 | H80: 0 | I80: 0 | J80: 0 | K80: 0 | L80: 0 | N80: 0 | O80: 0 | P80: 0 | Q80: 0 | R80: 0 | S80: 0 | T80: 0 | U80: 0 | V80: 0 | W80: 0 | X80: 0
A81: ='Org structure'!E83 -> 7.9 - SEWERAGE AND SANITATION SERVICES (369) | C81: 0 | D81: 0 | E81: 0 | F81: 0 | G81: 0 | H81: 0 | I81: 0 | J81: 0 | K81: 0 | L81: 0 | N81: 0 | O81: 0 | P81: 0 | Q81: 0 | R81: 0 | S81: 0 | T81: 0 | U81: 0 | V81: 0 | W81: 0 | X81: 0
A82: ='Org structure'!E84 -> 7.10 - MANAGER:INFRASTRUCT,ENG ANDTECH (561) | C82: 0 | D82: 0 | E82: 0 | F82: 0 | G82: 0 | H82: 0 | I82: 0 | J82: 0 | K82: 0 | L82: 0 | N82: 0 | O82: 0 | P82: 0 | Q82: 0 | R82: 0 | S82: 0 | T82: 0 | U82: 0 | V82: 0 | W82: 0 | X82: 0
A83: ='Org structure'!A9 -> Vote 8 - EXECUTIVE MAYOR AND COUNCIL (20: CS) | C83: =SUM(C84:C93) -> 0 | D83: 0 | E83: 0 | F83: 0 | G83: 0 | H83: 0 | I83: 0 | J83: 0 | K83: 0 | L83: 0 | N83: =SUM(N84:N93) -> 0 | O83: 0 | P83: 0 | Q83: 0 | R83: 0 | S83: 0 | T83: 0 | U83: 0 | V83: 0 | W83: 0 | X83: 0
A84: ='Org structure'!E87 -> 8.1 - OFFICE OF THE MAYOR (701) | C84: 0 | D84: 0 | E84: 0 | F84: 0 | G84: 0 | H84: 0 | I84: 0 | J84: =Q84+V84 -> 0 | K84: =U84+W84 -> 0 | L84: =X84 -> 0 | N84: 0 | O84: 0 | P84: 0 | Q84: =SUM(N84:P84) -> 0 | R84: 0 | S84: 0 | T84: 0 | U84: 0 | V84: 0 | W84: 0 | X84: 0
A85: ='Org structure'!E88 -> 8.2 - COUNCIL GENERAL ADMIN (704) | C85: 0 | D85: 0 | E85: 0 | F85: 0 | G85: 0 | H85: 0 | I85: 0 | J85: 0 | K85: 0 | L85: 0 | N85: 0 | O85: 0 | P85: 0 | Q85: 0 | R85: 0 | S85: 0 | T85: 0 | U85: 0 | V85: 0 | W85: 0 | X85: 0
A86: ='Org structure'!E89 -> 0 | C86: 0 | D86: 0 | E86: 0 | F86: 0 | G86: 0 | H86: 0 | I86: 0 | J86: 0 | K86: 0 | L86: 0 | N86: 0 | O86: 0 | P86: 0 | Q86: 0 | R86: 0 | S86: 0 | T86: 0 | U86: 0 | V86: 0 | W86: 0 | X86: 0
A87: ='Org structure'!E90 -> 0 | C87: 0 | D87: 0 | E87: 0 | F87: 0 | G87: 0 | H87: 0 | I87: 0 | J87: 0 | K87: 0 | L87: 0 | N87: 0 | O87: 0 | P87: 0 | Q87: 0 | R87: 0 | S87: 0 | T87: 0 | U87: 0 | V87: 0 | W87: 0 | X87: 0
A88: ='Org structure'!E91 -> 0 | C88: 0 | D88: 0 | E88: 0 | F88: 0 | G88: 0 | H88: 0 | I88: 0 | J88: 0 | K88: 0 | L88: 0 | N88: 0 | O88: 0 | P88: 0 | Q88: 0 | R88: 0 | S88: 0 | T88: 0 | U88: 0 | V88: 0 | W88: 0 | X88: 0
A89: ='Org structure'!E92 -> 0 | C89: 0 | D89: 0 | E89: 0 | F89: 0 | G89: 0 | H89: 0 | I89: 0 | J89: 0 | K89: 0 | L89: 0 | N89: 0 | O89: 0 | P89: 0 | Q89: 0 | R89: 0 | S89: 0 | T89: 0 | U89: 0 | V89: 0 | W89: 0 | X89: 0
A90: ='Org structure'!E93 -> 0 | C90: 0 | D90: 0 | E90: 0 | F90: 0 | G90: 0 | H90: 0 | I90: 0 | J90: 0 | K90: 0 | L90: 0 | N90: 0 | O90: 0 | P90: 0 | Q90: 0 | R90: 0 | S90: 0 | T90: 0 | U90: 0 | V90: 0 | W90: 0 | X90: 0
A91: ='Org structure'!E94 -> 0 | C91: 0 | D91: 0 | E91: 0 | F91: 0 | G91: 0 | H91: 0 | I91: 0 | J91: 0 | K91: 0 | L91: 0 | N91: 0 | O91: 0 | P91: 0 | Q91: 0 | R91: 0 | S91: 0 | T91: 0 | U91: 0 | V91: 0 | W91: 0 | X91: 0
A92: ='Org structure'!E95 -> 0 | C92: 0 | D92: 0 | E92: 0 | F92: 0 | G92: 0 | H92: 0 | I92: 0 | J92: 0 | K92: 0 | L92: 0 | N92: 0 | O92: 0 | P92: 0 | Q92: 0 | R92: 0 | S92: 0 | T92: 0 | U92: 0 | V92: 0 | W92: 0 | X92: 0
A93: ='Org structure'!E96 -> 0 | C93: 0 | D93: 0 | E93: 0 | F93: 0 | G93: 0 | H93: 0 | I93: 0 | J93: 0 | K93: 0 | L93: 0 | N93: 0 | O93: 0 | P93: 0 | Q93: 0 | R93: 0 | S93: 0 | T93: 0 | U93: 0 | V93: 0 | W93: 0 | X93: 0
A94: ='Org structure'!A10 -> Vote 9 - MUNICIPAL MANAGER (21: CS) | C94: =SUM(C95:C104) -> 0 | D94: =SUM(D95:D104) -> 0 | E94: 0 | F94: 0 | G94: 0 | H94: 0 | I94: 0 | J94: 0 | K94: 0 | L94: 0 | N94: =SUM(N95:N104) -> 0 | O94: 0 | P94: 0 | Q94: 0 | R94: 0 | S94: 0 | T94: 0 | U94: 0 | V94: 0 | W94: 0 | X94: 0
A95: ='Org structure'!E98 -> 9.1 - LOCAL ECONOMIC DEVELOPMT AND IGR (724) | C95: 0 | D95: 0 | E95: 0 | F95: 0 | G95: 0 | H95: 0 | I95: 0 | J95: =Q95+V95 -> 0 | K95: =U95+W95 -> 0 | L95: =X95 -> 0 | N95: 0 | O95: 0 | P95: 0 | Q95: =SUM(N95:P95) -> 0 | R95: 0 | S95: 0 | T95: 0 | U95: 0 | V95: 0 | W95: 0 | X95: 0
A96: ='Org structure'!E99 -> 9.2 - PLANNING AND DEVELOPMENT (731) | C96: 0 | D96: 0 | E96: 0 | F96: 0 | G96: 0 | H96: 0 | I96: 0 | J96: 0 | K96: 0 | L96: 0 | N96: 0 | O96: 0 | P96: 0 | Q96: 0 | R96: 0 | S96: 0 | T96: 0 | U96: 0 | V96: 0 | W96: 0 | X96: 0
A97: ='Org structure'!E100 -> 0 | C97: 0 | D97: 0 | E97: 0 | F97: 0 | G97: 0 | H97: 0 | I97: 0 | J97: 0 | K97: 0 | L97: 0 | N97: 0 | O97: 0 | P97: 0 | Q97: 0 | R97: 0 | S97: 0 | T97: 0 | U97: 0 | V97: 0 | W97: 0 | X97: 0
A98: ='Org structure'!E101 -> 0 | C98: 0 | D98: 0 | E98: 0 | F98: 0 | G98: 0 | H98: 0 | I98: 0 | J98: 0 | K98: 0 | L98: 0 | N98: 0 | O98: 0 | P98: 0 | Q98: 0 | R98: 0 | S98: 0 | T98: 0 | U98: 0 | V98: 0 | W98: 0 | X98: 0
A99: ='Org structure'!E102 -> 0 | C99: 0 | D99: 0 | E99: 0 | F99: 0 | G99: 0 | H99: 0 | I99: 0 | J99: 0 | K99: 0 | L99: 0 | N99: 0 | O99: 0 | P99: 0 | Q99: 0 | R99: 0 | S99: 0 | T99: 0 | U99: 0 | V99: 0 | W99: 0 | X99: 0
A100: ='Org structure'!E103 -> 0 | C100: 0 | D100: 0 | E100: 0 | F100: 0 | G100: 0 | H100: 0 | I100: 0 | J100: 0 | K100: 0 | L100: 0 | N100: 0 | O100: 0 | P100: 0 | Q100: 0 | R100: 0 | S100: 0 | T100: 0 | U100: 0 | V100: 0 | W100: 0 | X100: 0
A101: ='Org structure'!E104 -> 0 | C101: 0 | D101: 0 | E101: 0 | F101: 0 | G101: 0 | H101: 0 | I101: 0 | J101: 0 | K101: 0 | L101: 0 | N101: 0 | O101: 0 | P101: 0 | Q101: 0 | R101: 0 | S101: 0 | T101: 0 | U101: 0 | V101: 0 | W101: 0 | X101: 0
A102: ='Org structure'!E105 -> 0 | C102: 0 | D102: 0 | E102: 0 | F102: 0 | G102: 0 | H102: 0 | I102: 0 | J102: 0 | K102: 0 | L102: 0 | N102: 0 | O102: 0 | P102: 0 | Q102: 0 | R102: 0 | S102: 0 | T102: 0 | U102: 0 | V102: 0 | W102: 0 | X102: 0
A103: ='Org structure'!E106 -> 0 | C103: 0 | D103: 0 | E103: 0 | F103: 0 | G103: 0 | H103: 0 | I103: 0 | J103: 0 | K103: 0 | L103: 0 | N103: 0 | O103: 0 | P103: 0 | Q103: 0 | R103: 0 | S103: 0 | T103: 0 | U103: 0 | V103: 0 | W103: 0 | X103: 0
A104: ='Org structure'!E107 -> 0 | C104: 0 | D104: 0 | E104: 0 | F104: 0 | G104: 0 | H104: 0 | I104: 0 | J104: 0 | K104: 0 | L104: 0 | N104: 0 | O104: 0 | P104: 0 | Q104: 0 | R104: 0 | S104: 0 | T104: 0 | U104: 0 | V104: 0 | W104: 0 | X104: 0
A105: ='Org structure'!A11 -> Vote 10 - CORPORATE SERVICES (23: CS) | C105: =SUM(C106:C115) -> 0 | D105: =SUM(D106:D115) -> 0 | E105: 0 | F105: 0 | G105: 0 | H105: 0 | I105: 0 | J105: 0 | K105: 0 | L105: 0 | N105: =SUM(N106:N115) -> 0 | O105: 0 | P105: 0 | Q105: 0 | R105: 0 | S105: 0 | T105: 0 | U105: 0 | V105: 0 | W105: 0 | X105: 0
A106: ='Org structure'!E109 -> 10.1 - INFORMATION TECHNOLOGY (727) | C106: 0 | D106: 0 | E106: 0 | F106: 0 | G106: 0 | H106: 0 | I106: 0 | J106: =Q106+V106 -> 0 | K106: =U106+W106 -> 0 | L106: =X106 -> 0 | N106: 0 | O106: 0 | P106: 0 | Q106: =SUM(N106:P106) -> 0 | R106: 0 | S106: 0 | T106: 0 | U106: 0 | V106: 0 | W106: 0 | X106: 0
A107: ='Org structure'!E110 -> 10.2 - MANAGER: CORPORATE SERVICES (761) | C107: 0 | D107: 0 | E107: 0 | F107: 0 | G107: 0 | H107: 0 | I107: 0 | J107: 0 | K107: 0 | L107: 0 | N107: 0 | O107: 0 | P107: 0 | Q107: 0 | R107: 0 | S107: 0 | T107: 0 | U107: 0 | V107: 0 | W107: 0 | X107: 0
A108: ='Org structure'!E111 -> 10.3 - MUNICIPAL PROPERTY MANAGEMENT (766) | C108: 0 | D108: 0 | E108: 0 | F108: 0 | G108: 0 | H108: 0 | I108: 0 | J108: 0 | K108: 0 | L108: 0 | N108: 0 | O108: 0 | P108: 0 | Q108: 0 | R108: 0 | S108: 0 | T108: 0 | U108: 0 | V108: 0 | W108: 0 | X108: 0
A109: ='Org structure'!E112 -> 10.4 - INFORMATION AND COMMUNICATION TECHNOLOGY (768) | C109: 0 | D109: 0 | E109: 0 | F109: 0 | G109: 0 | H109: 0 | I109: 0 | J109: 0 | K109: 0 | L109: 0 | N109: 0 | O109: 0 | P109: 0 | Q109: 0 | R109: 0 | S109: 0 | T109: 0 | U109: 0 | V109: 0 | W109: 0 | X109: 0
A110: ='Org structure'!E113 -> 0 | C110: 0 | D110: 0 | E110: 0 | F110: 0 | G110: 0 | H110: 0 | I110: 0 | J110: 0 | K110: 0 | L110: 0 | N110: 0 | O110: 0 | P110: 0 | Q110: 0 | R110: 0 | S110: 0 | T110: 0 | U110: 0 | V110: 0 | W110: 0 | X110: 0
A111: ='Org structure'!E114 -> 0 | C111: 0 | D111: 0 | E111: 0 | F111: 0 | G111: 0 | H111: 0 | I111: 0 | J111: 0 | K111: 0 | L111: 0 | N111: 0 | O111: 0 | P111: 0 | Q111: 0 | R111: 0 | S111: 0 | T111: 0 | U111: 0 | V111: 0 | W111: 0 | X111: 0
A112: ='Org structure'!E115 -> 0 | C112: 0 | D112: 0 | E112: 0 | F112: 0 | G112: 0 | H112: 0 | I112: 0 | J112: 0 | K112: 0 | L112: 0 | N112: 0 | O112: 0 | P112: 0 | Q112: 0 | R112: 0 | S112: 0 | T112: 0 | U112: 0 | V112: 0 | W112: 0 | X112: 0
A113: ='Org structure'!E116 -> 0 | C113: 0 | D113: 0 | E113: 0 | F113: 0 | G113: 0 | H113: 0 | I113: 0 | J113: 0 | K113: 0 | L113: 0 | N113: 0 | O113: 0 | P113: 0 | Q113: 0 | R113: 0 | S113: 0 | T113: 0 | U113: 0 | V113: 0 | W113: 0 | X113: 0
A114: ='Org structure'!E117 -> 0 | C114: 0 | D114: 0 | E114: 0 | F114: 0 | G114: 0 | H114: 0 | I114: 0 | J114: 0 | K114: 0 | L114: 0 | N114: 0 | O114: 0 | P114: 0 | Q114: 0 | R114: 0 | S114: 0 | T114: 0 | U114: 0 | V114: 0 | W114: 0 | X114: 0
A115: ='Org structure'!E118 -> 0 | C115: 0 | D115: 0 | E115: 0 | F115: 0 | G115: 0 | H115: 0 | I115: 0 | J115: 0 | K115: 0 | L115: 0 | N115: 0 | O115: 0 | P115: 0 | Q115: 0 | R115: 0 | S115: 0 | T115: 0 | U115: 0 | V115: 0 | W115: 0 | X115: 0
A116: ='Org structure'!A12 -> Vote 11 - COMMUNITY SERVICES: COMM DEV (26: CS) | C116: =SUM(C117:C126) -> 0 | D116: 0 | E116: 0 | F116: 0 | G116: 0 | H116: 0 | I116: 0 | J116: 0 | K116: 0 | L116: 0 | N116: =SUM(N117:N126) -> 0 | O116: 0 | P116: 0 | Q116: 0 | R116: 0 | S116: 0 | T116: 0 | U116: 0 | V116: 0 | W116: 0 | X116: 0
A117: ='Org structure'!E120 -> 11.1 - MANAGER: COMMUNITY DEVELOPMENT (818) | C117: 0 | D117: 0 | E117: 0 | F117: 0 | G117: 0 | H117: 0 | I117: 0 | J117: =Q117+V117 -> 0 | K117: =U117+W117 -> 0 | L117: =X117 -> 0 | N117: 0 | O117: 0 | P117: 0 | Q117: =SUM(N117:P117) -> 0 | R117: 0 | S117: 0 | T117: 0 | U117: 0 | V117: 0 | W117: 0 | X117: 0
A118: ='Org structure'!E121 -> 11.2 - CEMETERIES (824) | C118: 0 | D118: 0 | E118: 0 | F118: 0 | G118: 0 | H118: 0 | I118: 0 | J118: 0 | K118: 0 | L118: 0 | N118: 0 | O118: 0 | P118: 0 | Q118: 0 | R118: 0 | S118: 0 | T118: 0 | U118: 0 | V118: 0 | W118: 0 | X118: 0
A119: ='Org structure'!E122 -> 11.3 - SPORTS FACILITIES (827) | C119: 0 | D119: 0 | E119: 0 | F119: 0 | G119: 0 | H119: 0 | I119: 0 | J119: 0 | K119: 0 | L119: 0 | N119: 0 | O119: 0 | P119: 0 | Q119: 0 | R119: 0 | S119: 0 | T119: 0 | U119: 0 | V119: 0 | W119: 0 | X119: 0
A120: ='Org structure'!E123 -> 11.4 - REFUSE REM AND WASTE MANAGEMENT (828) | C120: 0 | D120: 0 | E120: 0 | F120: 0 | G120: 0 | H120: 0 | I120: 0 | J120: 0 | K120: 0 | L120: 0 | N120: 0 | O120: 0 | P120: 0 | Q120: 0 | R120: 0 | S120: 0 | T120: 0 | U120: 0 | V120: 0 | W120: 0 | X120: 0
A121: ='Org structure'!E124 -> 0 | C121: 0 | D121: 0 | E121: 0 | F121: 0 | G121: 0 | H121: 0 | I121: 0 | J121: 0 | K121: 0 | L121: 0 | N121: 0 | O121: 0 | P121: 0 | Q121: 0 | R121: 0 | S121: 0 | T121: 0 | U121: 0 | V121: 0 | W121: 0 | X121: 0
A122: ='Org structure'!E125 -> 0 | C122: 0 | D122: 0 | E122: 0 | F122: 0 | G122: 0 | H122: 0 | I122: 0 | J122: 0 | K122: 0 | L122: 0 | N122: 0 | O122: 0 | P122: 0 | Q122: 0 | R122: 0 | S122: 0 | T122: 0 | U122: 0 | V122: 0 | W122: 0 | X122: 0
A123: ='Org structure'!E126 -> 0 | C123: 0 | D123: 0 | E123: 0 | F123: 0 | G123: 0 | H123: 0 | I123: 0 | J123: 0 | K123: 0 | L123: 0 | N123: 0 | O123: 0 | P123: 0 | Q123: 0 | R123: 0 | S123: 0 | T123: 0 | U123: 0 | V123: 0 | W123: 0 | X123: 0
A124: ='Org structure'!E127 -> 0 | C124: 0 | D124: 0 | E124: 0 | F124: 0 | G124: 0 | H124: 0 | I124: 0 | J124: 0 | K124: 0 | L124: 0 | N124: 0 | O124: 0 | P124: 0 | Q124: 0 | R124: 0 | S124: 0 | T124: 0 | U124: 0 | V124: 0 | W124: 0 | X124: 0
A125: ='Org structure'!E128 -> 0 | C125: 0 | D125: 0 | E125: 0 | F125: 0 | G125: 0 | H125: 0 | I125: 0 | J125: 0 | K125: 0 | L125: 0 | N125: 0 | O125: 0 | P125: 0 | Q125: 0 | R125: 0 | S125: 0 | T125: 0 | U125: 0 | V125: 0 | W125: 0 | X125: 0
A126: ='Org structure'!E129 -> 0 | C126: 0 | D126: 0 | E126: 0 | F126: 0 | G126: 0 | H126: 0 | I126: 0 | J126: 0 | K126: 0 | L126: 0 | N126: 0 | O126: 0 | P126: 0 | Q126: 0 | R126: 0 | S126: 0 | T126: 0 | U126: 0 | V126: 0 | W126: 0 | X126: 0
A127: ='Org structure'!A13 -> Vote 12 - INFRASTRUCTURE,ENG AND TECHNICAL (28: CS) | C127: =SUM(C128:C137) -> 0 | D127: 0 | E127: 0 | F127: 0 | G127: 0 | H127: 0 | I127: 0 | J127: 0 | K127: 0 | L127: 0 | N127: =SUM(N128:N137) -> 0 | O127: 0 | P127: 0 | Q127: 0 | R127: 0 | S127: 0 | T127: 0 | U127: 0 | V127: 0 | W127: 0 | X127: 0
A128: ='Org structure'!E131 -> 12.1 - ELECTRICAL ENGINEERING SERVICE (863) | C128: 0 | D128: 0 | E128: 0 | F128: 0 | G128: 0 | H128: 0 | I128: 0 | J128: =Q128+V128 -> 0 | K128: =U128+W128 -> 0 | L128: =X128 -> 0 | N128: 0 | O128: 0 | P128: 0 | Q128: =SUM(N128:P128) -> 0 | R128: 0 | S128: 0 | T128: 0 | U128: 0 | V128: 0 | W128: 0 | X128: 0
A129: ='Org structure'!E132 -> 12.2 - MECHANICAL ENG SERV: WORKSHOPS (865) | C129: 0 | D129: 0 | E129: 0 | F129: 0 | G129: 0 | H129: 0 | I129: 0 | J129: 0 | K129: 0 | L129: 0 | N129: 0 | O129: 0 | P129: 0 | Q129: 0 | R129: 0 | S129: 0 | T129: 0 | U129: 0 | V129: 0 | W129: 0 | X129: 0
A130: ='Org structure'!E133 -> 12.3 - ROADS (866) | C130: 0 | D130: 0 | E130: 0 | F130: 0 | G130: 0 | H130: 0 | I130: 0 | J130: 0 | K130: 0 | L130: 0 | N130: 0 | O130: 0 | P130: 0 | Q130: 0 | R130: 0 | S130: 0 | T130: 0 | U130: 0 | V130: 0 | W130: 0 | X130: 0
A131: ='Org structure'!E134 -> 12.4 - STORMWATER (867) | C131: 0 | D131: 0 | E131: 0 | F131: 0 | G131: 0 | H131: 0 | I131: 0 | J131: 0 | K131: 0 | L131: 0 | N131: 0 | O131: 0 | P131: 0 | Q131: 0 | R131: 0 | S131: 0 | T131: 0 | U131: 0 | V131: 0 | W131: 0 | X131: 0
A132: ='Org structure'!E135 -> 12.5 - WATER SERVICE (868) | C132: 0 | D132: 0 | E132: 0 | F132: 0 | G132: 0 | H132: 0 | I132: 0 | J132: 0 | K132: 0 | L132: 0 | N132: 0 | O132: 0 | P132: 0 | Q132: 0 | R132: 0 | S132: 0 | T132: 0 | U132: 0 | V132: 0 | W132: 0 | X132: 0
A133: ='Org structure'!E136 -> 12.6 - SEWERAGE AND SANITATION SERVICES (869) | C133: 0 | D133: 0 | E133: 0 | F133: 0 | G133: 0 | H133: 0 | I133: 0 | J133: =Q133+V133 -> 0 | K133: 0 | L133: 0 | N133: 0 | O133: 0 | P133: 0 | Q133: 0 | R133: 0 | S133: 0 | T133: 0 | U133: 0 | V133: 0 | W133: 0 | X133: 0
A134: ='Org structure'!E137 -> 0 | C134: 0 | D134: 0 | E134: 0 | F134: 0 | G134: 0 | H134: 0 | I134: 0 | J134: 0 | K134: 0 | L134: 0 | N134: 0 | O134: 0 | P134: 0 | Q134: 0 | R134: 0 | S134: 0 | T134: 0 | U134: 0 | V134: 0 | W134: 0 | X134: 0
A135: ='Org structure'!E138 -> 0 | C135: 0 | D135: 0 | E135: 0 | F135: 0 | G135: 0 | H135: 0 | I135: 0 | J135: 0 | K135: 0 | L135: 0 | N135: 0 | O135: 0 | P135: 0 | Q135: 0 | R135: 0 | S135: 0 | T135: 0 | U135: 0 | V135: 0 | W135: 0 | X135: 0
A136: ='Org structure'!E139 -> 0 | C136: 0 | D136: 0 | E136: 0 | F136: 0 | G136: 0 | H136: 0 | I136: 0 | J136: 0 | K136: 0 | L136: 0 | N136: 0 | O136: 0 | P136: 0 | Q136: 0 | R136: 0 | S136: 0 | T136: 0 | U136: =SUM(R136:T136) -> 0 | V136: 0 | W136: 0 | X136: 0
A137: ='Org structure'!E140 -> 0 | C137: 0 | D137: 0 | E137: 0 | F137: 0 | G137: 0 | H137: 0 | I137: 0 | J137: 0 | K137: 0 | L137: 0 | N137: 0 | O137: 0 | P137: 0 | Q137: 0 | R137: 0 | S137: 0 | T137: 0 | U137: 0 | V137: 0 | W137: 0 | X137: 0
A138: ='Org structure'!A14 -> Vote 13 - 0 | C138: =SUM(C139:C148) -> 0 | D138: 0 | E138: 0 | F138: 0 | G138: 0 | H138: 0 | I138: 0 | J138: 0 | K138: 0 | L138: 0 | N138: =SUM(N139:N148) -> 0 | O138: 0 | P138: 0 | Q138: 0 | R138: 0 | S138: 0 | T138: 0 | U138: 0 | V138: 0 | W138: 0 | X138: 0
A139: ='Org structure'!E142 -> 13.1 - [Name of sub-vote] | C139: 0 | D139: 0 | E139: 0 | F139: 0 | G139: 0 | H139: 0 | I139: 0 | J139: =Q139+V139 -> 0 | K139: =U139+W139 -> 0 | L139: =X139 -> 0 | N139: 0 | O139: 0 | P139: 0 | Q139: =SUM(N139:P139) -> 0 | R139: 0 | S139: 0 | T139: 0 | U139: 0 | V139: 0 | W139: 0 | X139: 0
A140: ='Org structure'!E143 -> 0 | C140: 0 | D140: 0 | E140: 0 | F140: 0 | G140: 0 | H140: 0 | I140: 0 | J140: 0 | K140: 0 | L140: 0 | N140: 0 | O140: 0 | P140: 0 | Q140: 0 | R140: 0 | S140: 0 | T140: 0 | U140: 0 | V140: 0 | W140: 0 | X140: 0
A141: ='Org structure'!E144 -> 0 | C141: 0 | D141: 0 | E141: 0 | F141: 0 | G141: 0 | H141: 0 | I141: 0 | J141: 0 | K141: 0 | L141: 0 | N141: 0 | O141: 0 | P141: 0 | Q141: 0 | R141: 0 | S141: 0 | T141: 0 | U141: 0 | V141: 0 | W141: 0 | X141: 0
A142: ='Org structure'!E145 -> 0 | C142: 0 | D142: 0 | E142: 0 | F142: 0 | G142: 0 | H142: 0 | I142: 0 | J142: 0 | K142: 0 | L142: 0 | N142: 0 | O142: 0 | P142: 0 | Q142: 0 | R142: 0 | S142: 0 | T142: 0 | U142: 0 | V142: 0 | W142: 0 | X142: 0
A143: ='Org structure'!E146 -> 0 | C143: 0 | D143: 0 | E143: 0 | F143: 0 | G143: 0 | H143: 0 | I143: 0 | J143: 0 | K143: 0 | L143: 0 | N143: 0 | O143: 0 | P143: 0 | Q143: 0 | R143: 0 | S143: 0 | T143: 0 | U143: 0 | V143: 0 | W143: 0 | X143: 0
A144: ='Org structure'!E147 -> 0 | C144: 0 | D144: 0 | E144: 0 | F144: 0 | G144: 0 | H144: 0 | I144: 0 | J144: 0 | K144: 0 | L144: 0 | N144: 0 | O144: 0 | P144: 0 | Q144: 0 | R144: 0 | S144: 0 | T144: 0 | U144: 0 | V144: 0 | W144: 0 | X144: 0
A145: ='Org structure'!E148 -> 0 | C145: 0 | D145: 0 | E145: 0 | F145: 0 | G145: 0 | H145: 0 | I145: 0 | J145: 0 | K145: 0 | L145: 0 | N145: 0 | O145: 0 | P145: 0 | Q145: 0 | R145: 0 | S145: 0 | T145: 0 | U145: 0 | V145: 0 | W145: 0 | X145: 0
A146: ='Org structure'!E149 -> 0 | C146: 0 | D146: 0 | E146: 0 | F146: 0 | G146: 0 | H146: 0 | I146: 0 | J146: 0 | K146: 0 | L146: 0 | N146: 0 | O146: 0 | P146: 0 | Q146: 0 | R146: 0 | S146: 0 | T146: 0 | U146: 0 | V146: 0 | W146: 0 | X146: 0
A147: ='Org structure'!E150 -> 0 | C147: 0 | D147: 0 | E147: 0 | F147: 0 | G147: 0 | H147: 0 | I147: 0 | J147: 0 | K147: 0 | L147: 0 | N147: 0 | O147: 0 | P147: 0 | Q147: 0 | R147: 0 | S147: 0 | T147: 0 | U147: 0 | V147: 0 | W147: 0 | X147: 0
A148: ='Org structure'!E151 -> 0 | C148: 0 | D148: 0 | E148: 0 | F148: 0 | G148: 0 | H148: 0 | I148: 0 | J148: 0 | K148: 0 | L148: 0 | N148: 0 | O148: 0 | P148: 0 | Q148: 0 | R148: 0 | S148: 0 | T148: 0 | U148: 0 | V148: 0 | W148: 0 | X148: 0
A149: ='Org structure'!A15 -> Vote 14 - 0 | C149: =SUM(C150:C159) -> 0 | D149: 0 | E149: 0 | F149: 0 | G149: 0 | H149: 0 | I149: 0 | J149: 0 | K149: 0 | L149: 0 | N149: =SUM(N150:N159) -> 0 | O149: 0 | P149: 0 | Q149: 0 | R149: 0 | S149: 0 | T149: 0 | U149: 0 | V149: 0 | W149: 0 | X149: 0
A150: ='Org structure'!E153 -> 14.1 - [Name of sub-vote] | C150: 0 | D150: 0 | E150: 0 | F150: 0 | G150: 0 | H150: 0 | I150: 0 | J150: =Q150+V150 -> 0 | K150: =U150+W150 -> 0 | L150: =X150 -> 0 | N150: 0 | O150: 0 | P150: 0 | Q150: =SUM(N150:P150) -> 0 | R150: 0 | S150: 0 | T150: 0 | U150: 0 | V150: 0 | W150: 0 | X150: 0
A151: ='Org structure'!E154 -> 0 | C151: 0 | D151: 0 | E151: 0 | F151: 0 | G151: 0 | H151: 0 | I151: 0 | J151: 0 | K151: 0 | L151: 0 | N151: 0 | O151: 0 | P151: 0 | Q151: 0 | R151: 0 | S151: 0 | T151: 0 | U151: 0 | V151: 0 | W151: 0 | X151: 0
A152: ='Org structure'!E155 -> 0 | C152: 0 | D152: 0 | E152: 0 | F152: 0 | G152: 0 | H152: 0 | I152: 0 | J152: 0 | K152: 0 | L152: 0 | N152: 0 | O152: 0 | P152: 0 | Q152: 0 | R152: 0 | S152: 0 | T152: 0 | U152: 0 | V152: 0 | W152: 0 | X152: 0
A153: ='Org structure'!E156 -> 0 | C153: 0 | D153: 0 | E153: 0 | F153: 0 | G153: 0 | H153: 0 | I153: 0 | J153: 0 | K153: 0 | L153: 0 | N153: 0 | O153: 0 | P153: 0 | Q153: 0 | R153: 0 | S153: 0 | T153: 0 | U153: 0 | V153: 0 | W153: 0 | X153: 0
A154: ='Org structure'!E157 -> 0 | C154: 0 | D154: 0 | E154: 0 | F154: 0 | G154: 0 | H154: 0 | I154: 0 | J154: 0 | K154: 0 | L154: 0 | N154: 0 | O154: 0 | P154: 0 | Q154: 0 | R154: 0 | S154: 0 | T154: 0 | U154: 0 | V154: 0 | W154: 0 | X154: 0
A155: ='Org structure'!E158 -> 0 | C155: 0 | D155: 0 | E155: 0 | F155: 0 | G155: 0 | H155: 0 | I155: 0 | J155: 0 | K155: 0 | L155: 0 | N155: 0 | O155: 0 | P155: 0 | Q155: 0 | R155: 0 | S155: 0 | T155: 0 | U155: 0 | V155: 0 | W155: 0 | X155: 0
A156: ='Org structure'!E159 -> 0 | C156: 0 | D156: 0 | E156: 0 | F156: 0 | G156: 0 | H156: 0 | I156: 0 | J156: 0 | K156: 0 | L156: 0 | N156: 0 | O156: 0 | P156: 0 | Q156: 0 | R156: 0 | S156: 0 | T156: 0 | U156: 0 | V156: 0 | W156: 0 | X156: 0
A157: ='Org structure'!E160 -> 0 | C157: 0 | D157: 0 | E157: 0 | F157: 0 | G157: 0 | H157: 0 | I157: 0 | J157: 0 | K157: 0 | L157: 0 | N157: 0 | O157: 0 | P157: 0 | Q157: 0 | R157: 0 | S157: 0 | T157: 0 | U157: 0 | V157: 0 | W157: 0 | X157: 0
A158: ='Org structure'!E161 -> 0 | C158: 0 | D158: 0 | E158: 0 | F158: 0 | G158: 0 | H158: 0 | I158: 0 | J158: 0 | K158: 0 | L158: 0 | N158: 0 | O158: 0 | P158: 0 | Q158: 0 | R158: 0 | S158: 0 | T158: 0 | U158: 0 | V158: 0 | W158: 0 | X158: 0
A159: ='Org structure'!E162 -> 0 | C159: 0 | D159: 0 | E159: 0 | F159: 0 | G159: 0 | H159: 0 | I159: 0 | J159: 0 | K159: 0 | L159: 0 | N159: 0 | O159: 0 | P159: 0 | Q159: 0 | R159: 0 | S159: 0 | T159: 0 | U159: 0 | V159: 0 | W159: 0 | X159: 0
A160: ='Org structure'!A16 -> Vote 15 - 0 | C160: =SUM(C161:C170) -> 0 | D160: 0 | E160: 0 | F160: 0 | G160: 0 | H160: 0 | I160: 0 | J160: 0 | K160: 0 | L160: 0 | N160: =SUM(N161:N170) -> 0 | O160: 0 | P160: 0 | Q160: 0 | R160: 0 | S160: 0 | T160: 0 | U160: 0 | V160: 0 | W160: 0 | X160: 0
A161: ='Org structure'!E164 -> 15.1 - [Name of sub-vote] | C161: 0 | D161: 0 | E161: 0 | F161: 0 | G161: 0 | H161: 0 | I161: 0 | J161: =Q161+V161 -> 0 | K161: =U161+W161 -> 0 | L161: =X161 -> 0 | N161: 0 | O161: 0 | P161: 0 | Q161: =SUM(N161:P161) -> 0 | R161: 0 | S161: 0 | T161: 0 | U161: 0 | V161: 0 | W161: 0 | X161: 0
A162: ='Org structure'!E165 -> 0 | C162: 0 | D162: 0 | E162: 0 | F162: 0 | G162: 0 | H162: 0 | I162: 0 | J162: 0 | K162: 0 | L162: 0 | N162: 0 | O162: 0 | P162: 0 | Q162: 0 | R162: 0 | S162: 0 | T162: 0 | U162: 0 | V162: 0 | W162: 0 | X162: 0
A163: ='Org structure'!E166 -> 0 | C163: 0 | D163: 0 | E163: 0 | F163: 0 | G163: 0 | H163: 0 | I163: 0 | J163: 0 | K163: 0 | L163: 0 | N163: 0 | O163: 0 | P163: 0 | Q163: 0 | R163: 0 | S163: 0 | T163: 0 | U163: 0 | V163: 0 | W163: 0 | X163: 0
A164: ='Org structure'!E167 -> 0 | C164: 0 | D164: 0 | E164: 0 | F164: 0 | G164: 0 | H164: 0 | I164: 0 | J164: 0 | K164: 0 | L164: 0 | N164: 0 | O164: 0 | P164: 0 | Q164: 0 | R164: 0 | S164: 0 | T164: 0 | U164: 0 | V164: 0 | W164: 0 | X164: 0
A165: ='Org structure'!E168 -> 0 | C165: 0 | D165: 0 | E165: 0 | F165: 0 | G165: 0 | H165: 0 | I165: 0 | J165: 0 | K165: 0 | L165: 0 | N165: 0 | O165: 0 | P165: 0 | Q165: 0 | R165: 0 | S165: 0 | T165: 0 | U165: 0 | V165: 0 | W165: 0 | X165: 0
A166: ='Org structure'!E169 -> 0 | C166: 0 | D166: 0 | E166: 0 | F166: 0 | G166: 0 | H166: 0 | I166: 0 | J166: 0 | K166: 0 | L166: 0 | N166: 0 | O166: 0 | P166: 0 | Q166: 0 | R166: 0 | S166: 0 | T166: 0 | U166: 0 | V166: 0 | W166: 0 | X166: 0
A167: ='Org structure'!E170 -> 0 | C167: 0 | D167: 0 | E167: 0 | F167: 0 | G167: 0 | H167: 0 | I167: 0 | J167: 0 | K167: 0 | L167: 0 | N167: 0 | O167: 0 | P167: 0 | Q167: 0 | R167: 0 | S167: 0 | T167: 0 | U167: 0 | V167: 0 | W167: 0 | X167: 0
A168: ='Org structure'!E171 -> 0 | C168: 0 | D168: 0 | E168: 0 | F168: 0 | G168: 0 | H168: 0 | I168: 0 | J168: 0 | K168: 0 | L168: 0 | N168: 0 | O168: 0 | P168: 0 | Q168: 0 | R168: 0 | S168: 0 | T168: 0 | U168: 0 | V168: 0 | W168: 0 | X168: 0
A169: ='Org structure'!E172 -> 0 | C169: 0 | D169: 0 | E169: 0 | F169: 0 | G169: 0 | H169: 0 | I169: 0 | J169: 0 | K169: 0 | L169: 0 | N169: 0 | O169: 0 | P169: 0 | Q169: 0 | R169: 0 | S169: 0 | T169: 0 | U169: 0 | V169: 0 | W169: 0 | X169: 0
A170: ='Org structure'!E173 -> 0 | C170: 0 | D170: 0 | E170: 0 | F170: 0 | G170: 0 | H170: 0 | I170: 0 | J170: 0 | K170: 0 | L170: 0 | N170: 0 | O170: 0 | P170: 0 | Q170: 0 | R170: 0 | S170: 0 | T170: 0 | U170: 0 | V170: 0 | W170: 0 | X170: 0
A171: ='Org structure'!A27 -> 0 | C171: =SUM(C172:C181) -> 0 | D171: 0 | E171: 0 | F171: 0 | G171: 0 | H171: 0 | I171: 0 | J171: 0 | K171: 0 | L171: 0 | N171: =SUM(N172:N181) -> 0 | O171: 0 | P171: 0 | Q171: 0 | R171: 0 | S171: 0 | T171: 0 | U171: 0 | V171: 0 | W171: 0 | X171: 0
A172: ='Org structure'!E175 -> 0 | C172: 0 | D172: 0 | E172: 0 | F172: 0 | G172: 0 | H172: 0 | I172: 0 | J172: =Q172+V172 -> 0 | K172: =U172+W172 -> 0 | L172: =X172 -> 0 | N172: 0 | O172: 0 | P172: 0 | Q172: =SUM(N172:P172) -> 0 | R172: 0 | S172: 0 | T172: 0 | U172: =SUM(R172:T172) -> 0 | V172: 0 | W172: 0 | X172: 0
A173: ='Org structure'!E176 -> 0 | C173: 0 | D173: 0 | E173: 0 | F173: 0 | G173: 0 | H173: 0 | I173: 0 | J173: 0 | K173: 0 | L173: 0 | N173: 0 | O173: 0 | P173: 0 | Q173: 0 | R173: 0 | S173: 0 | T173: 0 | U173: 0 | V173: 0 | W173: 0 | X173: 0
A174: ='Org structure'!E177 -> 0 | C174: 0 | D174: 0 | E174: 0 | F174: 0 | G174: 0 | H174: 0 | I174: 0 | J174: 0 | K174: 0 | L174: 0 | N174: 0 | O174: 0 | P174: 0 | Q174: 0 | R174: 0 | S174: 0 | T174: 0 | U174: 0 | V174: 0 | W174: 0 | X174: 0
A175: ='Org structure'!E178 -> 0 | C175: 0 | D175: 0 | E175: 0 | F175: 0 | G175: 0 | H175: 0 | I175: 0 | J175: 0 | K175: 0 | L175: 0 | N175: 0 | O175: 0 | P175: 0 | Q175: 0 | R175: 0 | S175: 0 | T175: 0 | U175: 0 | V175: 0 | W175: 0 | X175: 0
A176: ='Org structure'!E179 -> 0 | C176: 0 | D176: 0 | E176: 0 | F176: 0 | G176: 0 | H176: 0 | I176: 0 | J176: 0 | K176: 0 | L176: 0 | N176: 0 | O176: 0 | P176: 0 | Q176: 0 | R176: 0 | S176: 0 | T176: 0 | U176: 0 | V176: 0 | W176: 0 | X176: 0
A177: ='Org structure'!E180 -> 0 | C177: 0 | D177: 0 | E177: 0 | F177: 0 | G177: 0 | H177: 0 | I177: 0 | J177: 0 | K177: 0 | L177: 0 | N177: 0 | O177: 0 | P177: 0 | Q177: 0 | R177: 0 | S177: 0 | T177: 0 | U177: 0 | V177: 0 | W177: 0 | X177: 0
A178: ='Org structure'!E181 -> 0 | C178: 0 | D178: 0 | E178: 0 | F178: 0 | G178: 0 | H178: 0 | I178: 0 | J178: 0 | K178: 0 | L178: 0 | N178: 0 | O178: 0 | P178: 0 | Q178: 0 | R178: 0 | S178: 0 | T178: 0 | U178: 0 | V178: 0 | W178: 0 | X178: 0
A179: ='Org structure'!E182 -> 0 | C179: 0 | D179: 0 | E179: 0 | F179: 0 | G179: 0 | H179: 0 | I179: 0 | J179: 0 | K179: 0 | L179: 0 | N179: 0 | O179: 0 | P179: 0 | Q179: 0 | R179: 0 | S179: 0 | T179: 0 | U179: 0 | V179: 0 | W179: 0 | X179: 0
A180: ='Org structure'!E183 -> 0 | C180: 0 | D180: 0 | E180: 0 | F180: 0 | G180: 0 | H180: 0 | I180: 0 | J180: 0 | K180: 0 | L180: 0 | N180: 0 | O180: 0 | P180: 0 | Q180: 0 | R180: 0 | S180: 0 | T180: 0 | U180: 0 | V180: 0 | W180: 0 | X180: 0
A181: ='Org structure'!E184 -> 0 | C181: 0 | D181: 0 | E181: 0 | F181: 0 | G181: 0 | H181: 0 | I181: 0 | J181: 0 | K181: 0 | L181: 0 | N181: 0 | O181: 0 | P181: 0 | Q181: 0 | R181: 0 | S181: 0 | T181: 0 | U181: 0 | V181: 0 | W181: 0 | X181: 0
A182: ='Org structure'!A38 -> 0 | C182: =SUM(C183:C192) -> 0 | D182: 0 | E182: 0 | F182: 0 | G182: 0 | H182: 0 | I182: 0 | J182: 0 | K182: 0 | L182: 0 | N182: =SUM(N183:N192) -> 0 | O182: 0 | P182: 0 | Q182: 0 | R182: 0 | S182: 0 | T182: 0 | U182: 0 | V182: 0 | W182: 0 | X182: 0
A183: ='Org structure'!E186 -> 0 | C183: 0 | D183: 0 | E183: 0 | F183: 0 | G183: 0 | H183: 0 | I183: 0 | J183: =Q183+V183 -> 0 | K183: =U183+W183 -> 0 | L183: =X183 -> 0 | N183: 0 | O183: 0 | P183: 0 | Q183: =SUM(N183:P183) -> 0 | R183: 0 | S183: 0 | T183: 0 | U183: =SUM(R183:T183) -> 0 | V183: 0 | W183: 0 | X183: 0
A184: ='Org structure'!E187 -> 0 | C184: 0 | D184: 0 | E184: 0 | F184: 0 | G184: 0 | H184: 0 | I184: 0 | J184: 0 | K184: 0 | L184: 0 | N184: 0 | O184: 0 | P184: 0 | Q184: 0 | R184: 0 | S184: 0 | T184: 0 | U184: 0 | V184: 0 | W184: 0 | X184: 0
A185: ='Org structure'!E188 -> 0 | C185: 0 | D185: 0 | E185: 0 | F185: 0 | G185: 0 | H185: 0 | I185: 0 | J185: 0 | K185: 0 | L185: 0 | N185: 0 | O185: 0 | P185: 0 | Q185: 0 | R185: 0 | S185: 0 | T185: 0 | U185: 0 | V185: 0 | W185: 0 | X185: 0
A186: ='Org structure'!E189 -> 0 | C186: 0 | D186: 0 | E186: 0 | F186: 0 | G186: 0 | H186: 0 | I186: 0 | J186: 0 | K186: 0 | L186: 0 | N186: 0 | O186: 0 | P186: 0 | Q186: 0 | R186: 0 | S186: 0 | T186: 0 | U186: 0 | V186: 0 | W186: 0 | X186: 0
A187: ='Org structure'!E190 -> 0 | C187: 0 | D187: 0 | E187: 0 | F187: 0 | G187: 0 | H187: 0 | I187: 0 | J187: 0 | K187: 0 | L187: 0 | N187: 0 | O187: 0 | P187: 0 | Q187: 0 | R187: 0 | S187: 0 | T187: 0 | U187: 0 | V187: 0 | W187: 0 | X187: 0
A188: ='Org structure'!E191 -> 0 | C188: 0 | D188: 0 | E188: 0 | F188: 0 | G188: 0 | H188: 0 | I188: 0 | J188: 0 | K188: 0 | L188: 0 | N188: 0 | O188: 0 | P188: 0 | Q188: 0 | R188: 0 | S188: 0 | T188: 0 | U188: 0 | V188: 0 | W188: 0 | X188: 0
A189: ='Org structure'!E192 -> 0 | C189: 0 | D189: 0 | E189: 0 | F189: 0 | G189: 0 | H189: 0 | I189: 0 | J189: 0 | K189: 0 | L189: 0 | N189: 0 | O189: 0 | P189: 0 | Q189: 0 | R189: 0 | S189: 0 | T189: 0 | U189: 0 | V189: 0 | W189: 0 | X189: 0
A190: ='Org structure'!E193 -> 0 | C190: 0 | D190: 0 | E190: 0 | F190: 0 | G190: 0 | H190: 0 | I190: 0 | J190: 0 | K190: 0 | L190: 0 | N190: 0 | O190: 0 | P190: 0 | Q190: 0 | R190: 0 | S190: 0 | T190: 0 | U190: 0 | V190: 0 | W190: 0 | X190: 0
A191: ='Org structure'!E194 -> 0 | C191: 0 | D191: 0 | E191: 0 | F191: 0 | G191: 0 | H191: 0 | I191: 0 | J191: 0 | K191: 0 | L191: 0 | N191: 0 | O191: 0 | P191: 0 | Q191: 0 | R191: 0 | S191: 0 | T191: 0 | U191: 0 | V191: 0 | W191: 0 | X191: 0
A192: ='Org structure'!E195 -> 0 | C192: 0 | D192: 0 | E192: 0 | F192: 0 | G192: 0 | H192: 0 | I192: 0 | J192: 0 | K192: 0 | L192: 0 | N192: 0 | O192: 0 | P192: 0 | Q192: 0 | R192: 0 | S192: 0 | T192: 0 | U192: 0 | V192: 0 | W192: 0 | X192: 0
A193: ='Org structure'!A49 -> 0 | C193: =SUM(C194:C203) -> 0 | D193: 0 | E193: 0 | F193: 0 | G193: 0 | H193: 0 | I193: 0 | J193: 0 | K193: 0 | L193: 0 | N193: =SUM(N194:N203) -> 0 | O193: 0 | P193: 0 | Q193: 0 | R193: 0 | S193: 0 | T193: 0 | U193: 0 | V193: 0 | W193: 0 | X193: 0
A194: ='Org structure'!E197 -> 0 | C194: 0 | D194: 0 | E194: 0 | F194: 0 | G194: 0 | H194: 0 | I194: 0 | J194: =Q194+V194 -> 0 | K194: =U194+W194 -> 0 | L194: =X194 -> 0 | N194: 0 | O194: 0 | P194: 0 | Q194: =SUM(N194:P194) -> 0 | R194: 0 | S194: 0 | T194: 0 | U194: =SUM(R194:T194) -> 0 | V194: 0 | W194: 0 | X194: 0
A195: ='Org structure'!E198 -> 0 | C195: 0 | D195: 0 | E195: 0 | F195: 0 | G195: 0 | H195: 0 | I195: 0 | J195: 0 | K195: 0 | L195: 0 | N195: 0 | O195: 0 | P195: 0 | Q195: 0 | R195: 0 | S195: 0 | T195: 0 | U195: 0 | V195: 0 | W195: 0 | X195: 0
A196: ='Org structure'!E199 -> 0 | C196: 0 | D196: 0 | E196: 0 | F196: 0 | G196: 0 | H196: 0 | I196: 0 | J196: 0 | K196: 0 | L196: 0 | N196: 0 | O196: 0 | P196: 0 | Q196: 0 | R196: 0 | S196: 0 | T196: 0 | U196: 0 | V196: 0 | W196: 0 | X196: 0
A197: ='Org structure'!E200 -> 0 | C197: 0 | D197: 0 | E197: 0 | F197: 0 | G197: 0 | H197: 0 | I197: 0 | J197: 0 | K197: 0 | L197: 0 | N197: 0 | O197: 0 | P197: 0 | Q197: 0 | R197: 0 | S197: 0 | T197: 0 | U197: 0 | V197: 0 | W197: 0 | X197: 0
A198: ='Org structure'!E201 -> 0 | C198: 0 | D198: 0 | E198: 0 | F198: 0 | G198: 0 | H198: 0 | I198: 0 | J198: 0 | K198: 0 | L198: 0 | N198: 0 | O198: 0 | P198: 0 | Q198: 0 | R198: 0 | S198: 0 | T198: 0 | U198: 0 | V198: 0 | W198: 0 | X198: 0
A199: ='Org structure'!E202 -> 0 | C199: 0 | D199: 0 | E199: 0 | F199: 0 | G199: 0 | H199: 0 | I199: 0 | J199: 0 | K199: 0 | L199: 0 | N199: 0 | O199: 0 | P199: 0 | Q199: 0 | R199: 0 | S199: 0 | T199: 0 | U199: 0 | V199: 0 | W199: 0 | X199: 0
A200: ='Org structure'!E203 -> 0 | C200: 0 | D200: 0 | E200: 0 | F200: 0 | G200: 0 | H200: 0 | I200: 0 | J200: 0 | K200: 0 | L200: 0 | N200: 0 | O200: 0 | P200: 0 | Q200: 0 | R200: 0 | S200: 0 | T200: 0 | U200: 0 | V200: 0 | W200: 0 | X200: 0
... 668 more rows

Sheet A6-FinPos
A1: =muni&" - "&Approve6 -> NC062 Nama Khoi - Table A6 Budgeted Financial Position
A2: =desc -> Description | B2: =head27 -> Ref | C2: =head1b -> 2019/20 | D2: =head1A -> 2020/21 | E2: =Head1 -> 2021/22 | F2: =Head2 -> Current Year 2022/23 | J2: =Head3 -> 2023/24 Medium Term Revenue & Expenditure Framework
A3: R thousand | C3: =Head5 -> Audited Outcome | D3: =Head5 -> Audited Outcome | E3: =Head5 -> Audited Outcome | F3: =Head6 -> Original Budget | G3: =Head7 -> Adjusted Budget | H3: =Head8 -> Full Year Forecast | I3: =Head5b -> Pre-audit outcome | J3: =Head9 -> Budget Year 2023/24 | K3: =Head10 -> Budget Year +1 2024/25 | L3: =Head11 -> Budget Year +2 2025/26
A4: ASSETS
A5: Current assets
A6: Cash and cash equivalents | C6: 42478232 | D6: 32480221 | E6: 24516739 | F6: 402743 | G6: -22847292 | H6: -22847292 | I6: -22847292 | J6: 5272169 | K6: 7298928 | L6: 11541442
A7: Trade and other receivables from exchange transactions | B7: 1 | C7: ='SA3'!C19 -> 29940916 | D7: ='SA3'!D19 -> 39364327 | E7: ='SA3'!E19 -> 71958304 | F7: ='SA3'!F19 -> 44707986 | G7: ='SA3'!G19 -> 82681797 | H7: ='SA3'!H19 -> 82681797 | I7: ='SA3'!I19 -> 82681797 | J7: ='SA3'!J19 -> 65735084 | K7: ='SA3'!K19 -> 58766219 | L7: ='SA3'!L19 -> 51469817
A8: Receivables from non-exchange transactions | B8: 1 | C8: ='SA3'!C28 -> 2541560 | D8: ='SA3'!D28 -> 813643 | E8: ='SA3'!E28 -> 1206519 | F8: ='SA3'!F28 -> 384101 | G8: ='SA3'!G28 -> 456623 | H8: ='SA3'!H28 -> 456623 | I8: ='SA3'!I28 -> 456623 | J8: ='SA3'!J28 -> 31297351 | K8: ='SA3'!K28 -> 35689276 | L8: ='SA3'!L28 -> 40287621
A9: Current portion of non-current receivables | C9: 0 | D9: 0 | E9: 0 | F9: 0 | G9: 0 | H9: 0 | I9: 0 | J9: 0 | K9: 0 | L9: 0
A10: Inventory | B10: 2 | C10: ='SA3'!C123 -> -2645570 | D10: ='SA3'!D123 -> -2643681 | E10: ='SA3'!E123 -> 2576568 | F10: ='SA3'!F123 -> -2643680 | G10: ='SA3'!G123 -> 2576569 | H10: ='SA3'!H123 -> 2576569 | I10: ='SA3'!I123 -> 2576569 | J10: ='SA3'!J123 -> -5843983 | K10: ='SA3'!K123 -> -14677142 | L10: ='SA3'!L123 -> -23925459
A11: VAT | C11: 26216291 | D11: 23003887 | E11: 23255935 | F11: 23003887 | G11: 23255936 | H11: 23255936 | I11: 23255936 | J11: 23255936 | K11: 23255936 | L11: 23255936
A12: Other current assets | C12: -54654 | D12: 362657 | E12: -712462 | F12: 362658 | G12: -517943 | H12: -517943 | I12: -517943 | J12: -517943 | K12: -517943 | L12: -517943
A13: Total current assets | C13: =SUM(C6:C12) -> 98476775 | D13: 93381054 | E13: 122801603 | F13: 66217695 | G13: 85605690 | H13: 85605690 | I13: 85605690 | J13: 119198614 | K13: 109815274 | L13: 102111414
A14: Non current assets
A15: Investments | C15: 0 | D15: 0 | E15: 0 | F15: 0 | G15: 0 | H15: 0 | I15: 0 | J15: 0 | K15: 0 | L15: 0
A16: Investment property | C16: 301629043 | D16: 199718915 | E16: 138836266 | F16: 199718914 | G16: 138836266 | H16: 138836266 | I16: 138836266 | J16: 138836266 | K16: 138836266 | L16: 138836266
A17: Property, plant and equipment | B17: 3 | C17: ='SA3'!C129 -> 771747387 | D17: ='SA3'!D129 -> 819517207 | E17: ='SA3'!E129 -> 703256552 | F17: ='SA3'!F129 -> 848117321 | G17: ='SA3'!G129 -> 697293489 | H17: ='SA3'!H129 -> 697293489 | I17: ='SA3'!I129 -> 697293489 | J17: ='SA3'!J129 -> 677492131 | K17: ='SA3'!K129 -> 612288205 | L17: ='SA3'!L129 -> 542544028
A18: Biological assets | C18: 0 | D18: 0 | E18: 0 | F18: 0 | G18: 0 | H18: 0 | I18: 0 | J18: 0 | K18: 0 | L18: 0
A19: Living and non-living resources | C19: 0 | D19: 0 | E19: 0 | F19: 0 | G19: 0 | H19: 0 | I19: 0 | J19: 0 | K19: 0 | L19: 0
A20: Heritage assets | C20: 1484269 | D20: 1484269 | E20: 1484269 | F20: 1484269 | G20: 1484269 | H20: 1484269 | I20: 1484269 | J20: 1484269 | K20: 1484269 | L20: 1484269
A21: Intangible assets | C21: 64800 | D21: 81431 | E21: 96148 | F21: 71157 | G21: 96148 | H21: 96148 | I21: 96148 | J21: 96148 | K21: 96148 | L21: 96148
A22: Trade and other receivables from exchange transactions | C22: -5061060 | D22: -6214348 | E22: -7296397 | F22: -6214348 | G22: -7662234 | H22: -7662234 | I22: -7662234 | J22: -7662234 | K22: -7662234 | L22: -7662234
A23: Non-current receivables from non-exchange transactions | C23: 850992 | D23: 1108849 | E23: 1364425 | F23: 1108849 | G23: 1364425 | H23: 1364425 | I23: 1364425 | J23: 1364425 | K23: 1364425 | L23: 1364425
A24: Other non-current assets | C24: 0 | D24: 0 | E24: 0 | F24: 0 | G24: 0 | H24: 0 | I24: 0 | J24: 0 | K24: 0 | L24: 0
A25: Total non current assets | C25: =SUM(C15:C24) -> 1070715431 | D25: =SUM(D15:D24) -> 1015696323 | E25: 837741263 | F25: 1044286162 | G25: 831412363 | H25: 831412363 | I25: 831412363 | J25: 811611005 | K25: 746407079 | L25: 676662902
A26: TOTAL ASSETS | C26: =C13+C25 -> 1169192206 | D26: =D13+D25 -> 1109077377 | E26: =E13+E25 -> 960542866 | F26: =F13+F25 -> 1110503857 | G26: 917018053 | H26: 917018053 | I26: 917018053 | J26: 930809619 | K26: 856222353 | L26: 778774316
A27: LIABILITIES
A28: Current liabilities
A29: Bank overdraft | C29: 0 | D29: 0 | E29: 0 | F29: 0 | G29: 0 | H29: 0 | I29: 0 | J29: 0 | K29: 0 | L29: 0
A30: Financial liabilities | C30: ='SA3'!C135 -> 3501950 | D30: ='SA3'!D135 -> 2878301 | E30: ='SA3'!E135 -> -374386 | F30: ='SA3'!F135 -> 3433041 | G30: ='SA3'!G135 -> 466158 | H30: ='SA3'!H135 -> 466158 | I30: ='SA3'!I135 -> 466158 | J30: ='SA3'!J135 -> 466158 | K30: ='SA3'!K135 -> 466158 | L30: ='SA3'!L135 -> 466158
A31: Consumer deposits | C31: 3115231 | D31: 3331042 | E31: 3570010 | F31: 3331042 | G31: 3570010 | H31: 3570010 | I31: 3570010 | J31: 3570010 | K31: 3570010 | L31: 3570010
A32: Trade and other payables from exchange transactions | B32: 4 | C32: 346082094 | D32: 374907656 | E32: 414489888 | F32: 374907654 | G32: 414489890 | H32: 414489890 | I32: 414489890 | J32: 414489890 | K32: 414489890 | L32: 414489890
A33: Trade and other payables from non-exchange transactions | B33: 5 | C33: 24150498 | D33: 25740278 | E33: 18701419 | F33: 25740278 | G33: 18701418 | H33: 18701418 | I33: 18701418 | J33: 18701418 | K33: 18701418 | L33: 18701418
A34: Provision | C34: 16976221 | D34: 18309631 | E34: 17221614 | F34: 17822631 | G34: 17443614 | H34: 17443614 | I34: 17443614 | J34: 17443614 | K34: 17443614 | L34: 17443614
A35: VAT | C35: 732821 | D35: -6354725 | E35: 490816 | F35: -6354725 | G35: 490816 | H35: 490816 | I35: 490816 | J35: 490816 | K35: 490816 | L35: 490816
A36: Other current liabilities | C36: 0 | D36: 0 | E36: 0 | F36: 0 | G36: 0 | H36: 0 | I36: 0 | J36: 0 | K36: 0 | L36: 0
A37: Total current liabilities | C37: =SUM(C29:C36) -> 394558815 | D37: 418812183 | E37: 454099361 | F37: 418879921 | G37: 455161906 | H37: 455161906 | I37: 455161906 | J37: 455161906 | K37: 455161906 | L37: 455161906
A38: Non current liabilities
A39: Financial liabilities | B39: 6 | C39: ='SA3'!C147 -> 0 | D39: ='SA3'!D147 -> 0 | E39: ='SA3'!E147 -> 1544846 | F39: ='SA3'!F147 -> 20782651 | G39: ='SA3'!G147 -> 704302 | H39: ='SA3'!H147 -> 704302 | I39: ='SA3'!I147 -> 704302 | J39: ='SA3'!J147 -> 704302 | K39: ='SA3'!K147 -> 704302 | L39: ='SA3'!L147 -> 704302
A40: Provision | B40: 7 | C40: ='SA3'!C154 -> 146391081 | D40: ='SA3'!D154 -> 141712964 | E40: ='SA3'!E154 -> 161708532 | F40: ='SA3'!F154 -> 142199964 | G40: ='SA3'!G154 -> 161486532 | H40: ='SA3'!H154 -> 161486532 | I40: ='SA3'!I154 -> 161486532 | J40: ='SA3'!J154 -> 161486532 | K40: ='SA3'!K154 -> 161486532 | L40: ='SA3'!L154 -> 161486532
A41: Long term portion of trade payables | C41: 0 | D41: 0 | E41: 0 | F41: 0 | G41: 0 | H41: 0 | I41: 0 | J41: 0 | K41: 0 | L41: 0
A42: Other non-current liabilities | C42: 0 | D42: 0 | E42: 0 | F42: 0 | G42: 0 | H42: 0 | I42: 0 | J42: 0 | K42: 0 | L42: 0
A43: Total non current liabilities | C43: =SUM(C39:C42) -> 146391081 | D43: =SUM(D39:D42) -> 141712964 | E43: 163253378 | F43: 162982615 | G43: 162190834 | H43: 162190834 | I43: 162190834 | J43: 162190834 | K43: 162190834 | L43: 162190834
A44: TOTAL LIABILITIES | C44: =C37+C43 -> 540949896 | D44: =D37+D43 -> 560525147 | E44: =E37+E43 -> 617352739 | F44: =F37+F43 -> 581862536 | G44: 617352740 | H44: 617352740 | I44: 617352740 | J44: 617352740 | K44: =K37+K43 -> 617352740 | L44: 617352740
A45: NET ASSETS | C45: =C26-C44 -> 628242310 | D45: 548552230 | E45: 343190127 | F45: 528641321 | G45: 299665313 | H45: 299665313 | I45: 299665313 | J45: 313456879 | K45: 238869613 | L45: 161421576
A46: COMMUNITY WEALTH/EQUITY
A47: Accumulated surplus/(deficit) | B47: 8 | C47: 739742125 | D47: 635606422 | E47: 444336689 | F47: 543137075 | G47: 335527678 | H47: 335527678 | I47: 335527678 | J47: 313226802 | K47: 238639536 | L47: 161191499
A48: Reserves and funds | B48: 9 | C48: ='SA3'!C173 -> 0 | D48: ='SA3'!D173 -> 188930 | E48: ='SA3'!E173 -> 230077 | F48: ='SA3'!F173 -> 188930 | G48: ='SA3'!G173 -> 230077 | H48: ='SA3'!H173 -> 230077 | I48: ='SA3'!I173 -> 230077 | J48: ='SA3'!J173 -> 230077 | K48: ='SA3'!K173 -> 230077 | L48: ='SA3'!L173 -> 230077
A49: Other
A50: TOTAL COMMUNITY WEALTH/EQUITY | B50: 10 | C50: =SUM(C47:C49) -> 739742125 | D50: =SUM(D47:D49) -> 635795352 | E50: 444566766 | F50: 543326005 | G50: 335757755 | H50: 335757755 | I50: 335757755 | J50: 313456879 | K50: 238869613 | L50: 161421576
A51: =head27a -> References
A52: 1. Detail breakdown in Table SA3 for Trade receivables from Exchange and Non-exchange transactions
A53: 2. Include completed low cost housing to be transferred to beneficiaries within 12 months detail provided in Table SA3
A54: 3. Include 'Construction-work-in-progress' (disclosed separately in annual financial statements) detail in SA3
A55: 4. Detail breakdown in Table SA3.
A56: 5. Detail breakdown in Table SA3.
A57: 6. Detail breakdown in Table SA3.
A58: 7 Detail breakdown in Table SA3.
A59: 8. Detail breakdown in Table SA3.
A60: 9. Detail breakdown in Table SA3. Includes reserves to be funded by statute.
A61: 10. Net assets must balance with Total Community Wealth/Equity
A62: check balance | C62: =IF((C45-C50)=0,0,"Unbalanced") -> Unbalanced | D62: Unbalanced | E62: Unbalanced | F62: Unbalanced | G62: Unbalanced | H62: Unbalanced | I62: Unbalanced | J62: 0 | K62: 0 | L62: 0

Sheet A7-CFlow
A1: =muni&" - "&Approve7 -> NC062 Nama Khoi - Table A7 Budgeted Cash Flows
A2: =desc -> Description | B2: =head27 -> Ref | C2: =head1b -> 2019/20 | D2: =head1A -> 2020/21 | E2: =Head1 -> 2021/22 | F2: =Head2 -> Current Year 2022/23 | J2: =Head3 -> 2023/24 Medium Term Revenue & Expenditure Framework
A3: R thousand | C3: =Head5 -> Audited Outcome | D3: =Head5 -> Audited Outcome | E3: =Head5 -> Audited Outcome | F3: =Head6 -> Original Budget | G3: =Head7 -> Adjusted Budget | H3: =Head8 -> Full Year Forecast | I3: =Head5b -> Pre-audit outcome | J3: =Head9 -> Budget Year 2023/24 | K3: =Head10 -> Budget Year +1 2024/25 | L3: =Head11 -> Budget Year +2 2025/26
A4: CASH FLOW FROM OPERATING ACTIVITIES
A5: Receipts
A6: Property rates | C6: 167061 | D6: 99831 | E6: 15233515 | F6: 49892836 | G6: 0 | H6: 49460313 | I6: 49460313 | J6: ='SA30'!N5 -> 61477224 | K6: ='SA30'!O5 -> 64489609 | L6: ='SA30'!P5 -> 67520622
A7: Service charges | C7: 350759243 | D7: 560969246 | E7: 189661011 | F7: 237298285 | G7: 0 | H7: 242414785 | I7: 242414785 | J7: ='SA30'!N6+'SA30'!N7+'SA30'!N8+'SA30'!N9 -> 306390968 | K7: ='SA30'!O6+'SA30'!O7+'SA30'!O8+'SA30'!O9 -> 321404124 | L7: ='SA30'!P6+'SA30'!P7+'SA30'!P8+'SA30'!P9 -> 336510118
A8: Other revenue | C8: 12819 | D8: 1306459 | E8: 5438293 | F8: 7112741 | G8: 363633641 | H8: 8074040 | I8: 8074040 | J8: ='SA30'!N11+'SA30'!N15+'SA30'!N16+'SA30'!N17+'SA30'!N19 -> 7876158 | K8: ='SA30'!O11+'SA30'!O15+'SA30'!O16+'SA30'!O17+'SA30'!O19 -> 8260909 | L8: ='SA30'!P11+'SA30'!P15+'SA30'!P16+'SA30'!P17+'SA30'!P19 -> 8649173
A9: Transfers and Subsidies - Operational | B9: 1 | C9: 0 | D9: 35912347 | E9: 39854488 | F9: 22650031 | G9: 0 | H9: 22650032 | I9: 22650032 | J9: ='SA30'!N18 -> 14028976 | K9: ='SA30'!O18 -> 13603203 | L9: ='SA30'!P18 -> 15170050
A10: Transfers and Subsidies - Capital | B10: 1 | C10: 0 | D10: 0 | E10: 0 | F10: 41070000 | G10: 0 | H10: 41070000 | I10: 41070000 | J10: ='SA30'!N23+'SA30'!N24 -> 36599000 | K10: ='SA30'!O23+'SA30'!O24 -> 20461000 | L10: ='SA30'!P23+'SA30'!P24 -> 19947000
A11: Interest | C11: 0 | D11: 0 | E11: 0 | F11: 0 | G11: 0 | H11: 0 | I11: 0 | J11: ='SA30'!N12+'SA30'!N13 -> 2084695 | K11: ='SA30'!O12+'SA30'!O13 -> 2186845 | L11: ='SA30'!P12+'SA30'!P13 -> 2289627
A12: Dividends | C12: 0 | D12: 0 | E12: 0 | F12: 0 | G12: 0 | H12: 0 | I12: 0 | J12: ='SA30'!N14 -> 0 | K12: ='SA30'!O14 -> 0 | L12: ='SA30'!P14 -> 0
A13: Payments
A14: Suppliers and employees | C14: -458754 | D14: 0 | E14: -90338426 | F14: -338858875 | G14: -341084811 | H14: -341084811 | I14: -341084811 | J14: =-('SA30'!N35+'SA30'!N36+'SA30'!N38+'SA30'!N39+'SA30'!N40+'SA30'!N41+'SA30'!N44+'SA30'!N50) -> -389100063 | K14: =-('SA30'!O35+'SA30'!O36+'SA30'!O38+'SA30'!O39+'SA30'!O40+'SA30'!O41+'SA30'!O44+'SA30'!O50) -> -405732931 | L14: =-('SA30'!P35+'SA30'!P36+'SA30'!P38+'SA30'!P39+'SA30'!P40+'SA30'!P41+'SA30'!P44+'SA30'!P50) -> -424242076
A15: Finance charges | C15: 0 | D15: 0 | E15: -375004 | F15: -1964233 | G15: -81000 | H15: -81000 | I15: -81000 | J15: =-('SA30'!N37) -> -2702525 | K15: =-('SA30'!O37) -> -2185000 | L15: =-('SA30'!P37) -> -1655000
A16: Transfers and Subsidies | B16: 1 | C16: 0 | D16: 0 | E16: 0 | F16: 0 | G16: 0 | H16: 0 | I16: 0 | J16: =-('SA30'!N42+'SA30'!N43) -> 0 | K16: =-('SA30'!O42+'SA30'!O43) -> 0 | L16: =-('SA30'!P42+'SA30'!P43) -> 0
A17: NET CASH FROM/(USED) OPERATING ACTIVITIES | C17: =SUM(C6:C12)+SUM(C14:C16) -> 350480369 | D17: 598287883 | E17: 159473877 | F17: 17200785 | G17: 22467830 | H17: 22503359 | I17: 22503359 | J17: 36654433 | K17: 22487759 | L17: 24189514
A18: CASH FLOWS FROM INVESTING ACTIVITIES
A19: Receipts
A20: Proceeds on disposal of PPE | C20: 0 | D20: 0 | E20: 0 | F20: 0 | G20: 0 | H20: 0 | I20: 0 | J20: ='SA30'!N25 -> 0 | K20: ='SA30'!O25 -> 0 | L20: ='SA30'!P25 -> 0
C21: 0 | D21: 115474 | E21: 668704 | F21: 0 | G21: 0 | H21: 0 | I21: 0
A22: Decrease (increase) in non-current receivables | C22: 0 | D22: 0 | E22: 0 | F22: 0 | G22: 0 | H22: 0 | I22: 0 | J22: ='SA30'!N30 -> 0 | K22: ='SA30'!O30 -> 0 | L22: ='SA30'!P30 -> 0
A23: Decrease (increase) in non-current investments | C23: 0 | D23: 0 | E23: 0 | F23: 0 | G23: 0 | H23: 0 | I23: 0 | J23: ='SA30'!N31 -> 0 | K23: ='SA30'!O31 -> 0 | L23: ='SA30'!P31 -> 0
A24: Payments | C24: 0 | D24: 0 | E24: 0 | F24: 0 | G24: 0 | H24: 0 | I24: 0
A25: Capital assets | C25: 0 | D25: 0 | E25: 0 | F25: 0 | G25: 0 | H25: 0 | I25: 0 | J25: =-('SA30'!N48) -> -55899000 | K25: =-('SA30'!O48) -> -20461000 | L25: =-('SA30'!P48) -> -19947000
A26: NET CASH FROM/(USED) INVESTING ACTIVITIES | C26: 0 | D26: 0 | E26: 0 | F26: 0 | G26: 0 | H26: 0 | I26: 0 | J26: =+J20+J22+J23+J25 -> -55899000 | K26: -20461000 | L26: -19947000
A28: CASH FLOWS FROM FINANCING ACTIVITIES
A29: Receipts
A30: Short term loans | C30: 0 | D30: 0 | E30: 0 | F30: 0 | G30: 0 | H30: 0 | I30: 0 | J30: ='SA30'!N26 -> 0 | K30: ='SA30'!O26 -> 0 | L30: ='SA30'!P26 -> 0
A31: Borrowing long term/refinancing | C31: 0 | D31: 0 | E31: 0 | F31: 25000000 | G31: 0 | H31: 0 | I31: 0 | J31: ='SA30'!N27 -> 0 | K31: ='SA30'!O27 -> 0 | L31: ='SA30'!P27 -> 0
A32: Increase (decrease) in consumer deposits | C32: 0 | D32: 0 | E32: 0 | F32: 0 | G32: 0 | H32: 0 | I32: 0 | J32: ='SA30'!N28 -> 0 | K32: ='SA30'!O28 -> 0 | L32: ='SA30'!P28 -> 0
A33: Payments | C33: 0 | D33: 0 | E33: 0 | F33: 0 | G33: 0 | H33: 0 | I33: 0
A34: Repayment of borrowing | C34: 0 | D34: 0 | E34: 0 | F34: 0 | G34: 0 | H34: 0 | I34: 0 | J34: =-('SA30'!N49) -> 0 | K34: =-('SA30'!O49) -> 0 | L34: =-('SA30'!P49) -> 0
A35: NET CASH FROM/(USED) FINANCING ACTIVITIES | C35: 0 | D35: 0 | E35: 0 | F35: 0 | G35: 0 | H35: 0 | I35: 0 | J35: =SUM(J30:J32)+J34 -> 0 | K35: 0 | L35: 0
A37: NET INCREASE/ (DECREASE) IN CASH HELD | C37: =C17+C26+C35 -> 350480369 | D37: 598287883 | E37: 159473877 | F37: 17200785 | G37: 22467830 | H37: 22503359 | I37: 22503359 | J37: -19244567 | K37: 2026759 | L37: 4242514
A38: Cash/cash equivalents at the year begin: | B38: 2 | C38: 29898302 | D38: 32689675 | E38: 32470645 | F38: 32480222 | G38: 24516736 | H38: 24516736 | I38: 24516736 | J38: ='SA30'!N54 -> 24516736 | K38: =J39 -> 5272169 | L38: =K39 -> 7298928
A39: Cash/cash equivalents at the year end: | B39: 2 | C39: =C37+C38 -> 380378671 | D39: =D37+D38 -> 630977558 | E39: =E37+E38 -> 191944522 | F39: =F37+F38 -> 49681007 | G39: 46984566 | H39: 47020095 | I39: 47020095 | J39: 5272169 | K39: 7298928 | L39: 11541442
A40: =head27a -> References
A41: 1. Local/District municipalities to include transfers from/to District/Local Municipalities
A42: 2. Cash equivalents includes investments with maturities of 3 months or less
A43: 3. The MTREF is populated directly from SA30.
A44: Total receipts | C44: =SUM(C6:C12)+SUM(C20:C22) -> 350939123 | D44: 598403357 | E44: 250856011 | F44: 358023893 | G44: 363633641 | H44: 363669170 | I44: 363669170 | J44: 428457021 | K44: 430405690 | L44: 450086590
A45: Total payments | C45: =SUM(C14:C16)+C25 -> -458754 | D45: 0 | E45: -90713430 | F45: -340823108 | G45: -341165811 | H45: -341165811 | I45: -341165811 | J45: -447701588 | K45: -428378931 | L45: -445844076
C46: =C44+C45 -> 350480369 | D46: =D44+D45 -> 598403357 | E46: 160142581 | F46: 17200785 | G46: 22467830 | H46: 22503359 | I46: 22503359 | J46: -19244567 | K46: 2026759 | L46: 4242514
A47: Borrowings & investments & c.deposits | C47: =C23+C31+C32 -> 0 | D47: =D23+D31+D32 -> 0 | E47: 0 | F47: 25000000 | G47: 0 | H47: 0 | I47: 0 | J47: 0 | K47: 0 | L47: 0
A48: =A34 -> Repayment of borrowing | C48: =C34 -> 0 | D48: =D34 -> 0 | E48: 0 | F48: 0 | G48: 0 | H48: 0 | I48: =I34 -> 0 | J48: 0 | K48: 0 | L48: 0
C49: =C46+C47+C48 -> 350480369 | D49: =D46+D47+D48 -> 598403357 | E49: 160142581 | F49: 42200785 | G49: 22467830 | H49: 22503359 | I49: 22503359 | J49: -19244567 | K49: 2026759 | L49: 4242514
C50: =C37-C49 -> 0 | D50: -115474 | E50: -668704 | F50: -25000000 | G50: 0 | H50: 0 | I50: 0 | J50: 0 | K50: 0 | L50: 0

Sheet A8-ResRecon
A1: =muni&" - "&Approve8 -> NC062 Nama Khoi - Table A8 Cash backed reserves/accumulated surplus reconciliation
A2: =desc -> Description | B2: =head27 -> Ref | C2: =head1b -> 2019/20 | D2: =head1A -> 2020/21 | E2: =Head1 -> 2021/22 | F2: =Head2 -> Current Year 2022/23 | J2: =Head3 -> 2023/24 Medium Term Revenue & Expenditure Framework
A3: R thousand | C3: =Head5 -> Audited Outcome | D3: =Head5 -> Audited Outcome | E3: =Head5 -> Audited Outcome | F3: =Head6 -> Original Budget | G3: =Head7 -> Adjusted Budget | H3: =Head8 -> Full Year Forecast | I3: =Head5b -> Pre-audit outcome | J3: =Head9 -> Budget Year 2023/24 | K3: =Head10 -> Budget Year +1 2024/25 | L3: =Head11 -> Budget Year +2 2025/26
A4: Cash and investments available
A5: =LEFT('A7-CFlow'!A39,37) -> Cash/cash equivalents at the year end | B5: 1 | C5: ='A7-CFlow'!C39 -> 380378671 | D5: ='A7-CFlow'!D39 -> 630977558 | E5: ='A7-CFlow'!E39 -> 191944522 | F5: ='A7-CFlow'!F39 -> 49681007 | G5: ='A7-CFlow'!G39 -> 46984566 | H5: ='A7-CFlow'!H39 -> 47020095 | I5: ='A7-CFlow'!I39 -> 47020095 | J5: ='A7-CFlow'!J39 -> 5272169 | K5: ='A7-CFlow'!K39 -> 7298928 | L5: ='A7-CFlow'!L39 -> 11541442
A6: Other current investments > 90 days | C6: ='A6-FinPos'!C6+'A6-FinPos'!C7-'A6-FinPos'!C29-'A8-ResRecon'!C5 -> -307959523 | D6: ='A6-FinPos'!D6+'A6-FinPos'!D7-'A6-FinPos'!D29-'A8-ResRecon'!D5 -> -559133010 | E6: ='A6-FinPos'!E6+'A6-FinPos'!E7-'A6-FinPos'!E29-'A8-ResRecon'!E5 -> -95469479 | F6: ='A6-FinPos'!F6+'A6-FinPos'!F7-'A6-FinPos'!F29-'A8-ResRecon'!F5 -> -4570278 | G6: ='A6-FinPos'!G6+'A6-FinPos'!G7-'A6-FinPos'!G29-'A8-ResRecon'!G5 -> 12849939 | H6: ='A6-FinPos'!H6+'A6-FinPos'!H7-'A6-FinPos'!H29-'A8-ResRecon'!H5 -> 12814410 | I6: ='A6-FinPos'!I6+'A6-FinPos'!I7-'A6-FinPos'!I29-'A8-ResRecon'!I5 -> 12814410 | J6: ='A6-FinPos'!J6+'A6-FinPos'!J7-'A6-FinPos'!J29-'A8-ResRecon'!J5 -> 65735084 | K6: ='A6-FinPos'!K6+'A6-FinPos'!K7-'A6-FinPos'!K29-'A8-ResRecon'!K5 -> 58766219 | L6: ='A6-FinPos'!L6+'A6-FinPos'!L7-'A6-FinPos'!L29-'A8-ResRecon'!L5 -> 51469817
A7: ='A6-FinPos'!A15&" - "&'A6-FinPos'!A17 -> Investments - Property, plant and equipment | B7: 1 | C7: ='A6-FinPos'!C17 -> 771747387 | D7: ='A6-FinPos'!D17 -> 819517207 | E7: ='A6-FinPos'!E17 -> 703256552 | F7: ='A6-FinPos'!F17 -> 848117321 | G7: ='A6-FinPos'!G17 -> 697293489 | H7: ='A6-FinPos'!H17 -> 697293489 | I7: ='A6-FinPos'!I17 -> 697293489 | J7: ='A6-FinPos'!J17 -> 677492131 | K7: ='A6-FinPos'!K17 -> 612288205 | L7: ='A6-FinPos'!L17 -> 542544028
A8: Cash and investments available: | C8: =SUM(C5:C7) -> 844166535 | D8: =SUM(D5:D7) -> 891361755 | E8: 799731595 | F8: 893228050 | G8: 757127994 | H8: 757127994 | I8: 757127994 | J8: 748499384 | K8: 678353352 | L8: 605555287
A10: Application of cash and investments
A11: ='SA3'!A141 -> Trade payables from Non-exchange transactions: Other | C11: ='SA3'!C141 -> 0 | D11: ='SA3'!D141 -> 0 | E11: ='SA3'!E141 -> 0 | F11: ='SA3'!F141 -> 0 | G11: ='SA3'!G141 -> 0 | H11: ='SA3'!H141 -> 0 | I11: ='SA3'!I141 -> 0 | J11: ='SA3'!J141 -> 0 | K11: ='SA3'!K141 -> 0 | L11: ='SA3'!L141 -> 0
A12: Unspent borrowing
A13: Statutory requirements | B13: 2
A14: Other working capital requirements | B14: 3 | C14: =-C32 -> 128736094 | D14: =-D32 -> 143197656 | E14: 356187888 | F14: =-F32 -> 277126654 | G14: 328854890 | H14: 343851890 | I14: 348904890 | J14: 319381890 | K14: 321977890 | L14: 324731890
A15: Other provisions
A16: Long term investments committed | B16: 4 | C16: =C52 -> 0 | D16: =D52 -> 0 | E16: 0 | F16: 0 | G16: 0 | H16: 0 | I16: 0 | J16: 0 | K16: 0 | L16: 0
A17: Reserves to be backed by cash/investments | B17: 5
A18: ="Total "&A10&":" -> Total Application of cash and investments: | C18: =SUM(C11:C17) -> 128736094 | D18: =SUM(D11:D17) -> 143197656 | E18: 356187888 | F18: 277126654 | G18: 328854890 | H18: 343851890 | I18: 348904890 | J18: 319381890 | K18: 321977890 | L18: 324731890
A19: Surplus(shortfall) | C19: =C8-C18 -> 715430441 | D19: =D8-D18 -> 748164099 | E19: 443543707 | F19: 616101396 | G19: 428273104 | H19: 413276104 | I19: 408223104 | J19: 429117494 | K19: 356375462 | L19: 280823397
A20: =head27a -> References
A21: 1. Must reconcile with Budgeted Cash Flows
A22: 2. For example: VAT, taxation
A23: 3. Council approval for policy required - include sufficient working capital (e.g. allowing for a % of current debtors > 90 days as uncollectable)
A24: 4. For example: sinking fund requirements for borrowing
A25: 5. Council approval required for each reserve created and basis of cash backing of reserves - Total Reserves to be backed by cash/investments excl Valuation reserve
A28: Other working capital requirements
